Workbook

Sheet INDICE
U12: 1.1 Número de colegios
U13: 1.2 Número de Sedes
U14: 1.3 Insuficiencia de las UPZ
U18: 2.1 Población por edad simple
U19: 2.2 Población en edad escolar
U21: 3.1 Matrícula por grado
U22: 3.2 Matrícula por edad
U23: 3.3 Matrícula por estrato
U24: 3.4 Matrícula por tipo de institución
U25: 3.5 Demanda por nivel
U26: 3.6 Demanda por grado
U27: 3.7 Oferta por grado
U28: 3.8 Oferta Vrs Demanda
U29: 3.9 Oferta Vs Demanda por UPZ
U31: 4.1 Tasas de Eficiencia Interna
U32: 4.2 Tasa de Cobertura Bruta
I34: Puente Aranda
U35: 5.1 Causas de deserción según Estudiantes
U36: 5.2 Causas de deserción según Docentes
U37: 5.3 Causas de deserción según Rectores
U38: 5,4 Deserción por Establecimiento Educativo

Sheet VICTIMAS 2015-2016 (hidden)
B1: 2016 | C1: En situación de desplazamiento | D1: Desvinculados de grupos armados | E1: Hijos de adultos desmovilizados | F1: Victimas de minas
B2: 1 | C2: 760 | D2: 5 | E2: 6
B3: 2 | C3: 105 | E3: 1
B4: 3 | C4: 368 | E4: 1
B5: 4 | C5: 1925 | D5: 19 | E5: 34 | F5: 1
B6: 5 | C6: 3579 | D6: 16 | E6: 21 | F6: 3
B7: 6 | C7: 1459 | D7: 3 | E7: 11 | F7: 1
B8: 7 | C8: 5076 | D8: 18 | E8: 60 | F8: 1
B9: 8 | C9: 4907 | D9: 30 | E9: 49 | F9: 3
B10: 9 | C10: 613 | D10: 6 | E10: 2
B11: 10 | C11: 1638 | D11: 21 | E11: 39 | F11: 2
B12: 11 | C12: 2814 | D12: 22 | E12: 33 | F12: 3
B13: 12 | C13: 379 | D13: 4 | E13: 2
B14: 13 | C14: 79 | E14: 1 | F14: 1
B15: 14 | C15: 474 | D15: 7 | E15: 3
B16: 15 | C16: 304 | D16: 2 | E16: 2
B17: 16 | C17: 831 | D17: 27 | E17: 35 | F17: 1
B18: 17 | C18: 107 | E18: 1
B19: 18 | C19: 2174 | D19: 5 | E19: 26
B20: 19 | C20: 5816 | D20: 24 | E20: 42 | F20: 1
B21: 20 | C21: 27
B22: Total general | C22: 33435 | D22: 209 | E22: 369 | F22: 17
B24: Etiquetas de fila | C24: Desvinculados de grupos armados | D24: En situación de desplazamiento | E24: Hijos de adultos desmovilizados
A25: 15 | B25: Antonio Nariño | C25: 2 | D25: 186 | E25: 2
A26: 12 | B26: Barrios Unidos | C26: 6 | D26: 254
A27: 6 | B27: Bosa | C27: 29 | D27: 3306 | E27: 35
A28: 2 | B28: Chapinero | D28: 85 | E28: 1
A29: 19 | B29: Ciudad Bolívar | C29: 43 | D29: 4196 | E29: 33
A30: 10 | B30: Engativá | C30: 39 | D30: 1009 | E30: 22
A31: 9 | B31: Fontibón | C31: 7 | D31: 376 | E31: 1
A32: 8 | B32: Kennedy | C32: 34 | D32: 2967 | E32: 28
A33: 17 | B33: La Candelaria | D33: 80 | E33: 1
A34: 14 | B34: Los Mártires | C34: 1 | D34: 288 | E34: 1
A35: 16 | B35: Puente Aranda | C35: 4 | D35: 367
A36: 18 | B36: Rafael Uribe Uribe | C36: 16 | D36: 1484 | E36: 17
A37: 4 | B37: San Cristóbal | C37: 29 | D37: 1377 | E37: 28
A38: 3 | B38: Santa Fe | C38: 4 | D38: 214
A39: 11 | B39: Suba | C39: 36 | D39: 1598 | E39: 15
A40: 20 | B40: Sumapaz | D40: 8
A41: 13 | B41: Teusaquillo | C41: 1 | D41: 53
A42: 7 | B42: Tunjuelito | C42: 9 | D42: 965 | E42: 5
A43: 1 | B43: Usaquén | C43: 11 | D43: 436 | E43: 1
A44: 5 | B44: Usme | C44: 33 | D44: 2525 | E44: 13
B45: Total general | C45: 304 | D45: 21774 | E45: 203

Sheet 1
A4: Perfil: | C4: =INDICE!I34 -> Puente Aranda | F4: Numero: | I4: =VLOOKUP($C$4,'Localidades colegio y sedes '!$C:$D,2,FALSE) -> 16
A6: Ficha General
B8: No. De Colegios Oficiales: | F8: =VLOOKUP(I4,'Localidades colegio y sedes '!B:G,4,FALSE) -> 15 | G8: Matrícula Oficial 2019: | J8: ='3'!K33 -> 24113
B9: No. De Colegios en Administración: | F9: =VLOOKUP(I4,'Localidades colegio y sedes '!B:G,6,FALSE) -> 0 | G9: Oferta Oficial 2019: | J9: ='3'!I208 -> 26920
B10: No. De Sedes Oficiales y en Administración: | F10: =VLOOKUP(I4,'Localidades colegio y sedes '!B:F,5,FALSE) -> 32 | G10: Tasa de Desercion 2018: | J10: ='4'!G66/100 -> 0.0179622036
B11: No. De Colegios Contratados: | F11: =VLOOKUP(I4,'Localidades colegio y sedes '!D:L,7,FALSE) -> 0 | G11: Tasa de Reprobacion 2017: | J11: ='4'!F35/100 -> 0.06151142355
B12: No. De Colegios Privados: | F12: =VLOOKUP(I4,'Localidades colegio y sedes '!D:L,6,FALSE) -> 86 | G12: Tasa de Aprobacion 2017: | J12: ='4'!F19/100 -> 0.9141840628
A16: UPZ Con Establecimientos Oficiales
B18: No. UPZ | C18: Nombre UPZ | F18: No. De Sedes Oficiales | H18: Escala Insuficiencia
B19: =IF(ROWS($C$4:C4)<=COUNTIF('Escala de Insuficiencia'!$B:$B,'1'!$C$4),VLOOKUP('1'!$C$4&ROWS($C$4:C4),'Escala de Insuficiencia'!$C:$E,3,0),"") -> 40 | C19: =IF(ROWS($C$4:D4)<=COUNTIF('Escala de Insuficiencia'!$B:$B,'1'!$C$4),VLOOKUP('1'!$C$4&ROWS($C$4:D4),'Escala de Insuficiencia'!$C:$F,4,0),"") -> CIUDAD MONTES | D19: =IF(ROWS($C$4:E4)<=COUNTIF('Escala de Insuficiencia'!$B$2:$B$112,'1'!$C$4),VLOOKUP('1'!$C$4&ROWS($C$4:E4),'Escala de Insuficiencia'!$C:$E,3,0),"") -> 40 | E19: =IF(ROWS($C$4:F4)<=COUNTIF('Escala de Insuficiencia'!$B$2:$B$112,'1'!$C$4),VLOOKUP('1'!$C$4&ROWS($C$4:F4),'Escala de Insuficiencia'!$C:$E,3,0),"") -> 40 | F19: =IF(ROWS($C$4:D4)<=COUNTIF('Escala de Insuficiencia'!$B:$B,'1'!$C$4),VLOOKUP('1'!$C$4&ROWS($C$4:D4),'Escala de Insuficiencia'!$C:$H,6,0),"") -> 10 | H19: =IF(ISTEXT(VLOOKUP($B19,'Escala de Insuficiencia'!$E:$G,2,0)),VLOOKUP($B19,'Escala de Insuficiencia'!$E:$H,3,0),"") -> 5 - Suficiencia Media | J19: =IF(AND(B27=81,I4=8),"En la UPZ 81 Hay una sede del COLEGIO DEBORA ARANGO PEREZ (IED) de la localidad de Bosa que no se tuvo en cuenta",IF(AND(B24=81,I4=7),"La UPZ 81 no hace parte de la localidad de Bosa, pero en dicha UPZ está ubicada una de las sedes del COLEGIO DEBORA ARANGO PEREZ (IED), que tiene su sede principal en Bosa",IF(AND(B24=35,I4=18),"La UPZ 35 no hace parte de la localidad de Rafael Uribe Uribe, pero en dicha UPZ está ubicada una de las sedes del COLEGIO GUSTAVO RESTREPO (IED), que tiene su sede principal en Rafael Uribe Uribe",IF(AND(B19=35,I4=15),"En la UPZ 35 Hay una sede del COLEGIO COLEGIO GUSTAVO RESTREPO (IED) de la localidad de Rafael Uribe Uribe, que no se tuvo en cuenta","")))) -> 
B20: =IF(ROWS($C$4:C5)<=COUNTIF('Escala de Insuficiencia'!$B:$B,'1'!$C$4),VLOOKUP('1'!$C$4&ROWS($C$4:C5),'Escala de Insuficiencia'!$C:$E,3,0),"") -> 41 | C20: =IF(ROWS($C$4:D5)<=COUNTIF('Escala de Insuficiencia'!$B:$B,'1'!$C$4),VLOOKUP('1'!$C$4&ROWS($C$4:D5),'Escala de Insuficiencia'!$C:$F,4,0),"") -> MUZU | D20: =IF(ROWS($C$4:E5)<=COUNTIF('Escala de Insuficiencia'!$B$2:$B$112,'1'!$C$4),VLOOKUP('1'!$C$4&ROWS($C$4:E5),'Escala de Insuficiencia'!$C:$E,3,0),"") -> 41 | E20: =IF(ROWS($C$4:F5)<=COUNTIF('Escala de Insuficiencia'!$B$2:$B$112,'1'!$C$4),VLOOKUP('1'!$C$4&ROWS($C$4:F5),'Escala de Insuficiencia'!$C:$E,3,0),"") -> 41 | F20: =IF(ROWS($C$4:D5)<=COUNTIF('Escala de Insuficiencia'!$B:$B,'1'!$C$4),VLOOKUP('1'!$C$4&ROWS($C$4:D5),'Escala de Insuficiencia'!$C:$H,6,0),"") -> 10 | H20: =IF(ISTEXT(VLOOKUP($B20,'Escala de Insuficiencia'!$E:$G,2,0)),VLOOKUP($B20,'Escala de Insuficiencia'!$E:$H,3,0),"") -> 6 - Suficiente
B21: =IF(ROWS($C$4:C6)<=COUNTIF('Escala de Insuficiencia'!$B:$B,'1'!$C$4),VLOOKUP('1'!$C$4&ROWS($C$4:C6),'Escala de Insuficiencia'!$C:$E,3,0),"") -> 43 | C21: =IF(ROWS($C$4:D6)<=COUNTIF('Escala de Insuficiencia'!$B:$B,'1'!$C$4),VLOOKUP('1'!$C$4&ROWS($C$4:D6),'Escala de Insuficiencia'!$C:$F,4,0),"") -> SAN RAFAEL | D21: =IF(ROWS($C$4:E6)<=COUNTIF('Escala de Insuficiencia'!$B$2:$B$112,'1'!$C$4),VLOOKUP('1'!$C$4&ROWS($C$4:E6),'Escala de Insuficiencia'!$C:$E,3,0),"") -> 43 | E21: =IF(ROWS($C$4:F6)<=COUNTIF('Escala de Insuficiencia'!$B$2:$B$112,'1'!$C$4),VLOOKUP('1'!$C$4&ROWS($C$4:F6),'Escala de Insuficiencia'!$C:$E,3,0),"") -> 43 | F21: =IF(ROWS($C$4:D6)<=COUNTIF('Escala de Insuficiencia'!$B:$B,'1'!$C$4),VLOOKUP('1'!$C$4&ROWS($C$4:D6),'Escala de Insuficiencia'!$C:$H,6,0),"") -> 5 | H21: =IF(ISTEXT(VLOOKUP($B21,'Escala de Insuficiencia'!$E:$G,2,0)),VLOOKUP($B21,'Escala de Insuficiencia'!$E:$H,3,0),"") -> 5 - Suficiencia Media
B22: =IF(ROWS($C$4:C7)<=COUNTIF('Escala de Insuficiencia'!$B:$B,'1'!$C$4),VLOOKUP('1'!$C$4&ROWS($C$4:C7),'Escala de Insuficiencia'!$C:$E,3,0),"") -> 108 | C22: =IF(ROWS($C$4:D7)<=COUNTIF('Escala de Insuficiencia'!$B:$B,'1'!$C$4),VLOOKUP('1'!$C$4&ROWS($C$4:D7),'Escala de Insuficiencia'!$C:$F,4,0),"") -> ZONA INDUSTRIAL | D22: =IF(ROWS($C$4:E7)<=COUNTIF('Escala de Insuficiencia'!$B$2:$B$112,'1'!$C$4),VLOOKUP('1'!$C$4&ROWS($C$4:E7),'Escala de Insuficiencia'!$C:$E,3,0),"") -> 108 | E22: =IF(ROWS($C$4:F7)<=COUNTIF('Escala de Insuficiencia'!$B$2:$B$112,'1'!$C$4),VLOOKUP('1'!$C$4&ROWS($C$4:F7),'Escala de Insuficiencia'!$C:$E,3,0),"") -> 108 | F22: =IF(ROWS($C$4:D7)<=COUNTIF('Escala de Insuficiencia'!$B:$B,'1'!$C$4),VLOOKUP('1'!$C$4&ROWS($C$4:D7),'Escala de Insuficiencia'!$C:$H,6,0),"") -> 3 | H22: =IF(ISTEXT(VLOOKUP($B22,'Escala de Insuficiencia'!$E:$G,2,0)),VLOOKUP($B22,'Escala de Insuficiencia'!$E:$H,3,0),"") -> 5 - Suficiencia Media
B23: =IF(ROWS($C$4:C8)<=COUNTIF('Escala de Insuficiencia'!$B:$B,'1'!$C$4),VLOOKUP('1'!$C$4&ROWS($C$4:C8),'Escala de Insuficiencia'!$C:$E,3,0),"") -> 111 | C23: =IF(ROWS($C$4:D8)<=COUNTIF('Escala de Insuficiencia'!$B:$B,'1'!$C$4),VLOOKUP('1'!$C$4&ROWS($C$4:D8),'Escala de Insuficiencia'!$C:$F,4,0),"") -> PUENTE ARANDA | D23: =IF(ROWS($C$4:E8)<=COUNTIF('Escala de Insuficiencia'!$B$2:$B$112,'1'!$C$4),VLOOKUP('1'!$C$4&ROWS($C$4:E8),'Escala de Insuficiencia'!$C:$E,3,0),"") -> 111 | E23: =IF(ROWS($C$4:F8)<=COUNTIF('Escala de Insuficiencia'!$B$2:$B$112,'1'!$C$4),VLOOKUP('1'!$C$4&ROWS($C$4:F8),'Escala de Insuficiencia'!$C:$E,3,0),"") -> 111 | F23: =IF(ROWS($C$4:D8)<=COUNTIF('Escala de Insuficiencia'!$B:$B,'1'!$C$4),VLOOKUP('1'!$C$4&ROWS($C$4:D8),'Escala de Insuficiencia'!$C:$H,6,0),"") -> 4 | H23: =IF(ISTEXT(VLOOKUP($B23,'Escala de Insuficiencia'!$E:$G,2,0)),VLOOKUP($B23,'Escala de Insuficiencia'!$E:$H,3,0),"") -> 5 - Suficiencia Media
B24: =IF(ROWS($C$4:C9)<=COUNTIF('Escala de Insuficiencia'!$B:$B,'1'!$C$4),VLOOKUP('1'!$C$4&ROWS($C$4:C9),'Escala de Insuficiencia'!$C:$E,3,0),"") ->  | C24: =IF(ROWS($C$4:D9)<=COUNTIF('Escala de Insuficiencia'!$B:$B,'1'!$C$4),VLOOKUP('1'!$C$4&ROWS($C$4:D9),'Escala de Insuficiencia'!$C:$F,4,0),"") ->  | D24: =IF(ROWS($C$4:E9)<=COUNTIF('Escala de Insuficiencia'!$B$2:$B$112,'1'!$C$4),VLOOKUP('1'!$C$4&ROWS($C$4:E9),'Escala de Insuficiencia'!$C:$E,3,0),"") ->  | E24: =IF(ROWS($C$4:F9)<=COUNTIF('Escala de Insuficiencia'!$B$2:$B$112,'1'!$C$4),VLOOKUP('1'!$C$4&ROWS($C$4:F9),'Escala de Insuficiencia'!$C:$E,3,0),"") ->  | F24: =IF(ROWS($C$4:D9)<=COUNTIF('Escala de Insuficiencia'!$B:$B,'1'!$C$4),VLOOKUP('1'!$C$4&ROWS($C$4:D9),'Escala de Insuficiencia'!$C:$H,6,0),"") ->  | H24: =IF(ISTEXT(VLOOKUP($B24,'Escala de Insuficiencia'!$E:$G,2,0)),VLOOKUP($B24,'Escala de Insuficiencia'!$E:$H,3,0),"") -> 
B25: =IF(ROWS($C$4:C10)<=COUNTIF('Escala de Insuficiencia'!$B:$B,'1'!$C$4),VLOOKUP('1'!$C$4&ROWS($C$4:C10),'Escala de Insuficiencia'!$C:$E,3,0),"") ->  | C25: =IF(ROWS($C$4:D10)<=COUNTIF('Escala de Insuficiencia'!$B:$B,'1'!$C$4),VLOOKUP('1'!$C$4&ROWS($C$4:D10),'Escala de Insuficiencia'!$C:$F,4,0),"") ->  | D25: =IF(ROWS($C$4:E10)<=COUNTIF('Escala de Insuficiencia'!$B$2:$B$112,'1'!$C$4),VLOOKUP('1'!$C$4&ROWS($C$4:E10),'Escala de Insuficiencia'!$C:$E,3,0),"") ->  | E25: =IF(ROWS($C$4:F10)<=COUNTIF('Escala de Insuficiencia'!$B$2:$B$112,'1'!$C$4),VLOOKUP('1'!$C$4&ROWS($C$4:F10),'Escala de Insuficiencia'!$C:$E,3,0),"") ->  | F25: =IF(ROWS($C$4:D10)<=COUNTIF('Escala de Insuficiencia'!$B:$B,'1'!$C$4),VLOOKUP('1'!$C$4&ROWS($C$4:D10),'Escala de Insuficiencia'!$C:$H,6,0),"") ->  | H25: =IF(ISTEXT(VLOOKUP($B25,'Escala de Insuficiencia'!$E:$G,2,0)),VLOOKUP($B25,'Escala de Insuficiencia'!$E:$H,3,0),"") -> 
B26: =IF(ROWS($C$4:C11)<=COUNTIF('Escala de Insuficiencia'!$B:$B,'1'!$C$4),VLOOKUP('1'!$C$4&ROWS($C$4:C11),'Escala de Insuficiencia'!$C:$E,3,0),"") ->  | C26: =IF(ROWS($C$4:D11)<=COUNTIF('Escala de Insuficiencia'!$B:$B,'1'!$C$4),VLOOKUP('1'!$C$4&ROWS($C$4:D11),'Escala de Insuficiencia'!$C:$F,4,0),"") ->  | D26: =IF(ROWS($C$4:E11)<=COUNTIF('Escala de Insuficiencia'!$B$2:$B$112,'1'!$C$4),VLOOKUP('1'!$C$4&ROWS($C$4:E11),'Escala de Insuficiencia'!$C:$E,3,0),"") ->  | E26: =IF(ROWS($C$4:F11)<=COUNTIF('Escala de Insuficiencia'!$B$2:$B$112,'1'!$C$4),VLOOKUP('1'!$C$4&ROWS($C$4:F11),'Escala de Insuficiencia'!$C:$E,3,0),"") ->  | F26: =IF(ROWS($C$4:D11)<=COUNTIF('Escala de Insuficiencia'!$B:$B,'1'!$C$4),VLOOKUP('1'!$C$4&ROWS($C$4:D11),'Escala de Insuficiencia'!$C:$H,6,0),"") ->  | H26: =IF(ISTEXT(VLOOKUP($B26,'Escala de Insuficiencia'!$E:$G,2,0)),VLOOKUP($B26,'Escala de Insuficiencia'!$E:$H,3,0),"") -> 
B27: =IF(ROWS($C$4:C12)<=COUNTIF('Escala de Insuficiencia'!$B:$B,'1'!$C$4),VLOOKUP('1'!$C$4&ROWS($C$4:C12),'Escala de Insuficiencia'!$C:$E,3,0),"") ->  | C27: =IF(ROWS($C$4:D12)<=COUNTIF('Escala de Insuficiencia'!$B:$B,'1'!$C$4),VLOOKUP('1'!$C$4&ROWS($C$4:D12),'Escala de Insuficiencia'!$C:$F,4,0),"") ->  | D27: =IF(ROWS($C$4:E12)<=COUNTIF('Escala de Insuficiencia'!$B$2:$B$112,'1'!$C$4),VLOOKUP('1'!$C$4&ROWS($C$4:E12),'Escala de Insuficiencia'!$C:$E,3,0),"") ->  | E27: =IF(ROWS($C$4:F12)<=COUNTIF('Escala de Insuficiencia'!$B$2:$B$112,'1'!$C$4),VLOOKUP('1'!$C$4&ROWS($C$4:F12),'Escala de Insuficiencia'!$C:$E,3,0),"") ->  | F27: =IF(ROWS($C$4:D12)<=COUNTIF('Escala de Insuficiencia'!$B:$B,'1'!$C$4),VLOOKUP('1'!$C$4&ROWS($C$4:D12),'Escala de Insuficiencia'!$C:$H,6,0),"") ->  | H27: =IF(ISTEXT(VLOOKUP($B27,'Escala de Insuficiencia'!$E:$G,2,0)),VLOOKUP($B27,'Escala de Insuficiencia'!$E:$H,3,0),"") -> 
B28: =IF(ROWS($C$4:C13)<=COUNTIF('Escala de Insuficiencia'!$B:$B,'1'!$C$4),VLOOKUP('1'!$C$4&ROWS($C$4:C13),'Escala de Insuficiencia'!$C:$E,3,0),"") ->  | C28: =IF(ROWS($C$4:D13)<=COUNTIF('Escala de Insuficiencia'!$B:$B,'1'!$C$4),VLOOKUP('1'!$C$4&ROWS($C$4:D13),'Escala de Insuficiencia'!$C:$F,4,0),"") ->  | D28: =IF(ROWS($C$4:E13)<=COUNTIF('Escala de Insuficiencia'!$B$2:$B$112,'1'!$C$4),VLOOKUP('1'!$C$4&ROWS($C$4:E13),'Escala de Insuficiencia'!$C:$E,3,0),"") ->  | E28: =IF(ROWS($C$4:F13)<=COUNTIF('Escala de Insuficiencia'!$B$2:$B$112,'1'!$C$4),VLOOKUP('1'!$C$4&ROWS($C$4:F13),'Escala de Insuficiencia'!$C:$E,3,0),"") ->  | F28: =IF(ROWS($C$4:D13)<=COUNTIF('Escala de Insuficiencia'!$B:$B,'1'!$C$4),VLOOKUP('1'!$C$4&ROWS($C$4:D13),'Escala de Insuficiencia'!$C:$H,6,0),"") ->  | H28: =IF(ISTEXT(VLOOKUP($B28,'Escala de Insuficiencia'!$E:$G,2,0)),VLOOKUP($B28,'Escala de Insuficiencia'!$E:$H,3,0),"") -> 
B29: =IF(ROWS($C$4:C14)<=COUNTIF('Escala de Insuficiencia'!$B:$B,'1'!$C$4),VLOOKUP('1'!$C$4&ROWS($C$4:C14),'Escala de Insuficiencia'!$C:$E,3,0),"") ->  | C29: =IF(ROWS($C$4:D14)<=COUNTIF('Escala de Insuficiencia'!$B:$B,'1'!$C$4),VLOOKUP('1'!$C$4&ROWS($C$4:D14),'Escala de Insuficiencia'!$C:$F,4,0),"") ->  | D29: =IF(ROWS($C$4:E14)<=COUNTIF('Escala de Insuficiencia'!$B$2:$B$112,'1'!$C$4),VLOOKUP('1'!$C$4&ROWS($C$4:E14),'Escala de Insuficiencia'!$C:$E,3,0),"") ->  | E29: =IF(ROWS($C$4:F14)<=COUNTIF('Escala de Insuficiencia'!$B$2:$B$112,'1'!$C$4),VLOOKUP('1'!$C$4&ROWS($C$4:F14),'Escala de Insuficiencia'!$C:$E,3,0),"") ->  | F29: =IF(ROWS($C$4:D14)<=COUNTIF('Escala de Insuficiencia'!$B:$B,'1'!$C$4),VLOOKUP('1'!$C$4&ROWS($C$4:D14),'Escala de Insuficiencia'!$C:$H,6,0),"") ->  | H29: =IF(ISTEXT(VLOOKUP($B29,'Escala de Insuficiencia'!$E:$G,2,0)),VLOOKUP($B29,'Escala de Insuficiencia'!$E:$H,3,0),"") -> 
B30: =IF(ROWS($C$4:C15)<=COUNTIF('Escala de Insuficiencia'!$B:$B,'1'!$C$4),VLOOKUP('1'!$C$4&ROWS($C$4:C15),'Escala de Insuficiencia'!$C:$E,3,0),"") ->  | C30: =IF(ROWS($C$4:D15)<=COUNTIF('Escala de Insuficiencia'!$B:$B,'1'!$C$4),VLOOKUP('1'!$C$4&ROWS($C$4:D15),'Escala de Insuficiencia'!$C:$F,4,0),"") ->  | D30: =IF(ROWS($C$4:E15)<=COUNTIF('Escala de Insuficiencia'!$B$2:$B$112,'1'!$C$4),VLOOKUP('1'!$C$4&ROWS($C$4:E15),'Escala de Insuficiencia'!$C:$E,3,0),"") ->  | E30: =IF(ROWS($C$4:F15)<=COUNTIF('Escala de Insuficiencia'!$B$2:$B$112,'1'!$C$4),VLOOKUP('1'!$C$4&ROWS($C$4:F15),'Escala de Insuficiencia'!$C:$E,3,0),"") ->  | F30: =IF(ROWS($C$4:D15)<=COUNTIF('Escala de Insuficiencia'!$B:$B,'1'!$C$4),VLOOKUP('1'!$C$4&ROWS($C$4:D15),'Escala de Insuficiencia'!$C:$H,6,0),"") ->  | H30: =IF(ISTEXT(VLOOKUP($B30,'Escala de Insuficiencia'!$E:$G,2,0)),VLOOKUP($B30,'Escala de Insuficiencia'!$E:$H,3,0),"") -> 
B31: =IF(ROWS($C$4:C16)<=COUNTIF('Escala de Insuficiencia'!$B:$B,'1'!$C$4),VLOOKUP('1'!$C$4&ROWS($C$4:C16),'Escala de Insuficiencia'!$C:$E,3,0),"") ->  | C31: =IF(ROWS($C$4:D16)<=COUNTIF('Escala de Insuficiencia'!$B:$B,'1'!$C$4),VLOOKUP('1'!$C$4&ROWS($C$4:D16),'Escala de Insuficiencia'!$C:$F,4,0),"") ->  | D31: =IF(ROWS($C$4:E16)<=COUNTIF('Escala de Insuficiencia'!$B$2:$B$112,'1'!$C$4),VLOOKUP('1'!$C$4&ROWS($C$4:E16),'Escala de Insuficiencia'!$C:$E,3,0),"") ->  | E31: =IF(ROWS($C$4:F16)<=COUNTIF('Escala de Insuficiencia'!$B$2:$B$112,'1'!$C$4),VLOOKUP('1'!$C$4&ROWS($C$4:F16),'Escala de Insuficiencia'!$C:$E,3,0),"") ->  | F31: =IF(ROWS($C$4:D16)<=COUNTIF('Escala de Insuficiencia'!$B:$B,'1'!$C$4),VLOOKUP('1'!$C$4&ROWS($C$4:D16),'Escala de Insuficiencia'!$C:$H,6,0),"") ->  | H31: =IF(ISTEXT(VLOOKUP($B31,'Escala de Insuficiencia'!$E:$G,2,0)),VLOOKUP($B31,'Escala de Insuficiencia'!$E:$H,3,0),"") -> 
B32: =IF(ROWS($C$4:C17)<=COUNTIF('Escala de Insuficiencia'!$B:$B,'1'!$C$4),VLOOKUP('1'!$C$4&ROWS($C$4:C17),'Escala de Insuficiencia'!$C:$E,3,0),"") ->  | C32: =IF(ROWS($C$4:D17)<=COUNTIF('Escala de Insuficiencia'!$B:$B,'1'!$C$4),VLOOKUP('1'!$C$4&ROWS($C$4:D17),'Escala de Insuficiencia'!$C:$F,4,0),"") ->  | D32: =IF(ROWS($C$4:E17)<=COUNTIF('Escala de Insuficiencia'!$B$2:$B$112,'1'!$C$4),VLOOKUP('1'!$C$4&ROWS($C$4:E17),'Escala de Insuficiencia'!$C:$E,3,0),"") ->  | E32: =IF(ROWS($C$4:F17)<=COUNTIF('Escala de Insuficiencia'!$B$2:$B$112,'1'!$C$4),VLOOKUP('1'!$C$4&ROWS($C$4:F17),'Escala de Insuficiencia'!$C:$E,3,0),"") ->  | F32: =IF(ROWS($C$4:D17)<=COUNTIF('Escala de Insuficiencia'!$B:$B,'1'!$C$4),VLOOKUP('1'!$C$4&ROWS($C$4:D17),'Escala de Insuficiencia'!$C:$H,6,0),"") ->  | H32: =IF(ISTEXT(VLOOKUP($B32,'Escala de Insuficiencia'!$E:$G,2,0)),VLOOKUP($B32,'Escala de Insuficiencia'!$E:$H,3,0),"") -> 
B33: =IF(ROWS($C$4:C18)<=COUNTIF('Escala de Insuficiencia'!$B:$B,'1'!$C$4),VLOOKUP('1'!$C$4&ROWS($C$4:C18),'Escala de Insuficiencia'!$C:$E,3,0),"") ->  | C33: =IF(ROWS($C$4:D18)<=COUNTIF('Escala de Insuficiencia'!$B:$B,'1'!$C$4),VLOOKUP('1'!$C$4&ROWS($C$4:D18),'Escala de Insuficiencia'!$C:$F,4,0),"") ->  | D33: =IF(ROWS($C$4:E18)<=COUNTIF('Escala de Insuficiencia'!$B$2:$B$112,'1'!$C$4),VLOOKUP('1'!$C$4&ROWS($C$4:E18),'Escala de Insuficiencia'!$C:$E,3,0),"") ->  | E33: =IF(ROWS($C$4:F18)<=COUNTIF('Escala de Insuficiencia'!$B$2:$B$112,'1'!$C$4),VLOOKUP('1'!$C$4&ROWS($C$4:F18),'Escala de Insuficiencia'!$C:$E,3,0),"") ->  | F33: =IF(ROWS($C$4:D18)<=COUNTIF('Escala de Insuficiencia'!$B:$B,'1'!$C$4),VLOOKUP('1'!$C$4&ROWS($C$4:D18),'Escala de Insuficiencia'!$C:$H,6,0),"") ->  | H33: =IF(ISTEXT(VLOOKUP($B33,'Escala de Insuficiencia'!$E:$G,2,0)),VLOOKUP($B33,'Escala de Insuficiencia'!$E:$H,3,0),"") -> 
B34: =IF(ROWS($C$4:C19)<=COUNTIF('Escala de Insuficiencia'!$B:$B,'1'!$C$4),VLOOKUP('1'!$C$4&ROWS($C$4:C19),'Escala de Insuficiencia'!$C:$E,3,0),"") ->  | C34: =IF(ROWS($C$4:D19)<=COUNTIF('Escala de Insuficiencia'!$B:$B,'1'!$C$4),VLOOKUP('1'!$C$4&ROWS($C$4:D19),'Escala de Insuficiencia'!$C:$F,4,0),"") ->  | D34: =IF(ROWS($C$4:E19)<=COUNTIF('Escala de Insuficiencia'!$B$2:$B$112,'1'!$C$4),VLOOKUP('1'!$C$4&ROWS($C$4:E19),'Escala de Insuficiencia'!$C:$E,3,0),"") ->  | E34: =IF(ROWS($C$4:F19)<=COUNTIF('Escala de Insuficiencia'!$B$2:$B$112,'1'!$C$4),VLOOKUP('1'!$C$4&ROWS($C$4:F19),'Escala de Insuficiencia'!$C:$E,3,0),"") ->  | F34: =IF(ROWS($C$4:D19)<=COUNTIF('Escala de Insuficiencia'!$B:$B,'1'!$C$4),VLOOKUP('1'!$C$4&ROWS($C$4:D19),'Escala de Insuficiencia'!$C:$H,6,0),"") ->  | H34: =IF(ISTEXT(VLOOKUP($B34,'Escala de Insuficiencia'!$E:$G,2,0)),VLOOKUP($B34,'Escala de Insuficiencia'!$E:$H,3,0),"") -> 
B35: =IF(ROWS($C$4:C20)<=COUNTIF('Escala de Insuficiencia'!$B:$B,'1'!$C$4),VLOOKUP('1'!$C$4&ROWS($C$4:C20),'Escala de Insuficiencia'!$C:$E,3,0),"") ->  | C35: =IF(ROWS($C$4:D20)<=COUNTIF('Escala de Insuficiencia'!$B:$B,'1'!$C$4),VLOOKUP('1'!$C$4&ROWS($C$4:D20),'Escala de Insuficiencia'!$C:$F,4,0),"") ->  | D35: =IF(ROWS($C$4:E20)<=COUNTIF('Escala de Insuficiencia'!$B$2:$B$112,'1'!$C$4),VLOOKUP('1'!$C$4&ROWS($C$4:E20),'Escala de Insuficiencia'!$C:$E,3,0),"") ->  | E35: =IF(ROWS($C$4:F20)<=COUNTIF('Escala de Insuficiencia'!$B$2:$B$112,'1'!$C$4),VLOOKUP('1'!$C$4&ROWS($C$4:F20),'Escala de Insuficiencia'!$C:$E,3,0),"") ->  | F35: =IF(ROWS($C$4:D20)<=COUNTIF('Escala de Insuficiencia'!$B:$B,'1'!$C$4),VLOOKUP('1'!$C$4&ROWS($C$4:D20),'Escala de Insuficiencia'!$C:$H,6,0),"") ->  | H35: =IF(ISTEXT(VLOOKUP($B35,'Escala de Insuficiencia'!$E:$G,2,0)),VLOOKUP($B35,'Escala de Insuficiencia'!$E:$H,3,0),"") -> 
B36: =IF(ROWS($C$4:C21)<=COUNTIF('Escala de Insuficiencia'!$B:$B,'1'!$C$4),VLOOKUP('1'!$C$4&ROWS($C$4:C21),'Escala de Insuficiencia'!$C:$E,3,0),"") ->  | C36: =IF(ROWS($C$4:D21)<=COUNTIF('Escala de Insuficiencia'!$B:$B,'1'!$C$4),VLOOKUP('1'!$C$4&ROWS($C$4:D21),'Escala de Insuficiencia'!$C:$F,4,0),"") ->  | D36: =IF(ROWS($C$4:E21)<=COUNTIF('Escala de Insuficiencia'!$B$2:$B$112,'1'!$C$4),VLOOKUP('1'!$C$4&ROWS($C$4:E21),'Escala de Insuficiencia'!$C:$E,3,0),"") ->  | E36: =IF(ROWS($C$4:F21)<=COUNTIF('Escala de Insuficiencia'!$B$2:$B$112,'1'!$C$4),VLOOKUP('1'!$C$4&ROWS($C$4:F21),'Escala de Insuficiencia'!$C:$E,3,0),"") ->  | F36: =IF(ROWS($C$4:D21)<=COUNTIF('Escala de Insuficiencia'!$B:$B,'1'!$C$4),VLOOKUP('1'!$C$4&ROWS($C$4:D21),'Escala de Insuficiencia'!$C:$H,6,0),"") ->  | H36: =IF(ISTEXT(VLOOKUP($B36,'Escala de Insuficiencia'!$E:$G,2,0)),VLOOKUP($B36,'Escala de Insuficiencia'!$E:$H,3,0),"") -> 
B37: =IF(ROWS($C$4:C22)<=COUNTIF('Escala de Insuficiencia'!$B:$B,'1'!$C$4),VLOOKUP('1'!$C$4&ROWS($C$4:C22),'Escala de Insuficiencia'!$C:$E,3,0),"") ->  | C37: =IF(ROWS($C$4:D22)<=COUNTIF('Escala de Insuficiencia'!$B:$B,'1'!$C$4),VLOOKUP('1'!$C$4&ROWS($C$4:D22),'Escala de Insuficiencia'!$C:$F,4,0),"") ->  | D37: =IF(ROWS($C$4:E22)<=COUNTIF('Escala de Insuficiencia'!$B$2:$B$112,'1'!$C$4),VLOOKUP('1'!$C$4&ROWS($C$4:E22),'Escala de Insuficiencia'!$C:$E,3,0),"") ->  | E37: =IF(ROWS($C$4:F22)<=COUNTIF('Escala de Insuficiencia'!$B$2:$B$112,'1'!$C$4),VLOOKUP('1'!$C$4&ROWS($C$4:F22),'Escala de Insuficiencia'!$C:$E,3,0),"") ->  | F37: =IF(ROWS($C$4:D22)<=COUNTIF('Escala de Insuficiencia'!$B:$B,'1'!$C$4),VLOOKUP('1'!$C$4&ROWS($C$4:D22),'Escala de Insuficiencia'!$C:$H,6,0),"") ->  | H37: =IF(ISTEXT(VLOOKUP($B37,'Escala de Insuficiencia'!$E:$G,2,0)),VLOOKUP($B37,'Escala de Insuficiencia'!$E:$H,3,0),"") -> 
B38: =IF(ROWS($C$4:C23)<=COUNTIF('Escala de Insuficiencia'!$B:$B,'1'!$C$4),VLOOKUP('1'!$C$4&ROWS($C$4:C23),'Escala de Insuficiencia'!$C:$E,3,0),"") ->  | C38: =IF(ROWS($C$4:D23)<=COUNTIF('Escala de Insuficiencia'!$B:$B,'1'!$C$4),VLOOKUP('1'!$C$4&ROWS($C$4:D23),'Escala de Insuficiencia'!$C:$F,4,0),"") ->  | D38: =IF(ROWS($C$4:E23)<=COUNTIF('Escala de Insuficiencia'!$B$2:$B$112,'1'!$C$4),VLOOKUP('1'!$C$4&ROWS($C$4:E23),'Escala de Insuficiencia'!$C:$E,3,0),"") ->  | E38: =IF(ROWS($C$4:F23)<=COUNTIF('Escala de Insuficiencia'!$B$2:$B$112,'1'!$C$4),VLOOKUP('1'!$C$4&ROWS($C$4:F23),'Escala de Insuficiencia'!$C:$E,3,0),"") ->  | F38: =IF(ROWS($C$4:D23)<=COUNTIF('Escala de Insuficiencia'!$B:$B,'1'!$C$4),VLOOKUP('1'!$C$4&ROWS($C$4:D23),'Escala de Insuficiencia'!$C:$H,6,0),"") ->  | H38: =IF(ISTEXT(VLOOKUP($B38,'Escala de Insuficiencia'!$E:$G,2,0)),VLOOKUP($B38,'Escala de Insuficiencia'!$E:$H,3,0),"") -> 
B39: =IF(ROWS($C$4:C24)<=COUNTIF('Escala de Insuficiencia'!$B:$B,'1'!$C$4),VLOOKUP('1'!$C$4&ROWS($C$4:C24),'Escala de Insuficiencia'!$C:$E,3,0),"") ->  | C39: =IF(ROWS($C$4:D24)<=COUNTIF('Escala de Insuficiencia'!$B:$B,'1'!$C$4),VLOOKUP('1'!$C$4&ROWS($C$4:D24),'Escala de Insuficiencia'!$C:$F,4,0),"") ->  | D39: =IF(ROWS($C$4:E24)<=COUNTIF('Escala de Insuficiencia'!$B$2:$B$112,'1'!$C$4),VLOOKUP('1'!$C$4&ROWS($C$4:E24),'Escala de Insuficiencia'!$C:$E,3,0),"") ->  | E39: =IF(ROWS($C$4:F24)<=COUNTIF('Escala de Insuficiencia'!$B$2:$B$112,'1'!$C$4),VLOOKUP('1'!$C$4&ROWS($C$4:F24),'Escala de Insuficiencia'!$C:$E,3,0),"") ->  | F39: =IF(ROWS($C$4:D24)<=COUNTIF('Escala de Insuficiencia'!$B:$B,'1'!$C$4),VLOOKUP('1'!$C$4&ROWS($C$4:D24),'Escala de Insuficiencia'!$C:$H,6,0),"") ->  | H39: =IF(ISTEXT(VLOOKUP($B39,'Escala de Insuficiencia'!$E:$G,2,0)),VLOOKUP($B39,'Escala de Insuficiencia'!$E:$H,3,0),"") -> 
B40: =IF(ROWS($C$4:C25)<=COUNTIF('Escala de Insuficiencia'!$B:$B,'1'!$C$4),VLOOKUP('1'!$C$4&ROWS($C$4:C25),'Escala de Insuficiencia'!$C:$E,3,0),"") ->  | C40: =IF(ROWS($C$4:D25)<=COUNTIF('Escala de Insuficiencia'!$B:$B,'1'!$C$4),VLOOKUP('1'!$C$4&ROWS($C$4:D25),'Escala de Insuficiencia'!$C:$F,4,0),"") ->  | D40: =IF(ROWS($C$4:E25)<=COUNTIF('Escala de Insuficiencia'!$B$2:$B$112,'1'!$C$4),VLOOKUP('1'!$C$4&ROWS($C$4:E25),'Escala de Insuficiencia'!$C:$E,3,0),"") ->  | E40: =IF(ROWS($C$4:F25)<=COUNTIF('Escala de Insuficiencia'!$B$2:$B$112,'1'!$C$4),VLOOKUP('1'!$C$4&ROWS($C$4:F25),'Escala de Insuficiencia'!$C:$E,3,0),"") ->  | F40: =IF(ROWS($C$4:D25)<=COUNTIF('Escala de Insuficiencia'!$B:$B,'1'!$C$4),VLOOKUP('1'!$C$4&ROWS($C$4:D25),'Escala de Insuficiencia'!$C:$H,6,0),"") ->  | H40: =IF(ISTEXT(VLOOKUP($B40,'Escala de Insuficiencia'!$E:$G,2,0)),VLOOKUP($B40,'Escala de Insuficiencia'!$E:$H,3,0),"") -> 
B41: =IF(ROWS($C$4:C26)<=COUNTIF('Escala de Insuficiencia'!$B:$B,'1'!$C$4),VLOOKUP('1'!$C$4&ROWS($C$4:C26),'Escala de Insuficiencia'!$C:$E,3,0),"") ->  | C41: =IF(ROWS($C$4:D26)<=COUNTIF('Escala de Insuficiencia'!$B:$B,'1'!$C$4),VLOOKUP('1'!$C$4&ROWS($C$4:D26),'Escala de Insuficiencia'!$C:$F,4,0),"") ->  | D41: =IF(ROWS($C$4:E26)<=COUNTIF('Escala de Insuficiencia'!$B$2:$B$112,'1'!$C$4),VLOOKUP('1'!$C$4&ROWS($C$4:E26),'Escala de Insuficiencia'!$C:$E,3,0),"") ->  | E41: =IF(ROWS($C$4:F26)<=COUNTIF('Escala de Insuficiencia'!$B$2:$B$112,'1'!$C$4),VLOOKUP('1'!$C$4&ROWS($C$4:F26),'Escala de Insuficiencia'!$C:$E,3,0),"") ->  | F41: =IF(ROWS($C$4:D26)<=COUNTIF('Escala de Insuficiencia'!$B:$B,'1'!$C$4),VLOOKUP('1'!$C$4&ROWS($C$4:D26),'Escala de Insuficiencia'!$C:$H,6,0),"") ->  | H41: =IF(ISTEXT(VLOOKUP($B41,'Escala de Insuficiencia'!$E:$G,2,0)),VLOOKUP($B41,'Escala de Insuficiencia'!$E:$H,3,0),"") -> 
B42: =IF(ROWS($C$4:C27)<=COUNTIF('Escala de Insuficiencia'!$B:$B,'1'!$C$4),VLOOKUP('1'!$C$4&ROWS($C$4:C27),'Escala de Insuficiencia'!$C:$E,3,0),"") ->  | C42: =IF(ROWS($C$4:D27)<=COUNTIF('Escala de Insuficiencia'!$B:$B,'1'!$C$4),VLOOKUP('1'!$C$4&ROWS($C$4:D27),'Escala de Insuficiencia'!$C:$F,4,0),"") ->  | D42: =IF(ROWS($C$4:E27)<=COUNTIF('Escala de Insuficiencia'!$B$2:$B$112,'1'!$C$4),VLOOKUP('1'!$C$4&ROWS($C$4:E27),'Escala de Insuficiencia'!$C:$E,3,0),"") ->  | E42: =IF(ROWS($C$4:F27)<=COUNTIF('Escala de Insuficiencia'!$B$2:$B$112,'1'!$C$4),VLOOKUP('1'!$C$4&ROWS($C$4:F27),'Escala de Insuficiencia'!$C:$E,3,0),"") ->  | F42: =IF(ROWS($C$4:D27)<=COUNTIF('Escala de Insuficiencia'!$B:$B,'1'!$C$4),VLOOKUP('1'!$C$4&ROWS($C$4:D27),'Escala de Insuficiencia'!$C:$H,6,0),"") ->  | H42: =IF(ISTEXT(VLOOKUP($B42,'Escala de Insuficiencia'!$E:$G,2,0)),VLOOKUP($B42,'Escala de Insuficiencia'!$E:$H,3,0),"") -> 
B43: =IF(ROWS($C$4:C28)<=COUNTIF('Escala de Insuficiencia'!$B:$B,'1'!$C$4),VLOOKUP('1'!$C$4&ROWS($C$4:C28),'Escala de Insuficiencia'!$C:$E,3,0),"") ->  | C43: =IF(ROWS($C$4:D28)<=COUNTIF('Escala de Insuficiencia'!$B:$B,'1'!$C$4),VLOOKUP('1'!$C$4&ROWS($C$4:D28),'Escala de Insuficiencia'!$C:$F,4,0),"") ->  | D43: =IF(ROWS($C$4:E28)<=COUNTIF('Escala de Insuficiencia'!$B$2:$B$112,'1'!$C$4),VLOOKUP('1'!$C$4&ROWS($C$4:E28),'Escala de Insuficiencia'!$C:$E,3,0),"") ->  | E43: =IF(ROWS($C$4:F28)<=COUNTIF('Escala de Insuficiencia'!$B$2:$B$112,'1'!$C$4),VLOOKUP('1'!$C$4&ROWS($C$4:F28),'Escala de Insuficiencia'!$C:$E,3,0),"") ->  | F43: =IF(ROWS($C$4:D28)<=COUNTIF('Escala de Insuficiencia'!$B:$B,'1'!$C$4),VLOOKUP('1'!$C$4&ROWS($C$4:D28),'Escala de Insuficiencia'!$C:$H,6,0),"") ->  | H43: =IF(ISTEXT(VLOOKUP($B43,'Escala de Insuficiencia'!$E:$G,2,0)),VLOOKUP($B43,'Escala de Insuficiencia'!$E:$H,3,0),"") -> 
B44: =IF(ROWS($C$4:C29)<=COUNTIF('Escala de Insuficiencia'!$B:$B,'1'!$C$4),VLOOKUP('1'!$C$4&ROWS($C$4:C29),'Escala de Insuficiencia'!$C:$E,3,0),"") ->  | C44: =IF(ROWS($C$4:D29)<=COUNTIF('Escala de Insuficiencia'!$B:$B,'1'!$C$4),VLOOKUP('1'!$C$4&ROWS($C$4:D29),'Escala de Insuficiencia'!$C:$F,4,0),"") ->  | D44: =IF(ROWS($C$4:E29)<=COUNTIF('Escala de Insuficiencia'!$B$2:$B$112,'1'!$C$4),VLOOKUP('1'!$C$4&ROWS($C$4:E29),'Escala de Insuficiencia'!$C:$E,3,0),"") ->  | E44: =IF(ROWS($C$4:F29)<=COUNTIF('Escala de Insuficiencia'!$B$2:$B$112,'1'!$C$4),VLOOKUP('1'!$C$4&ROWS($C$4:F29),'Escala de Insuficiencia'!$C:$E,3,0),"") ->  | F44: =IF(ROWS($C$4:D29)<=COUNTIF('Escala de Insuficiencia'!$B:$B,'1'!$C$4),VLOOKUP('1'!$C$4&ROWS($C$4:D29),'Escala de Insuficiencia'!$C:$H,6,0),"") ->  | H44: =IF(ISTEXT(VLOOKUP($B44,'Escala de Insuficiencia'!$E:$G,2,0)),VLOOKUP($B44,'Escala de Insuficiencia'!$E:$H,3,0),"") -> 
B45: =IF(ROWS($C$4:C30)<=COUNTIF('Escala de Insuficiencia'!$B:$B,'1'!$C$4),VLOOKUP('1'!$C$4&ROWS($C$4:C30),'Escala de Insuficiencia'!$C:$E,3,0),"") ->  | C45: =IF(ROWS($C$4:D30)<=COUNTIF('Escala de Insuficiencia'!$B:$B,'1'!$C$4),VLOOKUP('1'!$C$4&ROWS($C$4:D30),'Escala de Insuficiencia'!$C:$F,4,0),"") ->  | D45: =IF(ROWS($C$4:E30)<=COUNTIF('Escala de Insuficiencia'!$B$2:$B$112,'1'!$C$4),VLOOKUP('1'!$C$4&ROWS($C$4:E30),'Escala de Insuficiencia'!$C:$E,3,0),"") ->  | E45: =IF(ROWS($C$4:F30)<=COUNTIF('Escala de Insuficiencia'!$B$2:$B$112,'1'!$C$4),VLOOKUP('1'!$C$4&ROWS($C$4:F30),'Escala de Insuficiencia'!$C:$E,3,0),"") ->  | F45: =IF(ROWS($C$4:D30)<=COUNTIF('Escala de Insuficiencia'!$B:$B,'1'!$C$4),VLOOKUP('1'!$C$4&ROWS($C$4:D30),'Escala de Insuficiencia'!$C:$H,6,0),"") ->  | H45: =IF(ISTEXT(VLOOKUP($B45,'Escala de Insuficiencia'!$E:$G,2,0)),VLOOKUP($B45,'Escala de Insuficiencia'!$E:$H,3,0),"") -> 
B46: =IF(ROWS($C$4:C31)<=COUNTIF('Escala de Insuficiencia'!$B:$B,'1'!$C$4),VLOOKUP('1'!$C$4&ROWS($C$4:C31),'Escala de Insuficiencia'!$C:$E,3,0),"") ->  | C46: =IF(ROWS($C$4:D31)<=COUNTIF('Escala de Insuficiencia'!$B:$B,'1'!$C$4),VLOOKUP('1'!$C$4&ROWS($C$4:D31),'Escala de Insuficiencia'!$C:$F,4,0),"") ->  | D46: =IF(ROWS($C$4:E31)<=COUNTIF('Escala de Insuficiencia'!$B$2:$B$112,'1'!$C$4),VLOOKUP('1'!$C$4&ROWS($C$4:E31),'Escala de Insuficiencia'!$C:$E,3,0),"") ->  | E46: =IF(ROWS($C$4:F31)<=COUNTIF('Escala de Insuficiencia'!$B$2:$B$112,'1'!$C$4),VLOOKUP('1'!$C$4&ROWS($C$4:F31),'Escala de Insuficiencia'!$C:$E,3,0),"") ->  | F46: =IF(ROWS($C$4:D31)<=COUNTIF('Escala de Insuficiencia'!$B:$B,'1'!$C$4),VLOOKUP('1'!$C$4&ROWS($C$4:D31),'Escala de Insuficiencia'!$C:$H,6,0),"") ->  | H46: =IF(ISTEXT(VLOOKUP($B46,'Escala de Insuficiencia'!$E:$G,2,0)),VLOOKUP($B46,'Escala de Insuficiencia'!$E:$H,3,0),"") -> 
B47: =IF(ROWS($C$4:C32)<=COUNTIF('Escala de Insuficiencia'!$B:$B,'1'!$C$4),VLOOKUP('1'!$C$4&ROWS($C$4:C32),'Escala de Insuficiencia'!$C:$E,3,0),"") ->  | C47: =IF(ROWS($C$4:D32)<=COUNTIF('Escala de Insuficiencia'!$B:$B,'1'!$C$4),VLOOKUP('1'!$C$4&ROWS($C$4:D32),'Escala de Insuficiencia'!$C:$F,4,0),"") ->  | D47: =IF(ROWS($C$4:E32)<=COUNTIF('Escala de Insuficiencia'!$B$2:$B$112,'1'!$C$4),VLOOKUP('1'!$C$4&ROWS($C$4:E32),'Escala de Insuficiencia'!$C:$E,3,0),"") ->  | E47: =IF(ROWS($C$4:F32)<=COUNTIF('Escala de Insuficiencia'!$B$2:$B$112,'1'!$C$4),VLOOKUP('1'!$C$4&ROWS($C$4:F32),'Escala de Insuficiencia'!$C:$E,3,0),"") ->  | F47: =IF(ROWS($C$4:D32)<=COUNTIF('Escala de Insuficiencia'!$B:$B,'1'!$C$4),VLOOKUP('1'!$C$4&ROWS($C$4:D32),'Escala de Insuficiencia'!$C:$H,6,0),"") ->  | H47: =IF(ISTEXT(VLOOKUP($B47,'Escala de Insuficiencia'!$E:$G,2,0)),VLOOKUP($B47,'Escala de Insuficiencia'!$E:$H,3,0),"") -> 
B48: =IF(ROWS($C$4:C33)<=COUNTIF('Escala de Insuficiencia'!$B:$B,'1'!$C$4),VLOOKUP('1'!$C$4&ROWS($C$4:C33),'Escala de Insuficiencia'!$C:$E,3,0),"") ->  | C48: =IF(ROWS($C$4:D33)<=COUNTIF('Escala de Insuficiencia'!$B:$B,'1'!$C$4),VLOOKUP('1'!$C$4&ROWS($C$4:D33),'Escala de Insuficiencia'!$C:$F,4,0),"") ->  | D48: =IF(ROWS($C$4:E33)<=COUNTIF('Escala de Insuficiencia'!$B$2:$B$112,'1'!$C$4),VLOOKUP('1'!$C$4&ROWS($C$4:E33),'Escala de Insuficiencia'!$C:$E,3,0),"") ->  | E48: =IF(ROWS($C$4:F33)<=COUNTIF('Escala de Insuficiencia'!$B$2:$B$112,'1'!$C$4),VLOOKUP('1'!$C$4&ROWS($C$4:F33),'Escala de Insuficiencia'!$C:$E,3,0),"") ->  | F48: =IF(ROWS($C$4:D33)<=COUNTIF('Escala de Insuficiencia'!$B:$B,'1'!$C$4),VLOOKUP('1'!$C$4&ROWS($C$4:D33),'Escala de Insuficiencia'!$C:$H,6,0),"") ->  | H48: =IF(ISTEXT(VLOOKUP($B48,'Escala de Insuficiencia'!$E:$G,2,0)),VLOOKUP($B48,'Escala de Insuficiencia'!$E:$H,3,0),"") -> 
B49: =IF(ROWS($C$4:C34)<=COUNTIF('Escala de Insuficiencia'!$B:$B,'1'!$C$4),VLOOKUP('1'!$C$4&ROWS($C$4:C34),'Escala de Insuficiencia'!$C:$E,3,0),"") ->  | C49: =IF(ROWS($C$4:D34)<=COUNTIF('Escala de Insuficiencia'!$B:$B,'1'!$C$4),VLOOKUP('1'!$C$4&ROWS($C$4:D34),'Escala de Insuficiencia'!$C:$F,4,0),"") ->  | D49: =IF(ROWS($C$4:E34)<=COUNTIF('Escala de Insuficiencia'!$B$2:$B$112,'1'!$C$4),VLOOKUP('1'!$C$4&ROWS($C$4:E34),'Escala de Insuficiencia'!$C:$E,3,0),"") ->  | E49: =IF(ROWS($C$4:F34)<=COUNTIF('Escala de Insuficiencia'!$B$2:$B$112,'1'!$C$4),VLOOKUP('1'!$C$4&ROWS($C$4:F34),'Escala de Insuficiencia'!$C:$E,3,0),"") ->  | F49: =IF(ROWS($C$4:D34)<=COUNTIF('Escala de Insuficiencia'!$B:$B,'1'!$C$4),VLOOKUP('1'!$C$4&ROWS($C$4:D34),'Escala de Insuficiencia'!$C:$H,6,0),"") ->  | H49: =IF(ISTEXT(VLOOKUP($B49,'Escala de Insuficiencia'!$E:$G,2,0)),VLOOKUP($B49,'Escala de Insuficiencia'!$E:$H,3,0),"") -> 
B50: =IF(ROWS($C$4:C35)<=COUNTIF('Escala de Insuficiencia'!$B:$B,'1'!$C$4),VLOOKUP('1'!$C$4&ROWS($C$4:C35),'Escala de Insuficiencia'!$C:$E,3,0),"") ->  | C50: =IF(ROWS($C$4:D35)<=COUNTIF('Escala de Insuficiencia'!$B:$B,'1'!$C$4),VLOOKUP('1'!$C$4&ROWS($C$4:D35),'Escala de Insuficiencia'!$C:$F,4,0),"") ->  | D50: =IF(ROWS($C$4:E35)<=COUNTIF('Escala de Insuficiencia'!$B$2:$B$112,'1'!$C$4),VLOOKUP('1'!$C$4&ROWS($C$4:E35),'Escala de Insuficiencia'!$C:$E,3,0),"") ->  | E50: =IF(ROWS($C$4:F35)<=COUNTIF('Escala de Insuficiencia'!$B$2:$B$112,'1'!$C$4),VLOOKUP('1'!$C$4&ROWS($C$4:F35),'Escala de Insuficiencia'!$C:$E,3,0),"") ->  | F50: =IF(ROWS($C$4:D35)<=COUNTIF('Escala de Insuficiencia'!$B:$B,'1'!$C$4),VLOOKUP('1'!$C$4&ROWS($C$4:D35),'Escala de Insuficiencia'!$C:$H,6,0),"") ->  | H50: =IF(ISTEXT(VLOOKUP($B50,'Escala de Insuficiencia'!$E:$G,2,0)),VLOOKUP($B50,'Escala de Insuficiencia'!$E:$H,3,0),"") -> 
B51: =IF(ROWS($C$4:C36)<=COUNTIF('Escala de Insuficiencia'!$B:$B,'1'!$C$4),VLOOKUP('1'!$C$4&ROWS($C$4:C36),'Escala de Insuficiencia'!$C:$E,3,0),"") ->  | C51: =IF(ROWS($C$4:D36)<=COUNTIF('Escala de Insuficiencia'!$B:$B,'1'!$C$4),VLOOKUP('1'!$C$4&ROWS($C$4:D36),'Escala de Insuficiencia'!$C:$F,4,0),"") ->  | D51: =IF(ROWS($C$4:E36)<=COUNTIF('Escala de Insuficiencia'!$B$2:$B$112,'1'!$C$4),VLOOKUP('1'!$C$4&ROWS($C$4:E36),'Escala de Insuficiencia'!$C:$E,3,0),"") ->  | E51: =IF(ROWS($C$4:F36)<=COUNTIF('Escala de Insuficiencia'!$B$2:$B$112,'1'!$C$4),VLOOKUP('1'!$C$4&ROWS($C$4:F36),'Escala de Insuficiencia'!$C:$E,3,0),"") ->  | F51: =IF(ROWS($C$4:D36)<=COUNTIF('Escala de Insuficiencia'!$B:$B,'1'!$C$4),VLOOKUP('1'!$C$4&ROWS($C$4:D36),'Escala de Insuficiencia'!$C:$H,6,0),"") ->  | H51: =IF(ISTEXT(VLOOKUP($B51,'Escala de Insuficiencia'!$E:$G,2,0)),VLOOKUP($B51,'Escala de Insuficiencia'!$E:$H,3,0),"") -> 
B52: =IF(ROWS($C$4:C37)<=COUNTIF('Escala de Insuficiencia'!$B:$B,'1'!$C$4),VLOOKUP('1'!$C$4&ROWS($C$4:C37),'Escala de Insuficiencia'!$C:$E,3,0),"") ->  | C52: =IF(ROWS($C$4:D37)<=COUNTIF('Escala de Insuficiencia'!$B:$B,'1'!$C$4),VLOOKUP('1'!$C$4&ROWS($C$4:D37),'Escala de Insuficiencia'!$C:$F,4,0),"") ->  | D52: =IF(ROWS($C$4:E37)<=COUNTIF('Escala de Insuficiencia'!$B$2:$B$112,'1'!$C$4),VLOOKUP('1'!$C$4&ROWS($C$4:E37),'Escala de Insuficiencia'!$C:$E,3,0),"") ->  | E52: =IF(ROWS($C$4:F37)<=COUNTIF('Escala de Insuficiencia'!$B$2:$B$112,'1'!$C$4),VLOOKUP('1'!$C$4&ROWS($C$4:F37),'Escala de Insuficiencia'!$C:$E,3,0),"") ->  | F52: =IF(ROWS($C$4:D37)<=COUNTIF('Escala de Insuficiencia'!$B:$B,'1'!$C$4),VLOOKUP('1'!$C$4&ROWS($C$4:D37),'Escala de Insuficiencia'!$C:$H,6,0),"") ->  | H52: =IF(ISTEXT(VLOOKUP($B52,'Escala de Insuficiencia'!$E:$G,2,0)),VLOOKUP($B52,'Escala de Insuficiencia'!$E:$H,3,0),"") -> 
B53: =IF(ROWS($C$4:C38)<=COUNTIF('Escala de Insuficiencia'!$B:$B,'1'!$C$4),VLOOKUP('1'!$C$4&ROWS($C$4:C38),'Escala de Insuficiencia'!$C:$E,3,0),"") ->  | C53: =IF(ROWS($C$4:D38)<=COUNTIF('Escala de Insuficiencia'!$B:$B,'1'!$C$4),VLOOKUP('1'!$C$4&ROWS($C$4:D38),'Escala de Insuficiencia'!$C:$F,4,0),"") ->  | D53: =IF(ROWS($C$4:E38)<=COUNTIF('Escala de Insuficiencia'!$B$2:$B$112,'1'!$C$4),VLOOKUP('1'!$C$4&ROWS($C$4:E38),'Escala de Insuficiencia'!$C:$E,3,0),"") ->  | E53: =IF(ROWS($C$4:F38)<=COUNTIF('Escala de Insuficiencia'!$B$2:$B$112,'1'!$C$4),VLOOKUP('1'!$C$4&ROWS($C$4:F38),'Escala de Insuficiencia'!$C:$E,3,0),"") ->  | F53: =IF(ROWS($C$4:D38)<=COUNTIF('Escala de Insuficiencia'!$B:$B,'1'!$C$4),VLOOKUP('1'!$C$4&ROWS($C$4:D38),'Escala de Insuficiencia'!$C:$H,6,0),"") ->  | H53: =IF(ISTEXT(VLOOKUP($B53,'Escala de Insuficiencia'!$E:$G,2,0)),VLOOKUP($B53,'Escala de Insuficiencia'!$E:$H,3,0),"") -> 
B54: =IF(ROWS($C$4:C39)<=COUNTIF('Escala de Insuficiencia'!$B:$B,'1'!$C$4),VLOOKUP('1'!$C$4&ROWS($C$4:C39),'Escala de Insuficiencia'!$C:$E,3,0),"") ->  | C54: =IF(ROWS($C$4:D39)<=COUNTIF('Escala de Insuficiencia'!$B:$B,'1'!$C$4),VLOOKUP('1'!$C$4&ROWS($C$4:D39),'Escala de Insuficiencia'!$C:$F,4,0),"") ->  | D54: =IF(ROWS($C$4:E39)<=COUNTIF('Escala de Insuficiencia'!$B$2:$B$112,'1'!$C$4),VLOOKUP('1'!$C$4&ROWS($C$4:E39),'Escala de Insuficiencia'!$C:$E,3,0),"") ->  | E54: =IF(ROWS($C$4:F39)<=COUNTIF('Escala de Insuficiencia'!$B$2:$B$112,'1'!$C$4),VLOOKUP('1'!$C$4&ROWS($C$4:F39),'Escala de Insuficiencia'!$C:$E,3,0),"") ->  | F54: =IF(ROWS($C$4:D39)<=COUNTIF('Escala de Insuficiencia'!$B:$B,'1'!$C$4),VLOOKUP('1'!$C$4&ROWS($C$4:D39),'Escala de Insuficiencia'!$C:$H,6,0),"") ->  | H54: =IF(ISTEXT(VLOOKUP($B54,'Escala de Insuficiencia'!$E:$G,2,0)),VLOOKUP($B54,'Escala de Insuficiencia'!$E:$H,3,0),"") -> 
B55: =IF(ROWS($C$4:C40)<=COUNTIF('Escala de Insuficiencia'!$B:$B,'1'!$C$4),VLOOKUP('1'!$C$4&ROWS($C$4:C40),'Escala de Insuficiencia'!$C:$E,3,0),"") ->  | C55: =IF(ROWS($C$4:D40)<=COUNTIF('Escala de Insuficiencia'!$B:$B,'1'!$C$4),VLOOKUP('1'!$C$4&ROWS($C$4:D40),'Escala de Insuficiencia'!$C:$F,4,0),"") ->  | D55: =IF(ROWS($C$4:E40)<=COUNTIF('Escala de Insuficiencia'!$B$2:$B$112,'1'!$C$4),VLOOKUP('1'!$C$4&ROWS($C$4:E40),'Escala de Insuficiencia'!$C:$E,3,0),"") ->  | E55: =IF(ROWS($C$4:F40)<=COUNTIF('Escala de Insuficiencia'!$B$2:$B$112,'1'!$C$4),VLOOKUP('1'!$C$4&ROWS($C$4:F40),'Escala de Insuficiencia'!$C:$E,3,0),"") ->  | F55: =IF(ROWS($C$4:D40)<=COUNTIF('Escala de Insuficiencia'!$B:$B,'1'!$C$4),VLOOKUP('1'!$C$4&ROWS($C$4:D40),'Escala de Insuficiencia'!$C:$H,6,0),"") ->  | H55: =IF(ISTEXT(VLOOKUP($B55,'Escala de Insuficiencia'!$E:$G,2,0)),VLOOKUP($B55,'Escala de Insuficiencia'!$E:$H,3,0),"") -> 
B56: =IF(ROWS($C$4:C41)<=COUNTIF('Escala de Insuficiencia'!$B:$B,'1'!$C$4),VLOOKUP('1'!$C$4&ROWS($C$4:C41),'Escala de Insuficiencia'!$C:$E,3,0),"") ->  | C56: =IF(ROWS($C$4:D41)<=COUNTIF('Escala de Insuficiencia'!$B:$B,'1'!$C$4),VLOOKUP('1'!$C$4&ROWS($C$4:D41),'Escala de Insuficiencia'!$C:$F,4,0),"") ->  | D56: =IF(ROWS($C$4:E41)<=COUNTIF('Escala de Insuficiencia'!$B$2:$B$112,'1'!$C$4),VLOOKUP('1'!$C$4&ROWS($C$4:E41),'Escala de Insuficiencia'!$C:$E,3,0),"") ->  | E56: =IF(ROWS($C$4:F41)<=COUNTIF('Escala de Insuficiencia'!$B$2:$B$112,'1'!$C$4),VLOOKUP('1'!$C$4&ROWS($C$4:F41),'Escala de Insuficiencia'!$C:$E,3,0),"") ->  | F56: =IF(ROWS($C$4:D41)<=COUNTIF('Escala de Insuficiencia'!$B:$B,'1'!$C$4),VLOOKUP('1'!$C$4&ROWS($C$4:D41),'Escala de Insuficiencia'!$C:$H,6,0),"") ->  | H56: =IF(ISTEXT(VLOOKUP($B56,'Escala de Insuficiencia'!$E:$G,2,0)),VLOOKUP($B56,'Escala de Insuficiencia'!$E:$H,3,0),"") -> 
B57: =IF(ROWS($C$4:C42)<=COUNTIF('Escala de Insuficiencia'!$B:$B,'1'!$C$4),VLOOKUP('1'!$C$4&ROWS($C$4:C42),'Escala de Insuficiencia'!$C:$E,3,0),"") ->  | C57: =IF(ROWS($C$4:D42)<=COUNTIF('Escala de Insuficiencia'!$B:$B,'1'!$C$4),VLOOKUP('1'!$C$4&ROWS($C$4:D42),'Escala de Insuficiencia'!$C:$F,4,0),"") ->  | D57: =IF(ROWS($C$4:E42)<=COUNTIF('Escala de Insuficiencia'!$B$2:$B$112,'1'!$C$4),VLOOKUP('1'!$C$4&ROWS($C$4:E42),'Escala de Insuficiencia'!$C:$E,3,0),"") ->  | E57: =IF(ROWS($C$4:F42)<=COUNTIF('Escala de Insuficiencia'!$B$2:$B$112,'1'!$C$4),VLOOKUP('1'!$C$4&ROWS($C$4:F42),'Escala de Insuficiencia'!$C:$E,3,0),"") ->  | F57: =IF(ROWS($C$4:D42)<=COUNTIF('Escala de Insuficiencia'!$B:$B,'1'!$C$4),VLOOKUP('1'!$C$4&ROWS($C$4:D42),'Escala de Insuficiencia'!$C:$H,6,0),"") ->  | H57: =IF(ISTEXT(VLOOKUP($B57,'Escala de Insuficiencia'!$E:$G,2,0)),VLOOKUP($B57,'Escala de Insuficiencia'!$E:$H,3,0),"") -> 
B58: =IF(ROWS($C$4:C43)<=COUNTIF('Escala de Insuficiencia'!$B:$B,'1'!$C$4),VLOOKUP('1'!$C$4&ROWS($C$4:C43),'Escala de Insuficiencia'!$C:$E,3,0),"") ->  | C58: =IF(ROWS($C$4:D43)<=COUNTIF('Escala de Insuficiencia'!$B:$B,'1'!$C$4),VLOOKUP('1'!$C$4&ROWS($C$4:D43),'Escala de Insuficiencia'!$C:$F,4,0),"") ->  | D58: =IF(ROWS($C$4:E43)<=COUNTIF('Escala de Insuficiencia'!$B$2:$B$112,'1'!$C$4),VLOOKUP('1'!$C$4&ROWS($C$4:E43),'Escala de Insuficiencia'!$C:$E,3,0),"") ->  | E58: =IF(ROWS($C$4:F43)<=COUNTIF('Escala de Insuficiencia'!$B$2:$B$112,'1'!$C$4),VLOOKUP('1'!$C$4&ROWS($C$4:F43),'Escala de Insuficiencia'!$C:$E,3,0),"") ->  | F58: =IF(ROWS($C$4:D43)<=COUNTIF('Escala de Insuficiencia'!$B:$B,'1'!$C$4),VLOOKUP('1'!$C$4&ROWS($C$4:D43),'Escala de Insuficiencia'!$C:$H,6,0),"") ->  | H58: =IF(ISTEXT(VLOOKUP($B58,'Escala de Insuficiencia'!$E:$G,2,0)),VLOOKUP($B58,'Escala de Insuficiencia'!$E:$H,3,0),"") -> 
B59: =IF(ROWS($C$4:C44)<=COUNTIF('Escala de Insuficiencia'!$B:$B,'1'!$C$4),VLOOKUP('1'!$C$4&ROWS($C$4:C44),'Escala de Insuficiencia'!$C:$E,3,0),"") ->  | C59: =IF(ROWS($C$4:D44)<=COUNTIF('Escala de Insuficiencia'!$B:$B,'1'!$C$4),VLOOKUP('1'!$C$4&ROWS($C$4:D44),'Escala de Insuficiencia'!$C:$F,4,0),"") ->  | D59: =IF(ROWS($C$4:E44)<=COUNTIF('Escala de Insuficiencia'!$B$2:$B$112,'1'!$C$4),VLOOKUP('1'!$C$4&ROWS($C$4:E44),'Escala de Insuficiencia'!$C:$E,3,0),"") ->  | E59: =IF(ROWS($C$4:F44)<=COUNTIF('Escala de Insuficiencia'!$B$2:$B$112,'1'!$C$4),VLOOKUP('1'!$C$4&ROWS($C$4:F44),'Escala de Insuficiencia'!$C:$E,3,0),"") ->  | F59: =IF(ROWS($C$4:D44)<=COUNTIF('Escala de Insuficiencia'!$B:$B,'1'!$C$4),VLOOKUP('1'!$C$4&ROWS($C$4:D44),'Escala de Insuficiencia'!$C:$H,6,0),"") ->  | H59: =IF(ISTEXT(VLOOKUP($B59,'Escala de Insuficiencia'!$E:$G,2,0)),VLOOKUP($B59,'Escala de Insuficiencia'!$E:$H,3,0),"") -> 
B60: =IF(ROWS($C$4:C45)<=COUNTIF('Escala de Insuficiencia'!$B:$B,'1'!$C$4),VLOOKUP('1'!$C$4&ROWS($C$4:C45),'Escala de Insuficiencia'!$C:$E,3,0),"") ->  | C60: =IF(ROWS($C$4:D45)<=COUNTIF('Escala de Insuficiencia'!$B:$B,'1'!$C$4),VLOOKUP('1'!$C$4&ROWS($C$4:D45),'Escala de Insuficiencia'!$C:$F,4,0),"") ->  | D60: =IF(ROWS($C$4:E45)<=COUNTIF('Escala de Insuficiencia'!$B$2:$B$112,'1'!$C$4),VLOOKUP('1'!$C$4&ROWS($C$4:E45),'Escala de Insuficiencia'!$C:$E,3,0),"") ->  | E60: =IF(ROWS($C$4:F45)<=COUNTIF('Escala de Insuficiencia'!$B$2:$B$112,'1'!$C$4),VLOOKUP('1'!$C$4&ROWS($C$4:F45),'Escala de Insuficiencia'!$C:$E,3,0),"") ->  | F60: =IF(ROWS($C$4:D45)<=COUNTIF('Escala de Insuficiencia'!$B:$B,'1'!$C$4),VLOOKUP('1'!$C$4&ROWS($C$4:D45),'Escala de Insuficiencia'!$C:$H,6,0),"") ->  | H60: =IF(ISTEXT(VLOOKUP($B60,'Escala de Insuficiencia'!$E:$G,2,0)),VLOOKUP($B60,'Escala de Insuficiencia'!$E:$H,3,0),"") -> 
B61: =IF(ROWS($C$4:C46)<=COUNTIF('Escala de Insuficiencia'!$B:$B,'1'!$C$4),VLOOKUP('1'!$C$4&ROWS($C$4:C46),'Escala de Insuficiencia'!$C:$E,3,0),"") ->  | C61: =IF(ROWS($C$4:D46)<=COUNTIF('Escala de Insuficiencia'!$B:$B,'1'!$C$4),VLOOKUP('1'!$C$4&ROWS($C$4:D46),'Escala de Insuficiencia'!$C:$F,4,0),"") ->  | D61: =IF(ROWS($C$4:E46)<=COUNTIF('Escala de Insuficiencia'!$B$2:$B$112,'1'!$C$4),VLOOKUP('1'!$C$4&ROWS($C$4:E46),'Escala de Insuficiencia'!$C:$E,3,0),"") ->  | E61: =IF(ROWS($C$4:F46)<=COUNTIF('Escala de Insuficiencia'!$B$2:$B$112,'1'!$C$4),VLOOKUP('1'!$C$4&ROWS($C$4:F46),'Escala de Insuficiencia'!$C:$E,3,0),"") ->  | F61: =IF(ROWS($C$4:D46)<=COUNTIF('Escala de Insuficiencia'!$B:$B,'1'!$C$4),VLOOKUP('1'!$C$4&ROWS($C$4:D46),'Escala de Insuficiencia'!$C:$H,6,0),"") ->  | H61: =IF(ISTEXT(VLOOKUP($B61,'Escala de Insuficiencia'!$E:$G,2,0)),VLOOKUP($B61,'Escala de Insuficiencia'!$E:$H,3,0),"") -> 
B62: =IF(ROWS($C$4:C47)<=COUNTIF('Escala de Insuficiencia'!$B:$B,'1'!$C$4),VLOOKUP('1'!$C$4&ROWS($C$4:C47),'Escala de Insuficiencia'!$C:$E,3,0),"") ->  | C62: =IF(ROWS($C$4:D47)<=COUNTIF('Escala de Insuficiencia'!$B:$B,'1'!$C$4),VLOOKUP('1'!$C$4&ROWS($C$4:D47),'Escala de Insuficiencia'!$C:$F,4,0),"") ->  | D62: =IF(ROWS($C$4:E47)<=COUNTIF('Escala de Insuficiencia'!$B$2:$B$112,'1'!$C$4),VLOOKUP('1'!$C$4&ROWS($C$4:E47),'Escala de Insuficiencia'!$C:$E,3,0),"") ->  | E62: =IF(ROWS($C$4:F47)<=COUNTIF('Escala de Insuficiencia'!$B$2:$B$112,'1'!$C$4),VLOOKUP('1'!$C$4&ROWS($C$4:F47),'Escala de Insuficiencia'!$C:$E,3,0),"") ->  | F62: =IF(ROWS($C$4:D47)<=COUNTIF('Escala de Insuficiencia'!$B:$B,'1'!$C$4),VLOOKUP('1'!$C$4&ROWS($C$4:D47),'Escala de Insuficiencia'!$C:$H,6,0),"") ->  | H62: =IF(ISTEXT(VLOOKUP($B62,'Escala de Insuficiencia'!$E:$G,2,0)),VLOOKUP($B62,'Escala de Insuficiencia'!$E:$H,3,0),"") -> 
B63: =IF(ROWS($C$4:C48)<=COUNTIF('Escala de Insuficiencia'!$B:$B,'1'!$C$4),VLOOKUP('1'!$C$4&ROWS($C$4:C48),'Escala de Insuficiencia'!$C:$E,3,0),"") ->  | C63: =IF(ROWS($C$4:D48)<=COUNTIF('Escala de Insuficiencia'!$B:$B,'1'!$C$4),VLOOKUP('1'!$C$4&ROWS($C$4:D48),'Escala de Insuficiencia'!$C:$F,4,0),"") ->  | D63: =IF(ROWS($C$4:E48)<=COUNTIF('Escala de Insuficiencia'!$B$2:$B$112,'1'!$C$4),VLOOKUP('1'!$C$4&ROWS($C$4:E48),'Escala de Insuficiencia'!$C:$E,3,0),"") ->  | E63: =IF(ROWS($C$4:F48)<=COUNTIF('Escala de Insuficiencia'!$B$2:$B$112,'1'!$C$4),VLOOKUP('1'!$C$4&ROWS($C$4:F48),'Escala de Insuficiencia'!$C:$E,3,0),"") ->  | F63: =IF(ROWS($C$4:D48)<=COUNTIF('Escala de Insuficiencia'!$B:$B,'1'!$C$4),VLOOKUP('1'!$C$4&ROWS($C$4:D48),'Escala de Insuficiencia'!$C:$H,6,0),"") ->  | H63: =IF(ISTEXT(VLOOKUP($B63,'Escala de Insuficiencia'!$E:$G,2,0)),VLOOKUP($B63,'Escala de Insuficiencia'!$E:$H,3,0),"") -> 
B64: =IF(ROWS($C$4:C49)<=COUNTIF('Escala de Insuficiencia'!$B:$B,'1'!$C$4),VLOOKUP('1'!$C$4&ROWS($C$4:C49),'Escala de Insuficiencia'!$C:$E,3,0),"") ->  | C64: =IF(ROWS($C$4:D49)<=COUNTIF('Escala de Insuficiencia'!$B:$B,'1'!$C$4),VLOOKUP('1'!$C$4&ROWS($C$4:D49),'Escala de Insuficiencia'!$C:$F,4,0),"") ->  | D64: =IF(ROWS($C$4:E49)<=COUNTIF('Escala de Insuficiencia'!$B$2:$B$112,'1'!$C$4),VLOOKUP('1'!$C$4&ROWS($C$4:E49),'Escala de Insuficiencia'!$C:$E,3,0),"") ->  | E64: =IF(ROWS($C$4:F49)<=COUNTIF('Escala de Insuficiencia'!$B$2:$B$112,'1'!$C$4),VLOOKUP('1'!$C$4&ROWS($C$4:F49),'Escala de Insuficiencia'!$C:$E,3,0),"") ->  | F64: =IF(ROWS($C$4:D49)<=COUNTIF('Escala de Insuficiencia'!$B:$B,'1'!$C$4),VLOOKUP('1'!$C$4&ROWS($C$4:D49),'Escala de Insuficiencia'!$C:$H,6,0),"") ->  | H64: =IF(ISTEXT(VLOOKUP($B64,'Escala de Insuficiencia'!$E:$G,2,0)),VLOOKUP($B64,'Escala de Insuficiencia'!$E:$H,3,0),"") -> 
B65: =IF(ROWS($C$4:C50)<=COUNTIF('Escala de Insuficiencia'!$B:$B,'1'!$C$4),VLOOKUP('1'!$C$4&ROWS($C$4:C50),'Escala de Insuficiencia'!$C:$E,3,0),"") ->  | C65: =IF(ROWS($C$4:D50)<=COUNTIF('Escala de Insuficiencia'!$B:$B,'1'!$C$4),VLOOKUP('1'!$C$4&ROWS($C$4:D50),'Escala de Insuficiencia'!$C:$F,4,0),"") ->  | D65: =IF(ROWS($C$4:E50)<=COUNTIF('Escala de Insuficiencia'!$B$2:$B$112,'1'!$C$4),VLOOKUP('1'!$C$4&ROWS($C$4:E50),'Escala de Insuficiencia'!$C:$E,3,0),"") ->  | E65: =IF(ROWS($C$4:F50)<=COUNTIF('Escala de Insuficiencia'!$B$2:$B$112,'1'!$C$4),VLOOKUP('1'!$C$4&ROWS($C$4:F50),'Escala de Insuficiencia'!$C:$E,3,0),"") ->  | F65: =IF(ROWS($C$4:D50)<=COUNTIF('Escala de Insuficiencia'!$B:$B,'1'!$C$4),VLOOKUP('1'!$C$4&ROWS($C$4:D50),'Escala de Insuficiencia'!$C:$H,6,0),"") ->  | H65: =IF(ISTEXT(VLOOKUP($B65,'Escala de Insuficiencia'!$E:$G,2,0)),VLOOKUP($B65,'Escala de Insuficiencia'!$E:$H,3,0),"") -> 
B66: =IF(ROWS($C$4:C51)<=COUNTIF('Escala de Insuficiencia'!$B:$B,'1'!$C$4),VLOOKUP('1'!$C$4&ROWS($C$4:C51),'Escala de Insuficiencia'!$C:$E,3,0),"") ->  | C66: =IF(ROWS($C$4:D51)<=COUNTIF('Escala de Insuficiencia'!$B:$B,'1'!$C$4),VLOOKUP('1'!$C$4&ROWS($C$4:D51),'Escala de Insuficiencia'!$C:$F,4,0),"") ->  | D66: =IF(ROWS($C$4:E51)<=COUNTIF('Escala de Insuficiencia'!$B$2:$B$112,'1'!$C$4),VLOOKUP('1'!$C$4&ROWS($C$4:E51),'Escala de Insuficiencia'!$C:$E,3,0),"") ->  | E66: =IF(ROWS($C$4:F51)<=COUNTIF('Escala de Insuficiencia'!$B$2:$B$112,'1'!$C$4),VLOOKUP('1'!$C$4&ROWS($C$4:F51),'Escala de Insuficiencia'!$C:$E,3,0),"") ->  | F66: =IF(ROWS($C$4:D51)<=COUNTIF('Escala de Insuficiencia'!$B:$B,'1'!$C$4),VLOOKUP('1'!$C$4&ROWS($C$4:D51),'Escala de Insuficiencia'!$C:$H,6,0),"") ->  | H66: =IF(ISTEXT(VLOOKUP($B66,'Escala de Insuficiencia'!$E:$G,2,0)),VLOOKUP($B66,'Escala de Insuficiencia'!$E:$H,3,0),"") -> 
B67: =IF(ROWS($C$4:C52)<=COUNTIF('Escala de Insuficiencia'!$B:$B,'1'!$C$4),VLOOKUP('1'!$C$4&ROWS($C$4:C52),'Escala de Insuficiencia'!$C:$E,3,0),"") ->  | C67: =IF(ROWS($C$4:D52)<=COUNTIF('Escala de Insuficiencia'!$B:$B,'1'!$C$4),VLOOKUP('1'!$C$4&ROWS($C$4:D52),'Escala de Insuficiencia'!$C:$F,4,0),"") ->  | D67: =IF(ROWS($C$4:E52)<=COUNTIF('Escala de Insuficiencia'!$B$2:$B$112,'1'!$C$4),VLOOKUP('1'!$C$4&ROWS($C$4:E52),'Escala de Insuficiencia'!$C:$E,3,0),"") ->  | E67: =IF(ROWS($C$4:F52)<=COUNTIF('Escala de Insuficiencia'!$B$2:$B$112,'1'!$C$4),VLOOKUP('1'!$C$4&ROWS($C$4:F52),'Escala de Insuficiencia'!$C:$E,3,0),"") ->  | F67: =IF(ROWS($C$4:D52)<=COUNTIF('Escala de Insuficiencia'!$B:$B,'1'!$C$4),VLOOKUP('1'!$C$4&ROWS($C$4:D52),'Escala de Insuficiencia'!$C:$H,6,0),"") ->  | H67: =IF(ISTEXT(VLOOKUP($B67,'Escala de Insuficiencia'!$E:$G,2,0)),VLOOKUP($B67,'Escala de Insuficiencia'!$E:$H,3,0),"") -> 
B68: =IF(ROWS($C$4:C53)<=COUNTIF('Escala de Insuficiencia'!$B:$B,'1'!$C$4),VLOOKUP('1'!$C$4&ROWS($C$4:C53),'Escala de Insuficiencia'!$C:$E,3,0),"") ->  | C68: =IF(ROWS($C$4:D53)<=COUNTIF('Escala de Insuficiencia'!$B:$B,'1'!$C$4),VLOOKUP('1'!$C$4&ROWS($C$4:D53),'Escala de Insuficiencia'!$C:$F,4,0),"") ->  | D68: =IF(ROWS($C$4:E53)<=COUNTIF('Escala de Insuficiencia'!$B$2:$B$112,'1'!$C$4),VLOOKUP('1'!$C$4&ROWS($C$4:E53),'Escala de Insuficiencia'!$C:$E,3,0),"") ->  | E68: =IF(ROWS($C$4:F53)<=COUNTIF('Escala de Insuficiencia'!$B$2:$B$112,'1'!$C$4),VLOOKUP('1'!$C$4&ROWS($C$4:F53),'Escala de Insuficiencia'!$C:$E,3,0),"") ->  | F68: =IF(ROWS($C$4:D53)<=COUNTIF('Escala de Insuficiencia'!$B:$B,'1'!$C$4),VLOOKUP('1'!$C$4&ROWS($C$4:D53),'Escala de Insuficiencia'!$C:$H,6,0),"") ->  | H68: =IF(ISTEXT(VLOOKUP($B68,'Escala de Insuficiencia'!$E:$G,2,0)),VLOOKUP($B68,'Escala de Insuficiencia'!$E:$H,3,0),"") -> 
B69: =IF(ROWS($C$4:C54)<=COUNTIF('Escala de Insuficiencia'!$B:$B,'1'!$C$4),VLOOKUP('1'!$C$4&ROWS($C$4:C54),'Escala de Insuficiencia'!$C:$E,3,0),"") ->  | C69: =IF(ROWS($C$4:D54)<=COUNTIF('Escala de Insuficiencia'!$B:$B,'1'!$C$4),VLOOKUP('1'!$C$4&ROWS($C$4:D54),'Escala de Insuficiencia'!$C:$F,4,0),"") ->  | D69: =IF(ROWS($C$4:E54)<=COUNTIF('Escala de Insuficiencia'!$B$2:$B$112,'1'!$C$4),VLOOKUP('1'!$C$4&ROWS($C$4:E54),'Escala de Insuficiencia'!$C:$E,3,0),"") ->  | E69: =IF(ROWS($C$4:F54)<=COUNTIF('Escala de Insuficiencia'!$B$2:$B$112,'1'!$C$4),VLOOKUP('1'!$C$4&ROWS($C$4:F54),'Escala de Insuficiencia'!$C:$E,3,0),"") ->  | F69: =IF(ROWS($C$4:D54)<=COUNTIF('Escala de Insuficiencia'!$B:$B,'1'!$C$4),VLOOKUP('1'!$C$4&ROWS($C$4:D54),'Escala de Insuficiencia'!$C:$H,6,0),"") ->  | H69: =IF(ISTEXT(VLOOKUP($B69,'Escala de Insuficiencia'!$E:$G,2,0)),VLOOKUP($B69,'Escala de Insuficiencia'!$E:$H,3,0),"") -> 
B70: =IF(ROWS($C$4:C55)<=COUNTIF('Escala de Insuficiencia'!$B:$B,'1'!$C$4),VLOOKUP('1'!$C$4&ROWS($C$4:C55),'Escala de Insuficiencia'!$C:$E,3,0),"") ->  | C70: =IF(ROWS($C$4:D55)<=COUNTIF('Escala de Insuficiencia'!$B:$B,'1'!$C$4),VLOOKUP('1'!$C$4&ROWS($C$4:D55),'Escala de Insuficiencia'!$C:$F,4,0),"") ->  | D70: =IF(ROWS($C$4:E55)<=COUNTIF('Escala de Insuficiencia'!$B$2:$B$112,'1'!$C$4),VLOOKUP('1'!$C$4&ROWS($C$4:E55),'Escala de Insuficiencia'!$C:$E,3,0),"") ->  | E70: =IF(ROWS($C$4:F55)<=COUNTIF('Escala de Insuficiencia'!$B$2:$B$112,'1'!$C$4),VLOOKUP('1'!$C$4&ROWS($C$4:F55),'Escala de Insuficiencia'!$C:$E,3,0),"") ->  | F70: =IF(ROWS($C$4:D55)<=COUNTIF('Escala de Insuficiencia'!$B:$B,'1'!$C$4),VLOOKUP('1'!$C$4&ROWS($C$4:D55),'Escala de Insuficiencia'!$C:$H,6,0),"") ->  | H70: =IF(ISTEXT(VLOOKUP($B70,'Escala de Insuficiencia'!$E:$G,2,0)),VLOOKUP($B70,'Escala de Insuficiencia'!$E:$H,3,0),"") -> 
B71: =IF(ROWS($C$4:C56)<=COUNTIF('Escala de Insuficiencia'!$B:$B,'1'!$C$4),VLOOKUP('1'!$C$4&ROWS($C$4:C56),'Escala de Insuficiencia'!$C:$E,3,0),"") ->  | C71: =IF(ROWS($C$4:D56)<=COUNTIF('Escala de Insuficiencia'!$B:$B,'1'!$C$4),VLOOKUP('1'!$C$4&ROWS($C$4:D56),'Escala de Insuficiencia'!$C:$F,4,0),"") ->  | D71: =IF(ROWS($C$4:E56)<=COUNTIF('Escala de Insuficiencia'!$B$2:$B$112,'1'!$C$4),VLOOKUP('1'!$C$4&ROWS($C$4:E56),'Escala de Insuficiencia'!$C:$E,3,0),"") ->  | E71: =IF(ROWS($C$4:F56)<=COUNTIF('Escala de Insuficiencia'!$B$2:$B$112,'1'!$C$4),VLOOKUP('1'!$C$4&ROWS($C$4:F56),'Escala de Insuficiencia'!$C:$E,3,0),"") ->  | F71: =IF(ROWS($C$4:D56)<=COUNTIF('Escala de Insuficiencia'!$B:$B,'1'!$C$4),VLOOKUP('1'!$C$4&ROWS($C$4:D56),'Escala de Insuficiencia'!$C:$H,6,0),"") ->  | H71: =IF(ISTEXT(VLOOKUP($B71,'Escala de Insuficiencia'!$E:$G,2,0)),VLOOKUP($B71,'Escala de Insuficiencia'!$E:$H,3,0),"") -> 
B72: =IF(ROWS($C$4:C57)<=COUNTIF('Escala de Insuficiencia'!$B:$B,'1'!$C$4),VLOOKUP('1'!$C$4&ROWS($C$4:C57),'Escala de Insuficiencia'!$C:$E,3,0),"") ->  | C72: =IF(ROWS($C$4:D57)<=COUNTIF('Escala de Insuficiencia'!$B:$B,'1'!$C$4),VLOOKUP('1'!$C$4&ROWS($C$4:D57),'Escala de Insuficiencia'!$C:$F,4,0),"") ->  | D72: =IF(ROWS($C$4:E57)<=COUNTIF('Escala de Insuficiencia'!$B$2:$B$112,'1'!$C$4),VLOOKUP('1'!$C$4&ROWS($C$4:E57),'Escala de Insuficiencia'!$C:$E,3,0),"") ->  | E72: =IF(ROWS($C$4:F57)<=COUNTIF('Escala de Insuficiencia'!$B$2:$B$112,'1'!$C$4),VLOOKUP('1'!$C$4&ROWS($C$4:F57),'Escala de Insuficiencia'!$C:$E,3,0),"") ->  | F72: =IF(ROWS($C$4:D57)<=COUNTIF('Escala de Insuficiencia'!$B:$B,'1'!$C$4),VLOOKUP('1'!$C$4&ROWS($C$4:D57),'Escala de Insuficiencia'!$C:$H,6,0),"") ->  | H72: =IF(ISTEXT(VLOOKUP($B72,'Escala de Insuficiencia'!$E:$G,2,0)),VLOOKUP($B72,'Escala de Insuficiencia'!$E:$H,3,0),"") -> 
B73: =IF(ROWS($C$4:C58)<=COUNTIF('Escala de Insuficiencia'!$B:$B,'1'!$C$4),VLOOKUP('1'!$C$4&ROWS($C$4:C58),'Escala de Insuficiencia'!$C:$E,3,0),"") ->  | C73: =IF(ROWS($C$4:D58)<=COUNTIF('Escala de Insuficiencia'!$B:$B,'1'!$C$4),VLOOKUP('1'!$C$4&ROWS($C$4:D58),'Escala de Insuficiencia'!$C:$F,4,0),"") ->  | D73: =IF(ROWS($C$4:E58)<=COUNTIF('Escala de Insuficiencia'!$B$2:$B$112,'1'!$C$4),VLOOKUP('1'!$C$4&ROWS($C$4:E58),'Escala de Insuficiencia'!$C:$E,3,0),"") ->  | E73: =IF(ROWS($C$4:F58)<=COUNTIF('Escala de Insuficiencia'!$B$2:$B$112,'1'!$C$4),VLOOKUP('1'!$C$4&ROWS($C$4:F58),'Escala de Insuficiencia'!$C:$E,3,0),"") ->  | F73: =IF(ROWS($C$4:D58)<=COUNTIF('Escala de Insuficiencia'!$B:$B,'1'!$C$4),VLOOKUP('1'!$C$4&ROWS($C$4:D58),'Escala de Insuficiencia'!$C:$H,6,0),"") ->  | H73: =IF(ISTEXT(VLOOKUP($B73,'Escala de Insuficiencia'!$E:$G,2,0)),VLOOKUP($B73,'Escala de Insuficiencia'!$E:$H,3,0),"") -> 
B74: =IF(ROWS($C$4:C59)<=COUNTIF('Escala de Insuficiencia'!$B:$B,'1'!$C$4),VLOOKUP('1'!$C$4&ROWS($C$4:C59),'Escala de Insuficiencia'!$C:$E,3,0),"") ->  | C74: =IF(ROWS($C$4:D59)<=COUNTIF('Escala de Insuficiencia'!$B:$B,'1'!$C$4),VLOOKUP('1'!$C$4&ROWS($C$4:D59),'Escala de Insuficiencia'!$C:$F,4,0),"") ->  | D74: =IF(ROWS($C$4:E59)<=COUNTIF('Escala de Insuficiencia'!$B$2:$B$112,'1'!$C$4),VLOOKUP('1'!$C$4&ROWS($C$4:E59),'Escala de Insuficiencia'!$C:$E,3,0),"") ->  | E74: =IF(ROWS($C$4:F59)<=COUNTIF('Escala de Insuficiencia'!$B$2:$B$112,'1'!$C$4),VLOOKUP('1'!$C$4&ROWS($C$4:F59),'Escala de Insuficiencia'!$C:$E,3,0),"") ->  | F74: =IF(ROWS($C$4:D59)<=COUNTIF('Escala de Insuficiencia'!$B:$B,'1'!$C$4),VLOOKUP('1'!$C$4&ROWS($C$4:D59),'Escala de Insuficiencia'!$C:$H,6,0),"") ->  | H74: =IF(ISTEXT(VLOOKUP($B74,'Escala de Insuficiencia'!$E:$G,2,0)),VLOOKUP($B74,'Escala de Insuficiencia'!$E:$H,3,0),"") -> 
B75: =IF(ROWS($C$4:C60)<=COUNTIF('Escala de Insuficiencia'!$B:$B,'1'!$C$4),VLOOKUP('1'!$C$4&ROWS($C$4:C60),'Escala de Insuficiencia'!$C:$E,3,0),"") ->  | C75: =IF(ROWS($C$4:D60)<=COUNTIF('Escala de Insuficiencia'!$B:$B,'1'!$C$4),VLOOKUP('1'!$C$4&ROWS($C$4:D60),'Escala de Insuficiencia'!$C:$F,4,0),"") ->  | D75: =IF(ROWS($C$4:E60)<=COUNTIF('Escala de Insuficiencia'!$B$2:$B$112,'1'!$C$4),VLOOKUP('1'!$C$4&ROWS($C$4:E60),'Escala de Insuficiencia'!$C:$E,3,0),"") ->  | E75: =IF(ROWS($C$4:F60)<=COUNTIF('Escala de Insuficiencia'!$B$2:$B$112,'1'!$C$4),VLOOKUP('1'!$C$4&ROWS($C$4:F60),'Escala de Insuficiencia'!$C:$E,3,0),"") ->  | F75: =IF(ROWS($C$4:D60)<=COUNTIF('Escala de Insuficiencia'!$B:$B,'1'!$C$4),VLOOKUP('1'!$C$4&ROWS($C$4:D60),'Escala de Insuficiencia'!$C:$H,6,0),"") ->  | H75: =IF(ISTEXT(VLOOKUP($B75,'Escala de Insuficiencia'!$E:$G,2,0)),VLOOKUP($B75,'Escala de Insuficiencia'!$E:$H,3,0),"") -> 
B76: =IF(ROWS($C$4:C61)<=COUNTIF('Escala de Insuficiencia'!$B:$B,'1'!$C$4),VLOOKUP('1'!$C$4&ROWS($C$4:C61),'Escala de Insuficiencia'!$C:$E,3,0),"") ->  | C76: =IF(ROWS($C$4:D61)<=COUNTIF('Escala de Insuficiencia'!$B:$B,'1'!$C$4),VLOOKUP('1'!$C$4&ROWS($C$4:D61),'Escala de Insuficiencia'!$C:$F,4,0),"") ->  | D76: =IF(ROWS($C$4:E61)<=COUNTIF('Escala de Insuficiencia'!$B$2:$B$112,'1'!$C$4),VLOOKUP('1'!$C$4&ROWS($C$4:E61),'Escala de Insuficiencia'!$C:$E,3,0),"") ->  | E76: =IF(ROWS($C$4:F61)<=COUNTIF('Escala de Insuficiencia'!$B$2:$B$112,'1'!$C$4),VLOOKUP('1'!$C$4&ROWS($C$4:F61),'Escala de Insuficiencia'!$C:$E,3,0),"") ->  | F76: =IF(ROWS($C$4:D61)<=COUNTIF('Escala de Insuficiencia'!$B:$B,'1'!$C$4),VLOOKUP('1'!$C$4&ROWS($C$4:D61),'Escala de Insuficiencia'!$C:$H,6,0),"") ->  | H76: =IF(ISTEXT(VLOOKUP($B76,'Escala de Insuficiencia'!$E:$G,2,0)),VLOOKUP($B76,'Escala de Insuficiencia'!$E:$H,3,0),"") -> 
B77: =IF(ROWS($C$4:C62)<=COUNTIF('Escala de Insuficiencia'!$B:$B,'1'!$C$4),VLOOKUP('1'!$C$4&ROWS($C$4:C62),'Escala de Insuficiencia'!$C:$E,3,0),"") ->  | C77: =IF(ROWS($C$4:D62)<=COUNTIF('Escala de Insuficiencia'!$B:$B,'1'!$C$4),VLOOKUP('1'!$C$4&ROWS($C$4:D62),'Escala de Insuficiencia'!$C:$F,4,0),"") ->  | D77: =IF(ROWS($C$4:E62)<=COUNTIF('Escala de Insuficiencia'!$B$2:$B$112,'1'!$C$4),VLOOKUP('1'!$C$4&ROWS($C$4:E62),'Escala de Insuficiencia'!$C:$E,3,0),"") ->  | E77: =IF(ROWS($C$4:F62)<=COUNTIF('Escala de Insuficiencia'!$B$2:$B$112,'1'!$C$4),VLOOKUP('1'!$C$4&ROWS($C$4:F62),'Escala de Insuficiencia'!$C:$E,3,0),"") ->  | F77: =IF(ROWS($C$4:D62)<=COUNTIF('Escala de Insuficiencia'!$B:$B,'1'!$C$4),VLOOKUP('1'!$C$4&ROWS($C$4:D62),'Escala de Insuficiencia'!$C:$H,6,0),"") ->  | H77: =IF(ISTEXT(VLOOKUP($B77,'Escala de Insuficiencia'!$E:$G,2,0)),VLOOKUP($B77,'Escala de Insuficiencia'!$E:$H,3,0),"") -> 
B78: =IF(ROWS($C$4:C63)<=COUNTIF('Escala de Insuficiencia'!$B:$B,'1'!$C$4),VLOOKUP('1'!$C$4&ROWS($C$4:C63),'Escala de Insuficiencia'!$C:$E,3,0),"") ->  | C78: =IF(ROWS($C$4:D63)<=COUNTIF('Escala de Insuficiencia'!$B:$B,'1'!$C$4),VLOOKUP('1'!$C$4&ROWS($C$4:D63),'Escala de Insuficiencia'!$C:$F,4,0),"") ->  | D78: =IF(ROWS($C$4:E63)<=COUNTIF('Escala de Insuficiencia'!$B$2:$B$112,'1'!$C$4),VLOOKUP('1'!$C$4&ROWS($C$4:E63),'Escala de Insuficiencia'!$C:$E,3,0),"") ->  | E78: =IF(ROWS($C$4:F63)<=COUNTIF('Escala de Insuficiencia'!$B$2:$B$112,'1'!$C$4),VLOOKUP('1'!$C$4&ROWS($C$4:F63),'Escala de Insuficiencia'!$C:$E,3,0),"") ->  | F78: =IF(ROWS($C$4:D63)<=COUNTIF('Escala de Insuficiencia'!$B:$B,'1'!$C$4),VLOOKUP('1'!$C$4&ROWS($C$4:D63),'Escala de Insuficiencia'!$C:$H,6,0),"") ->  | H78: =IF(ISTEXT(VLOOKUP($B78,'Escala de Insuficiencia'!$E:$G,2,0)),VLOOKUP($B78,'Escala de Insuficiencia'!$E:$H,3,0),"") -> 
B79: =IF(ROWS($C$4:C64)<=COUNTIF('Escala de Insuficiencia'!$B:$B,'1'!$C$4),VLOOKUP('1'!$C$4&ROWS($C$4:C64),'Escala de Insuficiencia'!$C:$E,3,0),"") ->  | C79: =IF(ROWS($C$4:D64)<=COUNTIF('Escala de Insuficiencia'!$B:$B,'1'!$C$4),VLOOKUP('1'!$C$4&ROWS($C$4:D64),'Escala de Insuficiencia'!$C:$F,4,0),"") ->  | D79: =IF(ROWS($C$4:E64)<=COUNTIF('Escala de Insuficiencia'!$B$2:$B$112,'1'!$C$4),VLOOKUP('1'!$C$4&ROWS($C$4:E64),'Escala de Insuficiencia'!$C:$E,3,0),"") ->  | E79: =IF(ROWS($C$4:F64)<=COUNTIF('Escala de Insuficiencia'!$B$2:$B$112,'1'!$C$4),VLOOKUP('1'!$C$4&ROWS($C$4:F64),'Escala de Insuficiencia'!$C:$E,3,0),"") ->  | F79: =IF(ROWS($C$4:D64)<=COUNTIF('Escala de Insuficiencia'!$B:$B,'1'!$C$4),VLOOKUP('1'!$C$4&ROWS($C$4:D64),'Escala de Insuficiencia'!$C:$H,6,0),"") ->  | H79: =IF(ISTEXT(VLOOKUP($B79,'Escala de Insuficiencia'!$E:$G,2,0)),VLOOKUP($B79,'Escala de Insuficiencia'!$E:$H,3,0),"") -> 
B80: =IF(ROWS($C$4:C65)<=COUNTIF('Escala de Insuficiencia'!$B:$B,'1'!$C$4),VLOOKUP('1'!$C$4&ROWS($C$4:C65),'Escala de Insuficiencia'!$C:$E,3,0),"") ->  | C80: =IF(ROWS($C$4:D65)<=COUNTIF('Escala de Insuficiencia'!$B:$B,'1'!$C$4),VLOOKUP('1'!$C$4&ROWS($C$4:D65),'Escala de Insuficiencia'!$C:$F,4,0),"") ->  | D80: =IF(ROWS($C$4:E65)<=COUNTIF('Escala de Insuficiencia'!$B$2:$B$112,'1'!$C$4),VLOOKUP('1'!$C$4&ROWS($C$4:E65),'Escala de Insuficiencia'!$C:$E,3,0),"") ->  | E80: =IF(ROWS($C$4:F65)<=COUNTIF('Escala de Insuficiencia'!$B$2:$B$112,'1'!$C$4),VLOOKUP('1'!$C$4&ROWS($C$4:F65),'Escala de Insuficiencia'!$C:$E,3,0),"") ->  | F80: =IF(ROWS($C$4:D65)<=COUNTIF('Escala de Insuficiencia'!$B:$B,'1'!$C$4),VLOOKUP('1'!$C$4&ROWS($C$4:D65),'Escala de Insuficiencia'!$C:$H,6,0),"") ->  | H80: =IF(ISTEXT(VLOOKUP($B80,'Escala de Insuficiencia'!$E:$G,2,0)),VLOOKUP($B80,'Escala de Insuficiencia'!$E:$H,3,0),"") -> 
B81: =IF(ROWS($C$4:C66)<=COUNTIF('Escala de Insuficiencia'!$B:$B,'1'!$C$4),VLOOKUP('1'!$C$4&ROWS($C$4:C66),'Escala de Insuficiencia'!$C:$E,3,0),"") ->  | C81: =IF(ROWS($C$4:D66)<=COUNTIF('Escala de Insuficiencia'!$B:$B,'1'!$C$4),VLOOKUP('1'!$C$4&ROWS($C$4:D66),'Escala de Insuficiencia'!$C:$F,4,0),"") ->  | D81: =IF(ROWS($C$4:E66)<=COUNTIF('Escala de Insuficiencia'!$B$2:$B$112,'1'!$C$4),VLOOKUP('1'!$C$4&ROWS($C$4:E66),'Escala de Insuficiencia'!$C:$E,3,0),"") ->  | E81: =IF(ROWS($C$4:F66)<=COUNTIF('Escala de Insuficiencia'!$B$2:$B$112,'1'!$C$4),VLOOKUP('1'!$C$4&ROWS($C$4:F66),'Escala de Insuficiencia'!$C:$E,3,0),"") ->  | F81: =IF(ROWS($C$4:D66)<=COUNTIF('Escala de Insuficiencia'!$B:$B,'1'!$C$4),VLOOKUP('1'!$C$4&ROWS($C$4:D66),'Escala de Insuficiencia'!$C:$H,6,0),"") ->  | H81: =IF(ISTEXT(VLOOKUP($B81,'Escala de Insuficiencia'!$E:$G,2,0)),VLOOKUP($B81,'Escala de Insuficiencia'!$E:$H,3,0),"") -> 
B82: =IF(ROWS($C$4:C67)<=COUNTIF('Escala de Insuficiencia'!$B:$B,'1'!$C$4),VLOOKUP('1'!$C$4&ROWS($C$4:C67),'Escala de Insuficiencia'!$C:$E,3,0),"") ->  | C82: =IF(ROWS($C$4:D67)<=COUNTIF('Escala de Insuficiencia'!$B:$B,'1'!$C$4),VLOOKUP('1'!$C$4&ROWS($C$4:D67),'Escala de Insuficiencia'!$C:$F,4,0),"") ->  | D82: =IF(ROWS($C$4:E67)<=COUNTIF('Escala de Insuficiencia'!$B$2:$B$112,'1'!$C$4),VLOOKUP('1'!$C$4&ROWS($C$4:E67),'Escala de Insuficiencia'!$C:$E,3,0),"") ->  | E82: =IF(ROWS($C$4:F67)<=COUNTIF('Escala de Insuficiencia'!$B$2:$B$112,'1'!$C$4),VLOOKUP('1'!$C$4&ROWS($C$4:F67),'Escala de Insuficiencia'!$C:$E,3,0),"") ->  | F82: =IF(ROWS($C$4:D67)<=COUNTIF('Escala de Insuficiencia'!$B:$B,'1'!$C$4),VLOOKUP('1'!$C$4&ROWS($C$4:D67),'Escala de Insuficiencia'!$C:$H,6,0),"") ->  | H82: =IF(ISTEXT(VLOOKUP($B82,'Escala de Insuficiencia'!$E:$G,2,0)),VLOOKUP($B82,'Escala de Insuficiencia'!$E:$H,3,0),"") -> 
B83: =IF(ROWS($C$4:C68)<=COUNTIF('Escala de Insuficiencia'!$B:$B,'1'!$C$4),VLOOKUP('1'!$C$4&ROWS($C$4:C68),'Escala de Insuficiencia'!$C:$E,3,0),"") ->  | C83: =IF(ROWS($C$4:D68)<=COUNTIF('Escala de Insuficiencia'!$B:$B,'1'!$C$4),VLOOKUP('1'!$C$4&ROWS($C$4:D68),'Escala de Insuficiencia'!$C:$F,4,0),"") ->  | D83: =IF(ROWS($C$4:E68)<=COUNTIF('Escala de Insuficiencia'!$B$2:$B$112,'1'!$C$4),VLOOKUP('1'!$C$4&ROWS($C$4:E68),'Escala de Insuficiencia'!$C:$E,3,0),"") ->  | E83: =IF(ROWS($C$4:F68)<=COUNTIF('Escala de Insuficiencia'!$B$2:$B$112,'1'!$C$4),VLOOKUP('1'!$C$4&ROWS($C$4:F68),'Escala de Insuficiencia'!$C:$E,3,0),"") ->  | F83: =IF(ROWS($C$4:D68)<=COUNTIF('Escala de Insuficiencia'!$B:$B,'1'!$C$4),VLOOKUP('1'!$C$4&ROWS($C$4:D68),'Escala de Insuficiencia'!$C:$H,6,0),"") ->  | H83: =IF(ISTEXT(VLOOKUP($B83,'Escala de Insuficiencia'!$E:$G,2,0)),VLOOKUP($B83,'Escala de Insuficiencia'!$E:$H,3,0),"") -> 
B84: =IF(ROWS($C$4:C69)<=COUNTIF('Escala de Insuficiencia'!$B:$B,'1'!$C$4),VLOOKUP('1'!$C$4&ROWS($C$4:C69),'Escala de Insuficiencia'!$C:$E,3,0),"") ->  | C84: =IF(ROWS($C$4:D69)<=COUNTIF('Escala de Insuficiencia'!$B:$B,'1'!$C$4),VLOOKUP('1'!$C$4&ROWS($C$4:D69),'Escala de Insuficiencia'!$C:$F,4,0),"") ->  | D84: =IF(ROWS($C$4:E69)<=COUNTIF('Escala de Insuficiencia'!$B$2:$B$112,'1'!$C$4),VLOOKUP('1'!$C$4&ROWS($C$4:E69),'Escala de Insuficiencia'!$C:$E,3,0),"") ->  | E84: =IF(ROWS($C$4:F69)<=COUNTIF('Escala de Insuficiencia'!$B$2:$B$112,'1'!$C$4),VLOOKUP('1'!$C$4&ROWS($C$4:F69),'Escala de Insuficiencia'!$C:$E,3,0),"") ->  | F84: =IF(ROWS($C$4:D69)<=COUNTIF('Escala de Insuficiencia'!$B:$B,'1'!$C$4),VLOOKUP('1'!$C$4&ROWS($C$4:D69),'Escala de Insuficiencia'!$C:$H,6,0),"") ->  | H84: =IF(ISTEXT(VLOOKUP($B84,'Escala de Insuficiencia'!$E:$G,2,0)),VLOOKUP($B84,'Escala de Insuficiencia'!$E:$H,3,0),"") -> 
B85: =IF(ROWS($C$4:C70)<=COUNTIF('Escala de Insuficiencia'!$B:$B,'1'!$C$4),VLOOKUP('1'!$C$4&ROWS($C$4:C70),'Escala de Insuficiencia'!$C:$E,3,0),"") ->  | C85: =IF(ROWS($C$4:D70)<=COUNTIF('Escala de Insuficiencia'!$B:$B,'1'!$C$4),VLOOKUP('1'!$C$4&ROWS($C$4:D70),'Escala de Insuficiencia'!$C:$F,4,0),"") ->  | D85: =IF(ROWS($C$4:E70)<=COUNTIF('Escala de Insuficiencia'!$B$2:$B$112,'1'!$C$4),VLOOKUP('1'!$C$4&ROWS($C$4:E70),'Escala de Insuficiencia'!$C:$E,3,0),"") ->  | E85: =IF(ROWS($C$4:F70)<=COUNTIF('Escala de Insuficiencia'!$B$2:$B$112,'1'!$C$4),VLOOKUP('1'!$C$4&ROWS($C$4:F70),'Escala de Insuficiencia'!$C:$E,3,0),"") ->  | F85: =IF(ROWS($C$4:D70)<=COUNTIF('Escala de Insuficiencia'!$B:$B,'1'!$C$4),VLOOKUP('1'!$C$4&ROWS($C$4:D70),'Escala de Insuficiencia'!$C:$H,6,0),"") ->  | H85: =IF(ISTEXT(VLOOKUP($B85,'Escala de Insuficiencia'!$E:$G,2,0)),VLOOKUP($B85,'Escala de Insuficiencia'!$E:$H,3,0),"") -> 
B86: =IF(ROWS($C$4:C71)<=COUNTIF('Escala de Insuficiencia'!$B:$B,'1'!$C$4),VLOOKUP('1'!$C$4&ROWS($C$4:C71),'Escala de Insuficiencia'!$C:$E,3,0),"") ->  | C86: =IF(ROWS($C$4:D71)<=COUNTIF('Escala de Insuficiencia'!$B:$B,'1'!$C$4),VLOOKUP('1'!$C$4&ROWS($C$4:D71),'Escala de Insuficiencia'!$C:$F,4,0),"") ->  | D86: =IF(ROWS($C$4:E71)<=COUNTIF('Escala de Insuficiencia'!$B$2:$B$112,'1'!$C$4),VLOOKUP('1'!$C$4&ROWS($C$4:E71),'Escala de Insuficiencia'!$C:$E,3,0),"") ->  | E86: =IF(ROWS($C$4:F71)<=COUNTIF('Escala de Insuficiencia'!$B$2:$B$112,'1'!$C$4),VLOOKUP('1'!$C$4&ROWS($C$4:F71),'Escala de Insuficiencia'!$C:$E,3,0),"") ->  | F86: =IF(ROWS($C$4:D71)<=COUNTIF('Escala de Insuficiencia'!$B:$B,'1'!$C$4),VLOOKUP('1'!$C$4&ROWS($C$4:D71),'Escala de Insuficiencia'!$C:$H,6,0),"") ->  | H86: =IF(ISTEXT(VLOOKUP($B86,'Escala de Insuficiencia'!$E:$G,2,0)),VLOOKUP($B86,'Escala de Insuficiencia'!$E:$H,3,0),"") -> 
B87: =IF(ROWS($C$4:C72)<=COUNTIF('Escala de Insuficiencia'!$B:$B,'1'!$C$4),VLOOKUP('1'!$C$4&ROWS($C$4:C72),'Escala de Insuficiencia'!$C:$E,3,0),"") ->  | C87: =IF(ROWS($C$4:D72)<=COUNTIF('Escala de Insuficiencia'!$B:$B,'1'!$C$4),VLOOKUP('1'!$C$4&ROWS($C$4:D72),'Escala de Insuficiencia'!$C:$F,4,0),"") ->  | D87: =IF(ROWS($C$4:E72)<=COUNTIF('Escala de Insuficiencia'!$B$2:$B$112,'1'!$C$4),VLOOKUP('1'!$C$4&ROWS($C$4:E72),'Escala de Insuficiencia'!$C:$E,3,0),"") ->  | E87: =IF(ROWS($C$4:F72)<=COUNTIF('Escala de Insuficiencia'!$B$2:$B$112,'1'!$C$4),VLOOKUP('1'!$C$4&ROWS($C$4:F72),'Escala de Insuficiencia'!$C:$E,3,0),"") ->  | F87: =IF(ROWS($C$4:D72)<=COUNTIF('Escala de Insuficiencia'!$B:$B,'1'!$C$4),VLOOKUP('1'!$C$4&ROWS($C$4:D72),'Escala de Insuficiencia'!$C:$H,6,0),"") ->  | H87: =IF(ISTEXT(VLOOKUP($B87,'Escala de Insuficiencia'!$E:$G,2,0)),VLOOKUP($B87,'Escala de Insuficiencia'!$E:$H,3,0),"") -> 
B88: =IF(ROWS($C$4:C73)<=COUNTIF('Escala de Insuficiencia'!$B:$B,'1'!$C$4),VLOOKUP('1'!$C$4&ROWS($C$4:C73),'Escala de Insuficiencia'!$C:$E,3,0),"") ->  | C88: =IF(ROWS($C$4:D73)<=COUNTIF('Escala de Insuficiencia'!$B:$B,'1'!$C$4),VLOOKUP('1'!$C$4&ROWS($C$4:D73),'Escala de Insuficiencia'!$C:$F,4,0),"") ->  | D88: =IF(ROWS($C$4:E73)<=COUNTIF('Escala de Insuficiencia'!$B$2:$B$112,'1'!$C$4),VLOOKUP('1'!$C$4&ROWS($C$4:E73),'Escala de Insuficiencia'!$C:$E,3,0),"") ->  | E88: =IF(ROWS($C$4:F73)<=COUNTIF('Escala de Insuficiencia'!$B$2:$B$112,'1'!$C$4),VLOOKUP('1'!$C$4&ROWS($C$4:F73),'Escala de Insuficiencia'!$C:$E,3,0),"") ->  | F88: =IF(ROWS($C$4:D73)<=COUNTIF('Escala de Insuficiencia'!$B:$B,'1'!$C$4),VLOOKUP('1'!$C$4&ROWS($C$4:D73),'Escala de Insuficiencia'!$C:$H,6,0),"") ->  | H88: =IF(ISTEXT(VLOOKUP($B88,'Escala de Insuficiencia'!$E:$G,2,0)),VLOOKUP($B88,'Escala de Insuficiencia'!$E:$H,3,0),"") -> 
B89: =IF(ROWS($C$4:C74)<=COUNTIF('Escala de Insuficiencia'!$B:$B,'1'!$C$4),VLOOKUP('1'!$C$4&ROWS($C$4:C74),'Escala de Insuficiencia'!$C:$E,3,0),"") ->  | C89: =IF(ROWS($C$4:D74)<=COUNTIF('Escala de Insuficiencia'!$B:$B,'1'!$C$4),VLOOKUP('1'!$C$4&ROWS($C$4:D74),'Escala de Insuficiencia'!$C:$F,4,0),"") ->  | D89: =IF(ROWS($C$4:E74)<=COUNTIF('Escala de Insuficiencia'!$B$2:$B$112,'1'!$C$4),VLOOKUP('1'!$C$4&ROWS($C$4:E74),'Escala de Insuficiencia'!$C:$E,3,0),"") ->  | E89: =IF(ROWS($C$4:F74)<=COUNTIF('Escala de Insuficiencia'!$B$2:$B$112,'1'!$C$4),VLOOKUP('1'!$C$4&ROWS($C$4:F74),'Escala de Insuficiencia'!$C:$E,3,0),"") ->  | F89: =IF(ROWS($C$4:D74)<=COUNTIF('Escala de Insuficiencia'!$B:$B,'1'!$C$4),VLOOKUP('1'!$C$4&ROWS($C$4:D74),'Escala de Insuficiencia'!$C:$H,6,0),"") ->  | H89: =IF(ISTEXT(VLOOKUP($B89,'Escala de Insuficiencia'!$E:$G,2,0)),VLOOKUP($B89,'Escala de Insuficiencia'!$E:$H,3,0),"") -> 
B90: =IF(ROWS($C$4:C75)<=COUNTIF('Escala de Insuficiencia'!$B:$B,'1'!$C$4),VLOOKUP('1'!$C$4&ROWS($C$4:C75),'Escala de Insuficiencia'!$C:$E,3,0),"") ->  | C90: =IF(ROWS($C$4:D75)<=COUNTIF('Escala de Insuficiencia'!$B:$B,'1'!$C$4),VLOOKUP('1'!$C$4&ROWS($C$4:D75),'Escala de Insuficiencia'!$C:$F,4,0),"") ->  | D90: =IF(ROWS($C$4:E75)<=COUNTIF('Escala de Insuficiencia'!$B$2:$B$112,'1'!$C$4),VLOOKUP('1'!$C$4&ROWS($C$4:E75),'Escala de Insuficiencia'!$C:$E,3,0),"") ->  | E90: =IF(ROWS($C$4:F75)<=COUNTIF('Escala de Insuficiencia'!$B$2:$B$112,'1'!$C$4),VLOOKUP('1'!$C$4&ROWS($C$4:F75),'Escala de Insuficiencia'!$C:$E,3,0),"") ->  | F90: =IF(ROWS($C$4:D75)<=COUNTIF('Escala de Insuficiencia'!$B:$B,'1'!$C$4),VLOOKUP('1'!$C$4&ROWS($C$4:D75),'Escala de Insuficiencia'!$C:$H,6,0),"") ->  | H90: =IF(ISTEXT(VLOOKUP($B90,'Escala de Insuficiencia'!$E:$G,2,0)),VLOOKUP($B90,'Escala de Insuficiencia'!$E:$H,3,0),"") -> 
B91: =IF(ROWS($C$4:C76)<=COUNTIF('Escala de Insuficiencia'!$B:$B,'1'!$C$4),VLOOKUP('1'!$C$4&ROWS($C$4:C76),'Escala de Insuficiencia'!$C:$E,3,0),"") ->  | C91: =IF(ROWS($C$4:D76)<=COUNTIF('Escala de Insuficiencia'!$B:$B,'1'!$C$4),VLOOKUP('1'!$C$4&ROWS($C$4:D76),'Escala de Insuficiencia'!$C:$F,4,0),"") ->  | D91: =IF(ROWS($C$4:E76)<=COUNTIF('Escala de Insuficiencia'!$B$2:$B$112,'1'!$C$4),VLOOKUP('1'!$C$4&ROWS($C$4:E76),'Escala de Insuficiencia'!$C:$E,3,0),"") ->  | E91: =IF(ROWS($C$4:F76)<=COUNTIF('Escala de Insuficiencia'!$B$2:$B$112,'1'!$C$4),VLOOKUP('1'!$C$4&ROWS($C$4:F76),'Escala de Insuficiencia'!$C:$E,3,0),"") ->  | F91: =IF(ROWS($C$4:D76)<=COUNTIF('Escala de Insuficiencia'!$B:$B,'1'!$C$4),VLOOKUP('1'!$C$4&ROWS($C$4:D76),'Escala de Insuficiencia'!$C:$H,6,0),"") ->  | H91: =IF(ISTEXT(VLOOKUP($B91,'Escala de Insuficiencia'!$E:$G,2,0)),VLOOKUP($B91,'Escala de Insuficiencia'!$E:$H,3,0),"") -> 
B92: =IF(ROWS($C$4:C77)<=COUNTIF('Escala de Insuficiencia'!$B:$B,'1'!$C$4),VLOOKUP('1'!$C$4&ROWS($C$4:C77),'Escala de Insuficiencia'!$C:$E,3,0),"") ->  | C92: =IF(ROWS($C$4:D77)<=COUNTIF('Escala de Insuficiencia'!$B:$B,'1'!$C$4),VLOOKUP('1'!$C$4&ROWS($C$4:D77),'Escala de Insuficiencia'!$C:$F,4,0),"") ->  | D92: =IF(ROWS($C$4:E77)<=COUNTIF('Escala de Insuficiencia'!$B$2:$B$112,'1'!$C$4),VLOOKUP('1'!$C$4&ROWS($C$4:E77),'Escala de Insuficiencia'!$C:$E,3,0),"") ->  | E92: =IF(ROWS($C$4:F77)<=COUNTIF('Escala de Insuficiencia'!$B$2:$B$112,'1'!$C$4),VLOOKUP('1'!$C$4&ROWS($C$4:F77),'Escala de Insuficiencia'!$C:$E,3,0),"") ->  | F92: =IF(ROWS($C$4:D77)<=COUNTIF('Escala de Insuficiencia'!$B:$B,'1'!$C$4),VLOOKUP('1'!$C$4&ROWS($C$4:D77),'Escala de Insuficiencia'!$C:$H,6,0),"") ->  | H92: =IF(ISTEXT(VLOOKUP($B92,'Escala de Insuficiencia'!$E:$G,2,0)),VLOOKUP($B92,'Escala de Insuficiencia'!$E:$H,3,0),"") -> 
B93: =IF(ROWS($C$4:C78)<=COUNTIF('Escala de Insuficiencia'!$B:$B,'1'!$C$4),VLOOKUP('1'!$C$4&ROWS($C$4:C78),'Escala de Insuficiencia'!$C:$E,3,0),"") ->  | C93: =IF(ROWS($C$4:D78)<=COUNTIF('Escala de Insuficiencia'!$B:$B,'1'!$C$4),VLOOKUP('1'!$C$4&ROWS($C$4:D78),'Escala de Insuficiencia'!$C:$F,4,0),"") ->  | D93: =IF(ROWS($C$4:E78)<=COUNTIF('Escala de Insuficiencia'!$B$2:$B$112,'1'!$C$4),VLOOKUP('1'!$C$4&ROWS($C$4:E78),'Escala de Insuficiencia'!$C:$E,3,0),"") ->  | E93: =IF(ROWS($C$4:F78)<=COUNTIF('Escala de Insuficiencia'!$B$2:$B$112,'1'!$C$4),VLOOKUP('1'!$C$4&ROWS($C$4:F78),'Escala de Insuficiencia'!$C:$E,3,0),"") ->  | F93: =IF(ROWS($C$4:D78)<=COUNTIF('Escala de Insuficiencia'!$B:$B,'1'!$C$4),VLOOKUP('1'!$C$4&ROWS($C$4:D78),'Escala de Insuficiencia'!$C:$H,6,0),"") ->  | H93: =IF(ISTEXT(VLOOKUP($B93,'Escala de Insuficiencia'!$E:$G,2,0)),VLOOKUP($B93,'Escala de Insuficiencia'!$E:$H,3,0),"") -> 
B94: =IF(ROWS($C$4:C79)<=COUNTIF('Escala de Insuficiencia'!$B:$B,'1'!$C$4),VLOOKUP('1'!$C$4&ROWS($C$4:C79),'Escala de Insuficiencia'!$C:$E,3,0),"") ->  | C94: =IF(ROWS($C$4:D79)<=COUNTIF('Escala de Insuficiencia'!$B:$B,'1'!$C$4),VLOOKUP('1'!$C$4&ROWS($C$4:D79),'Escala de Insuficiencia'!$C:$F,4,0),"") ->  | D94: =IF(ROWS($C$4:E79)<=COUNTIF('Escala de Insuficiencia'!$B$2:$B$112,'1'!$C$4),VLOOKUP('1'!$C$4&ROWS($C$4:E79),'Escala de Insuficiencia'!$C:$E,3,0),"") ->  | E94: =IF(ROWS($C$4:F79)<=COUNTIF('Escala de Insuficiencia'!$B$2:$B$112,'1'!$C$4),VLOOKUP('1'!$C$4&ROWS($C$4:F79),'Escala de Insuficiencia'!$C:$E,3,0),"") ->  | F94: =IF(ROWS($C$4:D79)<=COUNTIF('Escala de Insuficiencia'!$B:$B,'1'!$C$4),VLOOKUP('1'!$C$4&ROWS($C$4:D79),'Escala de Insuficiencia'!$C:$H,6,0),"") ->  | H94: =IF(ISTEXT(VLOOKUP($B94,'Escala de Insuficiencia'!$E:$G,2,0)),VLOOKUP($B94,'Escala de Insuficiencia'!$E:$H,3,0),"") -> 
B95: =IF(ROWS($C$4:C80)<=COUNTIF('Escala de Insuficiencia'!$B:$B,'1'!$C$4),VLOOKUP('1'!$C$4&ROWS($C$4:C80),'Escala de Insuficiencia'!$C:$E,3,0),"") ->  | C95: =IF(ROWS($C$4:D80)<=COUNTIF('Escala de Insuficiencia'!$B:$B,'1'!$C$4),VLOOKUP('1'!$C$4&ROWS($C$4:D80),'Escala de Insuficiencia'!$C:$F,4,0),"") ->  | D95: =IF(ROWS($C$4:E80)<=COUNTIF('Escala de Insuficiencia'!$B$2:$B$112,'1'!$C$4),VLOOKUP('1'!$C$4&ROWS($C$4:E80),'Escala de Insuficiencia'!$C:$E,3,0),"") ->  | E95: =IF(ROWS($C$4:F80)<=COUNTIF('Escala de Insuficiencia'!$B$2:$B$112,'1'!$C$4),VLOOKUP('1'!$C$4&ROWS($C$4:F80),'Escala de Insuficiencia'!$C:$E,3,0),"") ->  | F95: =IF(ROWS($C$4:D80)<=COUNTIF('Escala de Insuficiencia'!$B:$B,'1'!$C$4),VLOOKUP('1'!$C$4&ROWS($C$4:D80),'Escala de Insuficiencia'!$C:$H,6,0),"") ->  | H95: =IF(ISTEXT(VLOOKUP($B95,'Escala de Insuficiencia'!$E:$G,2,0)),VLOOKUP($B95,'Escala de Insuficiencia'!$E:$H,3,0),"") -> 
B96: =IF(ROWS($C$4:C81)<=COUNTIF('Escala de Insuficiencia'!$B:$B,'1'!$C$4),VLOOKUP('1'!$C$4&ROWS($C$4:C81),'Escala de Insuficiencia'!$C:$E,3,0),"") ->  | C96: =IF(ROWS($C$4:D81)<=COUNTIF('Escala de Insuficiencia'!$B:$B,'1'!$C$4),VLOOKUP('1'!$C$4&ROWS($C$4:D81),'Escala de Insuficiencia'!$C:$F,4,0),"") ->  | D96: =IF(ROWS($C$4:E81)<=COUNTIF('Escala de Insuficiencia'!$B$2:$B$112,'1'!$C$4),VLOOKUP('1'!$C$4&ROWS($C$4:E81),'Escala de Insuficiencia'!$C:$E,3,0),"") ->  | E96: =IF(ROWS($C$4:F81)<=COUNTIF('Escala de Insuficiencia'!$B$2:$B$112,'1'!$C$4),VLOOKUP('1'!$C$4&ROWS($C$4:F81),'Escala de Insuficiencia'!$C:$E,3,0),"") ->  | F96: =IF(ROWS($C$4:D81)<=COUNTIF('Escala de Insuficiencia'!$B:$B,'1'!$C$4),VLOOKUP('1'!$C$4&ROWS($C$4:D81),'Escala de Insuficiencia'!$C:$H,6,0),"") ->  | H96: =IF(ISTEXT(VLOOKUP($B96,'Escala de Insuficiencia'!$E:$G,2,0)),VLOOKUP($B96,'Escala de Insuficiencia'!$E:$H,3,0),"") -> 
B97: =IF(ROWS($C$4:C82)<=COUNTIF('Escala de Insuficiencia'!$B:$B,'1'!$C$4),VLOOKUP('1'!$C$4&ROWS($C$4:C82),'Escala de Insuficiencia'!$C:$E,3,0),"") ->  | C97: =IF(ROWS($C$4:D82)<=COUNTIF('Escala de Insuficiencia'!$B:$B,'1'!$C$4),VLOOKUP('1'!$C$4&ROWS($C$4:D82),'Escala de Insuficiencia'!$C:$F,4,0),"") ->  | D97: =IF(ROWS($C$4:E82)<=COUNTIF('Escala de Insuficiencia'!$B$2:$B$112,'1'!$C$4),VLOOKUP('1'!$C$4&ROWS($C$4:E82),'Escala de Insuficiencia'!$C:$E,3,0),"") ->  | E97: =IF(ROWS($C$4:F82)<=COUNTIF('Escala de Insuficiencia'!$B$2:$B$112,'1'!$C$4),VLOOKUP('1'!$C$4&ROWS($C$4:F82),'Escala de Insuficiencia'!$C:$E,3,0),"") ->  | F97: =IF(ROWS($C$4:D82)<=COUNTIF('Escala de Insuficiencia'!$B:$B,'1'!$C$4),VLOOKUP('1'!$C$4&ROWS($C$4:D82),'Escala de Insuficiencia'!$C:$H,6,0),"") ->  | H97: =IF(ISTEXT(VLOOKUP($B97,'Escala de Insuficiencia'!$E:$G,2,0)),VLOOKUP($B97,'Escala de Insuficiencia'!$E:$H,3,0),"") -> 
B98: =IF(ROWS($C$4:C83)<=COUNTIF('Escala de Insuficiencia'!$B:$B,'1'!$C$4),VLOOKUP('1'!$C$4&ROWS($C$4:C83),'Escala de Insuficiencia'!$C:$E,3,0),"") ->  | C98: =IF(ROWS($C$4:D83)<=COUNTIF('Escala de Insuficiencia'!$B:$B,'1'!$C$4),VLOOKUP('1'!$C$4&ROWS($C$4:D83),'Escala de Insuficiencia'!$C:$F,4,0),"") ->  | D98: =IF(ROWS($C$4:E83)<=COUNTIF('Escala de Insuficiencia'!$B$2:$B$112,'1'!$C$4),VLOOKUP('1'!$C$4&ROWS($C$4:E83),'Escala de Insuficiencia'!$C:$E,3,0),"") ->  | E98: =IF(ROWS($C$4:F83)<=COUNTIF('Escala de Insuficiencia'!$B$2:$B$112,'1'!$C$4),VLOOKUP('1'!$C$4&ROWS($C$4:F83),'Escala de Insuficiencia'!$C:$E,3,0),"") ->  | F98: =IF(ROWS($C$4:D83)<=COUNTIF('Escala de Insuficiencia'!$B:$B,'1'!$C$4),VLOOKUP('1'!$C$4&ROWS($C$4:D83),'Escala de Insuficiencia'!$C:$H,6,0),"") ->  | H98: =IF(ISTEXT(VLOOKUP($B98,'Escala de Insuficiencia'!$E:$G,2,0)),VLOOKUP($B98,'Escala de Insuficiencia'!$E:$H,3,0),"") -> 
B99: =IF(ROWS($C$4:C84)<=COUNTIF('Escala de Insuficiencia'!$B:$B,'1'!$C$4),VLOOKUP('1'!$C$4&ROWS($C$4:C84),'Escala de Insuficiencia'!$C:$E,3,0),"") ->  | C99: =IF(ROWS($C$4:D84)<=COUNTIF('Escala de Insuficiencia'!$B:$B,'1'!$C$4),VLOOKUP('1'!$C$4&ROWS($C$4:D84),'Escala de Insuficiencia'!$C:$F,4,0),"") ->  | D99: =IF(ROWS($C$4:E84)<=COUNTIF('Escala de Insuficiencia'!$B$2:$B$112,'1'!$C$4),VLOOKUP('1'!$C$4&ROWS($C$4:E84),'Escala de Insuficiencia'!$C:$E,3,0),"") ->  | E99: =IF(ROWS($C$4:F84)<=COUNTIF('Escala de Insuficiencia'!$B$2:$B$112,'1'!$C$4),VLOOKUP('1'!$C$4&ROWS($C$4:F84),'Escala de Insuficiencia'!$C:$E,3,0),"") ->  | F99: =IF(ROWS($C$4:D84)<=COUNTIF('Escala de Insuficiencia'!$B:$B,'1'!$C$4),VLOOKUP('1'!$C$4&ROWS($C$4:D84),'Escala de Insuficiencia'!$C:$H,6,0),"") ->  | H99: =IF(ISTEXT(VLOOKUP($B99,'Escala de Insuficiencia'!$E:$G,2,0)),VLOOKUP($B99,'Escala de Insuficiencia'!$E:$H,3,0),"") -> 
B100: =IF(ROWS($C$4:C85)<=COUNTIF('Escala de Insuficiencia'!$B:$B,'1'!$C$4),VLOOKUP('1'!$C$4&ROWS($C$4:C85),'Escala de Insuficiencia'!$C:$E,3,0),"") ->  | C100: =IF(ROWS($C$4:D85)<=COUNTIF('Escala de Insuficiencia'!$B:$B,'1'!$C$4),VLOOKUP('1'!$C$4&ROWS($C$4:D85),'Escala de Insuficiencia'!$C:$F,4,0),"") ->  | D100: =IF(ROWS($C$4:E85)<=COUNTIF('Escala de Insuficiencia'!$B$2:$B$112,'1'!$C$4),VLOOKUP('1'!$C$4&ROWS($C$4:E85),'Escala de Insuficiencia'!$C:$E,3,0),"") ->  | E100: =IF(ROWS($C$4:F85)<=COUNTIF('Escala de Insuficiencia'!$B$2:$B$112,'1'!$C$4),VLOOKUP('1'!$C$4&ROWS($C$4:F85),'Escala de Insuficiencia'!$C:$E,3,0),"") ->  | F100: =IF(ROWS($C$4:D85)<=COUNTIF('Escala de Insuficiencia'!$B:$B,'1'!$C$4),VLOOKUP('1'!$C$4&ROWS($C$4:D85),'Escala de Insuficiencia'!$C:$H,6,0),"") ->  | H100: =IF(ISTEXT(VLOOKUP($B100,'Escala de Insuficiencia'!$E:$G,2,0)),VLOOKUP($B100,'Escala de Insuficiencia'!$E:$H,3,0),"") -> 
B101: =IF(ROWS($C$4:C86)<=COUNTIF('Escala de Insuficiencia'!$B:$B,'1'!$C$4),VLOOKUP('1'!$C$4&ROWS($C$4:C86),'Escala de Insuficiencia'!$C:$E,3,0),"") ->  | C101: =IF(ROWS($C$4:D86)<=COUNTIF('Escala de Insuficiencia'!$B:$B,'1'!$C$4),VLOOKUP('1'!$C$4&ROWS($C$4:D86),'Escala de Insuficiencia'!$C:$F,4,0),"") ->  | D101: =IF(ROWS($C$4:E86)<=COUNTIF('Escala de Insuficiencia'!$B$2:$B$112,'1'!$C$4),VLOOKUP('1'!$C$4&ROWS($C$4:E86),'Escala de Insuficiencia'!$C:$E,3,0),"") ->  | E101: =IF(ROWS($C$4:F86)<=COUNTIF('Escala de Insuficiencia'!$B$2:$B$112,'1'!$C$4),VLOOKUP('1'!$C$4&ROWS($C$4:F86),'Escala de Insuficiencia'!$C:$E,3,0),"") ->  | F101: =IF(ROWS($C$4:D86)<=COUNTIF('Escala de Insuficiencia'!$B:$B,'1'!$C$4),VLOOKUP('1'!$C$4&ROWS($C$4:D86),'Escala de Insuficiencia'!$C:$H,6,0),"") ->  | H101: =IF(ISTEXT(VLOOKUP($B101,'Escala de Insuficiencia'!$E:$G,2,0)),VLOOKUP($B101,'Escala de Insuficiencia'!$E:$H,3,0),"") -> 
B102: =IF(ROWS($C$4:C87)<=COUNTIF('Escala de Insuficiencia'!$B:$B,'1'!$C$4),VLOOKUP('1'!$C$4&ROWS($C$4:C87),'Escala de Insuficiencia'!$C:$E,3,0),"") ->  | C102: =IF(ROWS($C$4:D87)<=COUNTIF('Escala de Insuficiencia'!$B:$B,'1'!$C$4),VLOOKUP('1'!$C$4&ROWS($C$4:D87),'Escala de Insuficiencia'!$C:$F,4,0),"") ->  | D102: =IF(ROWS($C$4:E87)<=COUNTIF('Escala de Insuficiencia'!$B$2:$B$112,'1'!$C$4),VLOOKUP('1'!$C$4&ROWS($C$4:E87),'Escala de Insuficiencia'!$C:$E,3,0),"") ->  | E102: =IF(ROWS($C$4:F87)<=COUNTIF('Escala de Insuficiencia'!$B$2:$B$112,'1'!$C$4),VLOOKUP('1'!$C$4&ROWS($C$4:F87),'Escala de Insuficiencia'!$C:$E,3,0),"") ->  | F102: =IF(ROWS($C$4:D87)<=COUNTIF('Escala de Insuficiencia'!$B:$B,'1'!$C$4),VLOOKUP('1'!$C$4&ROWS($C$4:D87),'Escala de Insuficiencia'!$C:$H,6,0),"") ->  | H102: =IF(ISTEXT(VLOOKUP($B102,'Escala de Insuficiencia'!$E:$G,2,0)),VLOOKUP($B102,'Escala de Insuficiencia'!$E:$H,3,0),"") -> 
B103: =IF(ROWS($C$4:C88)<=COUNTIF('Escala de Insuficiencia'!$B:$B,'1'!$C$4),VLOOKUP('1'!$C$4&ROWS($C$4:C88),'Escala de Insuficiencia'!$C:$E,3,0),"") ->  | C103: =IF(ROWS($C$4:D88)<=COUNTIF('Escala de Insuficiencia'!$B:$B,'1'!$C$4),VLOOKUP('1'!$C$4&ROWS($C$4:D88),'Escala de Insuficiencia'!$C:$F,4,0),"") ->  | D103: =IF(ROWS($C$4:E88)<=COUNTIF('Escala de Insuficiencia'!$B$2:$B$112,'1'!$C$4),VLOOKUP('1'!$C$4&ROWS($C$4:E88),'Escala de Insuficiencia'!$C:$E,3,0),"") ->  | E103: =IF(ROWS($C$4:F88)<=COUNTIF('Escala de Insuficiencia'!$B$2:$B$112,'1'!$C$4),VLOOKUP('1'!$C$4&ROWS($C$4:F88),'Escala de Insuficiencia'!$C:$E,3,0),"") ->  | F103: =IF(ROWS($C$4:D88)<=COUNTIF('Escala de Insuficiencia'!$B:$B,'1'!$C$4),VLOOKUP('1'!$C$4&ROWS($C$4:D88),'Escala de Insuficiencia'!$C:$H,6,0),"") ->  | H103: =IF(ISTEXT(VLOOKUP($B103,'Escala de Insuficiencia'!$E:$G,2,0)),VLOOKUP($B103,'Escala de Insuficiencia'!$E:$H,3,0),"") -> 
B104: =IF(ROWS($C$4:C89)<=COUNTIF('Escala de Insuficiencia'!$B:$B,'1'!$C$4),VLOOKUP('1'!$C$4&ROWS($C$4:C89),'Escala de Insuficiencia'!$C:$E,3,0),"") ->  | C104: =IF(ROWS($C$4:D89)<=COUNTIF('Escala de Insuficiencia'!$B:$B,'1'!$C$4),VLOOKUP('1'!$C$4&ROWS($C$4:D89),'Escala de Insuficiencia'!$C:$F,4,0),"") ->  | D104: =IF(ROWS($C$4:E89)<=COUNTIF('Escala de Insuficiencia'!$B$2:$B$112,'1'!$C$4),VLOOKUP('1'!$C$4&ROWS($C$4:E89),'Escala de Insuficiencia'!$C:$E,3,0),"") ->  | E104: =IF(ROWS($C$4:F89)<=COUNTIF('Escala de Insuficiencia'!$B$2:$B$112,'1'!$C$4),VLOOKUP('1'!$C$4&ROWS($C$4:F89),'Escala de Insuficiencia'!$C:$E,3,0),"") ->  | F104: =IF(ROWS($C$4:D89)<=COUNTIF('Escala de Insuficiencia'!$B:$B,'1'!$C$4),VLOOKUP('1'!$C$4&ROWS($C$4:D89),'Escala de Insuficiencia'!$C:$H,6,0),"") ->  | H104: =IF(ISTEXT(VLOOKUP($B104,'Escala de Insuficiencia'!$E:$G,2,0)),VLOOKUP($B104,'Escala de Insuficiencia'!$E:$H,3,0),"") -> 
B105: =IF(ROWS($C$4:C90)<=COUNTIF('Escala de Insuficiencia'!$B:$B,'1'!$C$4),VLOOKUP('1'!$C$4&ROWS($C$4:C90),'Escala de Insuficiencia'!$C:$E,3,0),"") ->  | C105: =IF(ROWS($C$4:D90)<=COUNTIF('Escala de Insuficiencia'!$B:$B,'1'!$C$4),VLOOKUP('1'!$C$4&ROWS($C$4:D90),'Escala de Insuficiencia'!$C:$F,4,0),"") ->  | D105: =IF(ROWS($C$4:E90)<=COUNTIF('Escala de Insuficiencia'!$B$2:$B$112,'1'!$C$4),VLOOKUP('1'!$C$4&ROWS($C$4:E90),'Escala de Insuficiencia'!$C:$E,3,0),"") ->  | E105: =IF(ROWS($C$4:F90)<=COUNTIF('Escala de Insuficiencia'!$B$2:$B$112,'1'!$C$4),VLOOKUP('1'!$C$4&ROWS($C$4:F90),'Escala de Insuficiencia'!$C:$E,3,0),"") ->  | F105: =IF(ROWS($C$4:D90)<=COUNTIF('Escala de Insuficiencia'!$B:$B,'1'!$C$4),VLOOKUP('1'!$C$4&ROWS($C$4:D90),'Escala de Insuficiencia'!$C:$H,6,0),"") ->  | H105: =IF(ISTEXT(VLOOKUP($B105,'Escala de Insuficiencia'!$E:$G,2,0)),VLOOKUP($B105,'Escala de Insuficiencia'!$E:$H,3,0),"") -> 
B106: =IF(ROWS($C$4:C91)<=COUNTIF('Escala de Insuficiencia'!$B:$B,'1'!$C$4),VLOOKUP('1'!$C$4&ROWS($C$4:C91),'Escala de Insuficiencia'!$C:$E,3,0),"") ->  | C106: =IF(ROWS($C$4:D91)<=COUNTIF('Escala de Insuficiencia'!$B:$B,'1'!$C$4),VLOOKUP('1'!$C$4&ROWS($C$4:D91),'Escala de Insuficiencia'!$C:$F,4,0),"") ->  | D106: =IF(ROWS($C$4:E91)<=COUNTIF('Escala de Insuficiencia'!$B$2:$B$112,'1'!$C$4),VLOOKUP('1'!$C$4&ROWS($C$4:E91),'Escala de Insuficiencia'!$C:$E,3,0),"") ->  | E106: =IF(ROWS($C$4:F91)<=COUNTIF('Escala de Insuficiencia'!$B$2:$B$112,'1'!$C$4),VLOOKUP('1'!$C$4&ROWS($C$4:F91),'Escala de Insuficiencia'!$C:$E,3,0),"") ->  | F106: =IF(ROWS($C$4:D91)<=COUNTIF('Escala de Insuficiencia'!$B:$B,'1'!$C$4),VLOOKUP('1'!$C$4&ROWS($C$4:D91),'Escala de Insuficiencia'!$C:$H,6,0),"") ->  | H106: =IF(ISTEXT(VLOOKUP($B106,'Escala de Insuficiencia'!$E:$G,2,0)),VLOOKUP($B106,'Escala de Insuficiencia'!$E:$H,3,0),"") -> 
B107: =IF(ROWS($C$4:C92)<=COUNTIF('Escala de Insuficiencia'!$B:$B,'1'!$C$4),VLOOKUP('1'!$C$4&ROWS($C$4:C92),'Escala de Insuficiencia'!$C:$E,3,0),"") ->  | C107: =IF(ROWS($C$4:D92)<=COUNTIF('Escala de Insuficiencia'!$B:$B,'1'!$C$4),VLOOKUP('1'!$C$4&ROWS($C$4:D92),'Escala de Insuficiencia'!$C:$F,4,0),"") ->  | D107: =IF(ROWS($C$4:E92)<=COUNTIF('Escala de Insuficiencia'!$B$2:$B$112,'1'!$C$4),VLOOKUP('1'!$C$4&ROWS($C$4:E92),'Escala de Insuficiencia'!$C:$E,3,0),"") ->  | E107: =IF(ROWS($C$4:F92)<=COUNTIF('Escala de Insuficiencia'!$B$2:$B$112,'1'!$C$4),VLOOKUP('1'!$C$4&ROWS($C$4:F92),'Escala de Insuficiencia'!$C:$E,3,0),"") ->  | F107: =IF(ROWS($C$4:D92)<=COUNTIF('Escala de Insuficiencia'!$B:$B,'1'!$C$4),VLOOKUP('1'!$C$4&ROWS($C$4:D92),'Escala de Insuficiencia'!$C:$H,6,0),"") ->  | H107: =IF(ISTEXT(VLOOKUP($B107,'Escala de Insuficiencia'!$E:$G,2,0)),VLOOKUP($B107,'Escala de Insuficiencia'!$E:$H,3,0),"") -> 
B108: =IF(ROWS($C$4:C93)<=COUNTIF('Escala de Insuficiencia'!$B:$B,'1'!$C$4),VLOOKUP('1'!$C$4&ROWS($C$4:C93),'Escala de Insuficiencia'!$C:$E,3,0),"") ->  | C108: =IF(ROWS($C$4:D93)<=COUNTIF('Escala de Insuficiencia'!$B:$B,'1'!$C$4),VLOOKUP('1'!$C$4&ROWS($C$4:D93),'Escala de Insuficiencia'!$C:$F,4,0),"") ->  | D108: =IF(ROWS($C$4:E93)<=COUNTIF('Escala de Insuficiencia'!$B$2:$B$112,'1'!$C$4),VLOOKUP('1'!$C$4&ROWS($C$4:E93),'Escala de Insuficiencia'!$C:$E,3,0),"") ->  | E108: =IF(ROWS($C$4:F93)<=COUNTIF('Escala de Insuficiencia'!$B$2:$B$112,'1'!$C$4),VLOOKUP('1'!$C$4&ROWS($C$4:F93),'Escala de Insuficiencia'!$C:$E,3,0),"") ->  | F108: =IF(ROWS($C$4:D93)<=COUNTIF('Escala de Insuficiencia'!$B:$B,'1'!$C$4),VLOOKUP('1'!$C$4&ROWS($C$4:D93),'Escala de Insuficiencia'!$C:$H,6,0),"") ->  | H108: =IF(ISTEXT(VLOOKUP($B108,'Escala de Insuficiencia'!$E:$G,2,0)),VLOOKUP($B108,'Escala de Insuficiencia'!$E:$H,3,0),"") -> 
B109: =IF(ROWS($C$4:C94)<=COUNTIF('Escala de Insuficiencia'!$B:$B,'1'!$C$4),VLOOKUP('1'!$C$4&ROWS($C$4:C94),'Escala de Insuficiencia'!$C:$E,3,0),"") ->  | C109: =IF(ROWS($C$4:D94)<=COUNTIF('Escala de Insuficiencia'!$B:$B,'1'!$C$4),VLOOKUP('1'!$C$4&ROWS($C$4:D94),'Escala de Insuficiencia'!$C:$F,4,0),"") ->  | D109: =IF(ROWS($C$4:E94)<=COUNTIF('Escala de Insuficiencia'!$B$2:$B$112,'1'!$C$4),VLOOKUP('1'!$C$4&ROWS($C$4:E94),'Escala de Insuficiencia'!$C:$E,3,0),"") ->  | E109: =IF(ROWS($C$4:F94)<=COUNTIF('Escala de Insuficiencia'!$B$2:$B$112,'1'!$C$4),VLOOKUP('1'!$C$4&ROWS($C$4:F94),'Escala de Insuficiencia'!$C:$E,3,0),"") ->  | F109: =IF(ROWS($C$4:D94)<=COUNTIF('Escala de Insuficiencia'!$B:$B,'1'!$C$4),VLOOKUP('1'!$C$4&ROWS($C$4:D94),'Escala de Insuficiencia'!$C:$H,6,0),"") ->  | H109: =IF(ISTEXT(VLOOKUP($B109,'Escala de Insuficiencia'!$E:$G,2,0)),VLOOKUP($B109,'Escala de Insuficiencia'!$E:$H,3,0),"") -> 
B110: =IF(ROWS($C$4:C95)<=COUNTIF('Escala de Insuficiencia'!$B:$B,'1'!$C$4),VLOOKUP('1'!$C$4&ROWS($C$4:C95),'Escala de Insuficiencia'!$C:$E,3,0),"") ->  | C110: =IF(ROWS($C$4:D95)<=COUNTIF('Escala de Insuficiencia'!$B:$B,'1'!$C$4),VLOOKUP('1'!$C$4&ROWS($C$4:D95),'Escala de Insuficiencia'!$C:$F,4,0),"") ->  | D110: =IF(ROWS($C$4:E95)<=COUNTIF('Escala de Insuficiencia'!$B$2:$B$112,'1'!$C$4),VLOOKUP('1'!$C$4&ROWS($C$4:E95),'Escala de Insuficiencia'!$C:$E,3,0),"") ->  | E110: =IF(ROWS($C$4:F95)<=COUNTIF('Escala de Insuficiencia'!$B$2:$B$112,'1'!$C$4),VLOOKUP('1'!$C$4&ROWS($C$4:F95),'Escala de Insuficiencia'!$C:$E,3,0),"") ->  | F110: =IF(ROWS($C$4:D95)<=COUNTIF('Escala de Insuficiencia'!$B:$B,'1'!$C$4),VLOOKUP('1'!$C$4&ROWS($C$4:D95),'Escala de Insuficiencia'!$C:$H,6,0),"") ->  | H110: =IF(ISTEXT(VLOOKUP($B110,'Escala de Insuficiencia'!$E:$G,2,0)),VLOOKUP($B110,'Escala de Insuficiencia'!$E:$H,3,0),"") -> 
B111: =IF(ROWS($C$4:C96)<=COUNTIF('Escala de Insuficiencia'!$B:$B,'1'!$C$4),VLOOKUP('1'!$C$4&ROWS($C$4:C96),'Escala de Insuficiencia'!$C:$E,3,0),"") ->  | C111: =IF(ROWS($C$4:D96)<=COUNTIF('Escala de Insuficiencia'!$B:$B,'1'!$C$4),VLOOKUP('1'!$C$4&ROWS($C$4:D96),'Escala de Insuficiencia'!$C:$F,4,0),"") ->  | D111: =IF(ROWS($C$4:E96)<=COUNTIF('Escala de Insuficiencia'!$B$2:$B$112,'1'!$C$4),VLOOKUP('1'!$C$4&ROWS($C$4:E96),'Escala de Insuficiencia'!$C:$E,3,0),"") ->  | E111: =IF(ROWS($C$4:F96)<=COUNTIF('Escala de Insuficiencia'!$B$2:$B$112,'1'!$C$4),VLOOKUP('1'!$C$4&ROWS($C$4:F96),'Escala de Insuficiencia'!$C:$E,3,0),"") ->  | F111: =IF(ROWS($C$4:D96)<=COUNTIF('Escala de Insuficiencia'!$B:$B,'1'!$C$4),VLOOKUP('1'!$C$4&ROWS($C$4:D96),'Escala de Insuficiencia'!$C:$H,6,0),"") ->  | H111: =IF(ISTEXT(VLOOKUP($B111,'Escala de Insuficiencia'!$E:$G,2,0)),VLOOKUP($B111,'Escala de Insuficiencia'!$E:$H,3,0),"") -> 
B112: =IF(ROWS($C$4:C97)<=COUNTIF('Escala de Insuficiencia'!$B:$B,'1'!$C$4),VLOOKUP('1'!$C$4&ROWS($C$4:C97),'Escala de Insuficiencia'!$C:$E,3,0),"") ->  | C112: =IF(ROWS($C$4:D97)<=COUNTIF('Escala de Insuficiencia'!$B:$B,'1'!$C$4),VLOOKUP('1'!$C$4&ROWS($C$4:D97),'Escala de Insuficiencia'!$C:$F,4,0),"") ->  | D112: =IF(ROWS($C$4:E97)<=COUNTIF('Escala de Insuficiencia'!$B$2:$B$112,'1'!$C$4),VLOOKUP('1'!$C$4&ROWS($C$4:E97),'Escala de Insuficiencia'!$C:$E,3,0),"") ->  | E112: =IF(ROWS($C$4:F97)<=COUNTIF('Escala de Insuficiencia'!$B$2:$B$112,'1'!$C$4),VLOOKUP('1'!$C$4&ROWS($C$4:F97),'Escala de Insuficiencia'!$C:$E,3,0),"") ->  | F112: =IF(ROWS($C$4:D97)<=COUNTIF('Escala de Insuficiencia'!$B:$B,'1'!$C$4),VLOOKUP('1'!$C$4&ROWS($C$4:D97),'Escala de Insuficiencia'!$C:$H,6,0),"") ->  | H112: =IF(ISTEXT(VLOOKUP($B112,'Escala de Insuficiencia'!$E:$G,2,0)),VLOOKUP($B112,'Escala de Insuficiencia'!$E:$H,3,0),"") -> 
B113: =IF(ROWS($C$4:C98)<=COUNTIF('Escala de Insuficiencia'!$B:$B,'1'!$C$4),VLOOKUP('1'!$C$4&ROWS($C$4:C98),'Escala de Insuficiencia'!$C:$E,3,0),"") ->  | C113: =IF(ROWS($C$4:D98)<=COUNTIF('Escala de Insuficiencia'!$B:$B,'1'!$C$4),VLOOKUP('1'!$C$4&ROWS($C$4:D98),'Escala de Insuficiencia'!$C:$F,4,0),"") ->  | D113: =IF(ROWS($C$4:E98)<=COUNTIF('Escala de Insuficiencia'!$B$2:$B$112,'1'!$C$4),VLOOKUP('1'!$C$4&ROWS($C$4:E98),'Escala de Insuficiencia'!$C:$E,3,0),"") ->  | E113: =IF(ROWS($C$4:F98)<=COUNTIF('Escala de Insuficiencia'!$B$2:$B$112,'1'!$C$4),VLOOKUP('1'!$C$4&ROWS($C$4:F98),'Escala de Insuficiencia'!$C:$E,3,0),"") ->  | F113: =IF(ROWS($C$4:D98)<=COUNTIF('Escala de Insuficiencia'!$B:$B,'1'!$C$4),VLOOKUP('1'!$C$4&ROWS($C$4:D98),'Escala de Insuficiencia'!$C:$H,6,0),"") ->  | H113: =IF(ISTEXT(VLOOKUP($B113,'Escala de Insuficiencia'!$E:$G,2,0)),VLOOKUP($B113,'Escala de Insuficiencia'!$E:$H,3,0),"") -> 
B114: =IF(ROWS($C$4:C99)<=COUNTIF('Escala de Insuficiencia'!$B:$B,'1'!$C$4),VLOOKUP('1'!$C$4&ROWS($C$4:C99),'Escala de Insuficiencia'!$C:$E,3,0),"") ->  | C114: =IF(ROWS($C$4:D99)<=COUNTIF('Escala de Insuficiencia'!$B:$B,'1'!$C$4),VLOOKUP('1'!$C$4&ROWS($C$4:D99),'Escala de Insuficiencia'!$C:$F,4,0),"") ->  | D114: =IF(ROWS($C$4:E99)<=COUNTIF('Escala de Insuficiencia'!$B$2:$B$112,'1'!$C$4),VLOOKUP('1'!$C$4&ROWS($C$4:E99),'Escala de Insuficiencia'!$C:$E,3,0),"") ->  | E114: =IF(ROWS($C$4:F99)<=COUNTIF('Escala de Insuficiencia'!$B$2:$B$112,'1'!$C$4),VLOOKUP('1'!$C$4&ROWS($C$4:F99),'Escala de Insuficiencia'!$C:$E,3,0),"") ->  | F114: =IF(ROWS($C$4:D99)<=COUNTIF('Escala de Insuficiencia'!$B:$B,'1'!$C$4),VLOOKUP('1'!$C$4&ROWS($C$4:D99),'Escala de Insuficiencia'!$C:$H,6,0),"") ->  | H114: =IF(ISTEXT(VLOOKUP($B114,'Escala de Insuficiencia'!$E:$G,2,0)),VLOOKUP($B114,'Escala de Insuficiencia'!$E:$H,3,0),"") -> 
B115: =IF(ROWS($C$4:C100)<=COUNTIF('Escala de Insuficiencia'!$B:$B,'1'!$C$4),VLOOKUP('1'!$C$4&ROWS($C$4:C100),'Escala de Insuficiencia'!$C:$E,3,0),"") ->  | C115: =IF(ROWS($C$4:D100)<=COUNTIF('Escala de Insuficiencia'!$B:$B,'1'!$C$4),VLOOKUP('1'!$C$4&ROWS($C$4:D100),'Escala de Insuficiencia'!$C:$F,4,0),"") ->  | D115: =IF(ROWS($C$4:E100)<=COUNTIF('Escala de Insuficiencia'!$B$2:$B$112,'1'!$C$4),VLOOKUP('1'!$C$4&ROWS($C$4:E100),'Escala de Insuficiencia'!$C:$E,3,0),"") ->  | E115: =IF(ROWS($C$4:F100)<=COUNTIF('Escala de Insuficiencia'!$B$2:$B$112,'1'!$C$4),VLOOKUP('1'!$C$4&ROWS($C$4:F100),'Escala de Insuficiencia'!$C:$E,3,0),"") ->  | F115: =IF(ROWS($C$4:D100)<=COUNTIF('Escala de Insuficiencia'!$B:$B,'1'!$C$4),VLOOKUP('1'!$C$4&ROWS($C$4:D100),'Escala de Insuficiencia'!$C:$H,6,0),"") ->  | H115: =IF(ISTEXT(VLOOKUP($B115,'Escala de Insuficiencia'!$E:$G,2,0)),VLOOKUP($B115,'Escala de Insuficiencia'!$E:$H,3,0),"") -> 
B116: =IF(ROWS($C$4:C101)<=COUNTIF('Escala de Insuficiencia'!$B:$B,'1'!$C$4),VLOOKUP('1'!$C$4&ROWS($C$4:C101),'Escala de Insuficiencia'!$C:$E,3,0),"") ->  | C116: =IF(ROWS($C$4:D101)<=COUNTIF('Escala de Insuficiencia'!$B:$B,'1'!$C$4),VLOOKUP('1'!$C$4&ROWS($C$4:D101),'Escala de Insuficiencia'!$C:$F,4,0),"") ->  | D116: =IF(ROWS($C$4:E101)<=COUNTIF('Escala de Insuficiencia'!$B$2:$B$112,'1'!$C$4),VLOOKUP('1'!$C$4&ROWS($C$4:E101),'Escala de Insuficiencia'!$C:$E,3,0),"") ->  | E116: =IF(ROWS($C$4:F101)<=COUNTIF('Escala de Insuficiencia'!$B$2:$B$112,'1'!$C$4),VLOOKUP('1'!$C$4&ROWS($C$4:F101),'Escala de Insuficiencia'!$C:$E,3,0),"") ->  | F116: =IF(ROWS($C$4:D101)<=COUNTIF('Escala de Insuficiencia'!$B:$B,'1'!$C$4),VLOOKUP('1'!$C$4&ROWS($C$4:D101),'Escala de Insuficiencia'!$C:$H,6,0),"") ->  | H116: =IF(ISTEXT(VLOOKUP($B116,'Escala de Insuficiencia'!$E:$G,2,0)),VLOOKUP($B116,'Escala de Insuficiencia'!$E:$H,3,0),"") -> 
B117: =IF(ROWS($C$4:C102)<=COUNTIF('Escala de Insuficiencia'!$B:$B,'1'!$C$4),VLOOKUP('1'!$C$4&ROWS($C$4:C102),'Escala de Insuficiencia'!$C:$E,3,0),"") ->  | C117: =IF(ROWS($C$4:D102)<=COUNTIF('Escala de Insuficiencia'!$B:$B,'1'!$C$4),VLOOKUP('1'!$C$4&ROWS($C$4:D102),'Escala de Insuficiencia'!$C:$F,4,0),"") ->  | D117: =IF(ROWS($C$4:E102)<=COUNTIF('Escala de Insuficiencia'!$B$2:$B$112,'1'!$C$4),VLOOKUP('1'!$C$4&ROWS($C$4:E102),'Escala de Insuficiencia'!$C:$E,3,0),"") ->  | E117: =IF(ROWS($C$4:F102)<=COUNTIF('Escala de Insuficiencia'!$B$2:$B$112,'1'!$C$4),VLOOKUP('1'!$C$4&ROWS($C$4:F102),'Escala de Insuficiencia'!$C:$E,3,0),"") ->  | F117: =IF(ROWS($C$4:D102)<=COUNTIF('Escala de Insuficiencia'!$B:$B,'1'!$C$4),VLOOKUP('1'!$C$4&ROWS($C$4:D102),'Escala de Insuficiencia'!$C:$H,6,0),"") ->  | H117: =IF(ISTEXT(VLOOKUP($B117,'Escala de Insuficiencia'!$E:$G,2,0)),VLOOKUP($B117,'Escala de Insuficiencia'!$E:$H,3,0),"") -> 
B118: =IF(ROWS($C$4:C103)<=COUNTIF('Escala de Insuficiencia'!$B:$B,'1'!$C$4),VLOOKUP('1'!$C$4&ROWS($C$4:C103),'Escala de Insuficiencia'!$C:$E,3,0),"") ->  | C118: =IF(ROWS($C$4:D103)<=COUNTIF('Escala de Insuficiencia'!$B:$B,'1'!$C$4),VLOOKUP('1'!$C$4&ROWS($C$4:D103),'Escala de Insuficiencia'!$C:$F,4,0),"") ->  | D118: =IF(ROWS($C$4:E103)<=COUNTIF('Escala de Insuficiencia'!$B$2:$B$112,'1'!$C$4),VLOOKUP('1'!$C$4&ROWS($C$4:E103),'Escala de Insuficiencia'!$C:$E,3,0),"") ->  | E118: =IF(ROWS($C$4:F103)<=COUNTIF('Escala de Insuficiencia'!$B$2:$B$112,'1'!$C$4),VLOOKUP('1'!$C$4&ROWS($C$4:F103),'Escala de Insuficiencia'!$C:$E,3,0),"") ->  | F118: =IF(ROWS($C$4:D103)<=COUNTIF('Escala de Insuficiencia'!$B:$B,'1'!$C$4),VLOOKUP('1'!$C$4&ROWS($C$4:D103),'Escala de Insuficiencia'!$C:$H,6,0),"") ->  | H118: =IF(ISTEXT(VLOOKUP($B118,'Escala de Insuficiencia'!$E:$G,2,0)),VLOOKUP($B118,'Escala de Insuficiencia'!$E:$H,3,0),"") -> 
B119: =IF(ROWS($C$4:C104)<=COUNTIF('Escala de Insuficiencia'!$B:$B,'1'!$C$4),VLOOKUP('1'!$C$4&ROWS($C$4:C104),'Escala de Insuficiencia'!$C:$E,3,0),"") ->  | C119: =IF(ROWS($C$4:D104)<=COUNTIF('Escala de Insuficiencia'!$B:$B,'1'!$C$4),VLOOKUP('1'!$C$4&ROWS($C$4:D104),'Escala de Insuficiencia'!$C:$F,4,0),"") ->  | D119: =IF(ROWS($C$4:E104)<=COUNTIF('Escala de Insuficiencia'!$B$2:$B$112,'1'!$C$4),VLOOKUP('1'!$C$4&ROWS($C$4:E104),'Escala de Insuficiencia'!$C:$E,3,0),"") ->  | E119: =IF(ROWS($C$4:F104)<=COUNTIF('Escala de Insuficiencia'!$B$2:$B$112,'1'!$C$4),VLOOKUP('1'!$C$4&ROWS($C$4:F104),'Escala de Insuficiencia'!$C:$E,3,0),"") ->  | F119: =IF(ROWS($C$4:D104)<=COUNTIF('Escala de Insuficiencia'!$B:$B,'1'!$C$4),VLOOKUP('1'!$C$4&ROWS($C$4:D104),'Escala de Insuficiencia'!$C:$H,6,0),"") ->  | H119: =IF(ISTEXT(VLOOKUP($B119,'Escala de Insuficiencia'!$E:$G,2,0)),VLOOKUP($B119,'Escala de Insuficiencia'!$E:$H,3,0),"") -> 
B120: =IF(ROWS($C$4:C105)<=COUNTIF('Escala de Insuficiencia'!$B:$B,'1'!$C$4),VLOOKUP('1'!$C$4&ROWS($C$4:C105),'Escala de Insuficiencia'!$C:$E,3,0),"") ->  | C120: =IF(ROWS($C$4:D105)<=COUNTIF('Escala de Insuficiencia'!$B:$B,'1'!$C$4),VLOOKUP('1'!$C$4&ROWS($C$4:D105),'Escala de Insuficiencia'!$C:$F,4,0),"") ->  | D120: =IF(ROWS($C$4:E105)<=COUNTIF('Escala de Insuficiencia'!$B$2:$B$112,'1'!$C$4),VLOOKUP('1'!$C$4&ROWS($C$4:E105),'Escala de Insuficiencia'!$C:$E,3,0),"") ->  | E120: =IF(ROWS($C$4:F105)<=COUNTIF('Escala de Insuficiencia'!$B$2:$B$112,'1'!$C$4),VLOOKUP('1'!$C$4&ROWS($C$4:F105),'Escala de Insuficiencia'!$C:$E,3,0),"") ->  | F120: =IF(ROWS($C$4:D105)<=COUNTIF('Escala de Insuficiencia'!$B:$B,'1'!$C$4),VLOOKUP('1'!$C$4&ROWS($C$4:D105),'Escala de Insuficiencia'!$C:$H,6,0),"") ->  | H120: =IF(ISTEXT(VLOOKUP($B120,'Escala de Insuficiencia'!$E:$G,2,0)),VLOOKUP($B120,'Escala de Insuficiencia'!$E:$H,3,0),"") -> 
B121: =IF(ROWS($C$4:C106)<=COUNTIF('Escala de Insuficiencia'!$B:$B,'1'!$C$4),VLOOKUP('1'!$C$4&ROWS($C$4:C106),'Escala de Insuficiencia'!$C:$E,3,0),"") ->  | C121: =IF(ROWS($C$4:D106)<=COUNTIF('Escala de Insuficiencia'!$B:$B,'1'!$C$4),VLOOKUP('1'!$C$4&ROWS($C$4:D106),'Escala de Insuficiencia'!$C:$F,4,0),"") ->  | D121: =IF(ROWS($C$4:E106)<=COUNTIF('Escala de Insuficiencia'!$B$2:$B$112,'1'!$C$4),VLOOKUP('1'!$C$4&ROWS($C$4:E106),'Escala de Insuficiencia'!$C:$E,3,0),"") ->  | E121: =IF(ROWS($C$4:F106)<=COUNTIF('Escala de Insuficiencia'!$B$2:$B$112,'1'!$C$4),VLOOKUP('1'!$C$4&ROWS($C$4:F106),'Escala de Insuficiencia'!$C:$E,3,0),"") ->  | F121: =IF(ROWS($C$4:D106)<=COUNTIF('Escala de Insuficiencia'!$B:$B,'1'!$C$4),VLOOKUP('1'!$C$4&ROWS($C$4:D106),'Escala de Insuficiencia'!$C:$H,6,0),"") ->  | H121: =IF(ISTEXT(VLOOKUP($B121,'Escala de Insuficiencia'!$E:$G,2,0)),VLOOKUP($B121,'Escala de Insuficiencia'!$E:$H,3,0),"") -> 
B122: =IF(ROWS($C$4:C107)<=COUNTIF('Escala de Insuficiencia'!$B:$B,'1'!$C$4),VLOOKUP('1'!$C$4&ROWS($C$4:C107),'Escala de Insuficiencia'!$C:$E,3,0),"") ->  | C122: =IF(ROWS($C$4:D107)<=COUNTIF('Escala de Insuficiencia'!$B:$B,'1'!$C$4),VLOOKUP('1'!$C$4&ROWS($C$4:D107),'Escala de Insuficiencia'!$C:$F,4,0),"") ->  | D122: =IF(ROWS($C$4:E107)<=COUNTIF('Escala de Insuficiencia'!$B$2:$B$112,'1'!$C$4),VLOOKUP('1'!$C$4&ROWS($C$4:E107),'Escala de Insuficiencia'!$C:$E,3,0),"") ->  | E122: =IF(ROWS($C$4:F107)<=COUNTIF('Escala de Insuficiencia'!$B$2:$B$112,'1'!$C$4),VLOOKUP('1'!$C$4&ROWS($C$4:F107),'Escala de Insuficiencia'!$C:$E,3,0),"") ->  | F122: =IF(ROWS($C$4:D107)<=COUNTIF('Escala de Insuficiencia'!$B:$B,'1'!$C$4),VLOOKUP('1'!$C$4&ROWS($C$4:D107),'Escala de Insuficiencia'!$C:$H,6,0),"") ->  | H122: =IF(ISTEXT(VLOOKUP($B122,'Escala de Insuficiencia'!$E:$G,2,0)),VLOOKUP($B122,'Escala de Insuficiencia'!$E:$H,3,0),"") -> 
B123: =IF(ROWS($C$4:C108)<=COUNTIF('Escala de Insuficiencia'!$B:$B,'1'!$C$4),VLOOKUP('1'!$C$4&ROWS($C$4:C108),'Escala de Insuficiencia'!$C:$E,3,0),"") ->  | C123: =IF(ROWS($C$4:D108)<=COUNTIF('Escala de Insuficiencia'!$B:$B,'1'!$C$4),VLOOKUP('1'!$C$4&ROWS($C$4:D108),'Escala de Insuficiencia'!$C:$F,4,0),"") ->  | D123: =IF(ROWS($C$4:E108)<=COUNTIF('Escala de Insuficiencia'!$B$2:$B$112,'1'!$C$4),VLOOKUP('1'!$C$4&ROWS($C$4:E108),'Escala de Insuficiencia'!$C:$E,3,0),"") ->  | E123: =IF(ROWS($C$4:F108)<=COUNTIF('Escala de Insuficiencia'!$B$2:$B$112,'1'!$C$4),VLOOKUP('1'!$C$4&ROWS($C$4:F108),'Escala de Insuficiencia'!$C:$E,3,0),"") ->  | F123: =IF(ROWS($C$4:D108)<=COUNTIF('Escala de Insuficiencia'!$B:$B,'1'!$C$4),VLOOKUP('1'!$C$4&ROWS($C$4:D108),'Escala de Insuficiencia'!$C:$H,6,0),"") ->  | H123: =IF(ISTEXT(VLOOKUP($B123,'Escala de Insuficiencia'!$E:$G,2,0)),VLOOKUP($B123,'Escala de Insuficiencia'!$E:$H,3,0),"") -> 
B124: =IF(ROWS($C$4:C109)<=COUNTIF('Escala de Insuficiencia'!$B:$B,'1'!$C$4),VLOOKUP('1'!$C$4&ROWS($C$4:C109),'Escala de Insuficiencia'!$C:$E,3,0),"") ->  | C124: =IF(ROWS($C$4:D109)<=COUNTIF('Escala de Insuficiencia'!$B:$B,'1'!$C$4),VLOOKUP('1'!$C$4&ROWS($C$4:D109),'Escala de Insuficiencia'!$C:$F,4,0),"") ->  | D124: =IF(ROWS($C$4:E109)<=COUNTIF('Escala de Insuficiencia'!$B$2:$B$112,'1'!$C$4),VLOOKUP('1'!$C$4&ROWS($C$4:E109),'Escala de Insuficiencia'!$C:$E,3,0),"") ->  | E124: =IF(ROWS($C$4:F109)<=COUNTIF('Escala de Insuficiencia'!$B$2:$B$112,'1'!$C$4),VLOOKUP('1'!$C$4&ROWS($C$4:F109),'Escala de Insuficiencia'!$C:$E,3,0),"") ->  | F124: =IF(ROWS($C$4:D109)<=COUNTIF('Escala de Insuficiencia'!$B:$B,'1'!$C$4),VLOOKUP('1'!$C$4&ROWS($C$4:D109),'Escala de Insuficiencia'!$C:$H,6,0),"") ->  | H124: =IF(ISTEXT(VLOOKUP($B124,'Escala de Insuficiencia'!$E:$G,2,0)),VLOOKUP($B124,'Escala de Insuficiencia'!$E:$H,3,0),"") -> 
B125: =IF(ROWS($C$4:C110)<=COUNTIF('Escala de Insuficiencia'!$B:$B,'1'!$C$4),VLOOKUP('1'!$C$4&ROWS($C$4:C110),'Escala de Insuficiencia'!$C:$E,3,0),"") ->  | C125: =IF(ROWS($C$4:D110)<=COUNTIF('Escala de Insuficiencia'!$B:$B,'1'!$C$4),VLOOKUP('1'!$C$4&ROWS($C$4:D110),'Escala de Insuficiencia'!$C:$F,4,0),"") ->  | D125: =IF(ROWS($C$4:E110)<=COUNTIF('Escala de Insuficiencia'!$B$2:$B$112,'1'!$C$4),VLOOKUP('1'!$C$4&ROWS($C$4:E110),'Escala de Insuficiencia'!$C:$E,3,0),"") ->  | E125: =IF(ROWS($C$4:F110)<=COUNTIF('Escala de Insuficiencia'!$B$2:$B$112,'1'!$C$4),VLOOKUP('1'!$C$4&ROWS($C$4:F110),'Escala de Insuficiencia'!$C:$E,3,0),"") ->  | F125: =IF(ROWS($C$4:D110)<=COUNTIF('Escala de Insuficiencia'!$B:$B,'1'!$C$4),VLOOKUP('1'!$C$4&ROWS($C$4:D110),'Escala de Insuficiencia'!$C:$H,6,0),"") ->  | H125: =IF(ISTEXT(VLOOKUP($B125,'Escala de Insuficiencia'!$E:$G,2,0)),VLOOKUP($B125,'Escala de Insuficiencia'!$E:$H,3,0),"") -> 
B126: =IF(ROWS($C$4:C111)<=COUNTIF('Escala de Insuficiencia'!$B:$B,'1'!$C$4),VLOOKUP('1'!$C$4&ROWS($C$4:C111),'Escala de Insuficiencia'!$C:$E,3,0),"") ->  | C126: =IF(ROWS($C$4:D111)<=COUNTIF('Escala de Insuficiencia'!$B:$B,'1'!$C$4),VLOOKUP('1'!$C$4&ROWS($C$4:D111),'Escala de Insuficiencia'!$C:$F,4,0),"") ->  | D126: =IF(ROWS($C$4:E111)<=COUNTIF('Escala de Insuficiencia'!$B$2:$B$112,'1'!$C$4),VLOOKUP('1'!$C$4&ROWS($C$4:E111),'Escala de Insuficiencia'!$C:$E,3,0),"") ->  | E126: =IF(ROWS($C$4:F111)<=COUNTIF('Escala de Insuficiencia'!$B$2:$B$112,'1'!$C$4),VLOOKUP('1'!$C$4&ROWS($C$4:F111),'Escala de Insuficiencia'!$C:$E,3,0),"") ->  | F126: =IF(ROWS($C$4:D111)<=COUNTIF('Escala de Insuficiencia'!$B:$B,'1'!$C$4),VLOOKUP('1'!$C$4&ROWS($C$4:D111),'Escala de Insuficiencia'!$C:$H,6,0),"") ->  | H126: =IF(ISTEXT(VLOOKUP($B126,'Escala de Insuficiencia'!$E:$G,2,0)),VLOOKUP($B126,'Escala de Insuficiencia'!$E:$H,3,0),"") -> 
B127: =IF(ROWS($C$4:C112)<=COUNTIF('Escala de Insuficiencia'!$B:$B,'1'!$C$4),VLOOKUP('1'!$C$4&ROWS($C$4:C112),'Escala de Insuficiencia'!$C:$E,3,0),"") ->  | C127: =IF(ROWS($C$4:D112)<=COUNTIF('Escala de Insuficiencia'!$B:$B,'1'!$C$4),VLOOKUP('1'!$C$4&ROWS($C$4:D112),'Escala de Insuficiencia'!$C:$F,4,0),"") ->  | D127: =IF(ROWS($C$4:E112)<=COUNTIF('Escala de Insuficiencia'!$B$2:$B$112,'1'!$C$4),VLOOKUP('1'!$C$4&ROWS($C$4:E112),'Escala de Insuficiencia'!$C:$E,3,0),"") ->  | E127: =IF(ROWS($C$4:F112)<=COUNTIF('Escala de Insuficiencia'!$B$2:$B$112,'1'!$C$4),VLOOKUP('1'!$C$4&ROWS($C$4:F112),'Escala de Insuficiencia'!$C:$E,3,0),"") ->  | F127: =IF(ROWS($C$4:D112)<=COUNTIF('Escala de Insuficiencia'!$B:$B,'1'!$C$4),VLOOKUP('1'!$C$4&ROWS($C$4:D112),'Escala de Insuficiencia'!$C:$H,6,0),"") ->  | H127: =IF(ISTEXT(VLOOKUP($B127,'Escala de Insuficiencia'!$E:$G,2,0)),VLOOKUP($B127,'Escala de Insuficiencia'!$E:$H,3,0),"") -> 
B128: =IF(ROWS($C$4:C113)<=COUNTIF('Escala de Insuficiencia'!$B:$B,'1'!$C$4),VLOOKUP('1'!$C$4&ROWS($C$4:C113),'Escala de Insuficiencia'!$C:$E,3,0),"") ->  | C128: =IF(ROWS($C$4:D113)<=COUNTIF('Escala de Insuficiencia'!$B:$B,'1'!$C$4),VLOOKUP('1'!$C$4&ROWS($C$4:D113),'Escala de Insuficiencia'!$C:$F,4,0),"") ->  | D128: =IF(ROWS($C$4:E113)<=COUNTIF('Escala de Insuficiencia'!$B$2:$B$112,'1'!$C$4),VLOOKUP('1'!$C$4&ROWS($C$4:E113),'Escala de Insuficiencia'!$C:$E,3,0),"") ->  | E128: =IF(ROWS($C$4:F113)<=COUNTIF('Escala de Insuficiencia'!$B$2:$B$112,'1'!$C$4),VLOOKUP('1'!$C$4&ROWS($C$4:F113),'Escala de Insuficiencia'!$C:$E,3,0),"") ->  | F128: =IF(ROWS($C$4:D113)<=COUNTIF('Escala de Insuficiencia'!$B:$B,'1'!$C$4),VLOOKUP('1'!$C$4&ROWS($C$4:D113),'Escala de Insuficiencia'!$C:$H,6,0),"") ->  | H128: =IF(ISTEXT(VLOOKUP($B128,'Escala de Insuficiencia'!$E:$G,2,0)),VLOOKUP($B128,'Escala de Insuficiencia'!$E:$H,3,0),"") -> 
B129: =IF(ROWS($C$4:C114)<=COUNTIF('Escala de Insuficiencia'!$B:$B,'1'!$C$4),VLOOKUP('1'!$C$4&ROWS($C$4:C114),'Escala de Insuficiencia'!$C:$E,3,0),"") ->  | C129: =IF(ROWS($C$4:D114)<=COUNTIF('Escala de Insuficiencia'!$B:$B,'1'!$C$4),VLOOKUP('1'!$C$4&ROWS($C$4:D114),'Escala de Insuficiencia'!$C:$F,4,0),"") ->  | D129: =IF(ROWS($C$4:E114)<=COUNTIF('Escala de Insuficiencia'!$B$2:$B$112,'1'!$C$4),VLOOKUP('1'!$C$4&ROWS($C$4:E114),'Escala de Insuficiencia'!$C:$E,3,0),"") ->  | E129: =IF(ROWS($C$4:F114)<=COUNTIF('Escala de Insuficiencia'!$B$2:$B$112,'1'!$C$4),VLOOKUP('1'!$C$4&ROWS($C$4:F114),'Escala de Insuficiencia'!$C:$E,3,0),"") ->  | F129: =IF(ROWS($C$4:D114)<=COUNTIF('Escala de Insuficiencia'!$B:$B,'1'!$C$4),VLOOKUP('1'!$C$4&ROWS($C$4:D114),'Escala de Insuficiencia'!$C:$H,6,0),"") ->  | H129: =IF(ISTEXT(VLOOKUP($B129,'Escala de Insuficiencia'!$E:$G,2,0)),VLOOKUP($B129,'Escala de Insuficiencia'!$E:$H,3,0),"") -> 
B130: =IF(ROWS($C$4:C115)<=COUNTIF('Escala de Insuficiencia'!$B:$B,'1'!$C$4),VLOOKUP('1'!$C$4&ROWS($C$4:C115),'Escala de Insuficiencia'!$C:$E,3,0),"") ->  | C130: =IF(ROWS($C$4:D115)<=COUNTIF('Escala de Insuficiencia'!$B:$B,'1'!$C$4),VLOOKUP('1'!$C$4&ROWS($C$4:D115),'Escala de Insuficiencia'!$C:$F,4,0),"") ->  | D130: =IF(ROWS($C$4:E115)<=COUNTIF('Escala de Insuficiencia'!$B$2:$B$112,'1'!$C$4),VLOOKUP('1'!$C$4&ROWS($C$4:E115),'Escala de Insuficiencia'!$C:$E,3,0),"") ->  | E130: =IF(ROWS($C$4:F115)<=COUNTIF('Escala de Insuficiencia'!$B$2:$B$112,'1'!$C$4),VLOOKUP('1'!$C$4&ROWS($C$4:F115),'Escala de Insuficiencia'!$C:$E,3,0),"") ->  | F130: =IF(ROWS($C$4:D115)<=COUNTIF('Escala de Insuficiencia'!$B:$B,'1'!$C$4),VLOOKUP('1'!$C$4&ROWS($C$4:D115),'Escala de Insuficiencia'!$C:$H,6,0),"") ->  | H130: =IF(ISTEXT(VLOOKUP($B130,'Escala de Insuficiencia'!$E:$G,2,0)),VLOOKUP($B130,'Escala de Insuficiencia'!$E:$H,3,0),"") -> 
B131: =IF(ROWS($C$4:C116)<=COUNTIF('Escala de Insuficiencia'!$B:$B,'1'!$C$4),VLOOKUP('1'!$C$4&ROWS($C$4:C116),'Escala de Insuficiencia'!$C:$E,3,0),"") ->  | C131: =IF(ROWS($C$4:D116)<=COUNTIF('Escala de Insuficiencia'!$B:$B,'1'!$C$4),VLOOKUP('1'!$C$4&ROWS($C$4:D116),'Escala de Insuficiencia'!$C:$F,4,0),"") ->  | D131: =IF(ROWS($C$4:E116)<=COUNTIF('Escala de Insuficiencia'!$B$2:$B$112,'1'!$C$4),VLOOKUP('1'!$C$4&ROWS($C$4:E116),'Escala de Insuficiencia'!$C:$E,3,0),"") ->  | E131: =IF(ROWS($C$4:F116)<=COUNTIF('Escala de Insuficiencia'!$B$2:$B$112,'1'!$C$4),VLOOKUP('1'!$C$4&ROWS($C$4:F116),'Escala de Insuficiencia'!$C:$E,3,0),"") ->  | F131: =IF(ROWS($C$4:D116)<=COUNTIF('Escala de Insuficiencia'!$B:$B,'1'!$C$4),VLOOKUP('1'!$C$4&ROWS($C$4:D116),'Escala de Insuficiencia'!$C:$H,6,0),"") ->  | H131: =IF(ISTEXT(VLOOKUP($B131,'Escala de Insuficiencia'!$E:$G,2,0)),VLOOKUP($B131,'Escala de Insuficiencia'!$E:$H,3,0),"") -> 
B132: =IF(ROWS($C$4:C117)<=COUNTIF('Escala de Insuficiencia'!$B:$B,'1'!$C$4),VLOOKUP('1'!$C$4&ROWS($C$4:C117),'Escala de Insuficiencia'!$C:$E,3,0),"") ->  | C132: =IF(ROWS($C$4:D117)<=COUNTIF('Escala de Insuficiencia'!$B:$B,'1'!$C$4),VLOOKUP('1'!$C$4&ROWS($C$4:D117),'Escala de Insuficiencia'!$C:$F,4,0),"") ->  | D132: =IF(ROWS($C$4:E117)<=COUNTIF('Escala de Insuficiencia'!$B$2:$B$112,'1'!$C$4),VLOOKUP('1'!$C$4&ROWS($C$4:E117),'Escala de Insuficiencia'!$C:$E,3,0),"") ->  | E132: =IF(ROWS($C$4:F117)<=COUNTIF('Escala de Insuficiencia'!$B$2:$B$112,'1'!$C$4),VLOOKUP('1'!$C$4&ROWS($C$4:F117),'Escala de Insuficiencia'!$C:$E,3,0),"") ->  | F132: =IF(ROWS($C$4:D117)<=COUNTIF('Escala de Insuficiencia'!$B:$B,'1'!$C$4),VLOOKUP('1'!$C$4&ROWS($C$4:D117),'Escala de Insuficiencia'!$C:$H,6,0),"") ->  | H132: =IF(ISTEXT(VLOOKUP($B132,'Escala de Insuficiencia'!$E:$G,2,0)),VLOOKUP($B132,'Escala de Insuficiencia'!$E:$H,3,0),"") -> 
B133: =IF(ROWS($C$4:C118)<=COUNTIF('Escala de Insuficiencia'!$B:$B,'1'!$C$4),VLOOKUP('1'!$C$4&ROWS($C$4:C118),'Escala de Insuficiencia'!$C:$E,3,0),"") ->  | C133: =IF(ROWS($C$4:D118)<=COUNTIF('Escala de Insuficiencia'!$B:$B,'1'!$C$4),VLOOKUP('1'!$C$4&ROWS($C$4:D118),'Escala de Insuficiencia'!$C:$F,4,0),"") ->  | D133: =IF(ROWS($C$4:E118)<=COUNTIF('Escala de Insuficiencia'!$B$2:$B$112,'1'!$C$4),VLOOKUP('1'!$C$4&ROWS($C$4:E118),'Escala de Insuficiencia'!$C:$E,3,0),"") ->  | E133: =IF(ROWS($C$4:F118)<=COUNTIF('Escala de Insuficiencia'!$B$2:$B$112,'1'!$C$4),VLOOKUP('1'!$C$4&ROWS($C$4:F118),'Escala de Insuficiencia'!$C:$E,3,0),"") ->  | F133: =IF(ROWS($C$4:D118)<=COUNTIF('Escala de Insuficiencia'!$B:$B,'1'!$C$4),VLOOKUP('1'!$C$4&ROWS($C$4:D118),'Escala de Insuficiencia'!$C:$H,6,0),"") ->  | H133: =IF(ISTEXT(VLOOKUP($B133,'Escala de Insuficiencia'!$E:$G,2,0)),VLOOKUP($B133,'Escala de Insuficiencia'!$E:$H,3,0),"") -> 
B134: =IF(ROWS($C$4:C119)<=COUNTIF('Escala de Insuficiencia'!$B:$B,'1'!$C$4),VLOOKUP('1'!$C$4&ROWS($C$4:C119),'Escala de Insuficiencia'!$C:$E,3,0),"") ->  | C134: =IF(ROWS($C$4:D119)<=COUNTIF('Escala de Insuficiencia'!$B:$B,'1'!$C$4),VLOOKUP('1'!$C$4&ROWS($C$4:D119),'Escala de Insuficiencia'!$C:$F,4,0),"") ->  | D134: =IF(ROWS($C$4:E119)<=COUNTIF('Escala de Insuficiencia'!$B$2:$B$112,'1'!$C$4),VLOOKUP('1'!$C$4&ROWS($C$4:E119),'Escala de Insuficiencia'!$C:$E,3,0),"") ->  | E134: =IF(ROWS($C$4:F119)<=COUNTIF('Escala de Insuficiencia'!$B$2:$B$112,'1'!$C$4),VLOOKUP('1'!$C$4&ROWS($C$4:F119),'Escala de Insuficiencia'!$C:$E,3,0),"") ->  | F134: =IF(ROWS($C$4:D119)<=COUNTIF('Escala de Insuficiencia'!$B:$B,'1'!$C$4),VLOOKUP('1'!$C$4&ROWS($C$4:D119),'Escala de Insuficiencia'!$C:$H,6,0),"") ->  | H134: =IF(ISTEXT(VLOOKUP($B134,'Escala de Insuficiencia'!$E:$G,2,0)),VLOOKUP($B134,'Escala de Insuficiencia'!$E:$H,3,0),"") -> 
B135: =IF(ROWS($C$4:C120)<=COUNTIF('Escala de Insuficiencia'!$B:$B,'1'!$C$4),VLOOKUP('1'!$C$4&ROWS($C$4:C120),'Escala de Insuficiencia'!$C:$E,3,0),"") ->  | C135: =IF(ROWS($C$4:D120)<=COUNTIF('Escala de Insuficiencia'!$B:$B,'1'!$C$4),VLOOKUP('1'!$C$4&ROWS($C$4:D120),'Escala de Insuficiencia'!$C:$F,4,0),"") ->  | D135: =IF(ROWS($C$4:E120)<=COUNTIF('Escala de Insuficiencia'!$B$2:$B$112,'1'!$C$4),VLOOKUP('1'!$C$4&ROWS($C$4:E120),'Escala de Insuficiencia'!$C:$E,3,0),"") ->  | E135: =IF(ROWS($C$4:F120)<=COUNTIF('Escala de Insuficiencia'!$B$2:$B$112,'1'!$C$4),VLOOKUP('1'!$C$4&ROWS($C$4:F120),'Escala de Insuficiencia'!$C:$E,3,0),"") ->  | F135: =IF(ROWS($C$4:D120)<=COUNTIF('Escala de Insuficiencia'!$B:$B,'1'!$C$4),VLOOKUP('1'!$C$4&ROWS($C$4:D120),'Escala de Insuficiencia'!$C:$H,6,0),"") ->  | H135: =IF(ISTEXT(VLOOKUP($B135,'Escala de Insuficiencia'!$E:$G,2,0)),VLOOKUP($B135,'Escala de Insuficiencia'!$E:$H,3,0),"") -> 
B136: =IF(ROWS($C$4:C121)<=COUNTIF('Escala de Insuficiencia'!$B:$B,'1'!$C$4),VLOOKUP('1'!$C$4&ROWS($C$4:C121),'Escala de Insuficiencia'!$C:$E,3,0),"") ->  | C136: =IF(ROWS($C$4:D123)<=COUNTIF('Escala de Insuficiencia'!$B:$B,'1'!$C$4),VLOOKUP('1'!$C$4&ROWS($C$4:D123),'Escala de Insuficiencia'!$C:$F,4,0),"") ->  | D136: =IF(ROWS($C$4:E123)<=COUNTIF('Escala de Insuficiencia'!$B$2:$B$112,'1'!$C$4),VLOOKUP('1'!$C$4&ROWS($C$4:E123),'Escala de Insuficiencia'!$C:$E,3,0),"") ->  | E136: =IF(ROWS($C$4:F123)<=COUNTIF('Escala de Insuficiencia'!$B$2:$B$112,'1'!$C$4),VLOOKUP('1'!$C$4&ROWS($C$4:F123),'Escala de Insuficiencia'!$C:$E,3,0),"") -> 
B137: =IF(ROWS($C$4:C122)<=COUNTIF('Escala de Insuficiencia'!$B:$B,'1'!$C$4),VLOOKUP('1'!$C$4&ROWS($C$4:C122),'Escala de Insuficiencia'!$C:$E,3,0),"") ->  | C137: =IF(ROWS($C$4:D124)<=COUNTIF('Escala de Insuficiencia'!$B:$B,'1'!$C$4),VLOOKUP('1'!$C$4&ROWS($C$4:D124),'Escala de Insuficiencia'!$C:$F,4,0),"") ->  | D137: =IF(ROWS($C$4:E124)<=COUNTIF('Escala de Insuficiencia'!$B$2:$B$112,'1'!$C$4),VLOOKUP('1'!$C$4&ROWS($C$4:E124),'Escala de Insuficiencia'!$C:$E,3,0),"") ->  | E137: =IF(ROWS($C$4:F124)<=COUNTIF('Escala de Insuficiencia'!$B$2:$B$112,'1'!$C$4),VLOOKUP('1'!$C$4&ROWS($C$4:F124),'Escala de Insuficiencia'!$C:$E,3,0),"") -> 

Sheet 2
A4: Perfil: | C4: =INDICE!I34 -> Puente Aranda | F4: Numero: | I4: =VLOOKUP($C$4,'Localidades colegio y sedes '!$C:$D,2,FALSE) -> 16
B6: Edad | C6: Población 2015
B7: 0 | C7: =VLOOKUP($C$4,POBLACION!$E:$AE,'2'!B7+2,FALSE) -> 3253
B8: 1 | C8: =VLOOKUP($C$4,POBLACION!$E:$AE,'2'!B8+2,FALSE) -> 3227
B9: 2 | C9: =VLOOKUP($C$4,POBLACION!$E:$AE,'2'!B9+2,FALSE) -> 3201
B10: 3 | C10: =VLOOKUP($C$4,POBLACION!$E:$AE,'2'!B10+2,FALSE) -> 3181
B11: 4 | C11: =VLOOKUP($C$4,POBLACION!$E:$AE,'2'!B11+2,FALSE) -> 3168
B12: 5 | C12: =VLOOKUP($C$4,POBLACION!$E:$AE,'2'!B12+2,FALSE) -> 3171
B13: 6 | C13: =VLOOKUP($C$4,POBLACION!$E:$AE,'2'!B13+2,FALSE) -> 3169
B14: 7 | C14: =VLOOKUP($C$4,POBLACION!$E:$AE,'2'!B14+2,FALSE) -> 3173
B15: 8 | C15: =VLOOKUP($C$4,POBLACION!$E:$AE,'2'!B15+2,FALSE) -> 3186
B16: 9 | C16: =VLOOKUP($C$4,POBLACION!$E:$AE,'2'!B16+2,FALSE) -> 3208
B17: 10 | C17: =VLOOKUP($C$4,POBLACION!$E:$AE,'2'!B17+2,FALSE) -> 3237
B18: 11 | C18: =VLOOKUP($C$4,POBLACION!$E:$AE,'2'!B18+2,FALSE) -> 3270
B19: 12 | C19: =VLOOKUP($C$4,POBLACION!$E:$AE,'2'!B19+2,FALSE) -> 3327
B20: 13 | C20: =VLOOKUP($C$4,POBLACION!$E:$AE,'2'!B20+2,FALSE) -> 3420
B21: 14 | C21: =VLOOKUP($C$4,POBLACION!$E:$AE,'2'!B21+2,FALSE) -> 3537 | E21: Población en edad escolar
B22: 15 | C22: =VLOOKUP($C$4,POBLACION!$E:$AE,'2'!B22+2,FALSE) -> 3651
B23: 16 | C23: =VLOOKUP($C$4,POBLACION!$E:$AE,'2'!B23+2,FALSE) -> 3760 | E23: Nivel | F23: Edades | G23: Población 2015
B24: 17 | C24: =VLOOKUP($C$4,POBLACION!$E:$AE,'2'!B24+2,FALSE) -> 3883 | E24: Preescolar | F24: 3 - 5 | G24: =SUM(C10:C12) -> 9520
B25: 18 | C25: =VLOOKUP($C$4,POBLACION!$E:$AE,'2'!B25+2,FALSE) -> 4023 | E25: Primaria | F25: 6 - 10 | G25: =SUM(C13:C17) -> 15973
B26: 19 | C26: =VLOOKUP($C$4,POBLACION!$E:$AE,'2'!B26+2,FALSE) -> 4168 | E26: Secundaria | F26: 11 - 14 | G26: =SUM(C18:C21) -> 13554
B27: 20 | C27: =VLOOKUP($C$4,POBLACION!$E:$AE,'2'!B27+2,FALSE) -> 4308 | E27: Media | F27: 15 - 16 | G27: =SUM(C22:C23) -> 7411
B28: 21 | C28: =VLOOKUP($C$4,POBLACION!$E:$AE,'2'!B28+2,FALSE) -> 4453 | E28: Total | G28: =SUM(G24:G27) -> 46458
B29: 22 | C29: =VLOOKUP($C$4,POBLACION!$E:$AE,'2'!B29+2,FALSE) -> 4535 | E29: Fuente: Planeacion Distrital.
B30: 23 | C30: =VLOOKUP($C$4,POBLACION!$E:$AE,'2'!B30+2,FALSE) -> 4518
B31: 24 | C31: =VLOOKUP($C$4,POBLACION!$E:$AE,'2'!B31+2,FALSE) -> 4439
B32: Mas 24 | C32: =VLOOKUP(C4,POBLACION!F28:G48,2,FALSE) -> 167948
B33: Total | C33: =SUM(C7:C32) -> 258414
B34: Fuente: Planeacion Distrital.

Sheet 3
C4: Perfil: | E4: =INDICE!I34 -> Puente Aranda | J4: Numero: | M4: =VLOOKUP($E$4,'Localidades colegio y sedes '!$C:$D,2,FALSE) -> 16
C6: Matricula:
C8: ="Histórico Matrícula 2012 - 2019 de " &E4&" por Grado" -> Histórico Matrícula 2012 - 2019 de Puente Aranda por Grado
C9: GRADO | D9: 2012 | E9: 2013 | F9: 2014 | G9: 2015 | H9: 2016 | I9: 2017 | J9: 2018 | K9: 2019
C10: Pre-Jardín | D10: =VLOOKUP(D$9&$M$4,'MAT GRADO 2011-2016'!$A:$AA,3+(ROWS($D$10:$D10)),FALSE) -> 0 | E10: =VLOOKUP(E$9&$M$4,'MAT GRADO 2011-2016'!$A:$AA,3+(ROWS($D$10:$D10)),FALSE) -> 0 | F10: =VLOOKUP(F$9&$M$4,'MAT GRADO 2011-2016'!$A:$AA,3+(ROWS($D$10:$D10)),FALSE) -> 417 | G10: =VLOOKUP(G$9&$M$4,'MAT GRADO 2011-2016'!$A:$AA,3+(ROWS($D$10:$D10)),FALSE) -> 422 | H10: =VLOOKUP(H$9&$M$4,'MAT GRADO 2011-2016'!$A:$AA,3+(ROWS($D$10:$D10)),FALSE) -> 511 | I10: =VLOOKUP(I$9&$M$4,'MAT GRADO 2011-2016'!$A:$AA,3+(ROWS($D$10:$D10)),FALSE) -> 401 | J10: =VLOOKUP(J$9&$M$4,'MAT GRADO 2011-2016'!$A:$AA,3+(ROWS($D$10:$D10)),FALSE) -> 428 | K10: =VLOOKUP(K$9&$M$4,'MAT GRADO 2011-2016'!$A:$AA,3+(ROWS($D$10:$D10)),FALSE) -> 481
C11: Jardín | D11: =VLOOKUP(D$9&$M$4,'MAT GRADO 2011-2016'!$A:$AA,3+(ROWS($D$10:$D11)),FALSE) -> 284 | E11: =VLOOKUP(E$9&$M$4,'MAT GRADO 2011-2016'!$A:$AA,3+(ROWS($D$10:$D11)),FALSE) -> 291 | F11: =VLOOKUP(F$9&$M$4,'MAT GRADO 2011-2016'!$A:$AA,3+(ROWS($D$10:$D11)),FALSE) -> 688 | G11: =VLOOKUP(G$9&$M$4,'MAT GRADO 2011-2016'!$A:$AA,3+(ROWS($D$10:$D11)),FALSE) -> 839 | H11: =VLOOKUP(H$9&$M$4,'MAT GRADO 2011-2016'!$A:$AA,3+(ROWS($D$10:$D11)),FALSE) -> 744 | I11: =VLOOKUP(I$9&$M$4,'MAT GRADO 2011-2016'!$A:$AA,3+(ROWS($D$10:$D11)),FALSE) -> 677 | J11: =VLOOKUP(J$9&$M$4,'MAT GRADO 2011-2016'!$A:$AA,3+(ROWS($D$10:$D11)),FALSE) -> 635 | K11: =VLOOKUP(K$9&$M$4,'MAT GRADO 2011-2016'!$A:$AA,3+(ROWS($D$10:$D11)),FALSE) -> 792
C12: Transición | D12: =VLOOKUP(D$9&$M$4,'MAT GRADO 2011-2016'!$A:$AA,3+(ROWS($D$10:$D12)),FALSE) -> 1584 | E12: =VLOOKUP(E$9&$M$4,'MAT GRADO 2011-2016'!$A:$AA,3+(ROWS($D$10:$D12)),FALSE) -> 1489 | F12: =VLOOKUP(F$9&$M$4,'MAT GRADO 2011-2016'!$A:$AA,3+(ROWS($D$10:$D12)),FALSE) -> 1450 | G12: =VLOOKUP(G$9&$M$4,'MAT GRADO 2011-2016'!$A:$AA,3+(ROWS($D$10:$D12)),FALSE) -> 1413 | H12: =VLOOKUP(H$9&$M$4,'MAT GRADO 2011-2016'!$A:$AA,3+(ROWS($D$10:$D12)),FALSE) -> 1418 | I12: =VLOOKUP(I$9&$M$4,'MAT GRADO 2011-2016'!$A:$AA,3+(ROWS($D$10:$D12)),FALSE) -> 1335 | J12: =VLOOKUP(J$9&$M$4,'MAT GRADO 2011-2016'!$A:$AA,3+(ROWS($D$10:$D12)),FALSE) -> 1329 | K12: =VLOOKUP(K$9&$M$4,'MAT GRADO 2011-2016'!$A:$AA,3+(ROWS($D$10:$D12)),FALSE) -> 1367
C13: Primero | D13: =VLOOKUP(D$9&$M$4,'MAT GRADO 2011-2016'!$A:$AA,3+(ROWS($D$10:$D13)),FALSE) -> 1838 | E13: =VLOOKUP(E$9&$M$4,'MAT GRADO 2011-2016'!$A:$AA,3+(ROWS($D$10:$D13)),FALSE) -> 1949 | F13: =VLOOKUP(F$9&$M$4,'MAT GRADO 2011-2016'!$A:$AA,3+(ROWS($D$10:$D13)),FALSE) -> 1953 | G13: =VLOOKUP(G$9&$M$4,'MAT GRADO 2011-2016'!$A:$AA,3+(ROWS($D$10:$D13)),FALSE) -> 1848 | H13: =VLOOKUP(H$9&$M$4,'MAT GRADO 2011-2016'!$A:$AA,3+(ROWS($D$10:$D13)),FALSE) -> 1796 | I13: =VLOOKUP(I$9&$M$4,'MAT GRADO 2011-2016'!$A:$AA,3+(ROWS($D$10:$D13)),FALSE) -> 1660 | J13: =VLOOKUP(J$9&$M$4,'MAT GRADO 2011-2016'!$A:$AA,3+(ROWS($D$10:$D13)),FALSE) -> 1652 | K13: =VLOOKUP(K$9&$M$4,'MAT GRADO 2011-2016'!$A:$AA,3+(ROWS($D$10:$D13)),FALSE) -> 1761
C14: Segundo | D14: =VLOOKUP(D$9&$M$4,'MAT GRADO 2011-2016'!$A:$AA,3+(ROWS($D$10:$D14)),FALSE) -> 1926 | E14: =VLOOKUP(E$9&$M$4,'MAT GRADO 2011-2016'!$A:$AA,3+(ROWS($D$10:$D14)),FALSE) -> 1751 | F14: =VLOOKUP(F$9&$M$4,'MAT GRADO 2011-2016'!$A:$AA,3+(ROWS($D$10:$D14)),FALSE) -> 1944 | G14: =VLOOKUP(G$9&$M$4,'MAT GRADO 2011-2016'!$A:$AA,3+(ROWS($D$10:$D14)),FALSE) -> 1878 | H14: =VLOOKUP(H$9&$M$4,'MAT GRADO 2011-2016'!$A:$AA,3+(ROWS($D$10:$D14)),FALSE) -> 1856 | I14: =VLOOKUP(I$9&$M$4,'MAT GRADO 2011-2016'!$A:$AA,3+(ROWS($D$10:$D14)),FALSE) -> 1701 | J14: =VLOOKUP(J$9&$M$4,'MAT GRADO 2011-2016'!$A:$AA,3+(ROWS($D$10:$D14)),FALSE) -> 1702 | K14: =VLOOKUP(K$9&$M$4,'MAT GRADO 2011-2016'!$A:$AA,3+(ROWS($D$10:$D14)),FALSE) -> 1708
C15: Tercero | D15: =VLOOKUP(D$9&$M$4,'MAT GRADO 2011-2016'!$A:$AA,3+(ROWS($D$10:$D15)),FALSE) -> 1966 | E15: =VLOOKUP(E$9&$M$4,'MAT GRADO 2011-2016'!$A:$AA,3+(ROWS($D$10:$D15)),FALSE) -> 1893 | F15: =VLOOKUP(F$9&$M$4,'MAT GRADO 2011-2016'!$A:$AA,3+(ROWS($D$10:$D15)),FALSE) -> 1849 | G15: =VLOOKUP(G$9&$M$4,'MAT GRADO 2011-2016'!$A:$AA,3+(ROWS($D$10:$D15)),FALSE) -> 1911 | H15: =VLOOKUP(H$9&$M$4,'MAT GRADO 2011-2016'!$A:$AA,3+(ROWS($D$10:$D15)),FALSE) -> 1977 | I15: =VLOOKUP(I$9&$M$4,'MAT GRADO 2011-2016'!$A:$AA,3+(ROWS($D$10:$D15)),FALSE) -> 1846 | J15: =VLOOKUP(J$9&$M$4,'MAT GRADO 2011-2016'!$A:$AA,3+(ROWS($D$10:$D15)),FALSE) -> 1765 | K15: =VLOOKUP(K$9&$M$4,'MAT GRADO 2011-2016'!$A:$AA,3+(ROWS($D$10:$D15)),FALSE) -> 1769
C16: Cuarto | D16: =VLOOKUP(D$9&$M$4,'MAT GRADO 2011-2016'!$A:$AA,3+(ROWS($D$10:$D16)),FALSE) -> 2192 | E16: =VLOOKUP(E$9&$M$4,'MAT GRADO 2011-2016'!$A:$AA,3+(ROWS($D$10:$D16)),FALSE) -> 1903 | F16: =VLOOKUP(F$9&$M$4,'MAT GRADO 2011-2016'!$A:$AA,3+(ROWS($D$10:$D16)),FALSE) -> 1916 | G16: =VLOOKUP(G$9&$M$4,'MAT GRADO 2011-2016'!$A:$AA,3+(ROWS($D$10:$D16)),FALSE) -> 1875 | H16: =VLOOKUP(H$9&$M$4,'MAT GRADO 2011-2016'!$A:$AA,3+(ROWS($D$10:$D16)),FALSE) -> 1992 | I16: =VLOOKUP(I$9&$M$4,'MAT GRADO 2011-2016'!$A:$AA,3+(ROWS($D$10:$D16)),FALSE) -> 1954 | J16: =VLOOKUP(J$9&$M$4,'MAT GRADO 2011-2016'!$A:$AA,3+(ROWS($D$10:$D16)),FALSE) -> 1908 | K16: =VLOOKUP(K$9&$M$4,'MAT GRADO 2011-2016'!$A:$AA,3+(ROWS($D$10:$D16)),FALSE) -> 1856
C17: Quinto | D17: =VLOOKUP(D$9&$M$4,'MAT GRADO 2011-2016'!$A:$AA,3+(ROWS($D$10:$D17)),FALSE) -> 2367 | E17: =VLOOKUP(E$9&$M$4,'MAT GRADO 2011-2016'!$A:$AA,3+(ROWS($D$10:$D17)),FALSE) -> 2194 | F17: =VLOOKUP(F$9&$M$4,'MAT GRADO 2011-2016'!$A:$AA,3+(ROWS($D$10:$D17)),FALSE) -> 1948 | G17: =VLOOKUP(G$9&$M$4,'MAT GRADO 2011-2016'!$A:$AA,3+(ROWS($D$10:$D17)),FALSE) -> 1909 | H17: =VLOOKUP(H$9&$M$4,'MAT GRADO 2011-2016'!$A:$AA,3+(ROWS($D$10:$D17)),FALSE) -> 2033 | I17: =VLOOKUP(I$9&$M$4,'MAT GRADO 2011-2016'!$A:$AA,3+(ROWS($D$10:$D17)),FALSE) -> 1934 | J17: =VLOOKUP(J$9&$M$4,'MAT GRADO 2011-2016'!$A:$AA,3+(ROWS($D$10:$D17)),FALSE) -> 1980 | K17: =VLOOKUP(K$9&$M$4,'MAT GRADO 2011-2016'!$A:$AA,3+(ROWS($D$10:$D17)),FALSE) -> 1980
C18: Sexto | D18: =VLOOKUP(D$9&$M$4,'MAT GRADO 2011-2016'!$A:$AA,3+(ROWS($D$10:$D18)),FALSE) -> 2908 | E18: =VLOOKUP(E$9&$M$4,'MAT GRADO 2011-2016'!$A:$AA,3+(ROWS($D$10:$D18)),FALSE) -> 2653 | F18: =VLOOKUP(F$9&$M$4,'MAT GRADO 2011-2016'!$A:$AA,3+(ROWS($D$10:$D18)),FALSE) -> 2545 | G18: =VLOOKUP(G$9&$M$4,'MAT GRADO 2011-2016'!$A:$AA,3+(ROWS($D$10:$D18)),FALSE) -> 2379 | H18: =VLOOKUP(H$9&$M$4,'MAT GRADO 2011-2016'!$A:$AA,3+(ROWS($D$10:$D18)),FALSE) -> 2362 | I18: =VLOOKUP(I$9&$M$4,'MAT GRADO 2011-2016'!$A:$AA,3+(ROWS($D$10:$D18)),FALSE) -> 2338 | J18: =VLOOKUP(J$9&$M$4,'MAT GRADO 2011-2016'!$A:$AA,3+(ROWS($D$10:$D18)),FALSE) -> 2276 | K18: =VLOOKUP(K$9&$M$4,'MAT GRADO 2011-2016'!$A:$AA,3+(ROWS($D$10:$D18)),FALSE) -> 2304
C19: Séptimo | D19: =VLOOKUP(D$9&$M$4,'MAT GRADO 2011-2016'!$A:$AA,3+(ROWS($D$10:$D19)),FALSE) -> 2680 | E19: =VLOOKUP(E$9&$M$4,'MAT GRADO 2011-2016'!$A:$AA,3+(ROWS($D$10:$D19)),FALSE) -> 2580 | F19: =VLOOKUP(F$9&$M$4,'MAT GRADO 2011-2016'!$A:$AA,3+(ROWS($D$10:$D19)),FALSE) -> 2625 | G19: =VLOOKUP(G$9&$M$4,'MAT GRADO 2011-2016'!$A:$AA,3+(ROWS($D$10:$D19)),FALSE) -> 2364 | H19: =VLOOKUP(H$9&$M$4,'MAT GRADO 2011-2016'!$A:$AA,3+(ROWS($D$10:$D19)),FALSE) -> 2240 | I19: =VLOOKUP(I$9&$M$4,'MAT GRADO 2011-2016'!$A:$AA,3+(ROWS($D$10:$D19)),FALSE) -> 2180 | J19: =VLOOKUP(J$9&$M$4,'MAT GRADO 2011-2016'!$A:$AA,3+(ROWS($D$10:$D19)),FALSE) -> 2066 | K19: =VLOOKUP(K$9&$M$4,'MAT GRADO 2011-2016'!$A:$AA,3+(ROWS($D$10:$D19)),FALSE) -> 2147
C20: Octavo | D20: =VLOOKUP(D$9&$M$4,'MAT GRADO 2011-2016'!$A:$AA,3+(ROWS($D$10:$D20)),FALSE) -> 2483 | E20: =VLOOKUP(E$9&$M$4,'MAT GRADO 2011-2016'!$A:$AA,3+(ROWS($D$10:$D20)),FALSE) -> 2456 | F20: =VLOOKUP(F$9&$M$4,'MAT GRADO 2011-2016'!$A:$AA,3+(ROWS($D$10:$D20)),FALSE) -> 2466 | G20: =VLOOKUP(G$9&$M$4,'MAT GRADO 2011-2016'!$A:$AA,3+(ROWS($D$10:$D20)),FALSE) -> 2407 | H20: =VLOOKUP(H$9&$M$4,'MAT GRADO 2011-2016'!$A:$AA,3+(ROWS($D$10:$D20)),FALSE) -> 2205 | I20: =VLOOKUP(I$9&$M$4,'MAT GRADO 2011-2016'!$A:$AA,3+(ROWS($D$10:$D20)),FALSE) -> 2055 | J20: =VLOOKUP(J$9&$M$4,'MAT GRADO 2011-2016'!$A:$AA,3+(ROWS($D$10:$D20)),FALSE) -> 2024 | K20: =VLOOKUP(K$9&$M$4,'MAT GRADO 2011-2016'!$A:$AA,3+(ROWS($D$10:$D20)),FALSE) -> 1945
C21: Noveno | D21: =VLOOKUP(D$9&$M$4,'MAT GRADO 2011-2016'!$A:$AA,3+(ROWS($D$10:$D21)),FALSE) -> 2524 | E21: =VLOOKUP(E$9&$M$4,'MAT GRADO 2011-2016'!$A:$AA,3+(ROWS($D$10:$D21)),FALSE) -> 2287 | F21: =VLOOKUP(F$9&$M$4,'MAT GRADO 2011-2016'!$A:$AA,3+(ROWS($D$10:$D21)),FALSE) -> 2223 | G21: =VLOOKUP(G$9&$M$4,'MAT GRADO 2011-2016'!$A:$AA,3+(ROWS($D$10:$D21)),FALSE) -> 2253 | H21: =VLOOKUP(H$9&$M$4,'MAT GRADO 2011-2016'!$A:$AA,3+(ROWS($D$10:$D21)),FALSE) -> 2185 | I21: =VLOOKUP(I$9&$M$4,'MAT GRADO 2011-2016'!$A:$AA,3+(ROWS($D$10:$D21)),FALSE) -> 2038 | J21: =VLOOKUP(J$9&$M$4,'MAT GRADO 2011-2016'!$A:$AA,3+(ROWS($D$10:$D21)),FALSE) -> 1850 | K21: =VLOOKUP(K$9&$M$4,'MAT GRADO 2011-2016'!$A:$AA,3+(ROWS($D$10:$D21)),FALSE) -> 1818
C22: Décimo | D22: =VLOOKUP(D$9&$M$4,'MAT GRADO 2011-2016'!$A:$AA,3+(ROWS($D$10:$D22)),FALSE) -> 2483 | E22: =VLOOKUP(E$9&$M$4,'MAT GRADO 2011-2016'!$A:$AA,3+(ROWS($D$10:$D22)),FALSE) -> 2296 | F22: =VLOOKUP(F$9&$M$4,'MAT GRADO 2011-2016'!$A:$AA,3+(ROWS($D$10:$D22)),FALSE) -> 2370 | G22: =VLOOKUP(G$9&$M$4,'MAT GRADO 2011-2016'!$A:$AA,3+(ROWS($D$10:$D22)),FALSE) -> 2086 | H22: =VLOOKUP(H$9&$M$4,'MAT GRADO 2011-2016'!$A:$AA,3+(ROWS($D$10:$D22)),FALSE) -> 2139 | I22: =VLOOKUP(I$9&$M$4,'MAT GRADO 2011-2016'!$A:$AA,3+(ROWS($D$10:$D22)),FALSE) -> 2075 | J22: =VLOOKUP(J$9&$M$4,'MAT GRADO 2011-2016'!$A:$AA,3+(ROWS($D$10:$D22)),FALSE) -> 1926 | K22: =VLOOKUP(K$9&$M$4,'MAT GRADO 2011-2016'!$A:$AA,3+(ROWS($D$10:$D22)),FALSE) -> 1783
C23: Once | D23: =VLOOKUP(D$9&$M$4,'MAT GRADO 2011-2016'!$A:$AA,3+(ROWS($D$10:$D23)),FALSE) -> 2359 | E23: =VLOOKUP(E$9&$M$4,'MAT GRADO 2011-2016'!$A:$AA,3+(ROWS($D$10:$D23)),FALSE) -> 2129 | F23: =VLOOKUP(F$9&$M$4,'MAT GRADO 2011-2016'!$A:$AA,3+(ROWS($D$10:$D23)),FALSE) -> 1934 | G23: =VLOOKUP(G$9&$M$4,'MAT GRADO 2011-2016'!$A:$AA,3+(ROWS($D$10:$D23)),FALSE) -> 1906 | H23: =VLOOKUP(H$9&$M$4,'MAT GRADO 2011-2016'!$A:$AA,3+(ROWS($D$10:$D23)),FALSE) -> 1772 | I23: =VLOOKUP(I$9&$M$4,'MAT GRADO 2011-2016'!$A:$AA,3+(ROWS($D$10:$D23)),FALSE) -> 1786 | J23: =VLOOKUP(J$9&$M$4,'MAT GRADO 2011-2016'!$A:$AA,3+(ROWS($D$10:$D23)),FALSE) -> 1746 | K23: =VLOOKUP(K$9&$M$4,'MAT GRADO 2011-2016'!$A:$AA,3+(ROWS($D$10:$D23)),FALSE) -> 1609
C24: Doce - Normal | D24: =VLOOKUP(D$9&$M$4,'MAT GRADO 2011-2016'!$A:$AA,3+(ROWS($D$10:$D24)),FALSE) -> 0 | E24: =VLOOKUP(E$9&$M$4,'MAT GRADO 2011-2016'!$A:$AA,3+(ROWS($D$10:$D24)),FALSE) -> 0 | F24: =VLOOKUP(F$9&$M$4,'MAT GRADO 2011-2016'!$A:$AA,3+(ROWS($D$10:$D24)),FALSE) -> 0 | G24: =VLOOKUP(G$9&$M$4,'MAT GRADO 2011-2016'!$A:$AA,3+(ROWS($D$10:$D24)),FALSE) -> 0 | H24: =VLOOKUP(H$9&$M$4,'MAT GRADO 2011-2016'!$A:$AA,3+(ROWS($D$10:$D24)),FALSE) -> 0 | I24: =VLOOKUP(I$9&$M$4,'MAT GRADO 2011-2016'!$A:$AA,3+(ROWS($D$10:$D24)),FALSE) -> 0 | J24: =VLOOKUP(J$9&$M$4,'MAT GRADO 2011-2016'!$A:$AA,3+(ROWS($D$10:$D24)),FALSE) -> 0 | K24: =VLOOKUP(K$9&$M$4,'MAT GRADO 2011-2016'!$A:$AA,3+(ROWS($D$10:$D24)),FALSE) -> 0
C25: Trece - Normal | D25: =VLOOKUP(D$9&$M$4,'MAT GRADO 2011-2016'!$A:$AA,3+(ROWS($D$10:$D25)),FALSE) -> 0 | E25: =VLOOKUP(E$9&$M$4,'MAT GRADO 2011-2016'!$A:$AA,3+(ROWS($D$10:$D25)),FALSE) -> 0 | F25: =VLOOKUP(F$9&$M$4,'MAT GRADO 2011-2016'!$A:$AA,3+(ROWS($D$10:$D25)),FALSE) -> 0 | G25: =VLOOKUP(G$9&$M$4,'MAT GRADO 2011-2016'!$A:$AA,3+(ROWS($D$10:$D25)),FALSE) -> 0 | H25: =VLOOKUP(H$9&$M$4,'MAT GRADO 2011-2016'!$A:$AA,3+(ROWS($D$10:$D25)),FALSE) -> 0 | I25: =VLOOKUP(I$9&$M$4,'MAT GRADO 2011-2016'!$A:$AA,3+(ROWS($D$10:$D25)),FALSE) -> 0 | J25: =VLOOKUP(J$9&$M$4,'MAT GRADO 2011-2016'!$A:$AA,3+(ROWS($D$10:$D25)),FALSE) -> 0 | K25: =VLOOKUP(K$9&$M$4,'MAT GRADO 2011-2016'!$A:$AA,3+(ROWS($D$10:$D25)),FALSE) -> 0
C26: Ciclo 1 (Grados 1,2,3) | D26: =VLOOKUP(D$9&$M$4,'MAT GRADO 2011-2016'!$A:$AA,3+(ROWS($D$10:$D26)),FALSE) -> 0 | E26: =VLOOKUP(E$9&$M$4,'MAT GRADO 2011-2016'!$A:$AA,3+(ROWS($D$10:$D26)),FALSE) -> 0 | F26: =VLOOKUP(F$9&$M$4,'MAT GRADO 2011-2016'!$A:$AA,3+(ROWS($D$10:$D26)),FALSE) -> 0 | G26: =VLOOKUP(G$9&$M$4,'MAT GRADO 2011-2016'!$A:$AA,3+(ROWS($D$10:$D26)),FALSE) -> 0 | H26: =VLOOKUP(H$9&$M$4,'MAT GRADO 2011-2016'!$A:$AA,3+(ROWS($D$10:$D26)),FALSE) -> 0 | I26: =VLOOKUP(I$9&$M$4,'MAT GRADO 2011-2016'!$A:$AA,3+(ROWS($D$10:$D26)),FALSE) -> 0 | J26: =VLOOKUP(J$9&$M$4,'MAT GRADO 2011-2016'!$A:$AA,3+(ROWS($D$10:$D26)),FALSE) -> 0 | K26: =VLOOKUP(K$9&$M$4,'MAT GRADO 2011-2016'!$A:$AA,3+(ROWS($D$10:$D26)),FALSE) -> 0
C27: Ciclo 2 (Grados 4,5) | D27: =VLOOKUP(D$9&$M$4,'MAT GRADO 2011-2016'!$A:$AA,3+(ROWS($D$10:$D27)),FALSE) -> 0 | E27: =VLOOKUP(E$9&$M$4,'MAT GRADO 2011-2016'!$A:$AA,3+(ROWS($D$10:$D27)),FALSE) -> 0 | F27: =VLOOKUP(F$9&$M$4,'MAT GRADO 2011-2016'!$A:$AA,3+(ROWS($D$10:$D27)),FALSE) -> 0 | G27: =VLOOKUP(G$9&$M$4,'MAT GRADO 2011-2016'!$A:$AA,3+(ROWS($D$10:$D27)),FALSE) -> 0 | H27: =VLOOKUP(H$9&$M$4,'MAT GRADO 2011-2016'!$A:$AA,3+(ROWS($D$10:$D27)),FALSE) -> 0 | I27: =VLOOKUP(I$9&$M$4,'MAT GRADO 2011-2016'!$A:$AA,3+(ROWS($D$10:$D27)),FALSE) -> 0 | J27: =VLOOKUP(J$9&$M$4,'MAT GRADO 2011-2016'!$A:$AA,3+(ROWS($D$10:$D27)),FALSE) -> 0 | K27: =VLOOKUP(K$9&$M$4,'MAT GRADO 2011-2016'!$A:$AA,3+(ROWS($D$10:$D27)),FALSE) -> 188
C28: Ciclo 3 (Grados 6,7) | D28: =VLOOKUP(D$9&$M$4,'MAT GRADO 2011-2016'!$A:$AA,3+(ROWS($D$10:$D28)),FALSE) -> 76 | E28: =VLOOKUP(E$9&$M$4,'MAT GRADO 2011-2016'!$A:$AA,3+(ROWS($D$10:$D28)),FALSE) -> 83 | F28: =VLOOKUP(F$9&$M$4,'MAT GRADO 2011-2016'!$A:$AA,3+(ROWS($D$10:$D28)),FALSE) -> 45 | G28: =VLOOKUP(G$9&$M$4,'MAT GRADO 2011-2016'!$A:$AA,3+(ROWS($D$10:$D28)),FALSE) -> 85 | H28: =VLOOKUP(H$9&$M$4,'MAT GRADO 2011-2016'!$A:$AA,3+(ROWS($D$10:$D28)),FALSE) -> 86 | I28: =VLOOKUP(I$9&$M$4,'MAT GRADO 2011-2016'!$A:$AA,3+(ROWS($D$10:$D28)),FALSE) -> 102 | J28: =VLOOKUP(J$9&$M$4,'MAT GRADO 2011-2016'!$A:$AA,3+(ROWS($D$10:$D28)),FALSE) -> 50 | K28: =VLOOKUP(K$9&$M$4,'MAT GRADO 2011-2016'!$A:$AA,3+(ROWS($D$10:$D28)),FALSE) -> 101
C29: Ciclo 4 (Grados 8,9) | D29: =VLOOKUP(D$9&$M$4,'MAT GRADO 2011-2016'!$A:$AA,3+(ROWS($D$10:$D29)),FALSE) -> 151 | E29: =VLOOKUP(E$9&$M$4,'MAT GRADO 2011-2016'!$A:$AA,3+(ROWS($D$10:$D29)),FALSE) -> 147 | F29: =VLOOKUP(F$9&$M$4,'MAT GRADO 2011-2016'!$A:$AA,3+(ROWS($D$10:$D29)),FALSE) -> 85 | G29: =VLOOKUP(G$9&$M$4,'MAT GRADO 2011-2016'!$A:$AA,3+(ROWS($D$10:$D29)),FALSE) -> 142 | H29: =VLOOKUP(H$9&$M$4,'MAT GRADO 2011-2016'!$A:$AA,3+(ROWS($D$10:$D29)),FALSE) -> 158 | I29: =VLOOKUP(I$9&$M$4,'MAT GRADO 2011-2016'!$A:$AA,3+(ROWS($D$10:$D29)),FALSE) -> 107 | J29: =VLOOKUP(J$9&$M$4,'MAT GRADO 2011-2016'!$A:$AA,3+(ROWS($D$10:$D29)),FALSE) -> 102 | K29: =VLOOKUP(K$9&$M$4,'MAT GRADO 2011-2016'!$A:$AA,3+(ROWS($D$10:$D29)),FALSE) -> 150
C30: Ciclo 5 (Grado 10) | D30: =VLOOKUP(D$9&$M$4,'MAT GRADO 2011-2016'!$A:$AA,3+(ROWS($D$10:$D30)),FALSE) -> 155 | E30: =VLOOKUP(E$9&$M$4,'MAT GRADO 2011-2016'!$A:$AA,3+(ROWS($D$10:$D30)),FALSE) -> 186 | F30: =VLOOKUP(F$9&$M$4,'MAT GRADO 2011-2016'!$A:$AA,3+(ROWS($D$10:$D30)),FALSE) -> 156 | G30: =VLOOKUP(G$9&$M$4,'MAT GRADO 2011-2016'!$A:$AA,3+(ROWS($D$10:$D30)),FALSE) -> 201 | H30: =VLOOKUP(H$9&$M$4,'MAT GRADO 2011-2016'!$A:$AA,3+(ROWS($D$10:$D30)),FALSE) -> 200 | I30: =VLOOKUP(I$9&$M$4,'MAT GRADO 2011-2016'!$A:$AA,3+(ROWS($D$10:$D30)),FALSE) -> 170 | J30: =VLOOKUP(J$9&$M$4,'MAT GRADO 2011-2016'!$A:$AA,3+(ROWS($D$10:$D30)),FALSE) -> 131 | K30: =VLOOKUP(K$9&$M$4,'MAT GRADO 2011-2016'!$A:$AA,3+(ROWS($D$10:$D30)),FALSE) -> 171
C31: Ciclo 6 (Grado 11) | D31: =VLOOKUP(D$9&$M$4,'MAT GRADO 2011-2016'!$A:$AA,3+(ROWS($D$10:$D31)),FALSE) -> 2 | E31: =VLOOKUP(E$9&$M$4,'MAT GRADO 2011-2016'!$A:$AA,3+(ROWS($D$10:$D31)),FALSE) -> 1 | F31: =VLOOKUP(F$9&$M$4,'MAT GRADO 2011-2016'!$A:$AA,3+(ROWS($D$10:$D31)),FALSE) -> 86 | G31: =VLOOKUP(G$9&$M$4,'MAT GRADO 2011-2016'!$A:$AA,3+(ROWS($D$10:$D31)),FALSE) -> 0 | H31: =VLOOKUP(H$9&$M$4,'MAT GRADO 2011-2016'!$A:$AA,3+(ROWS($D$10:$D31)),FALSE) -> 0 | I31: =VLOOKUP(I$9&$M$4,'MAT GRADO 2011-2016'!$A:$AA,3+(ROWS($D$10:$D31)),FALSE) -> 0 | J31: =VLOOKUP(J$9&$M$4,'MAT GRADO 2011-2016'!$A:$AA,3+(ROWS($D$10:$D31)),FALSE) -> 0 | K31: =VLOOKUP(K$9&$M$4,'MAT GRADO 2011-2016'!$A:$AA,3+(ROWS($D$10:$D31)),FALSE) -> 24
C32: Aceleración | D32: =VLOOKUP(D$9&$M$4,'MAT GRADO 2011-2016'!$A:$AA,3+(ROWS($D$10:$D32)),FALSE) -> 76 | E32: =VLOOKUP(E$9&$M$4,'MAT GRADO 2011-2016'!$A:$AA,3+(ROWS($D$10:$D32)),FALSE) -> 126 | F32: =VLOOKUP(F$9&$M$4,'MAT GRADO 2011-2016'!$A:$AA,3+(ROWS($D$10:$D32)),FALSE) -> 180 | G32: =VLOOKUP(G$9&$M$4,'MAT GRADO 2011-2016'!$A:$AA,3+(ROWS($D$10:$D32)),FALSE) -> 166 | H32: =VLOOKUP(H$9&$M$4,'MAT GRADO 2011-2016'!$A:$AA,3+(ROWS($D$10:$D32)),FALSE) -> 190 | I32: =VLOOKUP(I$9&$M$4,'MAT GRADO 2011-2016'!$A:$AA,3+(ROWS($D$10:$D32)),FALSE) -> 137 | J32: =VLOOKUP(J$9&$M$4,'MAT GRADO 2011-2016'!$A:$AA,3+(ROWS($D$10:$D32)),FALSE) -> 168 | K32: =VLOOKUP(K$9&$M$4,'MAT GRADO 2011-2016'!$A:$AA,3+(ROWS($D$10:$D32)),FALSE) -> 159
C33: TOTAL | D33: =SUM(D10:D32) -> 28054 | E33: 26414 | F33: 26880 | G33: 26084 | H33: 25864 | I33: 24496 | J33: 23738 | K33: =VLOOKUP(K$9&$M$4,'MAT GRADO 2011-2016'!$A:$AA,3+(ROWS($D$10:$D33)),FALSE) -> 24113
C34: Fuente: Anexo 6A. SED Oficina Asesora de Planeación
C40: Perfil: | E40: =E4 -> Puente Aranda | J40: Numero: | M40: =VLOOKUP($E$4,'Localidades colegio y sedes '!$C:$D,2,FALSE) -> 16
C41: Matrícula por Edad
C43: Rango de Edad | D43: 2012 | E43: 2013 | F43: 2014 | G43: 2015 | H43: 2016 | I43: 2017 | J43: 2018 | K43: 2019
C44: 5 años y menos | D44: =VLOOKUP(D$9&$M$4,'MAT EDAD 2011-2018'!$A:$AA,3+(ROWS($D$44:$D44)),FALSE) -> 2092 | E44: =VLOOKUP(E$9&$M$4,'MAT EDAD 2011-2018'!$A:$AA,3+(ROWS($D$44:$D44)),FALSE) -> 1624 | F44: =VLOOKUP(F$9&$M$4,'MAT EDAD 2011-2018'!$A:$AA,3+(ROWS($D$44:$D44)),FALSE) -> 2631 | G44: =VLOOKUP(G$9&$M$4,'MAT EDAD 2011-2018'!$A:$AA,3+(ROWS($D$44:$D44)),FALSE) -> 2380 | H44: =VLOOKUP(H$9&$M$4,'MAT EDAD 2011-2018'!$A:$AA,3+(ROWS($D$44:$D44)),FALSE) -> 2719 | I44: =VLOOKUP(I$9&$M$4,'MAT EDAD 2011-2018'!$A:$AA,3+(ROWS($D$44:$D44)),FALSE) -> 2154 | J44: =VLOOKUP(J$9&$M$4,'MAT EDAD 2011-2018'!$A:$AA,3+(ROWS($D$44:$D44)),FALSE) -> 2149 | K44: =VLOOKUP(K$9&$M$4,'MAT EDAD 2011-2018'!$A:$AA,3+(ROWS($D$44:$D44)),FALSE) -> 1674
C45: 6-10 años | D45: =VLOOKUP(D$9&$M$4,'MAT EDAD 2011-2018'!$A:$AA,3+(ROWS($D$44:$D45)),FALSE) -> 9688 | E45: =VLOOKUP(E$9&$M$4,'MAT EDAD 2011-2018'!$A:$AA,3+(ROWS($D$44:$D45)),FALSE) -> 8820 | F45: =VLOOKUP(F$9&$M$4,'MAT EDAD 2011-2018'!$A:$AA,3+(ROWS($D$44:$D45)),FALSE) -> 8963 | G45: =VLOOKUP(G$9&$M$4,'MAT EDAD 2011-2018'!$A:$AA,3+(ROWS($D$44:$D45)),FALSE) -> 8584 | H45: =VLOOKUP(H$9&$M$4,'MAT EDAD 2011-2018'!$A:$AA,3+(ROWS($D$44:$D45)),FALSE) -> 8880 | I45: =VLOOKUP(I$9&$M$4,'MAT EDAD 2011-2018'!$A:$AA,3+(ROWS($D$44:$D45)),FALSE) -> 8375 | J45: =VLOOKUP(J$9&$M$4,'MAT EDAD 2011-2018'!$A:$AA,3+(ROWS($D$44:$D45)),FALSE) -> 8249 | K45: =VLOOKUP(K$9&$M$4,'MAT EDAD 2011-2018'!$A:$AA,3+(ROWS($D$44:$D45)),FALSE) -> 8059
C46: 11-14 años | D46: =VLOOKUP(D$9&$M$4,'MAT EDAD 2011-2018'!$A:$AA,3+(ROWS($D$44:$D46)),FALSE) -> 10206 | E46: =VLOOKUP(E$9&$M$4,'MAT EDAD 2011-2018'!$A:$AA,3+(ROWS($D$44:$D46)),FALSE) -> 9359 | F46: =VLOOKUP(F$9&$M$4,'MAT EDAD 2011-2018'!$A:$AA,3+(ROWS($D$44:$D46)),FALSE) -> 9028 | G46: =VLOOKUP(G$9&$M$4,'MAT EDAD 2011-2018'!$A:$AA,3+(ROWS($D$44:$D46)),FALSE) -> 8459 | H46: =VLOOKUP(H$9&$M$4,'MAT EDAD 2011-2018'!$A:$AA,3+(ROWS($D$44:$D46)),FALSE) -> 8235 | I46: =VLOOKUP(I$9&$M$4,'MAT EDAD 2011-2018'!$A:$AA,3+(ROWS($D$44:$D46)),FALSE) -> 7897 | J46: =VLOOKUP(J$9&$M$4,'MAT EDAD 2011-2018'!$A:$AA,3+(ROWS($D$44:$D46)),FALSE) -> 7661 | K46: =VLOOKUP(K$9&$M$4,'MAT EDAD 2011-2018'!$A:$AA,3+(ROWS($D$44:$D46)),FALSE) -> 7755
C47: 15 y 16 años | D47: =VLOOKUP(D$9&$M$4,'MAT EDAD 2011-2018'!$A:$AA,3+(ROWS($D$44:$D47)),FALSE) -> 4723 | E47: =VLOOKUP(E$9&$M$4,'MAT EDAD 2011-2018'!$A:$AA,3+(ROWS($D$44:$D47)),FALSE) -> 4709 | F47: =VLOOKUP(F$9&$M$4,'MAT EDAD 2011-2018'!$A:$AA,3+(ROWS($D$44:$D47)),FALSE) -> 4630 | G47: =VLOOKUP(G$9&$M$4,'MAT EDAD 2011-2018'!$A:$AA,3+(ROWS($D$44:$D47)),FALSE) -> 4609 | H47: =VLOOKUP(H$9&$M$4,'MAT EDAD 2011-2018'!$A:$AA,3+(ROWS($D$44:$D47)),FALSE) -> 4378 | I47: =VLOOKUP(I$9&$M$4,'MAT EDAD 2011-2018'!$A:$AA,3+(ROWS($D$44:$D47)),FALSE) -> 4128 | J47: =VLOOKUP(J$9&$M$4,'MAT EDAD 2011-2018'!$A:$AA,3+(ROWS($D$44:$D47)),FALSE) -> 3855 | K47: =VLOOKUP(K$9&$M$4,'MAT EDAD 2011-2018'!$A:$AA,3+(ROWS($D$44:$D47)),FALSE) -> 3738
C48: 17 y más años | D48: =VLOOKUP(D$9&$M$4,'MAT EDAD 2011-2018'!$A:$AA,3+(ROWS($D$44:$D48)),FALSE) -> 1345 | E48: =VLOOKUP(E$9&$M$4,'MAT EDAD 2011-2018'!$A:$AA,3+(ROWS($D$44:$D48)),FALSE) -> 1902 | F48: =VLOOKUP(F$9&$M$4,'MAT EDAD 2011-2018'!$A:$AA,3+(ROWS($D$44:$D48)),FALSE) -> 1628 | G48: =VLOOKUP(G$9&$M$4,'MAT EDAD 2011-2018'!$A:$AA,3+(ROWS($D$44:$D48)),FALSE) -> 2052 | H48: =VLOOKUP(H$9&$M$4,'MAT EDAD 2011-2018'!$A:$AA,3+(ROWS($D$44:$D48)),FALSE) -> 1652 | I48: =VLOOKUP(I$9&$M$4,'MAT EDAD 2011-2018'!$A:$AA,3+(ROWS($D$44:$D48)),FALSE) -> 1942 | J48: =VLOOKUP(J$9&$M$4,'MAT EDAD 2011-2018'!$A:$AA,3+(ROWS($D$44:$D48)),FALSE) -> 1824 | K48: =VLOOKUP(K$9&$M$4,'MAT EDAD 2011-2018'!$A:$AA,3+(ROWS($D$44:$D48)),FALSE) -> 2887
C49: TOTAL | D49: =SUM(D44:D48) -> 28054 | E49: =SUM(E44:E48) -> 26414 | F49: 26880 | G49: 26084 | H49: 25864 | I49: 24496 | J49: =SUM(J44:J48) -> 23738 | K49: =VLOOKUP(K$9&$M$4,'MAT EDAD 2011-2018'!$A:$AA,3+(ROWS($D$44:$D49)),FALSE) -> 24113
C50: Fuente: Anexo 6A. SED Oficina Asesora de Planeación
C57: Matrícula por Estrato
C59: ESTRATO | D59: 2011 | E59: 2012 | F59: 2013 | G59: 2014 | H59: 2015 | I59: 2016 | J59: 2017 | K59: 2018 | L59: 2019
C60: 1 | D60: =VLOOKUP(CONCATENATE($C60,$M$4),'MATRICULA SISBEN Y VICTIMAS'!$C:$I,4,FALSE) -> 3137 | E60: =VLOOKUP(CONCATENATE($C60,$M$4),'MATRICULA SISBEN Y VICTIMAS'!$C:$I,5,FALSE) -> 2633 | F60: =VLOOKUP(CONCATENATE($C60,$M$4),'MATRICULA SISBEN Y VICTIMAS'!$C:$I,6,FALSE) -> 2183 | G60: =VLOOKUP(M40,'ESTRATO 2014 2015 2016'!$B$4:$I$24,3,FALSE) -> 774 | H60: =VLOOKUP($M$40,'ESTRATO 2014 2015 2016'!$A$27:$I$47,4,FALSE) -> 763 | I60: =VLOOKUP($M$40,'ESTRATO 2014 2015 2016'!$B$50:$I$70,3,FALSE) -> 944 | J60: =VLOOKUP($M$4,'ESTRATO 2014 2015 2016'!$A$73:$J$93,3,FALSE) -> 1311 | K60: =VLOOKUP($M$4,'ESTRATO 2014 2015 2016'!$A$99:$J$119,3,FALSE) -> 1624 | L60: =VLOOKUP($M$4,'ESTRATO 2014 2015 2016'!$A$124:$J$144,3,FALSE) -> 1845
C61: 2 | D61: =VLOOKUP(CONCATENATE($C61,$M$4),'MATRICULA SISBEN Y VICTIMAS'!$C:$I,4,FALSE) -> 2734 | E61: =VLOOKUP(CONCATENATE($C61,$M$4),'MATRICULA SISBEN Y VICTIMAS'!$C:$I,5,FALSE) -> 2340 | F61: =VLOOKUP(CONCATENATE($C61,$M$4),'MATRICULA SISBEN Y VICTIMAS'!$C:$I,6,FALSE) -> 1970 | G61: =VLOOKUP(M40,'ESTRATO 2014 2015 2016'!$B$4:$I$24,4,FALSE) -> 5312 | H61: =VLOOKUP($M$40,'ESTRATO 2014 2015 2016'!$A$27:$I$47,5,FALSE) -> 5479 | I61: =VLOOKUP($M$40,'ESTRATO 2014 2015 2016'!$B$50:$I$70,4,FALSE) -> 5488 | J61: =VLOOKUP($M$4,'ESTRATO 2014 2015 2016'!$A$73:$J$93,4,FALSE) -> 5750 | K61: =VLOOKUP($M$4,'ESTRATO 2014 2015 2016'!$A$99:$J$119,4,FALSE) -> 5780 | L61: =VLOOKUP($M$4,'ESTRATO 2014 2015 2016'!$A$124:$J$144,4,FALSE) -> 6150
C62: 3 | D62: =VLOOKUP(CONCATENATE($C62,$M$4),'MATRICULA SISBEN Y VICTIMAS'!$C:$I,4,FALSE) -> 6589 | E62: =VLOOKUP(CONCATENATE($C62,$M$4),'MATRICULA SISBEN Y VICTIMAS'!$C:$I,5,FALSE) -> 5294 | F62: =VLOOKUP(CONCATENATE($C62,$M$4),'MATRICULA SISBEN Y VICTIMAS'!$C:$I,6,FALSE) -> 4173 | G62: =VLOOKUP(M40,'ESTRATO 2014 2015 2016'!$B$4:$I$24,5,FALSE) -> 18958 | H62: =VLOOKUP($M$40,'ESTRATO 2014 2015 2016'!$A$27:$I$47,6,FALSE) -> 17667 | I62: =VLOOKUP($M$40,'ESTRATO 2014 2015 2016'!$B$50:$I$70,5,FALSE) -> 16126 | J62: =VLOOKUP($M$4,'ESTRATO 2014 2015 2016'!$A$73:$J$93,5,FALSE) -> 14672 | K62: =VLOOKUP($M$4,'ESTRATO 2014 2015 2016'!$A$99:$J$119,5,FALSE) -> 13906 | L62: =VLOOKUP($M$4,'ESTRATO 2014 2015 2016'!$A$124:$J$144,5,FALSE) -> 13867
C63: 4 | D63: =VLOOKUP(CONCATENATE($C63,$M$4),'MATRICULA SISBEN Y VICTIMAS'!$C:$I,4,FALSE) -> 24 | E63: =VLOOKUP(CONCATENATE($C63,$M$4),'MATRICULA SISBEN Y VICTIMAS'!$C:$I,5,FALSE) -> 20 | F63: =VLOOKUP(CONCATENATE($C63,$M$4),'MATRICULA SISBEN Y VICTIMAS'!$C:$I,6,FALSE) -> 17 | G63: =VLOOKUP(M40,'ESTRATO 2014 2015 2016'!$B$4:$I$24,6,FALSE) -> 160 | H63: =VLOOKUP($M$40,'ESTRATO 2014 2015 2016'!$A$27:$I$47,7,FALSE) -> 135 | I63: =VLOOKUP($M$40,'ESTRATO 2014 2015 2016'!$B$50:$I$70,6,FALSE) -> 133 | J63: =VLOOKUP($M$4,'ESTRATO 2014 2015 2016'!$A$73:$J$93,6,FALSE) -> 138 | K63: =VLOOKUP($M$4,'ESTRATO 2014 2015 2016'!$A$99:$J$119,6,FALSE) -> 144 | L63: =VLOOKUP($M$4,'ESTRATO 2014 2015 2016'!$A$124:$J$144,6,FALSE) -> 152
C64: 5 | D64: =VLOOKUP(CONCATENATE($C64,$M$4),'MATRICULA SISBEN Y VICTIMAS'!$C:$I,4,FALSE) -> 2 | E64: =VLOOKUP(CONCATENATE($C64,$M$4),'MATRICULA SISBEN Y VICTIMAS'!$C:$I,5,FALSE) -> 2 | F64: =VLOOKUP(CONCATENATE($C64,$M$4),'MATRICULA SISBEN Y VICTIMAS'!$C:$I,6,FALSE) -> 3 | G64: =VLOOKUP(M40,'ESTRATO 2014 2015 2016'!$B$4:$I$24,7,FALSE) -> 17 | H64: =VLOOKUP($M$40,'ESTRATO 2014 2015 2016'!$A$27:$I$47,8,FALSE) -> 14 | I64: =VLOOKUP($M$40,'ESTRATO 2014 2015 2016'!$B$50:$I$70,7,FALSE) -> 10 | J64: =VLOOKUP($M$4,'ESTRATO 2014 2015 2016'!$A$73:$J$93,7,FALSE) -> 14 | K64: =VLOOKUP($M$4,'ESTRATO 2014 2015 2016'!$A$99:$J$119,7,FALSE) -> 10 | L64: =VLOOKUP($M$4,'ESTRATO 2014 2015 2016'!$A$124:$J$144,7,FALSE) -> 10
C65: 6 | D65: =VLOOKUP(CONCATENATE($C65,$M$4),'MATRICULA SISBEN Y VICTIMAS'!$C:$I,4,FALSE) -> 0 | E65: =VLOOKUP(CONCATENATE($C65,$M$4),'MATRICULA SISBEN Y VICTIMAS'!$C:$I,5,FALSE) -> 0 | F65: =VLOOKUP(CONCATENATE($C65,$M$4),'MATRICULA SISBEN Y VICTIMAS'!$C:$I,6,FALSE) -> 0 | G65: =VLOOKUP(M40,'ESTRATO 2014 2015 2016'!$B$4:$I$24,8,FALSE) -> 7 | H65: =VLOOKUP($M$40,'ESTRATO 2014 2015 2016'!$A$27:$I$47,9,FALSE) -> 8 | I65: =VLOOKUP($M$40,'ESTRATO 2014 2015 2016'!$B$50:$I$70,8,FALSE) -> 4 | J65: =VLOOKUP($M$4,'ESTRATO 2014 2015 2016'!$A$73:$J$93,8,FALSE) -> 5 | K65: =VLOOKUP($M$4,'ESTRATO 2014 2015 2016'!$A$99:$J$119,8,FALSE) -> 3 | L65: =VLOOKUP($M$4,'ESTRATO 2014 2015 2016'!$A$124:$J$144,8,FALSE) -> 2
C66: Sin Estrato | D66: =VLOOKUP(CONCATENATE($C66,$M$4),'MATRICULA SISBEN Y VICTIMAS'!$C:$I,4,FALSE) -> 17313 | E66: =VLOOKUP(CONCATENATE($C66,$M$4),'MATRICULA SISBEN Y VICTIMAS'!$C:$I,5,FALSE) -> 17765 | F66: =VLOOKUP(CONCATENATE($C66,$M$4),'MATRICULA SISBEN Y VICTIMAS'!$C:$I,6,FALSE) -> 18068 | G66: =VLOOKUP(M40,'ESTRATO 2014 2015 2016'!$B$4:$I$24,2,FALSE) -> 1652 | H66: =VLOOKUP($M$40,'ESTRATO 2014 2015 2016'!$A$27:$I$47,3,FALSE) -> 2018 | I66: =VLOOKUP($M$40,'ESTRATO 2014 2015 2016'!$B$50:$I$70,2,FALSE) -> 3159 | J66: =VLOOKUP($M$4,'ESTRATO 2014 2015 2016'!$A$73:$J$93,9,FALSE) -> 2606 | K66: =VLOOKUP($M$4,'ESTRATO 2014 2015 2016'!$A$99:$J$119,9,FALSE) -> 2271 | L66: =VLOOKUP($M$4,'ESTRATO 2014 2015 2016'!$A$124:$J$144,9,FALSE) -> 2087
C67: TOTAL | D67: =SUM(D60:D66) -> 29799 | E67: 28054 | F67: 26414 | G67: =SUM(G60:G66) -> 26880 | H67: =SUM(H60:H66) -> 26084 | I67: =SUM(I60:I66) -> 25864 | J67: =SUM(J60:J66) -> 24496 | K67: 23738 | L67: =VLOOKUP($M$4,'ESTRATO 2014 2015 2016'!$A$124:$J$144,10,FALSE) -> 24113
C68: Fuente: Oficina Asesora de Planeación Nota: se suman todos los Grados de pre-jardín a once, aceleraciones, adultos y normalistas
C77: Perfil: | E77: =INDICE!I34 -> Puente Aranda | J77: Numero: | M77: =VLOOKUP($E$4,'Localidades colegio y sedes '!$C:$D,2,FALSE) -> 16
C79: Matrícula por Tipo de Institución
C81: TIPO DE INSTITUCIÓN | F81: 2011 | G81: 2012 | H81: 2013 | I81: 2014 | J81: 2015* | K81: 2016 | L81: 2017 | M81: 2018 | N81: 2019
C82: OFICIAL | F82: =VLOOKUP($M$77,'tipo de inst'!$A:$W,3,FALSE) -> 29799 | G82: =VLOOKUP($M$77,'tipo de inst'!$A:$W,6,FALSE) -> 28054 | H82: =VLOOKUP($M$77,'tipo de inst'!$A:$W,9,FALSE) -> 26414 | I82: =VLOOKUP($M$77,'tipo de inst'!$A:$W,12,FALSE) -> 26880 | J82: =VLOOKUP($M$77,'tipo de inst'!$A:$W,15,FALSE) -> 26084 | K82: =VLOOKUP($M$77,'tipo de inst'!$A:$W,18,FALSE) -> 25864 | L82: =VLOOKUP($M$77,'tipo de inst'!$A:$W,21,FALSE) -> 24496 | M82: =VLOOKUP($M$77,'tipo de inst'!$A:$Z,24,FALSE) -> 23738 | N82: =VLOOKUP($M$77,'tipo de inst'!$A:$AC,27,FALSE) -> 24113
C83: EN ADMINISTRACIÓN (ANTES CONCESIÓN) | F83: =VLOOKUP($M$77,'tipo de inst'!$A:$W,4,FALSE) -> 0 | G83: =VLOOKUP($M$77,'tipo de inst'!$A:$W,7,FALSE) -> 0 | H83: =VLOOKUP($M$77,'tipo de inst'!$A:$W,10,FALSE) -> 0 | I83: =VLOOKUP($M$77,'tipo de inst'!$A:$W,13,FALSE) -> 0 | J83: =VLOOKUP($M$77,'tipo de inst'!$A:$W,16,FALSE) -> 0 | K83: =VLOOKUP($M$77,'tipo de inst'!$A:$W,19,FALSE) -> 0 | L83: =VLOOKUP($M$77,'tipo de inst'!$A:$W,22,FALSE) -> 0 | M83: =VLOOKUP($M$77,'tipo de inst'!$A:$Z,25,FALSE) -> 0 | N83: =VLOOKUP($M$77,'tipo de inst'!$A:$AC,28,FALSE) -> 0
C84: CONTRATADA | F84: =VLOOKUP($M$77,'tipo de inst'!$A:$W,5,FALSE) -> 0 | G84: =VLOOKUP($M$77,'tipo de inst'!$A:$W,8,FALSE) -> 0 | H84: =VLOOKUP($M$77,'tipo de inst'!$A:$W,11,FALSE) -> 0 | I84: =VLOOKUP($M$77,'tipo de inst'!$A:$W,14,FALSE) -> 0 | J84: =VLOOKUP($M$77,'tipo de inst'!$A:$W,17,FALSE) -> 0 | K84: =VLOOKUP($M$77,'tipo de inst'!$A:$W,20,FALSE) -> 0 | L84: =VLOOKUP($M$77,'tipo de inst'!$A:$W,23,FALSE) -> 0 | M84: =VLOOKUP($M$77,'tipo de inst'!$A:$Z,26,FALSE) -> 0 | N84: =VLOOKUP($M$77,'tipo de inst'!$A:$AC,29,FALSE) -> 0
C85: Fuente: Anexo 6A. SED Oficina Asesora de Planeación
C86: *En 2015 oficial incluyen los estudiantes de Regimen Especial
C102: Fuente: Anexo 6A. SED Oficina Asesora de Planeación
C103: *En 2015 oficial incluyen los estudiantes de Regimen Especial
C104: Nota: En administración y Contratada tiene como referencia el eje derecho
C111: Perfil: | E111: =E77 -> Puente Aranda | J111: Numero: | M111: =VLOOKUP($E$4,'Localidades colegio y sedes '!$C:$D,2,FALSE) -> 16
C114: Demanda por nivel
E116: Nivel | G116: 2010 | H116: 2011 | I116: 2012 | J116: 2013 | K116: 2014 | L116: 2015 | M116: 2016 | N116: 2017 | O116: 2018 | P116: 2019
E117: Preescolar | G117: =SUM(D151:D153) -> 2224 | H117: 2224 | I117: 2475 | J117: 2031 | K117: 2668 | L117: 3690 | M117: =SUM(J151:J153) -> 3119 | N117: =SUM(K151:K153) -> 3062 | O117: =SUM(L151:L153) -> 2860 | P117: =SUM(M151:M153) -> 3080
E118: Primaria | G118: =SUM(D154:D158) -> 11841 | H118: 11841 | I118: 11782 | J118: 10136 | K118: 9735 | L118: 10841 | M118: =SUM(J154:J158) -> 10769 | N118: =SUM(K154:K158) -> 9896 | O118: =SUM(L154:L158) -> 9655 | P118: =SUM(M154:M158) -> 9598
E119: Secundaria | G119: =SUM(D159:D162) -> 12029 | H119: 12029 | I119: 11939 | J119: 10374 | K119: 9943 | L119: 10603 | M119: =SUM(J159:J162) -> 10289 | N119: =SUM(K159:K162) -> 9548 | O119: =SUM(L159:L162) -> 9024 | P119: =SUM(M159:M162) -> 8810
E120: Media | G120: =SUM(D163:D166) -> 5959 | H120: 5959 | I120: 5631 | J120: 4527 | K120: 4325 | L120: 4350 | M120: =SUM(J163:J166) -> 4301 | N120: =SUM(K163:K166) -> 4139 | O120: =SUM(L163:L166) -> 3902 | P120: =SUM(M163:M166) -> 3566
E121: Educación adultos | G121: =D168 -> 564 | H121: 564 | I121: 385 | J121: 592 | K121: 377 | L121: 538 | M121: =J168 -> 681 | N121: =K168 -> 411 | O121: =L168 -> 349 | P121: =M168 -> 734
E122: Aceleración | G122: =D167 -> 88 | H122: 88 | I122: 78 | J122: 126 | K122: 184 | L122: 315 | M122: =J167 -> 233 | N122: =K167 -> 220 | O122: =L167 -> 205 | P122: =M167 -> 202
E123: Educación especial | G123: =D169 -> 4 | H123: 4 | I123: 0 | J123: 1 | K123: 15 | L123: 38 | M123: =J169 -> 36 | N123: =K169 -> * | O123: =L169 -> * | P123: =M169 -> *
E124: Total | G124: =SUM(G117:G123) -> 32709 | H124: 32709 | I124: 32290 | J124: 27787 | K124: 27247 | L124: 30375 | M124: 29428 | N124: =SUM(N117:N123) -> 27276 | O124: =SUM(O117:O123) -> 25995 | P124: =SUM(P117:P123) -> 25990
E125: Fuente: Oficina Asesora de Planeación
C145: Perfil: | E145: =E77 -> Puente Aranda | J145: Numero: | M145: =VLOOKUP($E$4,'Localidades colegio y sedes '!$C:$D,2,FALSE) -> 16
C148: Demanda por grado
C150: GRADO | D150: 2010 | E150: 2011 | F150: 2012 | G150: 2013 | H150: 2014 | I150: 2015 | J150: 2016 | K150: 2017 | L150: 2018 | M150: 2019
C151: Pre Jardín | D151: =VLOOKUP($E$145&$C151,Demanda!$D:$I,2,FALSE) -> 0 | E151: =VLOOKUP($E$145&$C151,Demanda!$D:$I,3,FALSE) -> 0 | F151: =VLOOKUP($E$145&$C151,Demanda!$D:$I,4,FALSE) -> 0 | G151: =VLOOKUP($E$145&$C151,Demanda!$D:$I,5,FALSE) -> 0 | H151: =VLOOKUP($E$145&$C151,Demanda!$D:$I,6,FALSE) -> 433 | I151: =VLOOKUP($M$145,'DEMANDA 2015'!$A:$AH,2,FALSE) -> 659 | J151: =VLOOKUP($M$145,'DEMANDA 2015'!$A$27:$AH$48,2,FALSE) -> 583 | K151: =VLOOKUP($M$145,'DEMANDA 2015'!$A$52:$AH$74,2,FALSE) -> 401 | L151: =VLOOKUP($E$145,'DEMANDA 2015'!$A$78:$AH$99,2,FALSE) -> 429 | M151: =VLOOKUP($E$145,'DEMANDA 2015'!$A$103:$AH$124,2,FALSE) -> 481
C152: Jardín | D152: =VLOOKUP($E$145&$C152,Demanda!$D:$I,2,FALSE) -> 326 | E152: =VLOOKUP($E$145&$C152,Demanda!$D:$I,3,FALSE) -> 326 | F152: =VLOOKUP($E$145&$C152,Demanda!$D:$I,4,FALSE) -> 295 | G152: =VLOOKUP($E$145&$C152,Demanda!$D:$I,5,FALSE) -> 265 | H152: =VLOOKUP($E$145&$C152,Demanda!$D:$I,6,FALSE) -> 715 | I152: =VLOOKUP($M$145,'DEMANDA 2015'!$A:$AH,3,FALSE) -> 1324 | J152: =VLOOKUP($M$145,'DEMANDA 2015'!$A$27:$AH$48,3,FALSE) -> 876 | K152: =VLOOKUP($M$145,'DEMANDA 2015'!$A$52:$AH$74,3,FALSE) -> 1065 | L152: =VLOOKUP($E$145,'DEMANDA 2015'!$A$78:$AH$99,3,FALSE) -> 907 | M152: =VLOOKUP($E$145,'DEMANDA 2015'!$A$103:$AH$124,3,FALSE) -> 1057
C153: Transición | D153: =VLOOKUP($E$145&$C153,Demanda!$D:$I,2,FALSE) -> 1898 | E153: =VLOOKUP($E$145&$C153,Demanda!$D:$I,3,FALSE) -> 1898 | F153: =VLOOKUP($E$145&$C153,Demanda!$D:$I,4,FALSE) -> 2180 | G153: =VLOOKUP($E$145&$C153,Demanda!$D:$I,5,FALSE) -> 1766 | H153: =VLOOKUP($E$145&$C153,Demanda!$D:$I,6,FALSE) -> 1520 | I153: =VLOOKUP($M$145,'DEMANDA 2015'!$A:$AH,4,FALSE) -> 1707 | J153: =VLOOKUP($M$145,'DEMANDA 2015'!$A$27:$AH$48,4,FALSE) -> 1660 | K153: =VLOOKUP($M$145,'DEMANDA 2015'!$A$52:$AH$74,4,FALSE) -> 1596 | L153: =VLOOKUP($E$145,'DEMANDA 2015'!$A$78:$AH$99,4,FALSE) -> 1524 | M153: =VLOOKUP($E$145,'DEMANDA 2015'!$A$103:$AH$124,4,FALSE) -> 1542
C154: Primero | D154: =VLOOKUP($E$145&$C154,Demanda!$D:$I,2,FALSE) -> 2078 | E154: =VLOOKUP($E$145&$C154,Demanda!$D:$I,3,FALSE) -> 2078 | F154: =VLOOKUP($E$145&$C154,Demanda!$D:$I,4,FALSE) -> 2058 | G154: =VLOOKUP($E$145&$C154,Demanda!$D:$I,5,FALSE) -> 2057 | H154: =VLOOKUP($E$145&$C154,Demanda!$D:$I,6,FALSE) -> 1971 | I154: =VLOOKUP($M$145,'DEMANDA 2015'!$A:$AH,5,FALSE) -> 2176 | J154: =VLOOKUP($M$145,'DEMANDA 2015'!$A$27:$AH$48,5,FALSE) -> 2061 | K154: =VLOOKUP($M$145,'DEMANDA 2015'!$A$52:$AH$74,5,FALSE) -> 1868 | L154: =VLOOKUP($E$145,'DEMANDA 2015'!$A$78:$AH$99,5,FALSE) -> 1839 | M154: =VLOOKUP($E$145,'DEMANDA 2015'!$A$103:$AH$124,5,FALSE) -> 1891
C155: Segundo | D155: =VLOOKUP($E$145&$C155,Demanda!$D:$I,2,FALSE) -> 2206 | E155: =VLOOKUP($E$145&$C155,Demanda!$D:$I,3,FALSE) -> 2206 | F155: =VLOOKUP($E$145&$C155,Demanda!$D:$I,4,FALSE) -> 2292 | G155: =VLOOKUP($E$145&$C155,Demanda!$D:$I,5,FALSE) -> 1842 | H155: =VLOOKUP($E$145&$C155,Demanda!$D:$I,6,FALSE) -> 1950 | I155: =VLOOKUP($M$145,'DEMANDA 2015'!$A:$AH,6,FALSE) -> 2259 | J155: =VLOOKUP($M$145,'DEMANDA 2015'!$A$27:$AH$48,6,FALSE) -> 2079 | K155: =VLOOKUP($M$145,'DEMANDA 2015'!$A$52:$AH$74,6,FALSE) -> 1851 | L155: =VLOOKUP($E$145,'DEMANDA 2015'!$A$78:$AH$99,6,FALSE) -> 1797 | M155: =VLOOKUP($E$145,'DEMANDA 2015'!$A$103:$AH$124,6,FALSE) -> 1820
C156: Tercero | D156: =VLOOKUP($E$145&$C156,Demanda!$D:$I,2,FALSE) -> 2275 | E156: =VLOOKUP($E$145&$C156,Demanda!$D:$I,3,FALSE) -> 2275 | F156: =VLOOKUP($E$145&$C156,Demanda!$D:$I,4,FALSE) -> 2250 | G156: =VLOOKUP($E$145&$C156,Demanda!$D:$I,5,FALSE) -> 2003 | H156: =VLOOKUP($E$145&$C156,Demanda!$D:$I,6,FALSE) -> 1874 | I156: =VLOOKUP($M$145,'DEMANDA 2015'!$A:$AH,7,FALSE) -> 2205 | J156: =VLOOKUP($M$145,'DEMANDA 2015'!$A$27:$AH$48,7,FALSE) -> 2234 | K156: =VLOOKUP($M$145,'DEMANDA 2015'!$A$52:$AH$74,7,FALSE) -> 2019 | L156: =VLOOKUP($E$145,'DEMANDA 2015'!$A$78:$AH$99,7,FALSE) -> 1877 | M156: =VLOOKUP($E$145,'DEMANDA 2015'!$A$103:$AH$124,7,FALSE) -> 1868
C157: Cuarto | D157: =VLOOKUP($E$145&$C157,Demanda!$D:$I,2,FALSE) -> 2549 | E157: =VLOOKUP($E$145&$C157,Demanda!$D:$I,3,FALSE) -> 2549 | F157: =VLOOKUP($E$145&$C157,Demanda!$D:$I,4,FALSE) -> 2440 | G157: =VLOOKUP($E$145&$C157,Demanda!$D:$I,5,FALSE) -> 2007 | H157: =VLOOKUP($E$145&$C157,Demanda!$D:$I,6,FALSE) -> 1958 | I157: =VLOOKUP($M$145,'DEMANDA 2015'!$A:$AH,8,FALSE) -> 2107 | J157: =VLOOKUP($M$145,'DEMANDA 2015'!$A$27:$AH$48,8,FALSE) -> 2195 | K157: =VLOOKUP($M$145,'DEMANDA 2015'!$A$52:$AH$74,8,FALSE) -> 2092 | L157: =VLOOKUP($E$145,'DEMANDA 2015'!$A$78:$AH$99,8,FALSE) -> 2023 | M157: =VLOOKUP($E$145,'DEMANDA 2015'!$A$103:$AH$124,8,FALSE) -> 1945
C158: Quinto | D158: =VLOOKUP($E$145&$C158,Demanda!$D:$I,2,FALSE) -> 2733 | E158: =VLOOKUP($E$145&$C158,Demanda!$D:$I,3,FALSE) -> 2733 | F158: =VLOOKUP($E$145&$C158,Demanda!$D:$I,4,FALSE) -> 2742 | G158: =VLOOKUP($E$145&$C158,Demanda!$D:$I,5,FALSE) -> 2227 | H158: =VLOOKUP($E$145&$C158,Demanda!$D:$I,6,FALSE) -> 1982 | I158: =VLOOKUP($M$145,'DEMANDA 2015'!$A:$AH,9,FALSE) -> 2094 | J158: =VLOOKUP($M$145,'DEMANDA 2015'!$A$27:$AH$48,9,FALSE) -> 2200 | K158: =VLOOKUP($M$145,'DEMANDA 2015'!$A$52:$AH$74,9,FALSE) -> 2066 | L158: =VLOOKUP($E$145,'DEMANDA 2015'!$A$78:$AH$99,9,FALSE) -> 2119 | M158: =VLOOKUP($E$145,'DEMANDA 2015'!$A$103:$AH$124,9,FALSE) -> 2074
C159: Sexto | D159: =VLOOKUP($E$145&$C159,Demanda!$D:$I,2,FALSE) -> 2933 | E159: =VLOOKUP($E$145&$C159,Demanda!$D:$I,3,FALSE) -> 2933 | F159: =VLOOKUP($E$145&$C159,Demanda!$D:$I,4,FALSE) -> 3032 | G159: =VLOOKUP($E$145&$C159,Demanda!$D:$I,5,FALSE) -> 2765 | H159: =VLOOKUP($E$145&$C159,Demanda!$D:$I,6,FALSE) -> 2577 | I159: =VLOOKUP($M$145,'DEMANDA 2015'!$A:$AH,10,FALSE) -> 2748 | J159: =VLOOKUP($M$145,'DEMANDA 2015'!$A$27:$AH$48,10,FALSE) -> 2690 | K159: =VLOOKUP($M$145,'DEMANDA 2015'!$A$52:$AH$74,10,FALSE) -> 2630 | L159: =VLOOKUP($E$145,'DEMANDA 2015'!$A$78:$AH$99,10,FALSE) -> 2482 | M159: =VLOOKUP($E$145,'DEMANDA 2015'!$A$103:$AH$124,10,FALSE) -> 2478
C160: Séptimo | D160: =VLOOKUP($E$145&$C160,Demanda!$D:$I,2,FALSE) -> 2978 | E160: =VLOOKUP($E$145&$C160,Demanda!$D:$I,3,FALSE) -> 2978 | F160: =VLOOKUP($E$145&$C160,Demanda!$D:$I,4,FALSE) -> 3059 | G160: =VLOOKUP($E$145&$C160,Demanda!$D:$I,5,FALSE) -> 2720 | H160: =VLOOKUP($E$145&$C160,Demanda!$D:$I,6,FALSE) -> 2660 | I160: =VLOOKUP($M$145,'DEMANDA 2015'!$A:$AH,11,FALSE) -> 2647 | J160: =VLOOKUP($M$145,'DEMANDA 2015'!$A$27:$AH$48,11,FALSE) -> 2591 | K160: =VLOOKUP($M$145,'DEMANDA 2015'!$A$52:$AH$74,11,FALSE) -> 2384 | L160: =VLOOKUP($E$145,'DEMANDA 2015'!$A$78:$AH$99,11,FALSE) -> 2279 | M160: =VLOOKUP($E$145,'DEMANDA 2015'!$A$103:$AH$124,11,FALSE) -> 2287
C161: Octavo | D161: =VLOOKUP($E$145&$C161,Demanda!$D:$I,2,FALSE) -> 3093 | E161: =VLOOKUP($E$145&$C161,Demanda!$D:$I,3,FALSE) -> 3093 | F161: =VLOOKUP($E$145&$C161,Demanda!$D:$I,4,FALSE) -> 2927 | G161: =VLOOKUP($E$145&$C161,Demanda!$D:$I,5,FALSE) -> 2541 | H161: =VLOOKUP($E$145&$C161,Demanda!$D:$I,6,FALSE) -> 2479 | I161: =VLOOKUP($M$145,'DEMANDA 2015'!$A:$AH,12,FALSE) -> 2709 | J161: =VLOOKUP($M$145,'DEMANDA 2015'!$A$27:$AH$48,12,FALSE) -> 2509 | K161: =VLOOKUP($M$145,'DEMANDA 2015'!$A$52:$AH$74,12,FALSE) -> 2282 | L161: =VLOOKUP($E$145,'DEMANDA 2015'!$A$78:$AH$99,12,FALSE) -> 2222 | M161: =VLOOKUP($E$145,'DEMANDA 2015'!$A$103:$AH$124,12,FALSE) -> 2100
C162: Noveno | D162: =VLOOKUP($E$145&$C162,Demanda!$D:$I,2,FALSE) -> 3025 | E162: =VLOOKUP($E$145&$C162,Demanda!$D:$I,3,FALSE) -> 3025 | F162: =VLOOKUP($E$145&$C162,Demanda!$D:$I,4,FALSE) -> 2921 | G162: =VLOOKUP($E$145&$C162,Demanda!$D:$I,5,FALSE) -> 2348 | H162: =VLOOKUP($E$145&$C162,Demanda!$D:$I,6,FALSE) -> 2227 | I162: =VLOOKUP($M$145,'DEMANDA 2015'!$A:$AH,13,FALSE) -> 2499 | J162: =VLOOKUP($M$145,'DEMANDA 2015'!$A$27:$AH$48,13,FALSE) -> 2499 | K162: =VLOOKUP($M$145,'DEMANDA 2015'!$A$52:$AH$74,13,FALSE) -> 2252 | L162: =VLOOKUP($E$145,'DEMANDA 2015'!$A$78:$AH$99,13,FALSE) -> 2041 | M162: =VLOOKUP($E$145,'DEMANDA 2015'!$A$103:$AH$124,13,FALSE) -> 1945
C163: Décimo | D163: =VLOOKUP($E$145&$C163,Demanda!$D:$I,2,FALSE) -> 3120 | E163: =VLOOKUP($E$145&$C163,Demanda!$D:$I,3,FALSE) -> 3120 | F163: =VLOOKUP($E$145&$C163,Demanda!$D:$I,4,FALSE) -> 2720 | G163: =VLOOKUP($E$145&$C163,Demanda!$D:$I,5,FALSE) -> 2372 | H163: =VLOOKUP($E$145&$C163,Demanda!$D:$I,6,FALSE) -> 2386 | I163: =VLOOKUP($M$145,'DEMANDA 2015'!$A:$AH,14,FALSE) -> 2332 | J163: =VLOOKUP($M$145,'DEMANDA 2015'!$A$27:$AH$48,14,FALSE) -> 2373 | K163: =VLOOKUP($M$145,'DEMANDA 2015'!$A$52:$AH$74,14,FALSE) -> 2284 | L163: =VLOOKUP($E$145,'DEMANDA 2015'!$A$78:$AH$99,14,FALSE) -> 2055 | M163: =VLOOKUP($E$145,'DEMANDA 2015'!$A$103:$AH$124,14,FALSE) -> 1893
C164: Once | D164: =VLOOKUP($E$145&$C164,Demanda!$D:$I,2,FALSE) -> 2839 | E164: =VLOOKUP($E$145&$C164,Demanda!$D:$I,3,FALSE) -> 2839 | F164: =VLOOKUP($E$145&$C164,Demanda!$D:$I,4,FALSE) -> 2911 | G164: =VLOOKUP($E$145&$C164,Demanda!$D:$I,5,FALSE) -> 2155 | H164: =VLOOKUP($E$145&$C164,Demanda!$D:$I,6,FALSE) -> 1939 | I164: =VLOOKUP($M$145,'DEMANDA 2015'!$A:$AH,15,FALSE) -> 2018 | J164: =VLOOKUP($M$145,'DEMANDA 2015'!$A$27:$AH$48,15,FALSE) -> 1928 | K164: =VLOOKUP($M$145,'DEMANDA 2015'!$A$52:$AH$74,15,FALSE) -> 1855 | L164: =VLOOKUP($E$145,'DEMANDA 2015'!$A$78:$AH$99,15,FALSE) -> 1847 | M164: =VLOOKUP($E$145,'DEMANDA 2015'!$A$103:$AH$124,15,FALSE) -> 1673
C165: Doce | D165: =VLOOKUP($E$145&$C165,Demanda!$D:$I,2,FALSE) -> 0 | E165: =VLOOKUP($E$145&$C165,Demanda!$D:$I,3,FALSE) -> 0 | F165: =VLOOKUP($E$145&$C165,Demanda!$D:$I,4,FALSE) -> 0 | G165: =VLOOKUP($E$145&$C165,Demanda!$D:$I,5,FALSE) -> 0 | H165: =VLOOKUP($E$145&$C165,Demanda!$D:$I,6,FALSE) -> 0 | I165: =VLOOKUP($M$145,'DEMANDA 2015'!$A:$AH,16,FALSE) -> 0 | J165: =VLOOKUP($M$145,'DEMANDA 2015'!$A$27:$AH$48,16,FALSE) -> 0 | K165: =VLOOKUP($M$145,'DEMANDA 2015'!$A$52:$AH$74,16,FALSE) -> 0 | L165: =VLOOKUP($E$145,'DEMANDA 2015'!$A$78:$AH$99,16,FALSE) -> 0 | M165: =VLOOKUP($E$145,'DEMANDA 2015'!$A$103:$AH$124,16,FALSE) -> 0
C166: Trece | D166: =VLOOKUP($E$145&$C166,Demanda!$D:$I,2,FALSE) -> 0 | E166: =VLOOKUP($E$145&$C166,Demanda!$D:$I,3,FALSE) -> 0 | F166: =VLOOKUP($E$145&$C166,Demanda!$D:$I,4,FALSE) -> 0 | G166: =VLOOKUP($E$145&$C166,Demanda!$D:$I,5,FALSE) -> 0 | H166: =VLOOKUP($E$145&$C166,Demanda!$D:$I,6,FALSE) -> 0 | I166: =VLOOKUP($M$145,'DEMANDA 2015'!$A:$AH,17,FALSE) -> 0 | J166: =VLOOKUP($M$145,'DEMANDA 2015'!$A$27:$AH$48,17,FALSE) -> 0 | K166: =VLOOKUP($M$145,'DEMANDA 2015'!$A$52:$AH$74,17,FALSE) -> 0 | L166: =VLOOKUP($E$145,'DEMANDA 2015'!$A$78:$AH$99,17,FALSE) -> 0 | M166: =VLOOKUP($E$145,'DEMANDA 2015'!$A$103:$AH$124,17,FALSE) -> 0
C167: Aceleración | D167: =VLOOKUP($E$145&$C167,Demanda!$D:$I,2,FALSE) -> 88 | E167: =VLOOKUP($E$145&$C167,Demanda!$D:$I,3,FALSE) -> 88 | F167: =VLOOKUP($E$145&$C167,Demanda!$D:$I,4,FALSE) -> 78 | G167: =VLOOKUP($E$145&$C167,Demanda!$D:$I,5,FALSE) -> 126 | H167: =VLOOKUP($E$145&$C167,Demanda!$D:$I,6,FALSE) -> 184 | I167: =VLOOKUP($M$145,'DEMANDA 2015'!$A:$AH,32,FALSE) -> 315 | J167: =VLOOKUP($M$145,'DEMANDA 2015'!$A$27:$AH$48,24,FALSE) -> 233 | K167: =VLOOKUP($M$145,'DEMANDA 2015'!$A$52:$AH$74,24,FALSE) -> 220 | L167: =VLOOKUP($E$145,'DEMANDA 2015'!$A$78:$AH$99,24,FALSE) -> 205 | M167: =VLOOKUP($E$145,'DEMANDA 2015'!$A$103:$AH$124,24,FALSE) -> 202
C168: Ciclos de Adultos | D168: =VLOOKUP($E$145&$C168,Demanda!$D:$I,2,FALSE) -> 564 | E168: =VLOOKUP($E$145&$C168,Demanda!$D:$I,3,FALSE) -> 564 | F168: =VLOOKUP($E$145&$C168,Demanda!$D:$I,4,FALSE) -> 385 | G168: =VLOOKUP($E$145&$C168,Demanda!$D:$I,5,FALSE) -> 592 | H168: =VLOOKUP($E$145&$C168,Demanda!$D:$I,6,FALSE) -> 377 | I168: =VLOOKUP($M$145,'DEMANDA 2015'!$A:$AH,31,FALSE) -> 538 | J168: =VLOOKUP($M$145,'DEMANDA 2015'!$A$27:$AH$48,31,FALSE) -> 681 | K168: =VLOOKUP($M$145,'DEMANDA 2015'!$A$52:$AH$74,30,FALSE) -> 411 | L168: =VLOOKUP($E$145,'DEMANDA 2015'!$A$78:$AH$99,30,FALSE) -> 349 | M168: =VLOOKUP($E$145,'DEMANDA 2015'!$A$103:$AH$124,30,FALSE) -> 734
C169: Educación Especial | D169: =VLOOKUP($E$145&$C169,Demanda!$D:$I,2,FALSE) -> 4 | E169: =VLOOKUP($E$145&$C169,Demanda!$D:$I,3,FALSE) -> 4 | F169: =VLOOKUP($E$145&$C169,Demanda!$D:$I,4,FALSE) -> 0 | G169: =VLOOKUP($E$145&$C169,Demanda!$D:$I,5,FALSE) -> 1 | H169: =VLOOKUP($E$145&$C169,Demanda!$D:$I,6,FALSE) -> 15 | I169: =VLOOKUP($M$145,'DEMANDA 2015'!$A:$AH,33,FALSE) -> 38 | J169: =VLOOKUP($M$145,'DEMANDA 2015'!$A$27:$AH$48,33,FALSE) -> 36 | K169: * | L169: * | M169: *
C170: Total | D170: =SUM(D151:D169) -> 32709 | E170: 32709 | F170: 32290 | G170: 27787 | H170: 27247 | I170: =SUM(I151:I169) -> 30375 | J170: =SUM(J151:J169) -> 29428 | K170: =SUM(K151:K169) -> 27276 | L170: =SUM(L151:L169) -> 25995 | M170: =SUM(M151:M169) -> 25990
C171: Fuente: Oficina Asesora de Planeación
C172: *Incluído en los demás grados
C178: Perfil: | E178: =E145 -> Puente Aranda | J178: Numero: | M178: =VLOOKUP($E$4,'Localidades colegio y sedes '!$C:$D,2,FALSE) -> 16
C180: Oferta
C182: OFERTA POR GRADO 2015-2019
C183: GRADO | E183: OFERTA 2015 | F183: OFERTA 2016 | G183: OFERTA 2017 | H183: OFERTA 2018 | I183: OFERTA 2019
C184: Pre -Jardin | E184: =VLOOKUP($M$178,'OFERTA 2015 (2)'!$A:$AH,2,FALSE) -> 515 | F184: =VLOOKUP($M$178,'OFERTA 2015 (2)'!$A$27:$AH$48,2,FALSE) -> 587 | G184: =VLOOKUP($M$178,'OFERTA 2015 (2)'!$A$53:$AH$74,2,FALSE) -> 401 | H184: =VLOOKUP($E$178,'OFERTA 2015 (2)'!$A$78:$AH$99,2,FALSE) -> 432 | I184: =VLOOKUP($E$178,'OFERTA 2015 (2)'!$A$103:$AH$124,2,FALSE) -> 481
C185: Jardín | E185: =VLOOKUP($M$178,'OFERTA 2015 (2)'!$A:$AH,3,FALSE) -> 1009 | F185: =VLOOKUP($M$178,'OFERTA 2015 (2)'!$A$27:$AH$48,3,FALSE) -> 817 | G185: =VLOOKUP($M$178,'OFERTA 2015 (2)'!$A$53:$AH$74,3,FALSE) -> 835 | H185: =VLOOKUP($E$178,'OFERTA 2015 (2)'!$A$78:$AH$99,3,FALSE) -> 836 | I185: =VLOOKUP($E$178,'OFERTA 2015 (2)'!$A$103:$AH$124,3,FALSE) -> 918
C186: Transición | E186: =VLOOKUP($M$178,'OFERTA 2015 (2)'!$A:$AH,4,FALSE) -> 1602 | F186: =VLOOKUP($M$178,'OFERTA 2015 (2)'!$A$27:$AH$48,4,FALSE) -> 1597 | G186: =VLOOKUP($M$178,'OFERTA 2015 (2)'!$A$53:$AH$74,4,FALSE) -> 1531 | H186: =VLOOKUP($E$178,'OFERTA 2015 (2)'!$A$78:$AH$99,4,FALSE) -> 1608 | I186: =VLOOKUP($E$178,'OFERTA 2015 (2)'!$A$103:$AH$124,4,FALSE) -> 1505
C187: Primero | E187: =VLOOKUP($M$178,'OFERTA 2015 (2)'!$A:$AH,5,FALSE) -> 2216 | F187: =VLOOKUP($M$178,'OFERTA 2015 (2)'!$A$27:$AH$48,5,FALSE) -> 1999 | G187: =VLOOKUP($M$178,'OFERTA 2015 (2)'!$A$53:$AH$74,5,FALSE) -> 1983 | H187: =VLOOKUP($E$178,'OFERTA 2015 (2)'!$A$78:$AH$99,5,FALSE) -> 1931 | I187: =VLOOKUP($E$178,'OFERTA 2015 (2)'!$A$103:$AH$124,5,FALSE) -> 1955
C188: Segundo | E188: =VLOOKUP($M$178,'OFERTA 2015 (2)'!$A:$AH,6,FALSE) -> 2266 | F188: =VLOOKUP($M$178,'OFERTA 2015 (2)'!$A$27:$AH$48,6,FALSE) -> 2194 | G188: =VLOOKUP($M$178,'OFERTA 2015 (2)'!$A$53:$AH$74,6,FALSE) -> 1973 | H188: =VLOOKUP($E$178,'OFERTA 2015 (2)'!$A$78:$AH$99,6,FALSE) -> 1952 | I188: =VLOOKUP($E$178,'OFERTA 2015 (2)'!$A$103:$AH$124,6,FALSE) -> 1947
C189: Tercero | E189: =VLOOKUP($M$178,'OFERTA 2015 (2)'!$A:$AH,7,FALSE) -> 2268 | F189: =VLOOKUP($M$178,'OFERTA 2015 (2)'!$A$27:$AH$48,7,FALSE) -> 2250 | G189: =VLOOKUP($M$178,'OFERTA 2015 (2)'!$A$53:$AH$74,7,FALSE) -> 2119 | H189: =VLOOKUP($E$178,'OFERTA 2015 (2)'!$A$78:$AH$99,7,FALSE) -> 2017 | I189: =VLOOKUP($E$178,'OFERTA 2015 (2)'!$A$103:$AH$124,7,FALSE) -> 2006
C190: Cuarto | E190: =VLOOKUP($M$178,'OFERTA 2015 (2)'!$A:$AH,8,FALSE) -> 2173 | F190: =VLOOKUP($M$178,'OFERTA 2015 (2)'!$A$27:$AH$48,8,FALSE) -> 2223 | G190: =VLOOKUP($M$178,'OFERTA 2015 (2)'!$A$53:$AH$74,8,FALSE) -> 2247 | H190: =VLOOKUP($E$178,'OFERTA 2015 (2)'!$A$78:$AH$99,8,FALSE) -> 2218 | I190: =VLOOKUP($E$178,'OFERTA 2015 (2)'!$A$103:$AH$124,8,FALSE) -> 2080
C191: Quinto | E191: =VLOOKUP($M$178,'OFERTA 2015 (2)'!$A:$AH,9,FALSE) -> 2298 | F191: =VLOOKUP($M$178,'OFERTA 2015 (2)'!$A$27:$AH$48,9,FALSE) -> 2347 | G191: =VLOOKUP($M$178,'OFERTA 2015 (2)'!$A$53:$AH$74,9,FALSE) -> 2223 | H191: =VLOOKUP($E$178,'OFERTA 2015 (2)'!$A$78:$AH$99,9,FALSE) -> 2181 | I191: =VLOOKUP($E$178,'OFERTA 2015 (2)'!$A$103:$AH$124,9,FALSE) -> 2136
C192: Sexto | E192: =VLOOKUP($M$178,'OFERTA 2015 (2)'!$A:$AH,10,FALSE) -> 2702 | F192: =VLOOKUP($M$178,'OFERTA 2015 (2)'!$A$27:$AH$48,10,FALSE) -> 2645 | G192: =VLOOKUP($M$178,'OFERTA 2015 (2)'!$A$53:$AH$74,10,FALSE) -> 2503 | H192: =VLOOKUP($E$178,'OFERTA 2015 (2)'!$A$78:$AH$99,10,FALSE) -> 2422 | I192: =VLOOKUP($E$178,'OFERTA 2015 (2)'!$A$103:$AH$124,10,FALSE) -> 2497
C193: Séptimo | E193: =VLOOKUP($M$178,'OFERTA 2015 (2)'!$A:$AH,11,FALSE) -> 2762 | F193: =VLOOKUP($M$178,'OFERTA 2015 (2)'!$A$27:$AH$48,11,FALSE) -> 2541 | G193: =VLOOKUP($M$178,'OFERTA 2015 (2)'!$A$53:$AH$74,11,FALSE) -> 2310 | H193: =VLOOKUP($E$178,'OFERTA 2015 (2)'!$A$78:$AH$99,11,FALSE) -> 2191 | I193: =VLOOKUP($E$178,'OFERTA 2015 (2)'!$A$103:$AH$124,11,FALSE) -> 2300
C194: Octavo | E194: =VLOOKUP($M$178,'OFERTA 2015 (2)'!$A:$AH,12,FALSE) -> 2733 | F194: =VLOOKUP($M$178,'OFERTA 2015 (2)'!$A$27:$AH$48,12,FALSE) -> 2540 | G194: =VLOOKUP($M$178,'OFERTA 2015 (2)'!$A$53:$AH$74,12,FALSE) -> 2271 | H194: =VLOOKUP($E$178,'OFERTA 2015 (2)'!$A$78:$AH$99,12,FALSE) -> 2171 | I194: =VLOOKUP($E$178,'OFERTA 2015 (2)'!$A$103:$AH$124,12,FALSE) -> 2164
C195: Noveno | E195: =VLOOKUP($M$178,'OFERTA 2015 (2)'!$A:$AH,13,FALSE) -> 2645 | F195: =VLOOKUP($M$178,'OFERTA 2015 (2)'!$A$27:$AH$48,13,FALSE) -> 2524 | G195: =VLOOKUP($M$178,'OFERTA 2015 (2)'!$A$53:$AH$74,13,FALSE) -> 2302 | H195: =VLOOKUP($E$178,'OFERTA 2015 (2)'!$A$78:$AH$99,13,FALSE) -> 2202 | I195: =VLOOKUP($E$178,'OFERTA 2015 (2)'!$A$103:$AH$124,13,FALSE) -> 2068
C196: Décimo | E196: =VLOOKUP($M$178,'OFERTA 2015 (2)'!$A:$AH,14,FALSE) -> 2285 | F196: =VLOOKUP($M$178,'OFERTA 2015 (2)'!$A$27:$AH$48,14,FALSE) -> 2329 | G196: =VLOOKUP($M$178,'OFERTA 2015 (2)'!$A$53:$AH$74,14,FALSE) -> 2301 | H196: =VLOOKUP($E$178,'OFERTA 2015 (2)'!$A$78:$AH$99,14,FALSE) -> 2103 | I196: =VLOOKUP($E$178,'OFERTA 2015 (2)'!$A$103:$AH$124,14,FALSE) -> 2001
C197: Once | E197: =VLOOKUP($M$178,'OFERTA 2015 (2)'!$A:$AH,15,FALSE) -> 2162 | F197: =VLOOKUP($M$178,'OFERTA 2015 (2)'!$A$27:$AH$48,15,FALSE) -> 1945 | G197: =VLOOKUP($M$178,'OFERTA 2015 (2)'!$A$53:$AH$74,15,FALSE) -> 2051 | H197: =VLOOKUP($E$178,'OFERTA 2015 (2)'!$A$78:$AH$99,15,FALSE) -> 1940 | I197: =VLOOKUP($E$178,'OFERTA 2015 (2)'!$A$103:$AH$124,15,FALSE) -> 1803
C198: Grado 12 | E198: =VLOOKUP($M$178,'OFERTA 2015 (2)'!$A:$AH,16,FALSE) -> 0 | F198: =VLOOKUP($M$178,'OFERTA 2015 (2)'!$A$27:$AH$48,16,FALSE) -> 0 | G198: =VLOOKUP($M$178,'OFERTA 2015 (2)'!$A$53:$AH$74,16,FALSE) -> 0 | H198: =VLOOKUP($E$178,'OFERTA 2015 (2)'!$A$78:$AH$99,16,FALSE) -> 0 | I198: =VLOOKUP($E$178,'OFERTA 2015 (2)'!$A$103:$AH$124,16,FALSE) -> 0
C199: Grado 13 | E199: =VLOOKUP($M$178,'OFERTA 2015 (2)'!$A:$AH,17,FALSE) -> 0 | F199: =VLOOKUP($M$178,'OFERTA 2015 (2)'!$A$27:$AH$48,17,FALSE) -> 0 | G199: =VLOOKUP($M$178,'OFERTA 2015 (2)'!$A$53:$AH$74,17,FALSE) -> 0 | H199: =VLOOKUP($E$178,'OFERTA 2015 (2)'!$A$78:$AH$99,17,FALSE) -> 0 | I199: =VLOOKUP($E$178,'OFERTA 2015 (2)'!$A$103:$AH$124,17,FALSE) -> 0
C200: Ciclo 1 (grados:1,2,3) | E200: =VLOOKUP($M$178,'OFERTA 2015 (2)'!$A:$AH,18,FALSE) -> 0 | F200: =VLOOKUP($M$178,'OFERTA 2015 (2)'!$A$27:$AH$48,18,FALSE) -> 0 | G200: =VLOOKUP($M$178,'OFERTA 2015 (2)'!$A$53:$AH$74,18,FALSE) -> 0 | H200: =VLOOKUP($E$178,'OFERTA 2015 (2)'!$A$78:$AH$99,18,FALSE) -> 0 | I200: =VLOOKUP($E$178,'OFERTA 2015 (2)'!$A$103:$AH$124,18,FALSE) -> 0
C201: Ciclo 2 (grados:4,5) | E201: =VLOOKUP($M$178,'OFERTA 2015 (2)'!$A:$AH,19,FALSE) -> 0 | F201: =VLOOKUP($M$178,'OFERTA 2015 (2)'!$A$27:$AH$48,19,FALSE) -> 0 | G201: =VLOOKUP($M$178,'OFERTA 2015 (2)'!$A$53:$AH$74,19,FALSE) -> 0 | H201: =VLOOKUP($E$178,'OFERTA 2015 (2)'!$A$78:$AH$99,19,FALSE) -> 0 | I201: =VLOOKUP($E$178,'OFERTA 2015 (2)'!$A$103:$AH$124,19,FALSE) -> 235
C202: Ciclo 3 (grados:6,7) | E202: =VLOOKUP($M$178,'OFERTA 2015 (2)'!$A:$AH,20,FALSE) -> 85 | F202: =VLOOKUP($M$178,'OFERTA 2015 (2)'!$A$27:$AH$48,20,FALSE) -> 95 | G202: =VLOOKUP($M$178,'OFERTA 2015 (2)'!$A$53:$AH$74,20,FALSE) -> 141 | H202: =VLOOKUP($E$178,'OFERTA 2015 (2)'!$A$78:$AH$99,20,FALSE) -> 85 | I202: =VLOOKUP($E$178,'OFERTA 2015 (2)'!$A$103:$AH$124,20,FALSE) -> 125
C203: Ciclo 4 (grados:8,9) | E203: =VLOOKUP($M$178,'OFERTA 2015 (2)'!$A:$AH,21,FALSE) -> 150 | F203: =VLOOKUP($M$178,'OFERTA 2015 (2)'!$A$27:$AH$48,21,FALSE) -> 170 | G203: =VLOOKUP($M$178,'OFERTA 2015 (2)'!$A$53:$AH$74,21,FALSE) -> 170 | H203: =VLOOKUP($E$178,'OFERTA 2015 (2)'!$A$78:$AH$99,21,FALSE) -> 188 | I203: =VLOOKUP($E$178,'OFERTA 2015 (2)'!$A$103:$AH$124,21,FALSE) -> 175
C204: Ciclo 5 (grado:10) | E204: =VLOOKUP($M$178,'OFERTA 2015 (2)'!$A:$AH,22,FALSE) -> 240 | F204: =VLOOKUP($M$178,'OFERTA 2015 (2)'!$A$27:$AH$48,22,FALSE) -> 215 | G204: =VLOOKUP($M$178,'OFERTA 2015 (2)'!$A$53:$AH$74,22,FALSE) -> 215 | H204: =VLOOKUP($E$178,'OFERTA 2015 (2)'!$A$78:$AH$99,22,FALSE) -> 195 | I204: =VLOOKUP($E$178,'OFERTA 2015 (2)'!$A$103:$AH$124,22,FALSE) -> 290
C205: Ciclo 6 (grado: 11) | E205: =VLOOKUP($M$178,'OFERTA 2015 (2)'!$A:$AH,23,FALSE) -> 0 | F205: =VLOOKUP($M$178,'OFERTA 2015 (2)'!$A$27:$AH$48,23,FALSE) -> 2 | G205: =VLOOKUP($M$178,'OFERTA 2015 (2)'!$A$53:$AH$74,23,FALSE) -> 0 | H205: =VLOOKUP($E$178,'OFERTA 2015 (2)'!$A$78:$AH$99,23,FALSE) -> 0 | I205: =VLOOKUP($E$178,'OFERTA 2015 (2)'!$A$103:$AH$124,23,FALSE) -> 32
C206: Aceleración | E206: =VLOOKUP($M$178,'OFERTA 2015 (2)'!$A:$AH,24,FALSE) -> 246 | F206: =VLOOKUP($M$178,'OFERTA 2015 (2)'!$A$27:$AH$48,24,FALSE) -> 198 | G206: =VLOOKUP($M$178,'OFERTA 2015 (2)'!$A$53:$AH$74,24,FALSE) -> 170 | H206: =VLOOKUP($E$178,'OFERTA 2015 (2)'!$A$78:$AH$99,24,FALSE) -> 164 | I206: =VLOOKUP($E$178,'OFERTA 2015 (2)'!$A$103:$AH$124,24,FALSE) -> 202
C207: Educación Especial | E207: =VLOOKUP($M$178,'OFERTA 2015 (2)'!$A:$AH,25,FALSE) -> 30 | F207: =VLOOKUP($M$178,'OFERTA 2015 (2)'!$A$27:$AH$48,25,FALSE) -> 30 | G207: * | H207: * | I207: *
C208: Total general | E208: =SUM(E184:E207) -> 30387 | F208: =SUM(F184:F207) -> 29248 | G208: =SUM(G184:G207) -> 27746 | H208: =SUM(H184:H207) -> 26836 | I208: =SUM(I184:I207) -> 26920
C209: Fuente: SED. Oficina Asesora de Planeación
C210: * Inlcuido en los otros grados
C214: Perfil: | E214: =E178 -> Puente Aranda | J214: Numero: | M214: =VLOOKUP($E$4,'Localidades colegio y sedes '!$C:$D,2,FALSE) -> 16
C216: Oferta Vs Demanda
C218: Nivel | E218: 2011 | H218: 2012 | K218: 2013 | N218: 2014
E219: Oferta | F219: Demanda | G219: Déficit o Superávit | H219: Oferta | I219: Demanda | J219: Déficit o Superávit | K219: Oferta | L219: Demanda | M219: Déficit o Superávit | N219: Oferta | O219: Demanda | P219: Déficit o Superávit
C220: Preescolar | E220: =VLOOKUP($E$178&$C220,Oferta!$C:$J,4,FALSE) -> 2109 | F220: =H117 -> 2224 | G220: =E220-F220 -> -115 | H220: =VLOOKUP($E$178&$C220,Oferta!$C:$J,5,FALSE) -> 2113 | I220: =I117 -> 2475 | J220: =H220-I220 -> -362 | K220: =VLOOKUP($E$178&$C220,Oferta!$C:$H,6,FALSE) -> 2024 | L220: =J117 -> 2031 | M220: =K220-L220 -> -7 | N220: =VLOOKUP($E$178&$C220,Oferta!$C:$I,7,FALSE) -> 2875 | O220: =K117 -> 2668 | P220: =N220-O220 -> 207
C221: Primaria | E221: =VLOOKUP($E$178&$C221,Oferta!$C:$J,4,FALSE) -> 12753 | F221: 11841 | G221: =E221-F221 -> 912 | H221: =VLOOKUP($E$178&$C221,Oferta!$C:$J,5,FALSE) -> 12213 | I221: 11782 | J221: =H221-I221 -> 431 | K221: =VLOOKUP($E$178&$C221,Oferta!$C:$H,6,FALSE) -> 11499 | L221: 10136 | M221: 1363 | N221: =VLOOKUP($E$178&$C221,Oferta!$C:$I,7,FALSE) -> 11097 | O221: 9735 | P221: =N221-O221 -> 1362
C222: Secundaria | E222: =VLOOKUP($E$178&$C222,Oferta!$C:$J,4,FALSE) -> 12182 | F222: 12029 | G222: 153 | H222: =VLOOKUP($E$178&$C222,Oferta!$C:$J,5,FALSE) -> 12117 | I222: 11939 | J222: 178 | K222: =VLOOKUP($E$178&$C222,Oferta!$C:$H,6,FALSE) -> 11780 | L222: 10374 | M222: 1406 | N222: =VLOOKUP($E$178&$C222,Oferta!$C:$I,7,FALSE) -> 10984 | O222: 9943 | P222: 1041
C223: Media | E223: =VLOOKUP($E$178&$C223,Oferta!$C:$J,4,FALSE) -> 5955 | F223: 5959 | G223: -4 | H223: =VLOOKUP($E$178&$C223,Oferta!$C:$J,5,FALSE) -> 5597 | I223: 5631 | J223: -34 | K223: =VLOOKUP($E$178&$C223,Oferta!$C:$H,6,FALSE) -> 4942 | L223: 4527 | M223: 415 | N223: =VLOOKUP($E$178&$C223,Oferta!$C:$I,7,FALSE) -> 4751 | O223: 4325 | P223: 426
C224: Educación Adultos | E224: =VLOOKUP($E$178&$C224,Oferta!$C:$J,4,FALSE) -> 794 | F224: 564 | G224: 230 | H224: =VLOOKUP($E$178&$C224,Oferta!$C:$J,5,FALSE) -> 691 | I224: 385 | J224: 306 | K224: =VLOOKUP($E$178&$C224,Oferta!$C:$H,6,FALSE) -> 674 | L224: 592 | M224: 82 | N224: =VLOOKUP($E$178&$C224,Oferta!$C:$I,7,FALSE) -> 670 | O224: 377 | P224: 293
C225: Aceleración | E225: =VLOOKUP($E$178&$C225,Oferta!$C:$J,4,FALSE) -> 180 | F225: 88 | G225: 92 | H225: =VLOOKUP($E$178&$C225,Oferta!$C:$J,5,FALSE) -> 100 | I225: 78 | J225: 22 | K225: =VLOOKUP($E$178&$C225,Oferta!$C:$H,6,FALSE) -> 175 | L225: 126 | M225: 49 | N225: =VLOOKUP($E$178&$C225,Oferta!$C:$I,7,FALSE) -> 254 | O225: 184 | P225: 70
C226: Educación Especial | E226: =VLOOKUP($E$178&$C226,Oferta!$C:$J,4,FALSE) -> 0 | F226: 4 | G226: -4 | H226: =VLOOKUP($E$178&$C226,Oferta!$C:$J,5,FALSE) -> 0 | I226: 0 | J226: 0 | K226: =VLOOKUP($E$178&$C226,Oferta!$C:$H,6,FALSE) -> 0 | L226: 1 | M226: -1 | N226: =VLOOKUP($E$178&$C226,Oferta!$C:$I,7,FALSE) -> 30 | O226: 15 | P226: 15
C227: Total | E227: =SUM(E220:E226) -> 33973 | F227: =SUM(F220:F226) -> 32709 | G227: 1264 | H227: 32831 | I227: 32290 | J227: 541 | K227: 31094 | L227: 27787 | M227: 3307 | N227: 30661 | O227: 27247 | P227: 3414
C229: Nivel | E229: 2015 | H229: 2016 | K229: 2017 | N229: 2018 | Q229: 2019
E230: Oferta | F230: Demanda | G230: Déficit o Superávit | H230: Oferta | I230: Demanda | J230: Déficit o Superávit | K230: Oferta | L230: Demanda | M230: Déficit o Superávit | N230: Oferta | O230: Demanda | P230: Déficit o Superávit | Q230: Oferta | R230: Demanda | S230: Déficit o Superávit
C231: Preescolar | E231: =SUM(F184:H186) -> 8644 | F231: =SUM(I151:I153) -> 3690 | G231: =E231-F231 -> 4954 | H231: =SUM(F184:F186) -> 3001 | I231: =SUM(J151:J153) -> 3119 | J231: =H231-I231 -> -118 | K231: =SUM(G184:G186) -> 2767 | L231: =SUM(K151:K153) -> 3062 | M231: =K231-L231 -> -295 | N231: =SUM(H184:H186) -> 2876 | O231: =SUM(L151:L153) -> 2860 | P231: =N231-O231 -> 16 | Q231: =SUM(I184:I186) -> 2904 | R231: =SUM(M151:M153) -> 3080 | S231: =Q231-R231 -> -176
C232: Primaria | E232: =SUM(F187:H191) -> 31857 | F232: =SUM(I154:I158) -> 10841 | G232: =E232-F232 -> 21016 | H232: =SUM(F187:F191) -> 11013 | I232: =SUM(J154:J158) -> 10769 | J232: =H232-I232 -> 244 | K232: =SUM(G187:G191) -> 10545 | L232: =SUM(K154:K158) -> 9896 | M232: =K232-L232 -> 649 | N232: =SUM(H187:H191) -> 10299 | O232: =SUM(L154:L158) -> 9655 | P232: =N232-O232 -> 644 | Q232: =SUM(I187:I191) -> 10124 | R232: =SUM(M154:M158) -> 9598 | S232: =Q232-R232 -> 526
C233: Secundaria | E233: =SUM(F192:H195) -> 28622 | F233: =SUM(I159:I162) -> 10603 | G233: 18019 | H233: =SUM(F192:F195) -> 10250 | I233: =SUM(J159:J162) -> 10289 | J233: -39 | K233: =SUM(G192:G195) -> 9386 | L233: =SUM(K159:K162) -> 9548 | M233: -162 | N233: =SUM(H192:H195) -> 8986 | O233: =SUM(L159:L162) -> 9024 | P233: -38 | Q233: =SUM(I192:I195) -> 9029 | R233: =SUM(M159:M162) -> 8810 | S233: 219
C234: Media | E234: =SUM(F196:H199) -> 12669 | F234: =SUM(I163:I166) -> 4350 | G234: 8319 | H234: =SUM(F196:F199) -> 4274 | I234: =SUM(J163:J166) -> 4301 | J234: -27 | K234: =SUM(G196:G199) -> 4352 | L234: =SUM(K163:K166) -> 4139 | M234: 213 | N234: =SUM(H196:H199) -> 4043 | O234: =SUM(L163:L166) -> 3902 | P234: 141 | Q234: =SUM(I196:I199) -> 3804 | R234: =SUM(M163:M166) -> 3566 | S234: 238
C235: Educación Adultos | E235: =SUM(F200:H205) -> 1476 | F235: =I168 -> 538 | G235: 938 | H235: =SUM(F200:F205) -> 482 | I235: =J168 -> 681 | J235: -199 | K235: =SUM(G200:G205) -> 526 | L235: =K168 -> 411 | M235: 115 | N235: =SUM(H200:H205) -> 468 | O235: =L168 -> 349 | P235: 119 | Q235: =SUM(I200:I205) -> 857 | R235: =M168 -> 734 | S235: 123
C236: Aceleración | E236: =F206 -> 198 | F236: =I167 -> 315 | G236: -117 | H236: =F206 -> 198 | I236: =J167 -> 233 | J236: -35 | K236: =G206 -> 170 | L236: =K167 -> 220 | M236: -50 | N236: =H206 -> 164 | O236: =L167 -> 205 | P236: -41 | Q236: =I206 -> 202 | R236: =M167 -> 202 | S236: 0
C237: Educación Especial | E237: =F207 -> 30 | F237: =I169 -> 38 | G237: -8 | H237: =F207 -> 30 | I237: =J169 -> 36 | J237: -6 | K237: * | N237: * | Q237: *
C238: Total | E238: =SUM(E231:E237) -> 83496 | F238: =SUM(F231:F237) -> 30375 | G238: 53121 | H238: 29248 | I238: =SUM(I231:I237) -> 29428 | J238: -180 | K238: =SUM(K231:K236) -> 27746 | L238: =SUM(L231:L236) -> 27276 | M238: 470 | N238: =SUM(N231:N236) -> 26836 | O238: =SUM(O231:O236) -> 25995 | P238: =N238-O238 -> 841 | Q238: =SUM(Q231:Q236) -> 26920 | R238: =SUM(R231:R236) -> 25990 | S238: =Q238-R238 -> 930
C239: Fuente: Oficina Asesora de Planeación
C240: * Inlcuido en los otros grados
C242: Perfil: | E242: =E214 -> Puente Aranda | J242: Numero: | M242: =VLOOKUP($E$4,'Localidades colegio y sedes '!$C:$D,2,FALSE) -> 16
C244: Oferta Vs Demanda por UPZ 2017
C248: =IF((E248=""),"","Nivel") -> Nivel | E248: ='1'!C19 -> CIUDAD MONTES | H248: ='1'!C20 -> MUZU | K248: ='1'!C21 -> SAN RAFAEL | N248: ='1'!C22 -> ZONA INDUSTRIAL
E249: =IF((E248=""),"","Oferta") -> Oferta | F249: =IF((E248=""),"","Demanda") -> Demanda | G249: =IF((E248=""),"","Déficit o Superávit") -> Déficit o Superávit | H249: =IF((H248=""),"","Oferta") -> Oferta | I249: =IF((H248=""),"","Demanda") -> Demanda | J249: =IF((H248=""),"","Déficit o Superávit") -> Déficit o Superávit | K249: =IF((K248=""),"","Oferta") -> Oferta | L249: =IF((K248=""),"","Demanda") -> Demanda | M249: =IF((K248=""),"","Déficit o Superávit") -> Déficit o Superávit | N249: =IF((N248=""),"","Oferta") -> Oferta | O249: =IF((N248=""),"","Demanda") -> Demanda | P249: =IF((N248=""),"","Déficit o Superávit") -> Déficit o Superávit
C250: =IF((E248=""),"","Preescolar") -> Preescolar | E250: =IF((E248=""),"",VLOOKUP(($E$242&E248),'OFERTA POR UPZ'!$C:$O,6,FALSE)) -> 857 | F250: =IF((E248=""),"",VLOOKUP(($E$242&E248),'DEMANDA POR UPZ'!$C:$O,6,FALSE)) -> 882 | G250: =IF((E248=""),"",E250-F250) -> -25 | H250: =IF((H248=""),"",VLOOKUP(($E$242&H248),'OFERTA POR UPZ'!$C:$O,6,FALSE)) -> 698 | I250: =IF((H248=""),"",VLOOKUP(($E$242&H248),'DEMANDA POR UPZ'!$C:$O,6,FALSE)) -> 703 | J250: =IF((H248=""),"",H250-I250) -> -5 | K250: =IF((K248=""),"",VLOOKUP(($E$242&K248),'OFERTA POR UPZ'!$C:$O,6,FALSE)) -> 623 | L250: =IF((K248=""),"",VLOOKUP(($E$242&K248),'DEMANDA POR UPZ'!$C:$O,6,FALSE)) -> 796 | M250: =IF((K248=""),"",K250-L250) -> -173 | N250: =IF((N248=""),"",VLOOKUP(($E$242&N248),'OFERTA POR UPZ'!$C:$O,6,FALSE)) -> 298 | O250: =IF((N248=""),"",VLOOKUP(($E$242&N248),'DEMANDA POR UPZ'!$C:$O,6,FALSE)) -> 406 | P250: =IF((N248=""),"",N250-O250) -> -108
C251: =IF((E248=""),"","Primaria") -> Primaria | E251: =IF((E248=""),"",VLOOKUP(($E$242&E248),'OFERTA POR UPZ'!$C:$O,7,FALSE)) -> 2497 | F251: =IF((E248=""),"",VLOOKUP(($E$242&E248),'DEMANDA POR UPZ'!$C:$O,7,FALSE)) -> 2286 | G251: =IF((E248=""),"",E251-F251) -> 211 | H251: =IF((H248=""),"",VLOOKUP(($E$242&H248),'OFERTA POR UPZ'!$C:$O,7,FALSE)) -> 3117 | I251: =IF((H248=""),"",VLOOKUP(($E$242&H248),'DEMANDA POR UPZ'!$C:$O,7,FALSE)) -> 2779 | J251: =IF((H248=""),"",H251-I251) -> 338 | K251: =IF((K248=""),"",VLOOKUP(($E$242&K248),'OFERTA POR UPZ'!$C:$O,7,FALSE)) -> 2698 | L251: =IF((K248=""),"",VLOOKUP(($E$242&K248),'DEMANDA POR UPZ'!$C:$O,7,FALSE)) -> 2564 | M251: =IF((K248=""),"",K251-L251) -> 134 | N251: =IF((N248=""),"",VLOOKUP(($E$242&N248),'OFERTA POR UPZ'!$C:$O,7,FALSE)) -> 1652 | O251: =IF((N248=""),"",VLOOKUP(($E$242&N248),'DEMANDA POR UPZ'!$C:$O,7,FALSE)) -> 1834 | P251: =IF((N248=""),"",N251-O251) -> -182
C252: =IF((E248=""),"","Secundaria") -> Secundaria | E252: =IF((E248=""),"",VLOOKUP(($E$242&E248),'OFERTA POR UPZ'!$C:$O,8,FALSE)) -> 2526 | F252: =IF((E248=""),"",VLOOKUP(($E$242&E248),'DEMANDA POR UPZ'!$C:$O,8,FALSE)) -> 2438 | G252: =IF((E248=""),"",E252-F252) -> 88 | H252: =IF((H248=""),"",VLOOKUP(($E$242&H248),'OFERTA POR UPZ'!$C:$O,8,FALSE)) -> 2796 | I252: =IF((H248=""),"",VLOOKUP(($E$242&H248),'DEMANDA POR UPZ'!$C:$O,8,FALSE)) -> 2870 | J252: =IF((H248=""),"",H252-I252) -> -74 | K252: =IF((K248=""),"",VLOOKUP(($E$242&K248),'OFERTA POR UPZ'!$C:$O,8,FALSE)) -> 1381 | L252: =IF((K248=""),"",VLOOKUP(($E$242&K248),'DEMANDA POR UPZ'!$C:$O,8,FALSE)) -> 1438 | M252: =IF((K248=""),"",K252-L252) -> -57 | N252: =IF((N248=""),"",VLOOKUP(($E$242&N248),'OFERTA POR UPZ'!$C:$O,8,FALSE)) -> 1527 | O252: =IF((N248=""),"",VLOOKUP(($E$242&N248),'DEMANDA POR UPZ'!$C:$O,8,FALSE)) -> 1674 | P252: =IF((N248=""),"",N252-O252) -> -147
C253: =IF((E248=""),"","Media") -> Media | E253: =IF((E248=""),"",VLOOKUP(($E$242&E248),'OFERTA POR UPZ'!$C:$O,9,FALSE)) -> 1382 | F253: =IF((E248=""),"",VLOOKUP(($E$242&E248),'DEMANDA POR UPZ'!$C:$O,9,FALSE)) -> 1275 | G253: =IF((E248=""),"",E253-F253) -> 107 | H253: =IF((H248=""),"",VLOOKUP(($E$242&H248),'OFERTA POR UPZ'!$C:$O,9,FALSE)) -> 1232 | I253: =IF((H248=""),"",VLOOKUP(($E$242&H248),'DEMANDA POR UPZ'!$C:$O,9,FALSE)) -> 1140 | J253: =IF((H248=""),"",H253-I253) -> 92 | K253: =IF((K248=""),"",VLOOKUP(($E$242&K248),'OFERTA POR UPZ'!$C:$O,9,FALSE)) -> 518 | L253: =IF((K248=""),"",VLOOKUP(($E$242&K248),'DEMANDA POR UPZ'!$C:$O,9,FALSE)) -> 511 | M253: =IF((K248=""),"",K253-L253) -> 7 | N253: =IF((N248=""),"",VLOOKUP(($E$242&N248),'OFERTA POR UPZ'!$C:$O,9,FALSE)) -> 721 | O253: =IF((N248=""),"",VLOOKUP(($E$242&N248),'DEMANDA POR UPZ'!$C:$O,9,FALSE)) -> 737 | P253: =IF((N248=""),"",N253-O253) -> -16
C254: =IF((E248=""),"","Educación Adultos") -> Educación Adultos | E254: =IF((E248=""),"",VLOOKUP(($E$242&E248),'OFERTA POR UPZ'!$C:$O,10,FALSE)) -> 0 | F254: =IF((E248=""),"",VLOOKUP(($E$242&E248),'DEMANDA POR UPZ'!$C:$O,10,FALSE)) -> 0 | G254: =IF((E248=""),"",E254-F254) -> 0 | H254: =IF((H248=""),"",VLOOKUP(($E$242&H248),'OFERTA POR UPZ'!$C:$O,10,FALSE)) -> 200 | I254: =IF((H248=""),"",VLOOKUP(($E$242&H248),'DEMANDA POR UPZ'!$C:$O,10,FALSE)) -> 140 | J254: =IF((H248=""),"",H254-I254) -> 60 | K254: =IF((K248=""),"",VLOOKUP(($E$242&K248),'OFERTA POR UPZ'!$C:$O,10,FALSE)) -> 0 | L254: =IF((K248=""),"",VLOOKUP(($E$242&K248),'DEMANDA POR UPZ'!$C:$O,10,FALSE)) -> 0 | M254: =IF((K248=""),"",K254-L254) -> 0 | N254: =IF((N248=""),"",VLOOKUP(($E$242&N248),'OFERTA POR UPZ'!$C:$O,10,FALSE)) -> 326 | O254: =IF((N248=""),"",VLOOKUP(($E$242&N248),'DEMANDA POR UPZ'!$C:$O,10,FALSE)) -> 271 | P254: =IF((N248=""),"",N254-O254) -> 55
C255: =IF((E248=""),"","Aceleración") -> Aceleración | E255: =IF((E248=""),"",VLOOKUP(($E$242&E248),'OFERTA POR UPZ'!$C:$O,11,FALSE)) -> 0 | F255: =IF((E248=""),"",VLOOKUP(($E$242&E248),'DEMANDA POR UPZ'!$C:$O,11,FALSE)) -> 0 | G255: =IF((E248=""),"",E255-F255) -> 0 | H255: =IF((H248=""),"",VLOOKUP(($E$242&H248),'OFERTA POR UPZ'!$C:$O,11,FALSE)) -> 0 | I255: =IF((H248=""),"",VLOOKUP(($E$242&H248),'DEMANDA POR UPZ'!$C:$O,11,FALSE)) -> 0 | J255: =IF((H248=""),"",H255-I255) -> 0 | K255: =IF((K248=""),"",VLOOKUP(($E$242&K248),'OFERTA POR UPZ'!$C:$O,11,FALSE)) -> 0 | L255: =IF((K248=""),"",VLOOKUP(($E$242&K248),'DEMANDA POR UPZ'!$C:$O,11,FALSE)) -> 0 | M255: =IF((K248=""),"",K255-L255) -> 0 | N255: =IF((N248=""),"",VLOOKUP(($E$242&N248),'OFERTA POR UPZ'!$C:$O,11,FALSE)) -> 170 | O255: =IF((N248=""),"",VLOOKUP(($E$242&N248),'DEMANDA POR UPZ'!$C:$O,11,FALSE)) -> 220 | P255: =IF((N248=""),"",N255-O255) -> -50
C256: =IF((E248=""),"","Total") -> Total | E256: =IF((E248=""),"",VLOOKUP(($E$242&E248),'OFERTA POR UPZ'!$C:$O,13,FALSE)) -> 7262 | F256: =IF((E248=""),"",VLOOKUP(($E$242&E248),'DEMANDA POR UPZ'!$C:$O,13,FALSE)) -> 6881 | G256: =IF((E248=""),"",E256-F256) -> 381 | H256: =IF((H248=""),"",VLOOKUP(($E$242&H248),'OFERTA POR UPZ'!$C:$O,13,FALSE)) -> 8043 | I256: =IF((H248=""),"",VLOOKUP(($E$242&H248),'DEMANDA POR UPZ'!$C:$O,13,FALSE)) -> 7632 | J256: =IF((H248=""),"",H256-I256) -> 411 | K256: =IF((K248=""),"",VLOOKUP(($E$242&K248),'OFERTA POR UPZ'!$C:$O,13,FALSE)) -> 5220 | L256: =IF((K248=""),"",VLOOKUP(($E$242&K248),'DEMANDA POR UPZ'!$C:$O,13,FALSE)) -> 5309 | M256: =IF((K248=""),"",K256-L256) -> -89 | N256: =IF((N248=""),"",VLOOKUP(($E$242&N248),'OFERTA POR UPZ'!$C:$O,13,FALSE)) -> 4694 | O256: =IF((N248=""),"",VLOOKUP(($E$242&N248),'DEMANDA POR UPZ'!$C:$O,13,FALSE)) -> 5142 | P256: =IF((N248=""),"",N256-O256) -> -448
C258: =IF((E258=""),"","Nivel") -> Nivel | E258: ='1'!C23 -> PUENTE ARANDA | H258: ='1'!C24 ->  | K258: ='1'!C25 ->  | N258: ='1'!C26 -> 
E259: =IF((E258=""),"","Oferta") -> Oferta | F259: =IF((E258=""),"","Demanda") -> Demanda | G259: =IF((E258=""),"","Déficit o Superávit") -> Déficit o Superávit | H259: =IF((H258=""),"","Oferta") ->  | I259: =IF((H258=""),"","Demanda") ->  | J259: =IF((H258=""),"","Déficit o Superávit") ->  | K259: =IF((K258=""),"","Oferta") ->  | L259: =IF((K258=""),"","Demanda") ->  | M259: =IF((K258=""),"","Déficit o Superávit") ->  | N259: =IF((N258=""),"","Oferta") ->  | O259: =IF((N258=""),"","Demanda") ->  | P259: =IF((N258=""),"","Déficit o Superávit") -> 
C260: =IF((E258=""),"","Preescolar") -> Preescolar | E260: =IF((E258=""),"",VLOOKUP(($E$242&E258),'OFERTA POR UPZ'!$C:$O,6,FALSE)) -> 291 | F260: =IF((E258=""),"",VLOOKUP(($E$242&E258),'DEMANDA POR UPZ'!$C:$O,6,FALSE)) -> 275 | G260: =IF((E258=""),"",E260-F260) -> 16 | H260: =IF((H258=""),"",VLOOKUP(($E$242&H258),'OFERTA POR UPZ'!$C:$O,6,FALSE)) ->  | I260: =IF((H258=""),"",VLOOKUP(($E$242&H258),'DEMANDA POR UPZ'!$C:$O,6,FALSE)) ->  | J260: =IF((H258=""),"",H260-I260) ->  | K260: =IF((K258=""),"",VLOOKUP(($E$242&K258),'OFERTA POR UPZ'!$C:$O,6,FALSE)) ->  | L260: =IF((K258=""),"",VLOOKUP(($E$242&K258),'DEMANDA POR UPZ'!$C:$O,6,FALSE)) ->  | M260: =IF((K258=""),"",K260-L260) ->  | N260: =IF((N258=""),"",VLOOKUP(($E$242&N258),'OFERTA POR UPZ'!$C:$O,6,FALSE)) ->  | O260: =IF((N258=""),"",VLOOKUP(($E$242&N258),'DEMANDA POR UPZ'!$C:$O,6,FALSE)) ->  | P260: =IF((N258=""),"",N260-O260) -> 
C261: =IF((E258=""),"","Primaria") -> Primaria | E261: =IF((E258=""),"",VLOOKUP(($E$242&E258),'OFERTA POR UPZ'!$C:$O,7,FALSE)) -> 581 | F261: =IF((E258=""),"",VLOOKUP(($E$242&E258),'DEMANDA POR UPZ'!$C:$O,7,FALSE)) -> 433 | G261: =IF((E258=""),"",E261-F261) -> 148 | H261: =IF((H258=""),"",VLOOKUP(($E$242&H258),'OFERTA POR UPZ'!$C:$O,7,FALSE)) ->  | I261: =IF((H258=""),"",VLOOKUP(($E$242&H258),'DEMANDA POR UPZ'!$C:$O,7,FALSE)) ->  | J261: =IF((H258=""),"",H261-I261) ->  | K261: =IF((K258=""),"",VLOOKUP(($E$242&K258),'OFERTA POR UPZ'!$C:$O,7,FALSE)) ->  | L261: =IF((K258=""),"",VLOOKUP(($E$242&K258),'DEMANDA POR UPZ'!$C:$O,7,FALSE)) ->  | M261: =IF((K258=""),"",K261-L261) ->  | N261: =IF((N258=""),"",VLOOKUP(($E$242&N258),'OFERTA POR UPZ'!$C:$O,7,FALSE)) ->  | O261: =IF((N258=""),"",VLOOKUP(($E$242&N258),'DEMANDA POR UPZ'!$C:$O,7,FALSE)) ->  | P261: =IF((N258=""),"",N261-O261) -> 
C262: =IF((E258=""),"","Secundaria") -> Secundaria | E262: =IF((E258=""),"",VLOOKUP(($E$242&E258),'OFERTA POR UPZ'!$C:$O,8,FALSE)) -> 1156 | F262: =IF((E258=""),"",VLOOKUP(($E$242&E258),'DEMANDA POR UPZ'!$C:$O,8,FALSE)) -> 1128 | G262: =IF((E258=""),"",E262-F262) -> 28 | H262: =IF((H258=""),"",VLOOKUP(($E$242&H258),'OFERTA POR UPZ'!$C:$O,8,FALSE)) ->  | I262: =IF((H258=""),"",VLOOKUP(($E$242&H258),'DEMANDA POR UPZ'!$C:$O,8,FALSE)) ->  | J262: =IF((H258=""),"",H262-I262) ->  | K262: =IF((K258=""),"",VLOOKUP(($E$242&K258),'OFERTA POR UPZ'!$C:$O,8,FALSE)) ->  | L262: =IF((K258=""),"",VLOOKUP(($E$242&K258),'DEMANDA POR UPZ'!$C:$O,8,FALSE)) ->  | M262: =IF((K258=""),"",K262-L262) ->  | N262: =IF((N258=""),"",VLOOKUP(($E$242&N258),'OFERTA POR UPZ'!$C:$O,8,FALSE)) ->  | O262: =IF((N258=""),"",VLOOKUP(($E$242&N258),'DEMANDA POR UPZ'!$C:$O,8,FALSE)) ->  | P262: =IF((N258=""),"",N262-O262) -> 
C263: =IF((E258=""),"","Media") -> Media | E263: =IF((E258=""),"",VLOOKUP(($E$242&E258),'OFERTA POR UPZ'!$C:$O,9,FALSE)) -> 499 | F263: =IF((E258=""),"",VLOOKUP(($E$242&E258),'DEMANDA POR UPZ'!$C:$O,9,FALSE)) -> 476 | G263: =IF((E258=""),"",E263-F263) -> 23 | H263: =IF((H258=""),"",VLOOKUP(($E$242&H258),'OFERTA POR UPZ'!$C:$O,9,FALSE)) ->  | I263: =IF((H258=""),"",VLOOKUP(($E$242&H258),'DEMANDA POR UPZ'!$C:$O,9,FALSE)) ->  | J263: =IF((H258=""),"",H263-I263) ->  | K263: =IF((K258=""),"",VLOOKUP(($E$242&K258),'OFERTA POR UPZ'!$C:$O,9,FALSE)) ->  | L263: =IF((K258=""),"",VLOOKUP(($E$242&K258),'DEMANDA POR UPZ'!$C:$O,9,FALSE)) ->  | M263: =IF((K258=""),"",K263-L263) ->  | N263: =IF((N258=""),"",VLOOKUP(($E$242&N258),'OFERTA POR UPZ'!$C:$O,9,FALSE)) ->  | O263: =IF((N258=""),"",VLOOKUP(($E$242&N258),'DEMANDA POR UPZ'!$C:$O,9,FALSE)) ->  | P263: =IF((N258=""),"",N263-O263) -> 
C264: =IF((E258=""),"","Educación Adultos") -> Educación Adultos | E264: =IF((E258=""),"",VLOOKUP(($E$242&E258),'OFERTA POR UPZ'!$C:$O,10,FALSE)) -> 0 | F264: =IF((E258=""),"",VLOOKUP(($E$242&E258),'DEMANDA POR UPZ'!$C:$O,10,FALSE)) -> 0 | G264: =IF((E258=""),"",E264-F264) -> 0 | H264: =IF((H258=""),"",VLOOKUP(($E$242&H258),'OFERTA POR UPZ'!$C:$O,10,FALSE)) ->  | I264: =IF((H258=""),"",VLOOKUP(($E$242&H258),'DEMANDA POR UPZ'!$C:$O,10,FALSE)) ->  | J264: =IF((H258=""),"",H264-I264) ->  | K264: =IF((K258=""),"",VLOOKUP(($E$242&K258),'OFERTA POR UPZ'!$C:$O,10,FALSE)) ->  | L264: =IF((K258=""),"",VLOOKUP(($E$242&K258),'DEMANDA POR UPZ'!$C:$O,10,FALSE)) ->  | M264: =IF((K258=""),"",K264-L264) ->  | N264: =IF((N258=""),"",VLOOKUP(($E$242&N258),'OFERTA POR UPZ'!$C:$O,10,FALSE)) ->  | O264: =IF((N258=""),"",VLOOKUP(($E$242&N258),'DEMANDA POR UPZ'!$C:$O,10,FALSE)) ->  | P264: =IF((N258=""),"",N264-O264) -> 
C265: =IF((E258=""),"","Aceleración") -> Aceleración | E265: =IF((E258=""),"",VLOOKUP(($E$242&E258),'OFERTA POR UPZ'!$C:$O,11,FALSE)) -> 0 | F265: =IF((E258=""),"",VLOOKUP(($E$242&E258),'DEMANDA POR UPZ'!$C:$O,11,FALSE)) -> 0 | G265: =IF((E258=""),"",E265-F265) -> 0 | H265: =IF((H258=""),"",VLOOKUP(($E$242&H258),'OFERTA POR UPZ'!$C:$O,11,FALSE)) ->  | I265: =IF((H258=""),"",VLOOKUP(($E$242&H258),'DEMANDA POR UPZ'!$C:$O,11,FALSE)) ->  | J265: =IF((H258=""),"",H265-I265) ->  | K265: =IF((K258=""),"",VLOOKUP(($E$242&K258),'OFERTA POR UPZ'!$C:$O,11,FALSE)) ->  | L265: =IF((K258=""),"",VLOOKUP(($E$242&K258),'DEMANDA POR UPZ'!$C:$O,11,FALSE)) ->  | M265: =IF((K258=""),"",K265-L265) ->  | N265: =IF((N258=""),"",VLOOKUP(($E$242&N258),'OFERTA POR UPZ'!$C:$O,11,FALSE)) ->  | O265: =IF((N258=""),"",VLOOKUP(($E$242&N258),'DEMANDA POR UPZ'!$C:$O,11,FALSE)) ->  | P265: =IF((N258=""),"",N265-O265) -> 
C266: =IF((E258=""),"","Total") -> Total | E266: =IF((E258=""),"",VLOOKUP(($E$242&E258),'OFERTA POR UPZ'!$C:$O,13,FALSE)) -> 2527 | F266: =IF((E258=""),"",VLOOKUP(($E$242&E258),'DEMANDA POR UPZ'!$C:$O,13,FALSE)) -> 2312 | G266: =IF((E258=""),"",E266-F266) -> 215 | H266: =IF((H258=""),"",VLOOKUP(($E$242&H258),'OFERTA POR UPZ'!$C:$O,13,FALSE)) ->  | I266: =IF((H258=""),"",VLOOKUP(($E$242&H258),'DEMANDA POR UPZ'!$C:$O,13,FALSE)) ->  | J266: =IF((H258=""),"",H266-I266) ->  | K266: =IF((K258=""),"",VLOOKUP(($E$242&K258),'OFERTA POR UPZ'!$C:$O,13,FALSE)) ->  | L266: =IF((K258=""),"",VLOOKUP(($E$242&K258),'DEMANDA POR UPZ'!$C:$O,13,FALSE)) ->  | M266: =IF((K258=""),"",K266-L266) ->  | N266: =IF((N258=""),"",VLOOKUP(($E$242&N258),'OFERTA POR UPZ'!$C:$O,13,FALSE)) ->  | O266: =IF((N258=""),"",VLOOKUP(($E$242&N258),'DEMANDA POR UPZ'!$C:$O,13,FALSE)) ->  | P266: =IF((N258=""),"",N266-O266) -> 
C277: =IF((E277=""),"","Nivel") ->  | E277: ='1'!C27 ->  | H277: ='1'!C28 ->  | K277: ='1'!C29 ->  | N277: ='1'!C30 -> 
E278: =IF((E277=""),"","Oferta") ->  | F278: =IF((E277=""),"","Demanda") ->  | G278: =IF((E277=""),"","Déficit o Superávit") ->  | H278: =IF((H277=""),"","Oferta") ->  | I278: =IF((H277=""),"","Demanda") ->  | J278: =IF((H277=""),"","Déficit o Superávit") ->  | K278: =IF((K277=""),"","Oferta") ->  | L278: =IF((K277=""),"","Demanda") ->  | M278: =IF((K277=""),"","Déficit o Superávit") ->  | N278: =IF((N277=""),"","Oferta") ->  | O278: =IF((N277=""),"","Demanda") ->  | P278: =IF((N277=""),"","Déficit o Superávit") -> 
C279: =IF((E277=""),"","Preescolar") ->  | E279: =IF((E277=""),"",VLOOKUP(($E$242&E277),'OFERTA POR UPZ'!$C:$O,6,FALSE)) ->  | F279: =IF((E277=""),"",VLOOKUP(($E$242&E277),'DEMANDA POR UPZ'!$C:$O,6,FALSE)) ->  | G279: =IF((E277=""),"",E279-F279) ->  | H279: =IF((H277=""),"",VLOOKUP(($E$242&H277),'OFERTA POR UPZ'!$C:$O,6,FALSE)) ->  | I279: =IF((H277=""),"",VLOOKUP(($E$242&H277),'DEMANDA POR UPZ'!$C:$O,6,FALSE)) ->  | J279: =IF((H277=""),"",H279-I279) ->  | K279: =IF((K277=""),"",VLOOKUP(($E$242&K277),'OFERTA POR UPZ'!$C:$O,6,FALSE)) ->  | L279: =IF((K277=""),"",VLOOKUP(($E$242&K277),'DEMANDA POR UPZ'!$C:$O,6,FALSE)) ->  | M279: =IF((K277=""),"",K279-L279) ->  | N279: =IF((N277=""),"",VLOOKUP(($E$242&N277),'OFERTA POR UPZ'!$C:$O,6,FALSE)) ->  | O279: =IF((N277=""),"",VLOOKUP(($E$242&N277),'DEMANDA POR UPZ'!$C:$O,6,FALSE)) ->  | P279: =IF((N277=""),"",N279-O279) -> 
C280: =IF((E277=""),"","Primaria") ->  | E280: =IF((E277=""),"",VLOOKUP(($E$242&E277),'OFERTA POR UPZ'!$C:$O,7,FALSE)) ->  | F280: =IF((E277=""),"",VLOOKUP(($E$242&E277),'DEMANDA POR UPZ'!$C:$O,7,FALSE)) ->  | G280: =IF((E277=""),"",E280-F280) ->  | H280: =IF((H277=""),"",VLOOKUP(($E$242&H277),'OFERTA POR UPZ'!$C:$O,7,FALSE)) ->  | I280: =IF((H277=""),"",VLOOKUP(($E$242&H277),'DEMANDA POR UPZ'!$C:$O,7,FALSE)) ->  | J280: =IF((H277=""),"",H280-I280) ->  | K280: =IF((K277=""),"",VLOOKUP(($E$242&K277),'OFERTA POR UPZ'!$C:$O,7,FALSE)) ->  | L280: =IF((K277=""),"",VLOOKUP(($E$242&K277),'DEMANDA POR UPZ'!$C:$O,7,FALSE)) ->  | M280: =IF((K277=""),"",K280-L280) ->  | N280: =IF((N277=""),"",VLOOKUP(($E$242&N277),'OFERTA POR UPZ'!$C:$O,7,FALSE)) ->  | O280: =IF((N277=""),"",VLOOKUP(($E$242&N277),'DEMANDA POR UPZ'!$C:$O,7,FALSE)) ->  | P280: =IF((N277=""),"",N280-O280) -> 
C281: =IF((E277=""),"","Secundaria") ->  | E281: =IF((E277=""),"",VLOOKUP(($E$242&E277),'OFERTA POR UPZ'!$C:$O,8,FALSE)) ->  | F281: =IF((E277=""),"",VLOOKUP(($E$242&E277),'DEMANDA POR UPZ'!$C:$O,8,FALSE)) ->  | G281: =IF((E277=""),"",E281-F281) ->  | H281: =IF((H277=""),"",VLOOKUP(($E$242&H277),'OFERTA POR UPZ'!$C:$O,8,FALSE)) ->  | I281: =IF((H277=""),"",VLOOKUP(($E$242&H277),'DEMANDA POR UPZ'!$C:$O,8,FALSE)) ->  | J281: =IF((H277=""),"",H281-I281) ->  | K281: =IF((K277=""),"",VLOOKUP(($E$242&K277),'OFERTA POR UPZ'!$C:$O,8,FALSE)) ->  | L281: =IF((K277=""),"",VLOOKUP(($E$242&K277),'DEMANDA POR UPZ'!$C:$O,8,FALSE)) ->  | M281: =IF((K277=""),"",K281-L281) ->  | N281: =IF((N277=""),"",VLOOKUP(($E$242&N277),'OFERTA POR UPZ'!$C:$O,8,FALSE)) ->  | O281: =IF((N277=""),"",VLOOKUP(($E$242&N277),'DEMANDA POR UPZ'!$C:$O,8,FALSE)) ->  | P281: =IF((N277=""),"",N281-O281) -> 
C282: =IF((E277=""),"","Media") ->  | E282: =IF((E277=""),"",VLOOKUP(($E$242&E277),'OFERTA POR UPZ'!$C:$O,9,FALSE)) ->  | F282: =IF((E277=""),"",VLOOKUP(($E$242&E277),'DEMANDA POR UPZ'!$C:$O,9,FALSE)) ->  | G282: =IF((E277=""),"",E282-F282) ->  | H282: =IF((H277=""),"",VLOOKUP(($E$242&H277),'OFERTA POR UPZ'!$C:$O,9,FALSE)) ->  | I282: =IF((H277=""),"",VLOOKUP(($E$242&H277),'DEMANDA POR UPZ'!$C:$O,9,FALSE)) ->  | J282: =IF((H277=""),"",H282-I282) ->  | K282: =IF((K277=""),"",VLOOKUP(($E$242&K277),'OFERTA POR UPZ'!$C:$O,9,FALSE)) ->  | L282: =IF((K277=""),"",VLOOKUP(($E$242&K277),'DEMANDA POR UPZ'!$C:$O,9,FALSE)) ->  | M282: =IF((K277=""),"",K282-L282) ->  | N282: =IF((N277=""),"",VLOOKUP(($E$242&N277),'OFERTA POR UPZ'!$C:$O,9,FALSE)) ->  | O282: =IF((N277=""),"",VLOOKUP(($E$242&N277),'DEMANDA POR UPZ'!$C:$O,9,FALSE)) ->  | P282: =IF((N277=""),"",N282-O282) -> 
C283: =IF((E277=""),"","Educación Adultos") ->  | E283: =IF((E277=""),"",VLOOKUP(($E$242&E277),'OFERTA POR UPZ'!$C:$O,10,FALSE)) ->  | F283: =IF((E277=""),"",VLOOKUP(($E$242&E277),'DEMANDA POR UPZ'!$C:$O,10,FALSE)) ->  | G283: =IF((E277=""),"",E283-F283) ->  | H283: =IF((H277=""),"",VLOOKUP(($E$242&H277),'OFERTA POR UPZ'!$C:$O,10,FALSE)) ->  | I283: =IF((H277=""),"",VLOOKUP(($E$242&H277),'DEMANDA POR UPZ'!$C:$O,10,FALSE)) ->  | J283: =IF((H277=""),"",H283-I283) ->  | K283: =IF((K277=""),"",VLOOKUP(($E$242&K277),'OFERTA POR UPZ'!$C:$O,10,FALSE)) ->  | L283: =IF((K277=""),"",VLOOKUP(($E$242&K277),'DEMANDA POR UPZ'!$C:$O,10,FALSE)) ->  | M283: =IF((K277=""),"",K283-L283) ->  | N283: =IF((N277=""),"",VLOOKUP(($E$242&N277),'OFERTA POR UPZ'!$C:$O,10,FALSE)) ->  | O283: =IF((N277=""),"",VLOOKUP(($E$242&N277),'DEMANDA POR UPZ'!$C:$O,10,FALSE)) ->  | P283: =IF((N277=""),"",N283-O283) -> 
C284: =IF((E277=""),"","Aceleración") ->  | E284: =IF((E277=""),"",VLOOKUP(($E$242&E277),'OFERTA POR UPZ'!$C:$O,11,FALSE)) ->  | F284: =IF((E277=""),"",VLOOKUP(($E$242&E277),'DEMANDA POR UPZ'!$C:$O,11,FALSE)) ->  | G284: =IF((E277=""),"",E284-F284) ->  | H284: =IF((H277=""),"",VLOOKUP(($E$242&H277),'OFERTA POR UPZ'!$C:$O,11,FALSE)) ->  | I284: =IF((H277=""),"",VLOOKUP(($E$242&H277),'DEMANDA POR UPZ'!$C:$O,11,FALSE)) ->  | J284: =IF((H277=""),"",H284-I284) ->  | K284: =IF((K277=""),"",VLOOKUP(($E$242&K277),'OFERTA POR UPZ'!$C:$O,11,FALSE)) ->  | L284: =IF((K277=""),"",VLOOKUP(($E$242&K277),'DEMANDA POR UPZ'!$C:$O,11,FALSE)) ->  | M284: =IF((K277=""),"",K284-L284) ->  | N284: =IF((N277=""),"",VLOOKUP(($E$242&N277),'OFERTA POR UPZ'!$C:$O,11,FALSE)) ->  | O284: =IF((N277=""),"",VLOOKUP(($E$242&N277),'DEMANDA POR UPZ'!$C:$O,11,FALSE)) ->  | P284: =IF((N277=""),"",N284-O284) -> 
C285: =IF((E277=""),"","Total") ->  | E285: =IF((E277=""),"",VLOOKUP(($E$242&E277),'OFERTA POR UPZ'!$C:$O,13,FALSE)) ->  | F285: =IF((E277=""),"",VLOOKUP(($E$242&E277),'DEMANDA POR UPZ'!$C:$O,13,FALSE)) ->  | G285: =IF((E277=""),"",E285-F285) ->  | H285: =IF((H277=""),"",VLOOKUP(($E$242&H277),'OFERTA POR UPZ'!$C:$O,13,FALSE)) ->  | I285: =IF((H277=""),"",VLOOKUP(($E$242&H277),'DEMANDA POR UPZ'!$C:$O,13,FALSE)) ->  | J285: =IF((H277=""),"",H285-I285) ->  | K285: =IF((K277=""),"",VLOOKUP(($E$242&K277),'OFERTA POR UPZ'!$C:$O,13,FALSE)) ->  | L285: =IF((K277=""),"",VLOOKUP(($E$242&K277),'DEMANDA POR UPZ'!$C:$O,13,FALSE)) ->  | M285: =IF((K277=""),"",K285-L285) ->  | N285: =IF((N277=""),"",VLOOKUP(($E$242&N277),'OFERTA POR UPZ'!$C:$O,13,FALSE)) ->  | O285: =IF((N277=""),"",VLOOKUP(($E$242&N277),'DEMANDA POR UPZ'!$C:$O,13,FALSE)) ->  | P285: =IF((N277=""),"",N285-O285) -> 
C288: =IF((E288=""),"","Nivel") ->  | E288: ='1'!C31 ->  | H288: ='1'!C32 ->  | K288: ='1'!C33 ->  | N288: ='1'!C34 -> 
E289: =IF((E288=""),"","Oferta") ->  | F289: =IF((E288=""),"","Demanda") ->  | G289: =IF((E288=""),"","Déficit o Superávit") ->  | H289: =IF((H288=""),"","Oferta") ->  | I289: =IF((H288=""),"","Demanda") ->  | J289: =IF((H288=""),"","Déficit o Superávit") ->  | K289: =IF((K288=""),"","Oferta") ->  | L289: =IF((K288=""),"","Demanda") ->  | M289: =IF((K288=""),"","Déficit o Superávit") ->  | N289: =IF((N288=""),"","Oferta") ->  | O289: =IF((N288=""),"","Demanda") ->  | P289: =IF((N288=""),"","Déficit o Superávit") -> 
C290: =IF((E288=""),"","Preescolar") ->  | E290: =IF((E288=""),"",VLOOKUP(($E$242&E288),'OFERTA POR UPZ'!$C:$O,6,FALSE)) ->  | F290: =IF((E288=""),"",VLOOKUP(($E$242&E288),'DEMANDA POR UPZ'!$C:$O,6,FALSE)) ->  | G290: =IF((E288=""),"",E290-F290) ->  | H290: =IF((H288=""),"",VLOOKUP(($E$242&H288),'OFERTA POR UPZ'!$C:$O,6,FALSE)) ->  | I290: =IF((H288=""),"",VLOOKUP(($E$242&H288),'DEMANDA POR UPZ'!$C:$O,6,FALSE)) ->  | J290: =IF((H288=""),"",H290-I290) ->  | K290: =IF((K288=""),"",VLOOKUP(($E$242&K288),'OFERTA POR UPZ'!$C:$O,6,FALSE)) ->  | L290: =IF((K288=""),"",VLOOKUP(($E$242&K288),'DEMANDA POR UPZ'!$C:$O,6,FALSE)) ->  | M290: =IF((K288=""),"",K290-L290) ->  | N290: =IF((N288=""),"",VLOOKUP(($E$242&N288),'OFERTA POR UPZ'!$C:$O,6,FALSE)) ->  | O290: =IF((N288=""),"",VLOOKUP(($E$242&N288),'DEMANDA POR UPZ'!$C:$O,6,FALSE)) ->  | P290: =IF((N288=""),"",N290-O290) -> 
C291: =IF((E288=""),"","Primaria") ->  | E291: =IF((E288=""),"",VLOOKUP(($E$242&E288),'OFERTA POR UPZ'!$C:$O,7,FALSE)) ->  | F291: =IF((E288=""),"",VLOOKUP(($E$242&E288),'DEMANDA POR UPZ'!$C:$O,7,FALSE)) ->  | G291: =IF((E288=""),"",E291-F291) ->  | H291: =IF((H288=""),"",VLOOKUP(($E$242&H288),'OFERTA POR UPZ'!$C:$O,7,FALSE)) ->  | I291: =IF((H288=""),"",VLOOKUP(($E$242&H288),'DEMANDA POR UPZ'!$C:$O,7,FALSE)) ->  | J291: =IF((H288=""),"",H291-I291) ->  | K291: =IF((K288=""),"",VLOOKUP(($E$242&K288),'OFERTA POR UPZ'!$C:$O,7,FALSE)) ->  | L291: =IF((K288=""),"",VLOOKUP(($E$242&K288),'DEMANDA POR UPZ'!$C:$O,7,FALSE)) ->  | M291: =IF((K288=""),"",K291-L291) ->  | N291: =IF((N288=""),"",VLOOKUP(($E$242&N288),'OFERTA POR UPZ'!$C:$O,7,FALSE)) ->  | O291: =IF((N288=""),"",VLOOKUP(($E$242&N288),'DEMANDA POR UPZ'!$C:$O,7,FALSE)) ->  | P291: =IF((N288=""),"",N291-O291) -> 
C292: =IF((E288=""),"","Secundaria") ->  | E292: =IF((E288=""),"",VLOOKUP(($E$242&E288),'OFERTA POR UPZ'!$C:$O,8,FALSE)) ->  | F292: =IF((E288=""),"",VLOOKUP(($E$242&E288),'DEMANDA POR UPZ'!$C:$O,8,FALSE)) ->  | G292: =IF((E288=""),"",E292-F292) ->  | H292: =IF((H288=""),"",VLOOKUP(($E$242&H288),'OFERTA POR UPZ'!$C:$O,8,FALSE)) ->  | I292: =IF((H288=""),"",VLOOKUP(($E$242&H288),'DEMANDA POR UPZ'!$C:$O,8,FALSE)) ->  | J292: =IF((H288=""),"",H292-I292) ->  | K292: =IF((K288=""),"",VLOOKUP(($E$242&K288),'OFERTA POR UPZ'!$C:$O,8,FALSE)) ->  | L292: =IF((K288=""),"",VLOOKUP(($E$242&K288),'DEMANDA POR UPZ'!$C:$O,8,FALSE)) ->  | M292: =IF((K288=""),"",K292-L292) ->  | N292: =IF((N288=""),"",VLOOKUP(($E$242&N288),'OFERTA POR UPZ'!$C:$O,8,FALSE)) ->  | O292: =IF((N288=""),"",VLOOKUP(($E$242&N288),'DEMANDA POR UPZ'!$C:$O,8,FALSE)) ->  | P292: =IF((N288=""),"",N292-O292) -> 
C293: =IF((E288=""),"","Media") ->  | E293: =IF((E288=""),"",VLOOKUP(($E$242&E288),'OFERTA POR UPZ'!$C:$O,9,FALSE)) ->  | F293: =IF((E288=""),"",VLOOKUP(($E$242&E288),'DEMANDA POR UPZ'!$C:$O,9,FALSE)) ->  | G293: =IF((E288=""),"",E293-F293) ->  | H293: =IF((H288=""),"",VLOOKUP(($E$242&H288),'OFERTA POR UPZ'!$C:$O,9,FALSE)) ->  | I293: =IF((H288=""),"",VLOOKUP(($E$242&H288),'DEMANDA POR UPZ'!$C:$O,9,FALSE)) ->  | J293: =IF((H288=""),"",H293-I293) ->  | K293: =IF((K288=""),"",VLOOKUP(($E$242&K288),'OFERTA POR UPZ'!$C:$O,9,FALSE)) ->  | L293: =IF((K288=""),"",VLOOKUP(($E$242&K288),'DEMANDA POR UPZ'!$C:$O,9,FALSE)) ->  | M293: =IF((K288=""),"",K293-L293) ->  | N293: =IF((N288=""),"",VLOOKUP(($E$242&N288),'OFERTA POR UPZ'!$C:$O,9,FALSE)) ->  | O293: =IF((N288=""),"",VLOOKUP(($E$242&N288),'DEMANDA POR UPZ'!$C:$O,9,FALSE)) ->  | P293: =IF((N288=""),"",N293-O293) -> 
C294: =IF((E288=""),"","Educación Adultos") ->  | E294: =IF((E288=""),"",VLOOKUP(($E$242&E288),'OFERTA POR UPZ'!$C:$O,10,FALSE)) ->  | F294: =IF((E288=""),"",VLOOKUP(($E$242&E288),'DEMANDA POR UPZ'!$C:$O,10,FALSE)) ->  | G294: =IF((E288=""),"",E294-F294) ->  | H294: =IF((H288=""),"",VLOOKUP(($E$242&H288),'OFERTA POR UPZ'!$C:$O,10,FALSE)) ->  | I294: =IF((H288=""),"",VLOOKUP(($E$242&H288),'DEMANDA POR UPZ'!$C:$O,10,FALSE)) ->  | J294: =IF((H288=""),"",H294-I294) ->  | K294: =IF((K288=""),"",VLOOKUP(($E$242&K288),'OFERTA POR UPZ'!$C:$O,10,FALSE)) ->  | L294: =IF((K288=""),"",VLOOKUP(($E$242&K288),'DEMANDA POR UPZ'!$C:$O,10,FALSE)) ->  | M294: =IF((K288=""),"",K294-L294) ->  | N294: =IF((N288=""),"",VLOOKUP(($E$242&N288),'OFERTA POR UPZ'!$C:$O,10,FALSE)) ->  | O294: =IF((N288=""),"",VLOOKUP(($E$242&N288),'DEMANDA POR UPZ'!$C:$O,10,FALSE)) ->  | P294: =IF((N288=""),"",N294-O294) -> 
C295: =IF((E288=""),"","Aceleración") ->  | E295: =IF((E288=""),"",VLOOKUP(($E$242&E288),'OFERTA POR UPZ'!$C:$O,11,FALSE)) ->  | F295: =IF((E288=""),"",VLOOKUP(($E$242&E288),'DEMANDA POR UPZ'!$C:$O,11,FALSE)) ->  | G295: =IF((E288=""),"",E295-F295) ->  | H295: =IF((H288=""),"",VLOOKUP(($E$242&H288),'OFERTA POR UPZ'!$C:$O,11,FALSE)) ->  | I295: =IF((H288=""),"",VLOOKUP(($E$242&H288),'DEMANDA POR UPZ'!$C:$O,11,FALSE)) ->  | J295: =IF((H288=""),"",H295-I295) ->  | K295: =IF((K288=""),"",VLOOKUP(($E$242&K288),'OFERTA POR UPZ'!$C:$O,11,FALSE)) ->  | L295: =IF((K288=""),"",VLOOKUP(($E$242&K288),'DEMANDA POR UPZ'!$C:$O,11,FALSE)) ->  | M295: =IF((K288=""),"",K295-L295) ->  | N295: =IF((N288=""),"",VLOOKUP(($E$242&N288),'OFERTA POR UPZ'!$C:$O,11,FALSE)) ->  | O295: =IF((N288=""),"",VLOOKUP(($E$242&N288),'DEMANDA POR UPZ'!$C:$O,11,FALSE)) ->  | P295: =IF((N288=""),"",N295-O295) -> 
C296: =IF((E288=""),"","Total") ->  | E296: =IF((E288=""),"",VLOOKUP(($E$242&E288),'OFERTA POR UPZ'!$C:$O,13,FALSE)) ->  | F296: =IF((E288=""),"",VLOOKUP(($E$242&E288),'DEMANDA POR UPZ'!$C:$O,13,FALSE)) ->  | G296: =IF((E288=""),"",E296-F296) ->  | H296: =IF((H288=""),"",VLOOKUP(($E$242&H288),'OFERTA POR UPZ'!$C:$O,13,FALSE)) ->  | I296: =IF((H288=""),"",VLOOKUP(($E$242&H288),'DEMANDA POR UPZ'!$C:$O,13,FALSE)) ->  | J296: =IF((H288=""),"",H296-I296) ->  | K296: =IF((K288=""),"",VLOOKUP(($E$242&K288),'OFERTA POR UPZ'!$C:$O,13,FALSE)) ->  | L296: =IF((K288=""),"",VLOOKUP(($E$242&K288),'DEMANDA POR UPZ'!$C:$O,13,FALSE)) ->  | M296: =IF((K288=""),"",K296-L296) ->  | N296: =IF((N288=""),"",VLOOKUP(($E$242&N288),'OFERTA POR UPZ'!$C:$O,13,FALSE)) ->  | O296: =IF((N288=""),"",VLOOKUP(($E$242&N288),'DEMANDA POR UPZ'!$C:$O,13,FALSE)) ->  | P296: =IF((N288=""),"",N296-O296) -> 
C308: =IF((E308=""),"","Nivel") ->  | E308: ='1'!C35 ->  | H308: ='1'!C36 ->  | K308: ='1'!C37 ->  | N308: ='1'!C38 -> 
E309: =IF((E308=""),"","Oferta") ->  | F309: =IF((E308=""),"","Demanda") ->  | G309: =IF((E308=""),"","Déficit o Superávit") ->  | H309: =IF((H308=""),"","Oferta") ->  | I309: =IF((H308=""),"","Demanda") ->  | J309: =IF((H308=""),"","Déficit o Superávit") ->  | K309: =IF((K308=""),"","Oferta") ->  | L309: =IF((K308=""),"","Demanda") ->  | M309: =IF((K308=""),"","Déficit o Superávit") ->  | N309: =IF((N308=""),"","Oferta") ->  | O309: =IF((N308=""),"","Demanda") ->  | P309: =IF((N308=""),"","Déficit o Superávit") -> 
C310: =IF((E308=""),"","Preescolar") ->  | E310: =IF((E308=""),"",VLOOKUP(($E$242&E308),'OFERTA POR UPZ'!$C:$O,6,FALSE)) ->  | F310: =IF((E308=""),"",VLOOKUP(($E$242&E308),'DEMANDA POR UPZ'!$C:$O,6,FALSE)) ->  | G310: =IF((E308=""),"",E310-F310) ->  | H310: =IF((H308=""),"",VLOOKUP(($E$242&H308),'OFERTA POR UPZ'!$C:$O,6,FALSE)) ->  | I310: =IF((H308=""),"",VLOOKUP(($E$242&H308),'DEMANDA POR UPZ'!$C:$O,6,FALSE)) ->  | J310: =IF((H308=""),"",H310-I310) ->  | K310: =IF((K308=""),"",VLOOKUP(($E$242&K308),'OFERTA POR UPZ'!$C:$O,6,FALSE)) ->  | L310: =IF((K308=""),"",VLOOKUP(($E$242&K308),'DEMANDA POR UPZ'!$C:$O,6,FALSE)) ->  | M310: =IF((K308=""),"",K310-L310) ->  | N310: =IF((N308=""),"",VLOOKUP(($E$242&N308),'OFERTA POR UPZ'!$C:$O,6,FALSE)) ->  | O310: =IF((N308=""),"",VLOOKUP(($E$242&N308),'DEMANDA POR UPZ'!$C:$O,6,FALSE)) ->  | P310: =IF((N308=""),"",N310-O310) -> 
C311: =IF((E308=""),"","Primaria") ->  | E311: =IF((E308=""),"",VLOOKUP(($E$242&E308),'OFERTA POR UPZ'!$C:$O,7,FALSE)) ->  | F311: =IF((E308=""),"",VLOOKUP(($E$242&E308),'DEMANDA POR UPZ'!$C:$O,7,FALSE)) ->  | G311: =IF((E308=""),"",E311-F311) ->  | H311: =IF((H308=""),"",VLOOKUP(($E$242&H308),'OFERTA POR UPZ'!$C:$O,7,FALSE)) ->  | I311: =IF((H308=""),"",VLOOKUP(($E$242&H308),'DEMANDA POR UPZ'!$C:$O,7,FALSE)) ->  | J311: =IF((H308=""),"",H311-I311) ->  | K311: =IF((K308=""),"",VLOOKUP(($E$242&K308),'OFERTA POR UPZ'!$C:$O,7,FALSE)) ->  | L311: =IF((K308=""),"",VLOOKUP(($E$242&K308),'DEMANDA POR UPZ'!$C:$O,7,FALSE)) ->  | M311: =IF((K308=""),"",K311-L311) ->  | N311: =IF((N308=""),"",VLOOKUP(($E$242&N308),'OFERTA POR UPZ'!$C:$O,7,FALSE)) ->  | O311: =IF((N308=""),"",VLOOKUP(($E$242&N308),'DEMANDA POR UPZ'!$C:$O,7,FALSE)) ->  | P311: =IF((N308=""),"",N311-O311) -> 
C312: =IF((E308=""),"","Secundaria") ->  | E312: =IF((E308=""),"",VLOOKUP(($E$242&E308),'OFERTA POR UPZ'!$C:$O,8,FALSE)) ->  | F312: =IF((E308=""),"",VLOOKUP(($E$242&E308),'DEMANDA POR UPZ'!$C:$O,8,FALSE)) ->  | G312: =IF((E308=""),"",E312-F312) ->  | H312: =IF((H308=""),"",VLOOKUP(($E$242&H308),'OFERTA POR UPZ'!$C:$O,8,FALSE)) ->  | I312: =IF((H308=""),"",VLOOKUP(($E$242&H308),'DEMANDA POR UPZ'!$C:$O,8,FALSE)) ->  | J312: =IF((H308=""),"",H312-I312) ->  | K312: =IF((K308=""),"",VLOOKUP(($E$242&K308),'OFERTA POR UPZ'!$C:$O,8,FALSE)) ->  | L312: =IF((K308=""),"",VLOOKUP(($E$242&K308),'DEMANDA POR UPZ'!$C:$O,8,FALSE)) ->  | M312: =IF((K308=""),"",K312-L312) ->  | N312: =IF((N308=""),"",VLOOKUP(($E$242&N308),'OFERTA POR UPZ'!$C:$O,8,FALSE)) ->  | O312: =IF((N308=""),"",VLOOKUP(($E$242&N308),'DEMANDA POR UPZ'!$C:$O,8,FALSE)) ->  | P312: =IF((N308=""),"",N312-O312) -> 
C313: =IF((E308=""),"","Media") ->  | E313: =IF((E308=""),"",VLOOKUP(($E$242&E308),'OFERTA POR UPZ'!$C:$O,9,FALSE)) ->  | F313: =IF((E308=""),"",VLOOKUP(($E$242&E308),'DEMANDA POR UPZ'!$C:$O,9,FALSE)) ->  | G313: =IF((E308=""),"",E313-F313) ->  | H313: =IF((H308=""),"",VLOOKUP(($E$242&H308),'OFERTA POR UPZ'!$C:$O,9,FALSE)) ->  | I313: =IF((H308=""),"",VLOOKUP(($E$242&H308),'DEMANDA POR UPZ'!$C:$O,9,FALSE)) ->  | J313: =IF((H308=""),"",H313-I313) ->  | K313: =IF((K308=""),"",VLOOKUP(($E$242&K308),'OFERTA POR UPZ'!$C:$O,9,FALSE)) ->  | L313: =IF((K308=""),"",VLOOKUP(($E$242&K308),'DEMANDA POR UPZ'!$C:$O,9,FALSE)) ->  | M313: =IF((K308=""),"",K313-L313) ->  | N313: =IF((N308=""),"",VLOOKUP(($E$242&N308),'OFERTA POR UPZ'!$C:$O,9,FALSE)) ->  | O313: =IF((N308=""),"",VLOOKUP(($E$242&N308),'DEMANDA POR UPZ'!$C:$O,9,FALSE)) ->  | P313: =IF((N308=""),"",N313-O313) -> 
C314: =IF((E308=""),"","Educación Adultos") ->  | E314: =IF((E308=""),"",VLOOKUP(($E$242&E308),'OFERTA POR UPZ'!$C:$O,10,FALSE)) ->  | F314: =IF((E308=""),"",VLOOKUP(($E$242&E308),'DEMANDA POR UPZ'!$C:$O,10,FALSE)) ->  | G314: =IF((E308=""),"",E314-F314) ->  | H314: =IF((H308=""),"",VLOOKUP(($E$242&H308),'OFERTA POR UPZ'!$C:$O,10,FALSE)) ->  | I314: =IF((H308=""),"",VLOOKUP(($E$242&H308),'DEMANDA POR UPZ'!$C:$O,10,FALSE)) ->  | J314: =IF((H308=""),"",H314-I314) ->  | K314: =IF((K308=""),"",VLOOKUP(($E$242&K308),'OFERTA POR UPZ'!$C:$O,10,FALSE)) ->  | L314: =IF((K308=""),"",VLOOKUP(($E$242&K308),'DEMANDA POR UPZ'!$C:$O,10,FALSE)) ->  | M314: =IF((K308=""),"",K314-L314) ->  | N314: =IF((N308=""),"",VLOOKUP(($E$242&N308),'OFERTA POR UPZ'!$C:$O,10,FALSE)) ->  | O314: =IF((N308=""),"",VLOOKUP(($E$242&N308),'DEMANDA POR UPZ'!$C:$O,10,FALSE)) ->  | P314: =IF((N308=""),"",N314-O314) -> 
C315: =IF((E308=""),"","Aceleración") ->  | E315: =IF((E308=""),"",VLOOKUP(($E$242&E308),'OFERTA POR UPZ'!$C:$O,11,FALSE)) ->  | F315: =IF((E308=""),"",VLOOKUP(($E$242&E308),'DEMANDA POR UPZ'!$C:$O,11,FALSE)) ->  | G315: =IF((E308=""),"",E315-F315) ->  | H315: =IF((H308=""),"",VLOOKUP(($E$242&H308),'OFERTA POR UPZ'!$C:$O,11,FALSE)) ->  | I315: =IF((H308=""),"",VLOOKUP(($E$242&H308),'DEMANDA POR UPZ'!$C:$O,11,FALSE)) ->  | J315: =IF((H308=""),"",H315-I315) ->  | K315: =IF((K308=""),"",VLOOKUP(($E$242&K308),'OFERTA POR UPZ'!$C:$O,11,FALSE)) ->  | L315: =IF((K308=""),"",VLOOKUP(($E$242&K308),'DEMANDA POR UPZ'!$C:$O,11,FALSE)) ->  | M315: =IF((K308=""),"",K315-L315) ->  | N315: =IF((N308=""),"",VLOOKUP(($E$242&N308),'OFERTA POR UPZ'!$C:$O,11,FALSE)) ->  | O315: =IF((N308=""),"",VLOOKUP(($E$242&N308),'DEMANDA POR UPZ'!$C:$O,11,FALSE)) ->  | P315: =IF((N308=""),"",N315-O315) -> 
C316: =IF((E308=""),"","Total") ->  | E316: =IF((E308=""),"",VLOOKUP(($E$242&E308),'OFERTA POR UPZ'!$C:$O,13,FALSE)) ->  | F316: =IF((E308=""),"",VLOOKUP(($E$242&E308),'DEMANDA POR UPZ'!$C:$O,13,FALSE)) ->  | G316: =IF((E308=""),"",E316-F316) ->  | H316: =IF((H308=""),"",VLOOKUP(($E$242&H308),'OFERTA POR UPZ'!$C:$O,13,FALSE)) ->  | I316: =IF((H308=""),"",VLOOKUP(($E$242&H308),'DEMANDA POR UPZ'!$C:$O,13,FALSE)) ->  | J316: =IF((H308=""),"",H316-I316) ->  | K316: =IF((K308=""),"",VLOOKUP(($E$242&K308),'OFERTA POR UPZ'!$C:$O,13,FALSE)) ->  | L316: =IF((K308=""),"",VLOOKUP(($E$242&K308),'DEMANDA POR UPZ'!$C:$O,13,FALSE)) ->  | M316: =IF((K308=""),"",K316-L316) ->  | N316: =IF((N308=""),"",VLOOKUP(($E$242&N308),'OFERTA POR UPZ'!$C:$O,13,FALSE)) ->  | O316: =IF((N308=""),"",VLOOKUP(($E$242&N308),'DEMANDA POR UPZ'!$C:$O,13,FALSE)) ->  | P316: =IF((N308=""),"",N316-O316) -> 
... 225 more rows

Sheet 4
A4: Perfil: | C4: =INDICE!I34 -> Puente Aranda | F4: Numero: | I4: =VLOOKUP($C$4,'Localidades colegio y sedes '!$C:$D,2,FALSE) -> 16
A6: Tasas de Eficiencia Interna (TEI):
A8: Tasa de Aprobación (%):
A10: Año | B10: Preescolar | C10: Primaria | D10: Secundaria | E10: Media | F10: Total
A11: 2009 | B11: =VLOOKUP(CONCATENATE($I$4,B$10),TEI!$B:$O,3,FALSE) -> 95.3 | C11: =VLOOKUP(CONCATENATE($I$4,C$10),TEI!$B:$O,3,FALSE) -> 93.2 | D11: =VLOOKUP(CONCATENATE($I$4,D$10),TEI!$B:$O,3,FALSE) -> 87.7 | E11: =VLOOKUP(CONCATENATE($I$4,E$10),TEI!$B:$O,3,FALSE) -> 89.4 | F11: =VLOOKUP(CONCATENATE($I$4,F$10),TEI!$B:$O,3,FALSE) -> 90.5
A12: 2010 | B12: =VLOOKUP(CONCATENATE($I$4,B$10),TEI!$B:$O,5,FALSE) -> 95.7 | C12: =VLOOKUP(CONCATENATE($I$4,C$10),TEI!$B:$O,5,FALSE) -> 91.5 | D12: =VLOOKUP(CONCATENATE($I$4,D$10),TEI!$B:$O,5,FALSE) -> 78.1 | E12: =VLOOKUP(CONCATENATE($I$4,E$10),TEI!$B:$O,5,FALSE) -> 83.6 | F12: =VLOOKUP(CONCATENATE($I$4,F$10),TEI!$B:$O,5,FALSE) -> 85
A13: 2011 | B13: =VLOOKUP(CONCATENATE($I$4,B$10),TEI!$B:$O,7,FALSE) -> 92.8 | C13: =VLOOKUP(CONCATENATE($I$4,C$10),TEI!$B:$O,7,FALSE) -> 89.5 | D13: =VLOOKUP(CONCATENATE($I$4,D$10),TEI!$B:$O,7,FALSE) -> 76.7 | E13: =VLOOKUP(CONCATENATE($I$4,E$10),TEI!$B:$O,7,FALSE) -> 85 | F13: =VLOOKUP(CONCATENATE($I$4,F$10),TEI!$B:$O,7,FALSE) -> 84.05
A14: 2012 | B14: =VLOOKUP(CONCATENATE($I$4,B$10),TEI!$B:$O,9,FALSE) -> 93.3 | C14: =VLOOKUP(CONCATENATE($I$4,C$10),TEI!$B:$O,9,FALSE) -> 89.3 | D14: =VLOOKUP(CONCATENATE($I$4,D$10),TEI!$B:$O,9,FALSE) -> 79.6 | E14: =VLOOKUP(CONCATENATE($I$4,E$10),TEI!$B:$O,9,FALSE) -> 89.1 | F14: =VLOOKUP(CONCATENATE($I$4,F$10),TEI!$B:$O,9,FALSE) -> 85.8
A15: 2013 | B15: =VLOOKUP(CONCATENATE($I$4,B$10),TEI!$B:$O,11,FALSE) -> 94 | C15: =VLOOKUP(CONCATENATE($I$4,C$10),TEI!$B:$O,11,FALSE) -> 91.3 | D15: =VLOOKUP(CONCATENATE($I$4,D$10),TEI!$B:$O,11,FALSE) -> 81 | E15: =VLOOKUP(CONCATENATE($I$4,E$10),TEI!$B:$O,11,FALSE) -> 87.5 | F15: =VLOOKUP(CONCATENATE($I$4,F$10),TEI!$B:$O,11,FALSE) -> 87.1
A16: 2014 | B16: =VLOOKUP(CONCATENATE($I$4,B$10),TEI!$B:$O,13,FALSE) -> 97.03989704 | C16: =VLOOKUP(CONCATENATE($I$4,C$10),TEI!$B:$O,13,FALSE) -> 91.7898543 | D16: =VLOOKUP(CONCATENATE($I$4,D$10),TEI!$B:$O,13,FALSE) -> 79.00403769 | E16: =VLOOKUP(CONCATENATE($I$4,E$10),TEI!$B:$O,13,FALSE) -> 89.16544656 | F16: =VLOOKUP(CONCATENATE($I$4,F$10),TEI!$B:$O,13,FALSE) -> 87.05967754
A17: 2015 | B17: =VLOOKUP(CONCATENATE($I$4,B$10),TEI!$B:$P,15,FALSE) -> 96.17021277 | C17: =VLOOKUP(CONCATENATE($I$4,C$10),TEI!$B:$P,15,FALSE) -> 91.29542188 | D17: =VLOOKUP(CONCATENATE($I$4,D$10),TEI!$B:$P,15,FALSE) -> 80.35510331 | E17: =VLOOKUP(CONCATENATE($I$4,E$10),TEI!$B:$P,15,FALSE) -> 88.4004884 | F17: =VLOOKUP(CONCATENATE($I$4,F$10),TEI!$B:$P,15,FALSE) -> 86.94699956
A18: 2016 | B18: =VLOOKUP(CONCATENATE($I$4,B$10),TEI!$B:$Q,16,FALSE) -> 96.3 | C18: =VLOOKUP(CONCATENATE($I$4,C$10),TEI!$B:$Q,16,FALSE) -> 92.5 | D18: =VLOOKUP(CONCATENATE($I$4,D$10),TEI!$B:$Q,16,FALSE) -> 83.8 | E18: =VLOOKUP(CONCATENATE($I$4,E$10),TEI!$B:$Q,16,FALSE) -> 90.7 | F18: =VLOOKUP(CONCATENATE($I$4,F$10),TEI!$B:$Q,16,FALSE) -> 89.2
A19: 2017 | B19: =VLOOKUP(CONCATENATE($I$4,B$10),TEI!$B:$R,17,FALSE) -> 95.47088426 | C19: =VLOOKUP(CONCATENATE($I$4,C$10),TEI!$B:$R,17,FALSE) -> 93.20726812 | D19: =VLOOKUP(CONCATENATE($I$4,D$10),TEI!$B:$R,17,FALSE) -> 88.24008375 | E19: =VLOOKUP(CONCATENATE($I$4,E$10),TEI!$B:$R,17,FALSE) -> 92.64516129 | F19: =VLOOKUP(CONCATENATE($I$4,F$10),TEI!$B:$R,17,FALSE) -> 91.41840628
A20: Fuente: Oficina Asesora de Planeación
A21: Nota: Valores en porcentaje
A22: Tasas de Eficiencia Interna (TEI):
A24: Tasa de Reprobación (%):
A26: Año | B26: Preescolar | C26: Primaria | D26: Secundaria | E26: Media | F26: Total
A27: 2009 | B27: =VLOOKUP(CONCATENATE($I$4,B$26),TEI!$B:$BE,18,FALSE) -> 0.3 | C27: =VLOOKUP(CONCATENATE($I$4,C$26),TEI!$B:$BE,18,FALSE) -> 3.2 | D27: =VLOOKUP(CONCATENATE($I$4,D$26),TEI!$B:$BE,18,FALSE) -> 7.6 | E27: =VLOOKUP(CONCATENATE($I$4,E$26),TEI!$B:$BE,18,FALSE) -> 6.5 | F27: =VLOOKUP(CONCATENATE($I$4,F$26),TEI!$B:$BE,18,FALSE) -> 5.3
A28: 2010 | B28: =VLOOKUP(CONCATENATE($I$4,B$10),TEI!$B:$BE,20,FALSE) -> 0.8 | C28: =VLOOKUP(CONCATENATE($I$4,C$10),TEI!$B:$BE,20,FALSE) -> 5.3 | D28: =VLOOKUP(CONCATENATE($I$4,D$10),TEI!$B:$BE,20,FALSE) -> 16.2 | E28: =VLOOKUP(CONCATENATE($I$4,E$10),TEI!$B:$BE,20,FALSE) -> 11.6 | F28: =VLOOKUP(CONCATENATE($I$4,F$10),TEI!$B:$BE,20,FALSE) -> 10.5
A29: 2011 | B29: =VLOOKUP(CONCATENATE($I$4,B$10),TEI!$B:$BE,22,FALSE) -> 0.8 | C29: =VLOOKUP(CONCATENATE($I$4,C$10),TEI!$B:$BE,22,FALSE) -> 5.2 | D29: =VLOOKUP(CONCATENATE($I$4,D$10),TEI!$B:$BE,22,FALSE) -> 14.5 | E29: =VLOOKUP(CONCATENATE($I$4,E$10),TEI!$B:$BE,22,FALSE) -> 8.7 | F29: =VLOOKUP(CONCATENATE($I$4,F$10),TEI!$B:$BE,22,FALSE) -> 9.1
A30: 2012 | B30: =VLOOKUP(CONCATENATE($I$4,B$10),TEI!$B:$BE,24,FALSE) -> 0.7 | C30: =VLOOKUP(CONCATENATE($I$4,C$10),TEI!$B:$BE,24,FALSE) -> 4.8 | D30: =VLOOKUP(CONCATENATE($I$4,D$10),TEI!$B:$BE,24,FALSE) -> 14.5 | E30: =VLOOKUP(CONCATENATE($I$4,E$10),TEI!$B:$BE,24,FALSE) -> 7.1 | F30: =VLOOKUP(CONCATENATE($I$4,F$10),TEI!$B:$BE,24,FALSE) -> 8.7
A31: 2013 | B31: =VLOOKUP(CONCATENATE($I$4,B$10),TEI!$B:$BE,26,FALSE) -> 0.6 | C31: =VLOOKUP(CONCATENATE($I$4,C$10),TEI!$B:$BE,26,FALSE) -> 4.7 | D31: =VLOOKUP(CONCATENATE($I$4,D$10),TEI!$B:$BE,26,FALSE) -> 14.4 | E31: =VLOOKUP(CONCATENATE($I$4,E$10),TEI!$B:$BE,26,FALSE) -> 9.7 | F31: =VLOOKUP(CONCATENATE($I$4,F$10),TEI!$B:$BE,26,FALSE) -> 8.8
A32: 2014 | B32: =VLOOKUP(CONCATENATE($I$4,B$10),TEI!$B:$BE,28,FALSE) -> 0.4719004719 | C32: =VLOOKUP(CONCATENATE($I$4,C$10),TEI!$B:$BE,28,FALSE) -> 5.29618207 | D32: =VLOOKUP(CONCATENATE($I$4,D$10),TEI!$B:$BE,28,FALSE) -> 16.31638886 | E32: =VLOOKUP(CONCATENATE($I$4,E$10),TEI!$B:$BE,28,FALSE) -> 6.985986195 | F32: =VLOOKUP(CONCATENATE($I$4,F$10),TEI!$B:$BE,28,FALSE) -> 9.241995874
A33: 2015 | B33: =VLOOKUP(CONCATENATE($I$4,B$10),TEI!$B:$BE,30,FALSE) -> 0 | C33: =VLOOKUP(CONCATENATE($I$4,C$10),TEI!$B:$BE,30,FALSE) -> 5.040032847 | D33: =VLOOKUP(CONCATENATE($I$4,D$10),TEI!$B:$BE,30,FALSE) -> 13.48769598 | E33: =VLOOKUP(CONCATENATE($I$4,E$10),TEI!$B:$BE,30,FALSE) -> 6.617826618 | F33: =VLOOKUP(CONCATENATE($I$4,F$10),TEI!$B:$BE,30,FALSE) -> 8.20690479
A34: 2016 | B34: =VLOOKUP(CONCATENATE($I$4,B$10),TEI!$B:$BE,31,FALSE) -> 0 | C34: =VLOOKUP(CONCATENATE($I$4,C$10),TEI!$B:$BE,31,FALSE) -> 4.3 | D34: =VLOOKUP(CONCATENATE($I$4,D$10),TEI!$B:$BE,31,FALSE) -> 12.7 | E34: =VLOOKUP(CONCATENATE($I$4,E$10),TEI!$B:$BE,31,FALSE) -> 7.1 | F34: =VLOOKUP(CONCATENATE($I$4,F$10),TEI!$B:$BE,31,FALSE) -> 7.6
A35: 2017 | B35: =VLOOKUP(CONCATENATE($I$4,B$10),TEI!$B:$BE,32,FALSE) -> 0 | C35: =VLOOKUP(CONCATENATE($I$4,C$10),TEI!$B:$BE,32,FALSE) -> 4.34185506 | D35: =VLOOKUP(CONCATENATE($I$4,D$10),TEI!$B:$BE,32,FALSE) -> 9.317203676 | E35: =VLOOKUP(CONCATENATE($I$4,E$10),TEI!$B:$BE,32,FALSE) -> 5.75483871 | F35: =VLOOKUP(CONCATENATE($I$4,F$10),TEI!$B:$BE,32,FALSE) -> 6.151142355
A36: Fuente: Oficina Asesora de Planeación
A37: Nota: Valores en porcentaje
A42: Perfil: | C42: =C4 -> Puente Aranda | F42: Numero: | I42: =VLOOKUP($C$4,'Localidades colegio y sedes '!$C:$D,2,FALSE) -> 16
A44: Tasas de Eficiencia Interna (TEI):
A46: Tasa de Deserción:
B47: Tasa de Deserción 2009-2014 (%)
B48: Año | C48: Preescolar | D48: Primaria | E48: Secundaria | F48: Media | G48: Total
B49: 2009 | C49: =VLOOKUP(CONCATENATE($I$4,B$10),TEI!$B:$BE,45,FALSE) -> 4.5 | D49: =VLOOKUP(CONCATENATE($I$4,C$10),TEI!$B:$BE,45,FALSE) -> 3.6 | E49: =VLOOKUP(CONCATENATE($I$4,D$10),TEI!$B:$BE,45,FALSE) -> 4.8 | F49: =VLOOKUP(CONCATENATE($I$4,E$10),TEI!$B:$BE,45,FALSE) -> 4.1 | G49: =VLOOKUP(CONCATENATE($I$4,F$10),TEI!$B:$BE,45,FALSE) -> 4.2
B50: 2010 | C50: =VLOOKUP(CONCATENATE($I$4,B$10),TEI!$B:$BE,47,FALSE) -> 3.6 | D50: =VLOOKUP(CONCATENATE($I$4,C$10),TEI!$B:$BE,47,FALSE) -> 3.2 | E50: =VLOOKUP(CONCATENATE($I$4,D$10),TEI!$B:$BE,47,FALSE) -> 5.7 | F50: =VLOOKUP(CONCATENATE($I$4,E$10),TEI!$B:$BE,47,FALSE) -> 4.8 | G50: =VLOOKUP(CONCATENATE($I$4,F$10),TEI!$B:$BE,47,FALSE) -> 4.5
B51: 2011 | C51: =VLOOKUP(CONCATENATE($I$4,B$10),TEI!$B:$BE,49,FALSE) -> 6.4 | D51: =VLOOKUP(CONCATENATE($I$4,C$10),TEI!$B:$BE,49,FALSE) -> 5.2 | E51: =VLOOKUP(CONCATENATE($I$4,D$10),TEI!$B:$BE,49,FALSE) -> 8.8 | F51: =VLOOKUP(CONCATENATE($I$4,E$10),TEI!$B:$BE,49,FALSE) -> 6.4 | G51: =VLOOKUP(CONCATENATE($I$4,F$10),TEI!$B:$BE,49,FALSE) -> 6.9
B52: 2012 | C52: =VLOOKUP(CONCATENATE($I$4,B$10),TEI!$B:$BE,51,FALSE) -> 5.9 | D52: =VLOOKUP(CONCATENATE($I$4,C$10),TEI!$B:$BE,51,FALSE) -> 5.9 | E52: =VLOOKUP(CONCATENATE($I$4,D$10),TEI!$B:$BE,51,FALSE) -> 5.9 | F52: =VLOOKUP(CONCATENATE($I$4,E$10),TEI!$B:$BE,51,FALSE) -> 3.8 | G52: =VLOOKUP(CONCATENATE($I$4,F$10),TEI!$B:$BE,51,FALSE) -> 5.5
B53: 2013 | C53: =VLOOKUP(CONCATENATE($I$4,B$10),TEI!$B:$BE,53,FALSE) -> 5.4 | D53: =VLOOKUP(CONCATENATE($I$4,C$10),TEI!$B:$BE,53,FALSE) -> 4 | E53: =VLOOKUP(CONCATENATE($I$4,D$10),TEI!$B:$BE,53,FALSE) -> 4.5 | F53: =VLOOKUP(CONCATENATE($I$4,E$10),TEI!$B:$BE,53,FALSE) -> 2.9 | G53: =VLOOKUP(CONCATENATE($I$4,F$10),TEI!$B:$BE,53,FALSE) -> 4.1
B54: 2014 | C54: =VLOOKUP(CONCATENATE($I$4,B$10),TEI!$B:$BE,55,FALSE) -> 2.488202488 | D54: =VLOOKUP(CONCATENATE($I$4,C$10),TEI!$B:$BE,55,FALSE) -> 2.913963629 | E54: =VLOOKUP(CONCATENATE($I$4,D$10),TEI!$B:$BE,55,FALSE) -> 4.679573455 | F54: =VLOOKUP(CONCATENATE($I$4,E$10),TEI!$B:$BE,55,FALSE) -> 3.848567245 | G54: =VLOOKUP(CONCATENATE($I$4,F$10),TEI!$B:$BE,55,FALSE) -> 3.698326584
B56: Fuente: Oficina Asesora de Planeación a partir del Censo C-600 del DANE
B57: Nota: Valores en porcentaje
B61: Tasa de Deserción 2015-2018 (%)
B62: Año | C62: Preescolar | D62: Primaria | E62: Secundaria | F62: Media | G62: Total
B63: 2015 | C63: =VLOOKUP(($B63&$I$4),'DESERCIÓN MEN 2015-2017'!$A:$I,5,FALSE)*100 -> 4.548635409 | D63: =VLOOKUP(($B63&$I$4),'DESERCIÓN MEN 2015-2017'!$A:$I,6,FALSE)*100 -> 2.842512279 | E63: =VLOOKUP(($B63&$I$4),'DESERCIÓN MEN 2015-2017'!$A:$I,7,FALSE)*100 -> 4.381778742 | F63: =VLOOKUP(($B63&$I$4),'DESERCIÓN MEN 2015-2017'!$A:$I,8,FALSE)*100 -> 2.258726899 | G63: =VLOOKUP(($B63&$I$4),'DESERCIÓN MEN 2015-2017'!$A:$I,9,FALSE)*100 -> 3.437836941
B64: 2016 | C64: =VLOOKUP(($B64&$I$4),'DESERCIÓN MEN 2015-2017'!$A:$I,5,FALSE)*100 -> 3.533568905 | D64: =VLOOKUP(($B64&$I$4),'DESERCIÓN MEN 2015-2017'!$A:$I,6,FALSE)*100 -> 2.185847906 | E64: =VLOOKUP(($B64&$I$4),'DESERCIÓN MEN 2015-2017'!$A:$I,7,FALSE)*100 -> 2.799184044 | F64: =VLOOKUP(($B64&$I$4),'DESERCIÓN MEN 2015-2017'!$A:$I,8,FALSE)*100 -> 1.743429612 | G64: =VLOOKUP(($B64&$I$4),'DESERCIÓN MEN 2015-2017'!$A:$I,9,FALSE)*100 -> 2.420770967
B65: 2017 | C65: =VLOOKUP(($B65&$I$4),'DESERCIÓN MEN 2015-2017'!$A:$I,5,FALSE)*100 -> 2.688953488 | D65: =VLOOKUP(($B65&$I$4),'DESERCIÓN MEN 2015-2017'!$A:$I,6,FALSE)*100 -> 1.619917373 | E65: =VLOOKUP(($B65&$I$4),'DESERCIÓN MEN 2015-2017'!$A:$I,7,FALSE)*100 -> 1.907486886 | F65: =VLOOKUP(($B65&$I$4),'DESERCIÓN MEN 2015-2017'!$A:$I,8,FALSE)*100 -> 1.67642363 | G65: =VLOOKUP(($B65&$I$4),'DESERCIÓN MEN 2015-2017'!$A:$I,9,FALSE)*100 -> 1.800176056
B66: 2018 | C66: =VLOOKUP(($B66&$I$4),'DESERCIÓN MEN 2015-2017'!$A:$I,5,FALSE)*100 -> 2.883922134 | D66: =VLOOKUP(($B66&$I$4),'DESERCIÓN MEN 2015-2017'!$A:$I,6,FALSE)*100 -> 1.795892031 | E66: =VLOOKUP(($B66&$I$4),'DESERCIÓN MEN 2015-2017'!$A:$I,7,FALSE)*100 -> 1.788996447 | F66: =VLOOKUP(($B66&$I$4),'DESERCIÓN MEN 2015-2017'!$A:$I,8,FALSE)*100 -> 1.393145723 | G66: =VLOOKUP(($B66&$I$4),'DESERCIÓN MEN 2015-2017'!$A:$I,9,FALSE)*100 -> 1.79622036
B67: Fuente: Ministerio de Educación Nacional
B68: Nota: Valores en porcentaje
A77: Perfil: | C77: =C42 -> Puente Aranda | F77: Numero: | I77: =VLOOKUP($C$4,'Localidades colegio y sedes '!$C:$D,2,FALSE) -> 16
A79: Tasas de Cobertura Bruta:
D81: Tasa de Cobertura Bruta 2009-2018 (%)
D82: Año | E82: Preescolar | F82: Primaria | G82: Secundaria | H82: Media | I82: Total
D83: 2009 | E83: =VLOOKUP(CONCATENATE($I$4,E$82),TEI!$B:$BN,58,FALSE)*100 -> 100.9 | F83: =VLOOKUP(CONCATENATE($I$4,F$82),TEI!$B:$BN,58,FALSE)*100 -> 116.7 | G83: =VLOOKUP(CONCATENATE($I$4,G$82),TEI!$B:$BN,58,FALSE)*100 -> 116.3 | H83: =VLOOKUP(CONCATENATE($I$4,H$82),TEI!$B:$BN,58,FALSE)*100 -> 94.6 | I83: =VLOOKUP(CONCATENATE($I$4,I$82),TEI!$B:$BN,58,FALSE)*100 -> 111.3
D84: 2010 | E84: =VLOOKUP(CONCATENATE($I$4,E$82),TEI!$B:$BN,59,FALSE)*100 -> 106.3 | F84: =VLOOKUP(CONCATENATE($I$4,F$82),TEI!$B:$BN,59,FALSE)*100 -> 116.4 | G84: =VLOOKUP(CONCATENATE($I$4,G$82),TEI!$B:$BN,59,FALSE)*100 -> 117.7 | H84: =VLOOKUP(CONCATENATE($I$4,H$82),TEI!$B:$BN,59,FALSE)*100 -> 96.9 | I84: =VLOOKUP(CONCATENATE($I$4,I$82),TEI!$B:$BN,59,FALSE)*100 -> 112.4
D85: 2011 | E85: =VLOOKUP(CONCATENATE($I$4,E$82),TEI!$B:$BN,60,FALSE)*100 -> 104.1 | F85: =VLOOKUP(CONCATENATE($I$4,F$82),TEI!$B:$BN,60,FALSE)*100 -> 118.5 | G85: =VLOOKUP(CONCATENATE($I$4,G$82),TEI!$B:$BN,60,FALSE)*100 -> 117.1 | H85: =VLOOKUP(CONCATENATE($I$4,H$82),TEI!$B:$BN,60,FALSE)*100 -> 102.7 | I85: =VLOOKUP(CONCATENATE($I$4,I$82),TEI!$B:$BN,60,FALSE)*100 -> 114
D86: 2012 | E86: =VLOOKUP(CONCATENATE($I$4,E$82),TEI!$B:$BN,61,FALSE)*100 -> 101.2 | F86: =VLOOKUP(CONCATENATE($I$4,F$82),TEI!$B:$BN,61,FALSE)*100 -> 111.8 | G86: =VLOOKUP(CONCATENATE($I$4,G$82),TEI!$B:$BN,61,FALSE)*100 -> 118.8 | H86: =VLOOKUP(CONCATENATE($I$4,H$82),TEI!$B:$BN,61,FALSE)*100 -> 97.9 | I86: =VLOOKUP(CONCATENATE($I$4,I$82),TEI!$B:$BN,61,FALSE)*100 -> 110.8
D87: 2013 | E87: =VLOOKUP(CONCATENATE($I$4,E$82),TEI!$B:$BN,62,FALSE)*100 -> 105.9 | F87: =VLOOKUP(CONCATENATE($I$4,F$82),TEI!$B:$BN,62,FALSE)*100 -> 111.7 | G87: =VLOOKUP(CONCATENATE($I$4,G$82),TEI!$B:$BN,62,FALSE)*100 -> 116.3 | H87: =VLOOKUP(CONCATENATE($I$4,H$82),TEI!$B:$BN,62,FALSE)*100 -> 95 | I87: =VLOOKUP(CONCATENATE($I$4,I$82),TEI!$B:$BN,62,FALSE)*100 -> 109.8
D88: 2014 | E88: =VLOOKUP(CONCATENATE($I$4,E$82),TEI!$B:$BN,63,FALSE)*100 -> 107.3 | F88: =VLOOKUP(CONCATENATE($I$4,F$82),TEI!$B:$BN,63,FALSE)*100 -> 116 | G88: =VLOOKUP(CONCATENATE($I$4,G$82),TEI!$B:$BN,63,FALSE)*100 -> 118 | H88: =VLOOKUP(CONCATENATE($I$4,H$82),TEI!$B:$BN,63,FALSE)*100 -> 98.9 | I88: =VLOOKUP(CONCATENATE($I$4,I$82),TEI!$B:$BN,63,FALSE)*100 -> 112.8
D89: 2015 | E89: =VLOOKUP(CONCATENATE($I$4,E$82),TEI!$B:$BN,64,FALSE) -> 107.8839483 | F89: =VLOOKUP(CONCATENATE($I$4,F$82),TEI!$B:$BN,64,FALSE) -> 122.49 | G89: =VLOOKUP(CONCATENATE($I$4,G$82),TEI!$B:$BN,64,FALSE) -> 119.4407555 | H89: =VLOOKUP(CONCATENATE($I$4,H$82),TEI!$B:$BN,64,FALSE) -> 95.69558764 | I89: =VLOOKUP(CONCATENATE($I$4,I$82),TEI!$B:$BN,64,FALSE) -> 115.3531626
D90: 2016 | E90: =VLOOKUP(CONCATENATE($I$4,E$82),TEI!$B:$BN,65,FALSE) -> 121.7 | F90: =VLOOKUP(CONCATENATE($I$4,F$82),TEI!$B:$BN,65,FALSE) -> 135.9 | G90: =VLOOKUP(CONCATENATE($I$4,G$82),TEI!$B:$BN,65,FALSE) -> 135.3 | H90: =VLOOKUP(CONCATENATE($I$4,H$82),TEI!$B:$BN,65,FALSE) -> 112.8 | I90: =VLOOKUP(CONCATENATE($I$4,I$82),TEI!$B:$BN,65,FALSE) -> 130.5
D91: 2017 | E91: =VLOOKUP(CONCATENATE($I$4,E$82),TEI!$B:$BT,66,FALSE) -> 115.8694846 | F91: =VLOOKUP(CONCATENATE($I$4,F$82),TEI!$B:$BT,66,FALSE) -> 133.5480638 | G91: =VLOOKUP(CONCATENATE($I$4,G$82),TEI!$B:$BT,66,FALSE) -> 129.4688458 | H91: =VLOOKUP(CONCATENATE($I$4,H$82),TEI!$B:$BT,66,FALSE) -> 111.065439 | I91: =VLOOKUP(CONCATENATE($I$4,I$82),TEI!$B:$BT,66,FALSE) -> 126.8131486
D92: 2018 | E92: =VLOOKUP(CONCATENATE($I$4,E$82),TEI!$B:$BT,67,FALSE) -> 117.4712644 | F92: =VLOOKUP(CONCATENATE($I$4,F$82),TEI!$B:$BT,67,FALSE) -> 137.4750683 | G92: =VLOOKUP(CONCATENATE($I$4,G$82),TEI!$B:$BT,67,FALSE) -> 127.5453278 | H92: =VLOOKUP(CONCATENATE($I$4,H$82),TEI!$B:$BT,67,FALSE) -> 110.5657805 | I92: =VLOOKUP(CONCATENATE($I$4,I$82),TEI!$B:$BT,67,FALSE) -> 127.7988473
D93: Fuente: Oficina Asesora de Planeación
D94: Nota: Valores en porcentaje
A114: Perfil: | C114: =C77 -> Puente Aranda | F114: Numero: | I114: =VLOOKUP($C$4,'Localidades colegio y sedes '!$C:$D,2,FALSE) -> 16
A116: COLEGIO | F116: TASA DE APROBACION | K116: TASA DE REPROBACIÓN
F117: 2013 | G117: 2014 | H117: 2015 | I117: 2016 | J117: 2017 | K117: 2013 | L117: 2014 | M117: 2015 | N117: 2016 | O117: 2017
A118: =IF(ROWS($D$116:D116)<=(COUNTIF('TASA POR COLEGIO'!$B:$B,'4'!$C$4)),VLOOKUP('4'!$C$4&ROWS($D$116:D116),'TASA POR COLEGIO'!$C:$O,3,FALSE),"") -> COLEGIO DE CULTURA POPULAR (IED) | F118: =IF(ROWS($D$116:I116)<=(COUNTIF('TASA POR COLEGIO'!$B:$B,'4'!$C$4)),VLOOKUP('4'!$C$4&ROWS($D$116:I116),'TASA POR COLEGIO'!$C:$O,5,FALSE),"") -> 89.39929329 | G118: =IF(ROWS($D$116:K116)<=(COUNTIF('TASA POR COLEGIO'!$B:$B,'4'!$C$4)),VLOOKUP('4'!$C$4&ROWS($D$116:K116),'TASA POR COLEGIO'!$C:$O,6,FALSE),"") -> 85.34351145 | H118: =IF(ROWS($D$116:L116)<=(COUNTIF('TASA POR COLEGIO'!$B:$B,'4'!$C$4)),VLOOKUP('4'!$C$4&ROWS($D$116:L116),'TASA POR COLEGIO'!$C:$O,7,FALSE),"") -> 95.38855679 | I118: =IF(ROWS($D$116:M116)<=(COUNTIF('TASA POR COLEGIO'!$B:$B,'4'!$C$4)),VLOOKUP('4'!$C$4&ROWS($D$116:M116),'TASA POR COLEGIO'!$C:$O,8,FALSE),"") -> 94.31988042 | J118: =IF(ROWS($D$116:N116)<=(COUNTIF('TASA POR COLEGIO'!$B:$B,'4'!$C$4)),VLOOKUP('4'!$C$4&ROWS($D$116:N116),'TASA POR COLEGIO'!$C:$O,9,FALSE),"") -> 94.81546573 | K118: =IF(ROWS($D$116:N116)<=(COUNTIF('TASA POR COLEGIO'!$B:$B,'4'!$C$4)),VLOOKUP('4'!$C$4&ROWS($D$116:N116),'TASA POR COLEGIO'!$C:$O,10,FALSE),"") -> 3.556771546 | L118: =IF(ROWS($D$116:O116)<=(COUNTIF('TASA POR COLEGIO'!$B:$B,'4'!$C$4)),VLOOKUP('4'!$C$4&ROWS($D$116:O116),'TASA POR COLEGIO'!$C:$O,11,FALSE),"") -> 5.795053004 | M118: =IF(ROWS($D$116:P116)<=(COUNTIF('TASA POR COLEGIO'!$B:$B,'4'!$C$4)),VLOOKUP('4'!$C$4&ROWS($D$116:P116),'TASA POR COLEGIO'!$C:$O,12,FALSE),"") -> 5.038167939 | N118: =IF(ROWS($D$116:Q116)<=(COUNTIF('TASA POR COLEGIO'!$B:$B,'4'!$C$4)),VLOOKUP('4'!$C$4&ROWS($D$116:Q116),'TASA POR COLEGIO'!$C:$P,13,FALSE),"") -> 4.611443211 | O118: =IF(ROWS($D$116:R116)<=(COUNTIF('TASA POR COLEGIO'!$B:$B,'4'!$C$4)),VLOOKUP('4'!$C$4&ROWS($D$116:R116),'TASA POR COLEGIO'!$C:$Q,14,FALSE),"") -> 5.680119581
A119: =IF(ROWS($D$116:D117)<=(COUNTIF('TASA POR COLEGIO'!$B:$B,'4'!$C$4)),VLOOKUP('4'!$C$4&ROWS($D$116:D117),'TASA POR COLEGIO'!$C:$O,3,FALSE),"") -> COLEGIO ESPAÑA (IED) | F119: =IF(ROWS($D$116:I117)<=(COUNTIF('TASA POR COLEGIO'!$B:$B,'4'!$C$4)),VLOOKUP('4'!$C$4&ROWS($D$116:I117),'TASA POR COLEGIO'!$C:$O,5,FALSE),"") -> 73.46647646 | G119: =IF(ROWS($D$116:K117)<=(COUNTIF('TASA POR COLEGIO'!$B:$B,'4'!$C$4)),VLOOKUP('4'!$C$4&ROWS($D$116:K117),'TASA POR COLEGIO'!$C:$O,6,FALSE),"") -> 78.72727273 | H119: =IF(ROWS($D$116:L117)<=(COUNTIF('TASA POR COLEGIO'!$B:$B,'4'!$C$4)),VLOOKUP('4'!$C$4&ROWS($D$116:L117),'TASA POR COLEGIO'!$C:$O,7,FALSE),"") -> 75.38860104 | I119: =IF(ROWS($D$116:M117)<=(COUNTIF('TASA POR COLEGIO'!$B:$B,'4'!$C$4)),VLOOKUP('4'!$C$4&ROWS($D$116:M117),'TASA POR COLEGIO'!$C:$O,8,FALSE),"") -> 81.73758865 | J119: =IF(ROWS($D$116:N117)<=(COUNTIF('TASA POR COLEGIO'!$B:$B,'4'!$C$4)),VLOOKUP('4'!$C$4&ROWS($D$116:N117),'TASA POR COLEGIO'!$C:$O,9,FALSE),"") -> 84.56090652 | K119: =IF(ROWS($D$116:N117)<=(COUNTIF('TASA POR COLEGIO'!$B:$B,'4'!$C$4)),VLOOKUP('4'!$C$4&ROWS($D$116:N117),'TASA POR COLEGIO'!$C:$O,10,FALSE),"") -> 11.21372032 | L119: =IF(ROWS($D$116:O117)<=(COUNTIF('TASA POR COLEGIO'!$B:$B,'4'!$C$4)),VLOOKUP('4'!$C$4&ROWS($D$116:O117),'TASA POR COLEGIO'!$C:$O,11,FALSE),"") -> 12.83880171 | M119: =IF(ROWS($D$116:P117)<=(COUNTIF('TASA POR COLEGIO'!$B:$B,'4'!$C$4)),VLOOKUP('4'!$C$4&ROWS($D$116:P117),'TASA POR COLEGIO'!$C:$O,12,FALSE),"") -> 14 | N119: =IF(ROWS($D$116:Q117)<=(COUNTIF('TASA POR COLEGIO'!$B:$B,'4'!$C$4)),VLOOKUP('4'!$C$4&ROWS($D$116:Q117),'TASA POR COLEGIO'!$C:$P,13,FALSE),"") -> 22.02072539 | O119: =IF(ROWS($D$116:R117)<=(COUNTIF('TASA POR COLEGIO'!$B:$B,'4'!$C$4)),VLOOKUP('4'!$C$4&ROWS($D$116:R117),'TASA POR COLEGIO'!$C:$Q,14,FALSE),"") -> 17.55319149
A120: =IF(ROWS($D$116:D118)<=(COUNTIF('TASA POR COLEGIO'!$B:$B,'4'!$C$4)),VLOOKUP('4'!$C$4&ROWS($D$116:D118),'TASA POR COLEGIO'!$C:$O,3,FALSE),"") -> COLEGIO ANDRES BELLO (IED) | F120: =IF(ROWS($D$116:I118)<=(COUNTIF('TASA POR COLEGIO'!$B:$B,'4'!$C$4)),VLOOKUP('4'!$C$4&ROWS($D$116:I118),'TASA POR COLEGIO'!$C:$O,5,FALSE),"") -> 84.78821363 | G120: =IF(ROWS($D$116:K118)<=(COUNTIF('TASA POR COLEGIO'!$B:$B,'4'!$C$4)),VLOOKUP('4'!$C$4&ROWS($D$116:K118),'TASA POR COLEGIO'!$C:$O,6,FALSE),"") -> 88.73052701 | H120: =IF(ROWS($D$116:L118)<=(COUNTIF('TASA POR COLEGIO'!$B:$B,'4'!$C$4)),VLOOKUP('4'!$C$4&ROWS($D$116:L118),'TASA POR COLEGIO'!$C:$O,7,FALSE),"") -> 84.92957746 | I120: =IF(ROWS($D$116:M118)<=(COUNTIF('TASA POR COLEGIO'!$B:$B,'4'!$C$4)),VLOOKUP('4'!$C$4&ROWS($D$116:M118),'TASA POR COLEGIO'!$C:$O,8,FALSE),"") -> 93.76693767 | J120: =IF(ROWS($D$116:N118)<=(COUNTIF('TASA POR COLEGIO'!$B:$B,'4'!$C$4)),VLOOKUP('4'!$C$4&ROWS($D$116:N118),'TASA POR COLEGIO'!$C:$O,9,FALSE),"") -> 94.30979979 | K120: =IF(ROWS($D$116:N118)<=(COUNTIF('TASA POR COLEGIO'!$B:$B,'4'!$C$4)),VLOOKUP('4'!$C$4&ROWS($D$116:N118),'TASA POR COLEGIO'!$C:$O,10,FALSE),"") -> 6.402877698 | L120: =IF(ROWS($D$116:O118)<=(COUNTIF('TASA POR COLEGIO'!$B:$B,'4'!$C$4)),VLOOKUP('4'!$C$4&ROWS($D$116:O118),'TASA POR COLEGIO'!$C:$O,11,FALSE),"") -> 6.703499079 | M120: =IF(ROWS($D$116:P118)<=(COUNTIF('TASA POR COLEGIO'!$B:$B,'4'!$C$4)),VLOOKUP('4'!$C$4&ROWS($D$116:P118),'TASA POR COLEGIO'!$C:$O,12,FALSE),"") -> 5.004971826 | N120: =IF(ROWS($D$116:Q118)<=(COUNTIF('TASA POR COLEGIO'!$B:$B,'4'!$C$4)),VLOOKUP('4'!$C$4&ROWS($D$116:Q118),'TASA POR COLEGIO'!$C:$P,13,FALSE),"") -> 6.901408451 | O120: =IF(ROWS($D$116:R118)<=(COUNTIF('TASA POR COLEGIO'!$B:$B,'4'!$C$4)),VLOOKUP('4'!$C$4&ROWS($D$116:R118),'TASA POR COLEGIO'!$C:$Q,14,FALSE),"") -> 6.233062331
A121: =IF(ROWS($D$116:D119)<=(COUNTIF('TASA POR COLEGIO'!$B:$B,'4'!$C$4)),VLOOKUP('4'!$C$4&ROWS($D$116:D119),'TASA POR COLEGIO'!$C:$O,3,FALSE),"") -> COLEGIO JULIO GARAVITO ARMERO (IED) | F121: =IF(ROWS($D$116:I119)<=(COUNTIF('TASA POR COLEGIO'!$B:$B,'4'!$C$4)),VLOOKUP('4'!$C$4&ROWS($D$116:I119),'TASA POR COLEGIO'!$C:$O,5,FALSE),"") -> Sin Info. | G121: =IF(ROWS($D$116:K119)<=(COUNTIF('TASA POR COLEGIO'!$B:$B,'4'!$C$4)),VLOOKUP('4'!$C$4&ROWS($D$116:K119),'TASA POR COLEGIO'!$C:$O,6,FALSE),"") -> 85.92715232 | H121: =IF(ROWS($D$116:L119)<=(COUNTIF('TASA POR COLEGIO'!$B:$B,'4'!$C$4)),VLOOKUP('4'!$C$4&ROWS($D$116:L119),'TASA POR COLEGIO'!$C:$O,7,FALSE),"") -> 91.43532191 | I121: =IF(ROWS($D$116:M119)<=(COUNTIF('TASA POR COLEGIO'!$B:$B,'4'!$C$4)),VLOOKUP('4'!$C$4&ROWS($D$116:M119),'TASA POR COLEGIO'!$C:$O,8,FALSE),"") -> 94.32926829 | J121: =IF(ROWS($D$116:N119)<=(COUNTIF('TASA POR COLEGIO'!$B:$B,'4'!$C$4)),VLOOKUP('4'!$C$4&ROWS($D$116:N119),'TASA POR COLEGIO'!$C:$O,9,FALSE),"") -> 94.49541284 | K121: =IF(ROWS($D$116:N119)<=(COUNTIF('TASA POR COLEGIO'!$B:$B,'4'!$C$4)),VLOOKUP('4'!$C$4&ROWS($D$116:N119),'TASA POR COLEGIO'!$C:$O,10,FALSE),"") -> Sin Info. | L121: =IF(ROWS($D$116:O119)<=(COUNTIF('TASA POR COLEGIO'!$B:$B,'4'!$C$4)),VLOOKUP('4'!$C$4&ROWS($D$116:O119),'TASA POR COLEGIO'!$C:$O,11,FALSE),"") -> Sin Info. | M121: =IF(ROWS($D$116:P119)<=(COUNTIF('TASA POR COLEGIO'!$B:$B,'4'!$C$4)),VLOOKUP('4'!$C$4&ROWS($D$116:P119),'TASA POR COLEGIO'!$C:$O,12,FALSE),"") -> 9.547461369 | N121: =IF(ROWS($D$116:Q119)<=(COUNTIF('TASA POR COLEGIO'!$B:$B,'4'!$C$4)),VLOOKUP('4'!$C$4&ROWS($D$116:Q119),'TASA POR COLEGIO'!$C:$P,13,FALSE),"") -> 5.256940343 | O121: =IF(ROWS($D$116:R119)<=(COUNTIF('TASA POR COLEGIO'!$B:$B,'4'!$C$4)),VLOOKUP('4'!$C$4&ROWS($D$116:R119),'TASA POR COLEGIO'!$C:$Q,14,FALSE),"") -> 5.670731707
A122: =IF(ROWS($D$116:D120)<=(COUNTIF('TASA POR COLEGIO'!$B:$B,'4'!$C$4)),VLOOKUP('4'!$C$4&ROWS($D$116:D120),'TASA POR COLEGIO'!$C:$O,3,FALSE),"") -> COLEGIO LUIS VARGAS TEJADA (IED) | F122: =IF(ROWS($D$116:I120)<=(COUNTIF('TASA POR COLEGIO'!$B:$B,'4'!$C$4)),VLOOKUP('4'!$C$4&ROWS($D$116:I120),'TASA POR COLEGIO'!$C:$O,5,FALSE),"") -> 85.14099783 | G122: =IF(ROWS($D$116:K120)<=(COUNTIF('TASA POR COLEGIO'!$B:$B,'4'!$C$4)),VLOOKUP('4'!$C$4&ROWS($D$116:K120),'TASA POR COLEGIO'!$C:$O,6,FALSE),"") -> 77.77777778 | H122: =IF(ROWS($D$116:L120)<=(COUNTIF('TASA POR COLEGIO'!$B:$B,'4'!$C$4)),VLOOKUP('4'!$C$4&ROWS($D$116:L120),'TASA POR COLEGIO'!$C:$O,7,FALSE),"") -> 93.92712551 | I122: =IF(ROWS($D$116:M120)<=(COUNTIF('TASA POR COLEGIO'!$B:$B,'4'!$C$4)),VLOOKUP('4'!$C$4&ROWS($D$116:M120),'TASA POR COLEGIO'!$C:$O,8,FALSE),"") -> 93.09245484 | J122: =IF(ROWS($D$116:N120)<=(COUNTIF('TASA POR COLEGIO'!$B:$B,'4'!$C$4)),VLOOKUP('4'!$C$4&ROWS($D$116:N120),'TASA POR COLEGIO'!$C:$O,9,FALSE),"") -> 91.42561983 | K122: =IF(ROWS($D$116:N120)<=(COUNTIF('TASA POR COLEGIO'!$B:$B,'4'!$C$4)),VLOOKUP('4'!$C$4&ROWS($D$116:N120),'TASA POR COLEGIO'!$C:$O,10,FALSE),"") -> 13.40125392 | L122: =IF(ROWS($D$116:O120)<=(COUNTIF('TASA POR COLEGIO'!$B:$B,'4'!$C$4)),VLOOKUP('4'!$C$4&ROWS($D$116:O120),'TASA POR COLEGIO'!$C:$O,11,FALSE),"") -> 10.95444685 | M122: =IF(ROWS($D$116:P120)<=(COUNTIF('TASA POR COLEGIO'!$B:$B,'4'!$C$4)),VLOOKUP('4'!$C$4&ROWS($D$116:P120),'TASA POR COLEGIO'!$C:$O,12,FALSE),"") -> 17.76027997 | N122: =IF(ROWS($D$116:Q120)<=(COUNTIF('TASA POR COLEGIO'!$B:$B,'4'!$C$4)),VLOOKUP('4'!$C$4&ROWS($D$116:Q120),'TASA POR COLEGIO'!$C:$P,13,FALSE),"") -> 4.352226721 | O122: =IF(ROWS($D$116:R120)<=(COUNTIF('TASA POR COLEGIO'!$B:$B,'4'!$C$4)),VLOOKUP('4'!$C$4&ROWS($D$116:R120),'TASA POR COLEGIO'!$C:$Q,14,FALSE),"") -> 4.888416578
A123: =IF(ROWS($D$116:D121)<=(COUNTIF('TASA POR COLEGIO'!$B:$B,'4'!$C$4)),VLOOKUP('4'!$C$4&ROWS($D$116:D121),'TASA POR COLEGIO'!$C:$O,3,FALSE),"") -> COLEGIO SORRENTO (IED) | F123: =IF(ROWS($D$116:I121)<=(COUNTIF('TASA POR COLEGIO'!$B:$B,'4'!$C$4)),VLOOKUP('4'!$C$4&ROWS($D$116:I121),'TASA POR COLEGIO'!$C:$O,5,FALSE),"") -> 81.85550082 | G123: =IF(ROWS($D$116:K121)<=(COUNTIF('TASA POR COLEGIO'!$B:$B,'4'!$C$4)),VLOOKUP('4'!$C$4&ROWS($D$116:K121),'TASA POR COLEGIO'!$C:$O,6,FALSE),"") -> 78.54771784 | H123: =IF(ROWS($D$116:L121)<=(COUNTIF('TASA POR COLEGIO'!$B:$B,'4'!$C$4)),VLOOKUP('4'!$C$4&ROWS($D$116:L121),'TASA POR COLEGIO'!$C:$O,7,FALSE),"") -> 80.9778143 | I123: =IF(ROWS($D$116:M121)<=(COUNTIF('TASA POR COLEGIO'!$B:$B,'4'!$C$4)),VLOOKUP('4'!$C$4&ROWS($D$116:M121),'TASA POR COLEGIO'!$C:$O,8,FALSE),"") -> 88.50334448 | J123: =IF(ROWS($D$116:N121)<=(COUNTIF('TASA POR COLEGIO'!$B:$B,'4'!$C$4)),VLOOKUP('4'!$C$4&ROWS($D$116:N121),'TASA POR COLEGIO'!$C:$O,9,FALSE),"") -> 91.59836066 | K123: =IF(ROWS($D$116:N121)<=(COUNTIF('TASA POR COLEGIO'!$B:$B,'4'!$C$4)),VLOOKUP('4'!$C$4&ROWS($D$116:N121),'TASA POR COLEGIO'!$C:$O,10,FALSE),"") -> 15.0038373 | L123: =IF(ROWS($D$116:O121)<=(COUNTIF('TASA POR COLEGIO'!$B:$B,'4'!$C$4)),VLOOKUP('4'!$C$4&ROWS($D$116:O121),'TASA POR COLEGIO'!$C:$O,11,FALSE),"") -> 16.87192118 | M123: =IF(ROWS($D$116:P121)<=(COUNTIF('TASA POR COLEGIO'!$B:$B,'4'!$C$4)),VLOOKUP('4'!$C$4&ROWS($D$116:P121),'TASA POR COLEGIO'!$C:$O,12,FALSE),"") -> 17.13692946 | N123: =IF(ROWS($D$116:Q121)<=(COUNTIF('TASA POR COLEGIO'!$B:$B,'4'!$C$4)),VLOOKUP('4'!$C$4&ROWS($D$116:Q121),'TASA POR COLEGIO'!$C:$P,13,FALSE),"") -> 15.77649959 | O123: =IF(ROWS($D$116:R121)<=(COUNTIF('TASA POR COLEGIO'!$B:$B,'4'!$C$4)),VLOOKUP('4'!$C$4&ROWS($D$116:R121),'TASA POR COLEGIO'!$C:$Q,14,FALSE),"") -> 11.49665552
A124: =IF(ROWS($D$116:D122)<=(COUNTIF('TASA POR COLEGIO'!$B:$B,'4'!$C$4)),VLOOKUP('4'!$C$4&ROWS($D$116:D122),'TASA POR COLEGIO'!$C:$O,3,FALSE),"") -> COLEGIO SILVERIA ESPINOSA DE RENDON (IED) | F124: =IF(ROWS($D$116:I122)<=(COUNTIF('TASA POR COLEGIO'!$B:$B,'4'!$C$4)),VLOOKUP('4'!$C$4&ROWS($D$116:I122),'TASA POR COLEGIO'!$C:$O,5,FALSE),"") -> 83.27645051 | G124: =IF(ROWS($D$116:K122)<=(COUNTIF('TASA POR COLEGIO'!$B:$B,'4'!$C$4)),VLOOKUP('4'!$C$4&ROWS($D$116:K122),'TASA POR COLEGIO'!$C:$O,6,FALSE),"") -> 87.78966132 | H124: =IF(ROWS($D$116:L122)<=(COUNTIF('TASA POR COLEGIO'!$B:$B,'4'!$C$4)),VLOOKUP('4'!$C$4&ROWS($D$116:L122),'TASA POR COLEGIO'!$C:$O,7,FALSE),"") -> 86.82476943 | I124: =IF(ROWS($D$116:M122)<=(COUNTIF('TASA POR COLEGIO'!$B:$B,'4'!$C$4)),VLOOKUP('4'!$C$4&ROWS($D$116:M122),'TASA POR COLEGIO'!$C:$O,8,FALSE),"") -> 90.93553078 | J124: =IF(ROWS($D$116:N122)<=(COUNTIF('TASA POR COLEGIO'!$B:$B,'4'!$C$4)),VLOOKUP('4'!$C$4&ROWS($D$116:N122),'TASA POR COLEGIO'!$C:$O,9,FALSE),"") -> 89.96043521 | K124: =IF(ROWS($D$116:N122)<=(COUNTIF('TASA POR COLEGIO'!$B:$B,'4'!$C$4)),VLOOKUP('4'!$C$4&ROWS($D$116:N122),'TASA POR COLEGIO'!$C:$O,10,FALSE),"") -> 9.294465568 | L124: =IF(ROWS($D$116:O122)<=(COUNTIF('TASA POR COLEGIO'!$B:$B,'4'!$C$4)),VLOOKUP('4'!$C$4&ROWS($D$116:O122),'TASA POR COLEGIO'!$C:$O,11,FALSE),"") -> 8.447098976 | M124: =IF(ROWS($D$116:P122)<=(COUNTIF('TASA POR COLEGIO'!$B:$B,'4'!$C$4)),VLOOKUP('4'!$C$4&ROWS($D$116:P122),'TASA POR COLEGIO'!$C:$O,12,FALSE),"") -> 8.155080214 | N124: =IF(ROWS($D$116:Q122)<=(COUNTIF('TASA POR COLEGIO'!$B:$B,'4'!$C$4)),VLOOKUP('4'!$C$4&ROWS($D$116:Q122),'TASA POR COLEGIO'!$C:$P,13,FALSE),"") -> 7.026789635 | O124: =IF(ROWS($D$116:R122)<=(COUNTIF('TASA POR COLEGIO'!$B:$B,'4'!$C$4)),VLOOKUP('4'!$C$4&ROWS($D$116:R122),'TASA POR COLEGIO'!$C:$Q,14,FALSE),"") -> 6.010664081
A125: =IF(ROWS($D$116:D123)<=(COUNTIF('TASA POR COLEGIO'!$B:$B,'4'!$C$4)),VLOOKUP('4'!$C$4&ROWS($D$116:D123),'TASA POR COLEGIO'!$C:$O,3,FALSE),"") -> COLEGIO MARCO ANTONIO CARREÑO SILVA (IED) | F125: =IF(ROWS($D$116:I123)<=(COUNTIF('TASA POR COLEGIO'!$B:$B,'4'!$C$4)),VLOOKUP('4'!$C$4&ROWS($D$116:I123),'TASA POR COLEGIO'!$C:$O,5,FALSE),"") -> 88.53464132 | G125: =IF(ROWS($D$116:K123)<=(COUNTIF('TASA POR COLEGIO'!$B:$B,'4'!$C$4)),VLOOKUP('4'!$C$4&ROWS($D$116:K123),'TASA POR COLEGIO'!$C:$O,6,FALSE),"") -> 85.9614434 | H125: =IF(ROWS($D$116:L123)<=(COUNTIF('TASA POR COLEGIO'!$B:$B,'4'!$C$4)),VLOOKUP('4'!$C$4&ROWS($D$116:L123),'TASA POR COLEGIO'!$C:$O,7,FALSE),"") -> 79.79559748 | I125: =IF(ROWS($D$116:M123)<=(COUNTIF('TASA POR COLEGIO'!$B:$B,'4'!$C$4)),VLOOKUP('4'!$C$4&ROWS($D$116:M123),'TASA POR COLEGIO'!$C:$O,8,FALSE),"") -> 84.68323978 | J125: =IF(ROWS($D$116:N123)<=(COUNTIF('TASA POR COLEGIO'!$B:$B,'4'!$C$4)),VLOOKUP('4'!$C$4&ROWS($D$116:N123),'TASA POR COLEGIO'!$C:$O,9,FALSE),"") -> 89.34740883 | K125: =IF(ROWS($D$116:N123)<=(COUNTIF('TASA POR COLEGIO'!$B:$B,'4'!$C$4)),VLOOKUP('4'!$C$4&ROWS($D$116:N123),'TASA POR COLEGIO'!$C:$O,10,FALSE),"") -> 6.787814003 | L125: =IF(ROWS($D$116:O123)<=(COUNTIF('TASA POR COLEGIO'!$B:$B,'4'!$C$4)),VLOOKUP('4'!$C$4&ROWS($D$116:O123),'TASA POR COLEGIO'!$C:$O,11,FALSE),"") -> 5.702023299 | M125: =IF(ROWS($D$116:P123)<=(COUNTIF('TASA POR COLEGIO'!$B:$B,'4'!$C$4)),VLOOKUP('4'!$C$4&ROWS($D$116:P123),'TASA POR COLEGIO'!$C:$O,12,FALSE),"") -> 10.23232823 | N125: =IF(ROWS($D$116:Q123)<=(COUNTIF('TASA POR COLEGIO'!$B:$B,'4'!$C$4)),VLOOKUP('4'!$C$4&ROWS($D$116:Q123),'TASA POR COLEGIO'!$C:$P,13,FALSE),"") -> 6.603773585 | O125: =IF(ROWS($D$116:R123)<=(COUNTIF('TASA POR COLEGIO'!$B:$B,'4'!$C$4)),VLOOKUP('4'!$C$4&ROWS($D$116:R123),'TASA POR COLEGIO'!$C:$Q,14,FALSE),"") -> 8.981555734
A126: =IF(ROWS($D$116:D124)<=(COUNTIF('TASA POR COLEGIO'!$B:$B,'4'!$C$4)),VLOOKUP('4'!$C$4&ROWS($D$116:D124),'TASA POR COLEGIO'!$C:$O,3,FALSE),"") -> COLEGIO EL JAZMIN (IED) | F126: =IF(ROWS($D$116:I124)<=(COUNTIF('TASA POR COLEGIO'!$B:$B,'4'!$C$4)),VLOOKUP('4'!$C$4&ROWS($D$116:I124),'TASA POR COLEGIO'!$C:$O,5,FALSE),"") -> 83.61188487 | G126: =IF(ROWS($D$116:K124)<=(COUNTIF('TASA POR COLEGIO'!$B:$B,'4'!$C$4)),VLOOKUP('4'!$C$4&ROWS($D$116:K124),'TASA POR COLEGIO'!$C:$O,6,FALSE),"") -> 85.63451777 | H126: =IF(ROWS($D$116:L124)<=(COUNTIF('TASA POR COLEGIO'!$B:$B,'4'!$C$4)),VLOOKUP('4'!$C$4&ROWS($D$116:L124),'TASA POR COLEGIO'!$C:$O,7,FALSE),"") -> 88.44026549 | I126: =IF(ROWS($D$116:M124)<=(COUNTIF('TASA POR COLEGIO'!$B:$B,'4'!$C$4)),VLOOKUP('4'!$C$4&ROWS($D$116:M124),'TASA POR COLEGIO'!$C:$O,8,FALSE),"") -> 80.59536935 | J126: =IF(ROWS($D$116:N124)<=(COUNTIF('TASA POR COLEGIO'!$B:$B,'4'!$C$4)),VLOOKUP('4'!$C$4&ROWS($D$116:N124),'TASA POR COLEGIO'!$C:$O,9,FALSE),"") -> 93.27102804 | K126: =IF(ROWS($D$116:N124)<=(COUNTIF('TASA POR COLEGIO'!$B:$B,'4'!$C$4)),VLOOKUP('4'!$C$4&ROWS($D$116:N124),'TASA POR COLEGIO'!$C:$O,10,FALSE),"") -> 11.32310245 | L126: =IF(ROWS($D$116:O124)<=(COUNTIF('TASA POR COLEGIO'!$B:$B,'4'!$C$4)),VLOOKUP('4'!$C$4&ROWS($D$116:O124),'TASA POR COLEGIO'!$C:$O,11,FALSE),"") -> 11.23491179 | M126: =IF(ROWS($D$116:P124)<=(COUNTIF('TASA POR COLEGIO'!$B:$B,'4'!$C$4)),VLOOKUP('4'!$C$4&ROWS($D$116:P124),'TASA POR COLEGIO'!$C:$O,12,FALSE),"") -> 10.91370558 | N126: =IF(ROWS($D$116:Q124)<=(COUNTIF('TASA POR COLEGIO'!$B:$B,'4'!$C$4)),VLOOKUP('4'!$C$4&ROWS($D$116:Q124),'TASA POR COLEGIO'!$C:$P,13,FALSE),"") -> 9.015486726 | O126: =IF(ROWS($D$116:R124)<=(COUNTIF('TASA POR COLEGIO'!$B:$B,'4'!$C$4)),VLOOKUP('4'!$C$4&ROWS($D$116:R124),'TASA POR COLEGIO'!$C:$Q,14,FALSE),"") -> 10.25358324
A127: =IF(ROWS($D$116:D125)<=(COUNTIF('TASA POR COLEGIO'!$B:$B,'4'!$C$4)),VLOOKUP('4'!$C$4&ROWS($D$116:D125),'TASA POR COLEGIO'!$C:$O,3,FALSE),"") -> COLEGIO LA MERCED (IED) | F127: =IF(ROWS($D$116:I125)<=(COUNTIF('TASA POR COLEGIO'!$B:$B,'4'!$C$4)),VLOOKUP('4'!$C$4&ROWS($D$116:I125),'TASA POR COLEGIO'!$C:$O,5,FALSE),"") -> 92.59708738 | G127: =IF(ROWS($D$116:K125)<=(COUNTIF('TASA POR COLEGIO'!$B:$B,'4'!$C$4)),VLOOKUP('4'!$C$4&ROWS($D$116:K125),'TASA POR COLEGIO'!$C:$O,6,FALSE),"") -> 90.68292683 | H127: =IF(ROWS($D$116:L125)<=(COUNTIF('TASA POR COLEGIO'!$B:$B,'4'!$C$4)),VLOOKUP('4'!$C$4&ROWS($D$116:L125),'TASA POR COLEGIO'!$C:$O,7,FALSE),"") -> 88.78504673 | I127: =IF(ROWS($D$116:M125)<=(COUNTIF('TASA POR COLEGIO'!$B:$B,'4'!$C$4)),VLOOKUP('4'!$C$4&ROWS($D$116:M125),'TASA POR COLEGIO'!$C:$O,8,FALSE),"") -> 91.59364732 | J127: =IF(ROWS($D$116:N125)<=(COUNTIF('TASA POR COLEGIO'!$B:$B,'4'!$C$4)),VLOOKUP('4'!$C$4&ROWS($D$116:N125),'TASA POR COLEGIO'!$C:$O,9,FALSE),"") -> 95.19203414 | K127: =IF(ROWS($D$116:N125)<=(COUNTIF('TASA POR COLEGIO'!$B:$B,'4'!$C$4)),VLOOKUP('4'!$C$4&ROWS($D$116:N125),'TASA POR COLEGIO'!$C:$O,10,FALSE),"") -> 5.648892135 | L127: =IF(ROWS($D$116:O125)<=(COUNTIF('TASA POR COLEGIO'!$B:$B,'4'!$C$4)),VLOOKUP('4'!$C$4&ROWS($D$116:O125),'TASA POR COLEGIO'!$C:$O,11,FALSE),"") -> 5.67961165 | M127: =IF(ROWS($D$116:P125)<=(COUNTIF('TASA POR COLEGIO'!$B:$B,'4'!$C$4)),VLOOKUP('4'!$C$4&ROWS($D$116:P125),'TASA POR COLEGIO'!$C:$O,12,FALSE),"") -> 6.56097561 | N127: =IF(ROWS($D$116:Q125)<=(COUNTIF('TASA POR COLEGIO'!$B:$B,'4'!$C$4)),VLOOKUP('4'!$C$4&ROWS($D$116:Q125),'TASA POR COLEGIO'!$C:$P,13,FALSE),"") -> 6.845794393 | O127: =IF(ROWS($D$116:R125)<=(COUNTIF('TASA POR COLEGIO'!$B:$B,'4'!$C$4)),VLOOKUP('4'!$C$4&ROWS($D$116:R125),'TASA POR COLEGIO'!$C:$Q,14,FALSE),"") -> 4.901423877
A128: =IF(ROWS($D$116:D126)<=(COUNTIF('TASA POR COLEGIO'!$B:$B,'4'!$C$4)),VLOOKUP('4'!$C$4&ROWS($D$116:D126),'TASA POR COLEGIO'!$C:$O,3,FALSE),"") -> COLEGIO LUIS CARLOS GALAN SARMIENTO (IED) | F128: =IF(ROWS($D$116:I126)<=(COUNTIF('TASA POR COLEGIO'!$B:$B,'4'!$C$4)),VLOOKUP('4'!$C$4&ROWS($D$116:I126),'TASA POR COLEGIO'!$C:$O,5,FALSE),"") -> 93.27176781 | G128: =IF(ROWS($D$116:K126)<=(COUNTIF('TASA POR COLEGIO'!$B:$B,'4'!$C$4)),VLOOKUP('4'!$C$4&ROWS($D$116:K126),'TASA POR COLEGIO'!$C:$O,6,FALSE),"") -> 92.48516809 | H128: =IF(ROWS($D$116:L126)<=(COUNTIF('TASA POR COLEGIO'!$B:$B,'4'!$C$4)),VLOOKUP('4'!$C$4&ROWS($D$116:L126),'TASA POR COLEGIO'!$C:$O,7,FALSE),"") -> 93.71316306 | I128: =IF(ROWS($D$116:M126)<=(COUNTIF('TASA POR COLEGIO'!$B:$B,'4'!$C$4)),VLOOKUP('4'!$C$4&ROWS($D$116:M126),'TASA POR COLEGIO'!$C:$O,8,FALSE),"") -> 95.96723377 | J128: =IF(ROWS($D$116:N126)<=(COUNTIF('TASA POR COLEGIO'!$B:$B,'4'!$C$4)),VLOOKUP('4'!$C$4&ROWS($D$116:N126),'TASA POR COLEGIO'!$C:$O,9,FALSE),"") -> 96.47749511 | K128: =IF(ROWS($D$116:N126)<=(COUNTIF('TASA POR COLEGIO'!$B:$B,'4'!$C$4)),VLOOKUP('4'!$C$4&ROWS($D$116:N126),'TASA POR COLEGIO'!$C:$O,10,FALSE),"") -> 5.640050697 | L128: =IF(ROWS($D$116:O126)<=(COUNTIF('TASA POR COLEGIO'!$B:$B,'4'!$C$4)),VLOOKUP('4'!$C$4&ROWS($D$116:O126),'TASA POR COLEGIO'!$C:$O,11,FALSE),"") -> 6.72823219 | M128: =IF(ROWS($D$116:P126)<=(COUNTIF('TASA POR COLEGIO'!$B:$B,'4'!$C$4)),VLOOKUP('4'!$C$4&ROWS($D$116:P126),'TASA POR COLEGIO'!$C:$O,12,FALSE),"") -> 6.130520765 | N128: =IF(ROWS($D$116:Q126)<=(COUNTIF('TASA POR COLEGIO'!$B:$B,'4'!$C$4)),VLOOKUP('4'!$C$4&ROWS($D$116:Q126),'TASA POR COLEGIO'!$C:$P,13,FALSE),"") -> 5.10805501 | O128: =IF(ROWS($D$116:R126)<=(COUNTIF('TASA POR COLEGIO'!$B:$B,'4'!$C$4)),VLOOKUP('4'!$C$4&ROWS($D$116:R126),'TASA POR COLEGIO'!$C:$Q,14,FALSE),"") -> 3.528670447
A129: =IF(ROWS($D$116:D127)<=(COUNTIF('TASA POR COLEGIO'!$B:$B,'4'!$C$4)),VLOOKUP('4'!$C$4&ROWS($D$116:D127),'TASA POR COLEGIO'!$C:$O,3,FALSE),"") -> COLEGIO JOSE JOAQUIN CASAS (IED) | F129: =IF(ROWS($D$116:I127)<=(COUNTIF('TASA POR COLEGIO'!$B:$B,'4'!$C$4)),VLOOKUP('4'!$C$4&ROWS($D$116:I127),'TASA POR COLEGIO'!$C:$O,5,FALSE),"") -> 93.58669834 | G129: =IF(ROWS($D$116:K127)<=(COUNTIF('TASA POR COLEGIO'!$B:$B,'4'!$C$4)),VLOOKUP('4'!$C$4&ROWS($D$116:K127),'TASA POR COLEGIO'!$C:$O,6,FALSE),"") -> 93.10344828 | H129: =IF(ROWS($D$116:L127)<=(COUNTIF('TASA POR COLEGIO'!$B:$B,'4'!$C$4)),VLOOKUP('4'!$C$4&ROWS($D$116:L127),'TASA POR COLEGIO'!$C:$O,7,FALSE),"") -> 90.24943311 | I129: =IF(ROWS($D$116:M127)<=(COUNTIF('TASA POR COLEGIO'!$B:$B,'4'!$C$4)),VLOOKUP('4'!$C$4&ROWS($D$116:M127),'TASA POR COLEGIO'!$C:$O,8,FALSE),"") -> 91.11111111 | J129: =IF(ROWS($D$116:N127)<=(COUNTIF('TASA POR COLEGIO'!$B:$B,'4'!$C$4)),VLOOKUP('4'!$C$4&ROWS($D$116:N127),'TASA POR COLEGIO'!$C:$O,9,FALSE),"") -> 90.54054054 | K129: =IF(ROWS($D$116:N127)<=(COUNTIF('TASA POR COLEGIO'!$B:$B,'4'!$C$4)),VLOOKUP('4'!$C$4&ROWS($D$116:N127),'TASA POR COLEGIO'!$C:$O,10,FALSE),"") -> 5.530973451 | L129: =IF(ROWS($D$116:O127)<=(COUNTIF('TASA POR COLEGIO'!$B:$B,'4'!$C$4)),VLOOKUP('4'!$C$4&ROWS($D$116:O127),'TASA POR COLEGIO'!$C:$O,11,FALSE),"") -> 3.800475059 | M129: =IF(ROWS($D$116:P127)<=(COUNTIF('TASA POR COLEGIO'!$B:$B,'4'!$C$4)),VLOOKUP('4'!$C$4&ROWS($D$116:P127),'TASA POR COLEGIO'!$C:$O,12,FALSE),"") -> 5.517241379 | N129: =IF(ROWS($D$116:Q127)<=(COUNTIF('TASA POR COLEGIO'!$B:$B,'4'!$C$4)),VLOOKUP('4'!$C$4&ROWS($D$116:Q127),'TASA POR COLEGIO'!$C:$P,13,FALSE),"") -> 4.081632653 | O129: =IF(ROWS($D$116:R127)<=(COUNTIF('TASA POR COLEGIO'!$B:$B,'4'!$C$4)),VLOOKUP('4'!$C$4&ROWS($D$116:R127),'TASA POR COLEGIO'!$C:$Q,14,FALSE),"") -> 8.888888889
A130: =IF(ROWS($D$116:D128)<=(COUNTIF('TASA POR COLEGIO'!$B:$B,'4'!$C$4)),VLOOKUP('4'!$C$4&ROWS($D$116:D128),'TASA POR COLEGIO'!$C:$O,3,FALSE),"") -> COLEGIO BENJAMIN HERRERA (IED) | F130: =IF(ROWS($D$116:I128)<=(COUNTIF('TASA POR COLEGIO'!$B:$B,'4'!$C$4)),VLOOKUP('4'!$C$4&ROWS($D$116:I128),'TASA POR COLEGIO'!$C:$O,5,FALSE),"") -> 95.95719382 | G130: =IF(ROWS($D$116:K128)<=(COUNTIF('TASA POR COLEGIO'!$B:$B,'4'!$C$4)),VLOOKUP('4'!$C$4&ROWS($D$116:K128),'TASA POR COLEGIO'!$C:$O,6,FALSE),"") -> 95.34412955 | H130: =IF(ROWS($D$116:L128)<=(COUNTIF('TASA POR COLEGIO'!$B:$B,'4'!$C$4)),VLOOKUP('4'!$C$4&ROWS($D$116:L128),'TASA POR COLEGIO'!$C:$O,7,FALSE),"") -> 80.23952096 | I130: =IF(ROWS($D$116:M128)<=(COUNTIF('TASA POR COLEGIO'!$B:$B,'4'!$C$4)),VLOOKUP('4'!$C$4&ROWS($D$116:M128),'TASA POR COLEGIO'!$C:$O,8,FALSE),"") -> 79.90235964 | J130: =IF(ROWS($D$116:N128)<=(COUNTIF('TASA POR COLEGIO'!$B:$B,'4'!$C$4)),VLOOKUP('4'!$C$4&ROWS($D$116:N128),'TASA POR COLEGIO'!$C:$O,9,FALSE),"") -> 80.3297546 | K130: =IF(ROWS($D$116:N128)<=(COUNTIF('TASA POR COLEGIO'!$B:$B,'4'!$C$4)),VLOOKUP('4'!$C$4&ROWS($D$116:N128),'TASA POR COLEGIO'!$C:$O,10,FALSE),"") -> 8.59080633 | L130: =IF(ROWS($D$116:O128)<=(COUNTIF('TASA POR COLEGIO'!$B:$B,'4'!$C$4)),VLOOKUP('4'!$C$4&ROWS($D$116:O128),'TASA POR COLEGIO'!$C:$O,11,FALSE),"") -> 4.042806183 | M130: =IF(ROWS($D$116:P128)<=(COUNTIF('TASA POR COLEGIO'!$B:$B,'4'!$C$4)),VLOOKUP('4'!$C$4&ROWS($D$116:P128),'TASA POR COLEGIO'!$C:$O,12,FALSE),"") -> 4.655870445 | N130: =IF(ROWS($D$116:Q128)<=(COUNTIF('TASA POR COLEGIO'!$B:$B,'4'!$C$4)),VLOOKUP('4'!$C$4&ROWS($D$116:Q128),'TASA POR COLEGIO'!$C:$P,13,FALSE),"") -> 9.751924722 | O130: =IF(ROWS($D$116:R128)<=(COUNTIF('TASA POR COLEGIO'!$B:$B,'4'!$C$4)),VLOOKUP('4'!$C$4&ROWS($D$116:R128),'TASA POR COLEGIO'!$C:$Q,14,FALSE),"") -> 8.909682669
A131: =IF(ROWS($D$116:D129)<=(COUNTIF('TASA POR COLEGIO'!$B:$B,'4'!$C$4)),VLOOKUP('4'!$C$4&ROWS($D$116:D129),'TASA POR COLEGIO'!$C:$O,3,FALSE),"") -> COLEGIO ANTONIO JOSE DE SUCRE (IED) | F131: =IF(ROWS($D$116:I129)<=(COUNTIF('TASA POR COLEGIO'!$B:$B,'4'!$C$4)),VLOOKUP('4'!$C$4&ROWS($D$116:I129),'TASA POR COLEGIO'!$C:$O,5,FALSE),"") -> 81.28898129 | G131: =IF(ROWS($D$116:K129)<=(COUNTIF('TASA POR COLEGIO'!$B:$B,'4'!$C$4)),VLOOKUP('4'!$C$4&ROWS($D$116:K129),'TASA POR COLEGIO'!$C:$O,6,FALSE),"") -> 88.12615955 | H131: =IF(ROWS($D$116:L129)<=(COUNTIF('TASA POR COLEGIO'!$B:$B,'4'!$C$4)),VLOOKUP('4'!$C$4&ROWS($D$116:L129),'TASA POR COLEGIO'!$C:$O,7,FALSE),"") -> 87.86127168 | I131: =IF(ROWS($D$116:M129)<=(COUNTIF('TASA POR COLEGIO'!$B:$B,'4'!$C$4)),VLOOKUP('4'!$C$4&ROWS($D$116:M129),'TASA POR COLEGIO'!$C:$O,8,FALSE),"") -> 87.47252747 | J131: =IF(ROWS($D$116:N129)<=(COUNTIF('TASA POR COLEGIO'!$B:$B,'4'!$C$4)),VLOOKUP('4'!$C$4&ROWS($D$116:N129),'TASA POR COLEGIO'!$C:$O,9,FALSE),"") -> 91.61147903 | K131: =IF(ROWS($D$116:N129)<=(COUNTIF('TASA POR COLEGIO'!$B:$B,'4'!$C$4)),VLOOKUP('4'!$C$4&ROWS($D$116:N129),'TASA POR COLEGIO'!$C:$O,10,FALSE),"") -> 15.93625498 | L131: =IF(ROWS($D$116:O129)<=(COUNTIF('TASA POR COLEGIO'!$B:$B,'4'!$C$4)),VLOOKUP('4'!$C$4&ROWS($D$116:O129),'TASA POR COLEGIO'!$C:$O,11,FALSE),"") -> 18.71101871 | M131: =IF(ROWS($D$116:P129)<=(COUNTIF('TASA POR COLEGIO'!$B:$B,'4'!$C$4)),VLOOKUP('4'!$C$4&ROWS($D$116:P129),'TASA POR COLEGIO'!$C:$O,12,FALSE),"") -> 11.87384045 | N131: =IF(ROWS($D$116:Q129)<=(COUNTIF('TASA POR COLEGIO'!$B:$B,'4'!$C$4)),VLOOKUP('4'!$C$4&ROWS($D$116:Q129),'TASA POR COLEGIO'!$C:$P,13,FALSE),"") -> 12.13872832 | O131: =IF(ROWS($D$116:R129)<=(COUNTIF('TASA POR COLEGIO'!$B:$B,'4'!$C$4)),VLOOKUP('4'!$C$4&ROWS($D$116:R129),'TASA POR COLEGIO'!$C:$Q,14,FALSE),"") -> 9.230769231
A132: =IF(ROWS($D$116:D130)<=(COUNTIF('TASA POR COLEGIO'!$B:$B,'4'!$C$4)),VLOOKUP('4'!$C$4&ROWS($D$116:D130),'TASA POR COLEGIO'!$C:$O,3,FALSE),"") -> COLEGIO JOSE MANUEL RESTREPO (IED) | F132: =IF(ROWS($D$116:I130)<=(COUNTIF('TASA POR COLEGIO'!$B:$B,'4'!$C$4)),VLOOKUP('4'!$C$4&ROWS($D$116:I130),'TASA POR COLEGIO'!$C:$O,5,FALSE),"") -> 88.46761453 | G132: =IF(ROWS($D$116:K130)<=(COUNTIF('TASA POR COLEGIO'!$B:$B,'4'!$C$4)),VLOOKUP('4'!$C$4&ROWS($D$116:K130),'TASA POR COLEGIO'!$C:$O,6,FALSE),"") -> 83.24468085 | H132: =IF(ROWS($D$116:L130)<=(COUNTIF('TASA POR COLEGIO'!$B:$B,'4'!$C$4)),VLOOKUP('4'!$C$4&ROWS($D$116:L130),'TASA POR COLEGIO'!$C:$O,7,FALSE),"") -> 89.20105356 | I132: =IF(ROWS($D$116:M130)<=(COUNTIF('TASA POR COLEGIO'!$B:$B,'4'!$C$4)),VLOOKUP('4'!$C$4&ROWS($D$116:M130),'TASA POR COLEGIO'!$C:$O,8,FALSE),"") -> 88.22463768 | J132: =IF(ROWS($D$116:N130)<=(COUNTIF('TASA POR COLEGIO'!$B:$B,'4'!$C$4)),VLOOKUP('4'!$C$4&ROWS($D$116:N130),'TASA POR COLEGIO'!$C:$O,9,FALSE),"") -> 91.12318841 | K132: =IF(ROWS($D$116:N130)<=(COUNTIF('TASA POR COLEGIO'!$B:$B,'4'!$C$4)),VLOOKUP('4'!$C$4&ROWS($D$116:N130),'TASA POR COLEGIO'!$C:$O,10,FALSE),"") -> 10.68435754 | L132: =IF(ROWS($D$116:O130)<=(COUNTIF('TASA POR COLEGIO'!$B:$B,'4'!$C$4)),VLOOKUP('4'!$C$4&ROWS($D$116:O130),'TASA POR COLEGIO'!$C:$O,11,FALSE),"") -> 11.53238547 | M132: =IF(ROWS($D$116:P130)<=(COUNTIF('TASA POR COLEGIO'!$B:$B,'4'!$C$4)),VLOOKUP('4'!$C$4&ROWS($D$116:P130),'TASA POR COLEGIO'!$C:$O,12,FALSE),"") -> 16.75531915 | N132: =IF(ROWS($D$116:Q130)<=(COUNTIF('TASA POR COLEGIO'!$B:$B,'4'!$C$4)),VLOOKUP('4'!$C$4&ROWS($D$116:Q130),'TASA POR COLEGIO'!$C:$P,13,FALSE),"") -> 10.79894644 | O132: =IF(ROWS($D$116:R130)<=(COUNTIF('TASA POR COLEGIO'!$B:$B,'4'!$C$4)),VLOOKUP('4'!$C$4&ROWS($D$116:R130),'TASA POR COLEGIO'!$C:$Q,14,FALSE),"") -> 11.77536232
A133: =IF(ROWS($D$116:D131)<=(COUNTIF('TASA POR COLEGIO'!$B:$B,'4'!$C$4)),VLOOKUP('4'!$C$4&ROWS($D$116:D131),'TASA POR COLEGIO'!$C:$O,3,FALSE),"") ->  | F133: =IF(ROWS($D$116:I131)<=(COUNTIF('TASA POR COLEGIO'!$B:$B,'4'!$C$4)),VLOOKUP('4'!$C$4&ROWS($D$116:I131),'TASA POR COLEGIO'!$C:$O,5,FALSE),"") ->  | G133: =IF(ROWS($D$116:K131)<=(COUNTIF('TASA POR COLEGIO'!$B:$B,'4'!$C$4)),VLOOKUP('4'!$C$4&ROWS($D$116:K131),'TASA POR COLEGIO'!$C:$O,6,FALSE),"") ->  | H133: =IF(ROWS($D$116:L131)<=(COUNTIF('TASA POR COLEGIO'!$B:$B,'4'!$C$4)),VLOOKUP('4'!$C$4&ROWS($D$116:L131),'TASA POR COLEGIO'!$C:$O,7,FALSE),"") ->  | I133: =IF(ROWS($D$116:M131)<=(COUNTIF('TASA POR COLEGIO'!$B:$B,'4'!$C$4)),VLOOKUP('4'!$C$4&ROWS($D$116:M131),'TASA POR COLEGIO'!$C:$O,8,FALSE),"") ->  | J133: =IF(ROWS($D$116:N131)<=(COUNTIF('TASA POR COLEGIO'!$B:$B,'4'!$C$4)),VLOOKUP('4'!$C$4&ROWS($D$116:N131),'TASA POR COLEGIO'!$C:$O,9,FALSE),"") ->  | K133: =IF(ROWS($D$116:N131)<=(COUNTIF('TASA POR COLEGIO'!$B:$B,'4'!$C$4)),VLOOKUP('4'!$C$4&ROWS($D$116:N131),'TASA POR COLEGIO'!$C:$O,10,FALSE),"") ->  | L133: =IF(ROWS($D$116:O131)<=(COUNTIF('TASA POR COLEGIO'!$B:$B,'4'!$C$4)),VLOOKUP('4'!$C$4&ROWS($D$116:O131),'TASA POR COLEGIO'!$C:$O,11,FALSE),"") ->  | M133: =IF(ROWS($D$116:P131)<=(COUNTIF('TASA POR COLEGIO'!$B:$B,'4'!$C$4)),VLOOKUP('4'!$C$4&ROWS($D$116:P131),'TASA POR COLEGIO'!$C:$O,12,FALSE),"") ->  | N133: =IF(ROWS($D$116:Q131)<=(COUNTIF('TASA POR COLEGIO'!$B:$B,'4'!$C$4)),VLOOKUP('4'!$C$4&ROWS($D$116:Q131),'TASA POR COLEGIO'!$C:$P,13,FALSE),"") ->  | O133: =IF(ROWS($D$116:R131)<=(COUNTIF('TASA POR COLEGIO'!$B:$B,'4'!$C$4)),VLOOKUP('4'!$C$4&ROWS($D$116:R131),'TASA POR COLEGIO'!$C:$Q,14,FALSE),"") -> 
A134: =IF(ROWS($D$116:D132)<=(COUNTIF('TASA POR COLEGIO'!$B:$B,'4'!$C$4)),VLOOKUP('4'!$C$4&ROWS($D$116:D132),'TASA POR COLEGIO'!$C:$O,3,FALSE),"") ->  | F134: =IF(ROWS($D$116:I132)<=(COUNTIF('TASA POR COLEGIO'!$B:$B,'4'!$C$4)),VLOOKUP('4'!$C$4&ROWS($D$116:I132),'TASA POR COLEGIO'!$C:$O,5,FALSE),"") ->  | G134: =IF(ROWS($D$116:K132)<=(COUNTIF('TASA POR COLEGIO'!$B:$B,'4'!$C$4)),VLOOKUP('4'!$C$4&ROWS($D$116:K132),'TASA POR COLEGIO'!$C:$O,6,FALSE),"") ->  | H134: =IF(ROWS($D$116:L132)<=(COUNTIF('TASA POR COLEGIO'!$B:$B,'4'!$C$4)),VLOOKUP('4'!$C$4&ROWS($D$116:L132),'TASA POR COLEGIO'!$C:$O,7,FALSE),"") ->  | I134: =IF(ROWS($D$116:M132)<=(COUNTIF('TASA POR COLEGIO'!$B:$B,'4'!$C$4)),VLOOKUP('4'!$C$4&ROWS($D$116:M132),'TASA POR COLEGIO'!$C:$O,8,FALSE),"") ->  | J134: =IF(ROWS($D$116:N132)<=(COUNTIF('TASA POR COLEGIO'!$B:$B,'4'!$C$4)),VLOOKUP('4'!$C$4&ROWS($D$116:N132),'TASA POR COLEGIO'!$C:$O,9,FALSE),"") ->  | K134: =IF(ROWS($D$116:N132)<=(COUNTIF('TASA POR COLEGIO'!$B:$B,'4'!$C$4)),VLOOKUP('4'!$C$4&ROWS($D$116:N132),'TASA POR COLEGIO'!$C:$O,10,FALSE),"") ->  | L134: =IF(ROWS($D$116:O132)<=(COUNTIF('TASA POR COLEGIO'!$B:$B,'4'!$C$4)),VLOOKUP('4'!$C$4&ROWS($D$116:O132),'TASA POR COLEGIO'!$C:$O,11,FALSE),"") ->  | M134: =IF(ROWS($D$116:P132)<=(COUNTIF('TASA POR COLEGIO'!$B:$B,'4'!$C$4)),VLOOKUP('4'!$C$4&ROWS($D$116:P132),'TASA POR COLEGIO'!$C:$O,12,FALSE),"") ->  | N134: =IF(ROWS($D$116:Q132)<=(COUNTIF('TASA POR COLEGIO'!$B:$B,'4'!$C$4)),VLOOKUP('4'!$C$4&ROWS($D$116:Q132),'TASA POR COLEGIO'!$C:$P,13,FALSE),"") ->  | O134: =IF(ROWS($D$116:R132)<=(COUNTIF('TASA POR COLEGIO'!$B:$B,'4'!$C$4)),VLOOKUP('4'!$C$4&ROWS($D$116:R132),'TASA POR COLEGIO'!$C:$Q,14,FALSE),"") -> 
A135: =IF(ROWS($D$116:D133)<=(COUNTIF('TASA POR COLEGIO'!$B:$B,'4'!$C$4)),VLOOKUP('4'!$C$4&ROWS($D$116:D133),'TASA POR COLEGIO'!$C:$O,3,FALSE),"") ->  | F135: =IF(ROWS($D$116:I133)<=(COUNTIF('TASA POR COLEGIO'!$B:$B,'4'!$C$4)),VLOOKUP('4'!$C$4&ROWS($D$116:I133),'TASA POR COLEGIO'!$C:$O,5,FALSE),"") ->  | G135: =IF(ROWS($D$116:K133)<=(COUNTIF('TASA POR COLEGIO'!$B:$B,'4'!$C$4)),VLOOKUP('4'!$C$4&ROWS($D$116:K133),'TASA POR COLEGIO'!$C:$O,6,FALSE),"") ->  | H135: =IF(ROWS($D$116:L133)<=(COUNTIF('TASA POR COLEGIO'!$B:$B,'4'!$C$4)),VLOOKUP('4'!$C$4&ROWS($D$116:L133),'TASA POR COLEGIO'!$C:$O,7,FALSE),"") ->  | I135: =IF(ROWS($D$116:M133)<=(COUNTIF('TASA POR COLEGIO'!$B:$B,'4'!$C$4)),VLOOKUP('4'!$C$4&ROWS($D$116:M133),'TASA POR COLEGIO'!$C:$O,8,FALSE),"") ->  | J135: =IF(ROWS($D$116:N133)<=(COUNTIF('TASA POR COLEGIO'!$B:$B,'4'!$C$4)),VLOOKUP('4'!$C$4&ROWS($D$116:N133),'TASA POR COLEGIO'!$C:$O,9,FALSE),"") ->  | K135: =IF(ROWS($D$116:N133)<=(COUNTIF('TASA POR COLEGIO'!$B:$B,'4'!$C$4)),VLOOKUP('4'!$C$4&ROWS($D$116:N133),'TASA POR COLEGIO'!$C:$O,10,FALSE),"") ->  | L135: =IF(ROWS($D$116:O133)<=(COUNTIF('TASA POR COLEGIO'!$B:$B,'4'!$C$4)),VLOOKUP('4'!$C$4&ROWS($D$116:O133),'TASA POR COLEGIO'!$C:$O,11,FALSE),"") ->  | M135: =IF(ROWS($D$116:P133)<=(COUNTIF('TASA POR COLEGIO'!$B:$B,'4'!$C$4)),VLOOKUP('4'!$C$4&ROWS($D$116:P133),'TASA POR COLEGIO'!$C:$O,12,FALSE),"") ->  | N135: =IF(ROWS($D$116:Q133)<=(COUNTIF('TASA POR COLEGIO'!$B:$B,'4'!$C$4)),VLOOKUP('4'!$C$4&ROWS($D$116:Q133),'TASA POR COLEGIO'!$C:$P,13,FALSE),"") ->  | O135: =IF(ROWS($D$116:R133)<=(COUNTIF('TASA POR COLEGIO'!$B:$B,'4'!$C$4)),VLOOKUP('4'!$C$4&ROWS($D$116:R133),'TASA POR COLEGIO'!$C:$Q,14,FALSE),"") -> 
A136: =IF(ROWS($D$116:D134)<=(COUNTIF('TASA POR COLEGIO'!$B:$B,'4'!$C$4)),VLOOKUP('4'!$C$4&ROWS($D$116:D134),'TASA POR COLEGIO'!$C:$O,3,FALSE),"") ->  | F136: =IF(ROWS($D$116:I134)<=(COUNTIF('TASA POR COLEGIO'!$B:$B,'4'!$C$4)),VLOOKUP('4'!$C$4&ROWS($D$116:I134),'TASA POR COLEGIO'!$C:$O,5,FALSE),"") ->  | G136: =IF(ROWS($D$116:K134)<=(COUNTIF('TASA POR COLEGIO'!$B:$B,'4'!$C$4)),VLOOKUP('4'!$C$4&ROWS($D$116:K134),'TASA POR COLEGIO'!$C:$O,6,FALSE),"") ->  | H136: =IF(ROWS($D$116:L134)<=(COUNTIF('TASA POR COLEGIO'!$B:$B,'4'!$C$4)),VLOOKUP('4'!$C$4&ROWS($D$116:L134),'TASA POR COLEGIO'!$C:$O,7,FALSE),"") ->  | I136: =IF(ROWS($D$116:M134)<=(COUNTIF('TASA POR COLEGIO'!$B:$B,'4'!$C$4)),VLOOKUP('4'!$C$4&ROWS($D$116:M134),'TASA POR COLEGIO'!$C:$O,8,FALSE),"") ->  | J136: =IF(ROWS($D$116:N134)<=(COUNTIF('TASA POR COLEGIO'!$B:$B,'4'!$C$4)),VLOOKUP('4'!$C$4&ROWS($D$116:N134),'TASA POR COLEGIO'!$C:$O,9,FALSE),"") ->  | K136: =IF(ROWS($D$116:N134)<=(COUNTIF('TASA POR COLEGIO'!$B:$B,'4'!$C$4)),VLOOKUP('4'!$C$4&ROWS($D$116:N134),'TASA POR COLEGIO'!$C:$O,10,FALSE),"") ->  | L136: =IF(ROWS($D$116:O134)<=(COUNTIF('TASA POR COLEGIO'!$B:$B,'4'!$C$4)),VLOOKUP('4'!$C$4&ROWS($D$116:O134),'TASA POR COLEGIO'!$C:$O,11,FALSE),"") ->  | M136: =IF(ROWS($D$116:P134)<=(COUNTIF('TASA POR COLEGIO'!$B:$B,'4'!$C$4)),VLOOKUP('4'!$C$4&ROWS($D$116:P134),'TASA POR COLEGIO'!$C:$O,12,FALSE),"") ->  | N136: =IF(ROWS($D$116:Q134)<=(COUNTIF('TASA POR COLEGIO'!$B:$B,'4'!$C$4)),VLOOKUP('4'!$C$4&ROWS($D$116:Q134),'TASA POR COLEGIO'!$C:$P,13,FALSE),"") ->  | O136: =IF(ROWS($D$116:R134)<=(COUNTIF('TASA POR COLEGIO'!$B:$B,'4'!$C$4)),VLOOKUP('4'!$C$4&ROWS($D$116:R134),'TASA POR COLEGIO'!$C:$Q,14,FALSE),"") -> 
A137: =IF(ROWS($D$116:D135)<=(COUNTIF('TASA POR COLEGIO'!$B:$B,'4'!$C$4)),VLOOKUP('4'!$C$4&ROWS($D$116:D135),'TASA POR COLEGIO'!$C:$O,3,FALSE),"") ->  | F137: =IF(ROWS($D$116:I135)<=(COUNTIF('TASA POR COLEGIO'!$B:$B,'4'!$C$4)),VLOOKUP('4'!$C$4&ROWS($D$116:I135),'TASA POR COLEGIO'!$C:$O,5,FALSE),"") ->  | G137: =IF(ROWS($D$116:K135)<=(COUNTIF('TASA POR COLEGIO'!$B:$B,'4'!$C$4)),VLOOKUP('4'!$C$4&ROWS($D$116:K135),'TASA POR COLEGIO'!$C:$O,6,FALSE),"") ->  | H137: =IF(ROWS($D$116:L135)<=(COUNTIF('TASA POR COLEGIO'!$B:$B,'4'!$C$4)),VLOOKUP('4'!$C$4&ROWS($D$116:L135),'TASA POR COLEGIO'!$C:$O,7,FALSE),"") ->  | I137: =IF(ROWS($D$116:M135)<=(COUNTIF('TASA POR COLEGIO'!$B:$B,'4'!$C$4)),VLOOKUP('4'!$C$4&ROWS($D$116:M135),'TASA POR COLEGIO'!$C:$O,8,FALSE),"") ->  | J137: =IF(ROWS($D$116:N135)<=(COUNTIF('TASA POR COLEGIO'!$B:$B,'4'!$C$4)),VLOOKUP('4'!$C$4&ROWS($D$116:N135),'TASA POR COLEGIO'!$C:$O,9,FALSE),"") ->  | K137: =IF(ROWS($D$116:N135)<=(COUNTIF('TASA POR COLEGIO'!$B:$B,'4'!$C$4)),VLOOKUP('4'!$C$4&ROWS($D$116:N135),'TASA POR COLEGIO'!$C:$O,10,FALSE),"") ->  | L137: =IF(ROWS($D$116:O135)<=(COUNTIF('TASA POR COLEGIO'!$B:$B,'4'!$C$4)),VLOOKUP('4'!$C$4&ROWS($D$116:O135),'TASA POR COLEGIO'!$C:$O,11,FALSE),"") ->  | M137: =IF(ROWS($D$116:P135)<=(COUNTIF('TASA POR COLEGIO'!$B:$B,'4'!$C$4)),VLOOKUP('4'!$C$4&ROWS($D$116:P135),'TASA POR COLEGIO'!$C:$O,12,FALSE),"") ->  | N137: =IF(ROWS($D$116:Q135)<=(COUNTIF('TASA POR COLEGIO'!$B:$B,'4'!$C$4)),VLOOKUP('4'!$C$4&ROWS($D$116:Q135),'TASA POR COLEGIO'!$C:$P,13,FALSE),"") ->  | O137: =IF(ROWS($D$116:R135)<=(COUNTIF('TASA POR COLEGIO'!$B:$B,'4'!$C$4)),VLOOKUP('4'!$C$4&ROWS($D$116:R135),'TASA POR COLEGIO'!$C:$Q,14,FALSE),"") -> 
A138: =IF(ROWS($D$116:D136)<=(COUNTIF('TASA POR COLEGIO'!$B:$B,'4'!$C$4)),VLOOKUP('4'!$C$4&ROWS($D$116:D136),'TASA POR COLEGIO'!$C:$O,3,FALSE),"") ->  | F138: =IF(ROWS($D$116:I136)<=(COUNTIF('TASA POR COLEGIO'!$B:$B,'4'!$C$4)),VLOOKUP('4'!$C$4&ROWS($D$116:I136),'TASA POR COLEGIO'!$C:$O,5,FALSE),"") ->  | G138: =IF(ROWS($D$116:K136)<=(COUNTIF('TASA POR COLEGIO'!$B:$B,'4'!$C$4)),VLOOKUP('4'!$C$4&ROWS($D$116:K136),'TASA POR COLEGIO'!$C:$O,6,FALSE),"") ->  | H138: =IF(ROWS($D$116:L136)<=(COUNTIF('TASA POR COLEGIO'!$B:$B,'4'!$C$4)),VLOOKUP('4'!$C$4&ROWS($D$116:L136),'TASA POR COLEGIO'!$C:$O,7,FALSE),"") ->  | I138: =IF(ROWS($D$116:M136)<=(COUNTIF('TASA POR COLEGIO'!$B:$B,'4'!$C$4)),VLOOKUP('4'!$C$4&ROWS($D$116:M136),'TASA POR COLEGIO'!$C:$O,8,FALSE),"") ->  | J138: =IF(ROWS($D$116:N136)<=(COUNTIF('TASA POR COLEGIO'!$B:$B,'4'!$C$4)),VLOOKUP('4'!$C$4&ROWS($D$116:N136),'TASA POR COLEGIO'!$C:$O,9,FALSE),"") ->  | K138: =IF(ROWS($D$116:N136)<=(COUNTIF('TASA POR COLEGIO'!$B:$B,'4'!$C$4)),VLOOKUP('4'!$C$4&ROWS($D$116:N136),'TASA POR COLEGIO'!$C:$O,10,FALSE),"") ->  | L138: =IF(ROWS($D$116:O136)<=(COUNTIF('TASA POR COLEGIO'!$B:$B,'4'!$C$4)),VLOOKUP('4'!$C$4&ROWS($D$116:O136),'TASA POR COLEGIO'!$C:$O,11,FALSE),"") ->  | M138: =IF(ROWS($D$116:P136)<=(COUNTIF('TASA POR COLEGIO'!$B:$B,'4'!$C$4)),VLOOKUP('4'!$C$4&ROWS($D$116:P136),'TASA POR COLEGIO'!$C:$O,12,FALSE),"") ->  | N138: =IF(ROWS($D$116:Q136)<=(COUNTIF('TASA POR COLEGIO'!$B:$B,'4'!$C$4)),VLOOKUP('4'!$C$4&ROWS($D$116:Q136),'TASA POR COLEGIO'!$C:$P,13,FALSE),"") ->  | O138: =IF(ROWS($D$116:R136)<=(COUNTIF('TASA POR COLEGIO'!$B:$B,'4'!$C$4)),VLOOKUP('4'!$C$4&ROWS($D$116:R136),'TASA POR COLEGIO'!$C:$Q,14,FALSE),"") -> 
A139: =IF(ROWS($D$116:D137)<=(COUNTIF('TASA POR COLEGIO'!$B:$B,'4'!$C$4)),VLOOKUP('4'!$C$4&ROWS($D$116:D137),'TASA POR COLEGIO'!$C:$O,3,FALSE),"") ->  | F139: =IF(ROWS($D$116:I137)<=(COUNTIF('TASA POR COLEGIO'!$B:$B,'4'!$C$4)),VLOOKUP('4'!$C$4&ROWS($D$116:I137),'TASA POR COLEGIO'!$C:$O,5,FALSE),"") ->  | G139: =IF(ROWS($D$116:K137)<=(COUNTIF('TASA POR COLEGIO'!$B:$B,'4'!$C$4)),VLOOKUP('4'!$C$4&ROWS($D$116:K137),'TASA POR COLEGIO'!$C:$O,6,FALSE),"") ->  | H139: =IF(ROWS($D$116:L137)<=(COUNTIF('TASA POR COLEGIO'!$B:$B,'4'!$C$4)),VLOOKUP('4'!$C$4&ROWS($D$116:L137),'TASA POR COLEGIO'!$C:$O,7,FALSE),"") ->  | I139: =IF(ROWS($D$116:M137)<=(COUNTIF('TASA POR COLEGIO'!$B:$B,'4'!$C$4)),VLOOKUP('4'!$C$4&ROWS($D$116:M137),'TASA POR COLEGIO'!$C:$O,8,FALSE),"") ->  | J139: =IF(ROWS($D$116:N137)<=(COUNTIF('TASA POR COLEGIO'!$B:$B,'4'!$C$4)),VLOOKUP('4'!$C$4&ROWS($D$116:N137),'TASA POR COLEGIO'!$C:$O,9,FALSE),"") ->  | K139: =IF(ROWS($D$116:N137)<=(COUNTIF('TASA POR COLEGIO'!$B:$B,'4'!$C$4)),VLOOKUP('4'!$C$4&ROWS($D$116:N137),'TASA POR COLEGIO'!$C:$O,10,FALSE),"") ->  | L139: =IF(ROWS($D$116:O137)<=(COUNTIF('TASA POR COLEGIO'!$B:$B,'4'!$C$4)),VLOOKUP('4'!$C$4&ROWS($D$116:O137),'TASA POR COLEGIO'!$C:$O,11,FALSE),"") ->  | M139: =IF(ROWS($D$116:P137)<=(COUNTIF('TASA POR COLEGIO'!$B:$B,'4'!$C$4)),VLOOKUP('4'!$C$4&ROWS($D$116:P137),'TASA POR COLEGIO'!$C:$O,12,FALSE),"") ->  | N139: =IF(ROWS($D$116:Q137)<=(COUNTIF('TASA POR COLEGIO'!$B:$B,'4'!$C$4)),VLOOKUP('4'!$C$4&ROWS($D$116:Q137),'TASA POR COLEGIO'!$C:$P,13,FALSE),"") ->  | O139: =IF(ROWS($D$116:R137)<=(COUNTIF('TASA POR COLEGIO'!$B:$B,'4'!$C$4)),VLOOKUP('4'!$C$4&ROWS($D$116:R137),'TASA POR COLEGIO'!$C:$Q,14,FALSE),"") -> 
A140: =IF(ROWS($D$116:D138)<=(COUNTIF('TASA POR COLEGIO'!$B:$B,'4'!$C$4)),VLOOKUP('4'!$C$4&ROWS($D$116:D138),'TASA POR COLEGIO'!$C:$O,3,FALSE),"") ->  | F140: =IF(ROWS($D$116:I138)<=(COUNTIF('TASA POR COLEGIO'!$B:$B,'4'!$C$4)),VLOOKUP('4'!$C$4&ROWS($D$116:I138),'TASA POR COLEGIO'!$C:$O,5,FALSE),"") ->  | G140: =IF(ROWS($D$116:K138)<=(COUNTIF('TASA POR COLEGIO'!$B:$B,'4'!$C$4)),VLOOKUP('4'!$C$4&ROWS($D$116:K138),'TASA POR COLEGIO'!$C:$O,6,FALSE),"") ->  | H140: =IF(ROWS($D$116:L138)<=(COUNTIF('TASA POR COLEGIO'!$B:$B,'4'!$C$4)),VLOOKUP('4'!$C$4&ROWS($D$116:L138),'TASA POR COLEGIO'!$C:$O,7,FALSE),"") ->  | I140: =IF(ROWS($D$116:M138)<=(COUNTIF('TASA POR COLEGIO'!$B:$B,'4'!$C$4)),VLOOKUP('4'!$C$4&ROWS($D$116:M138),'TASA POR COLEGIO'!$C:$O,8,FALSE),"") ->  | J140: =IF(ROWS($D$116:N138)<=(COUNTIF('TASA POR COLEGIO'!$B:$B,'4'!$C$4)),VLOOKUP('4'!$C$4&ROWS($D$116:N138),'TASA POR COLEGIO'!$C:$O,9,FALSE),"") ->  | K140: =IF(ROWS($D$116:N138)<=(COUNTIF('TASA POR COLEGIO'!$B:$B,'4'!$C$4)),VLOOKUP('4'!$C$4&ROWS($D$116:N138),'TASA POR COLEGIO'!$C:$O,10,FALSE),"") ->  | L140: =IF(ROWS($D$116:O138)<=(COUNTIF('TASA POR COLEGIO'!$B:$B,'4'!$C$4)),VLOOKUP('4'!$C$4&ROWS($D$116:O138),'TASA POR COLEGIO'!$C:$O,11,FALSE),"") ->  | M140: =IF(ROWS($D$116:P138)<=(COUNTIF('TASA POR COLEGIO'!$B:$B,'4'!$C$4)),VLOOKUP('4'!$C$4&ROWS($D$116:P138),'TASA POR COLEGIO'!$C:$O,12,FALSE),"") ->  | N140: =IF(ROWS($D$116:Q138)<=(COUNTIF('TASA POR COLEGIO'!$B:$B,'4'!$C$4)),VLOOKUP('4'!$C$4&ROWS($D$116:Q138),'TASA POR COLEGIO'!$C:$P,13,FALSE),"") ->  | O140: =IF(ROWS($D$116:R138)<=(COUNTIF('TASA POR COLEGIO'!$B:$B,'4'!$C$4)),VLOOKUP('4'!$C$4&ROWS($D$116:R138),'TASA POR COLEGIO'!$C:$Q,14,FALSE),"") -> 
A141: =IF(ROWS($D$116:D139)<=(COUNTIF('TASA POR COLEGIO'!$B:$B,'4'!$C$4)),VLOOKUP('4'!$C$4&ROWS($D$116:D139),'TASA POR COLEGIO'!$C:$O,3,FALSE),"") ->  | F141: =IF(ROWS($D$116:I139)<=(COUNTIF('TASA POR COLEGIO'!$B:$B,'4'!$C$4)),VLOOKUP('4'!$C$4&ROWS($D$116:I139),'TASA POR COLEGIO'!$C:$O,5,FALSE),"") ->  | G141: =IF(ROWS($D$116:K139)<=(COUNTIF('TASA POR COLEGIO'!$B:$B,'4'!$C$4)),VLOOKUP('4'!$C$4&ROWS($D$116:K139),'TASA POR COLEGIO'!$C:$O,6,FALSE),"") ->  | H141: =IF(ROWS($D$116:L139)<=(COUNTIF('TASA POR COLEGIO'!$B:$B,'4'!$C$4)),VLOOKUP('4'!$C$4&ROWS($D$116:L139),'TASA POR COLEGIO'!$C:$O,7,FALSE),"") ->  | I141: =IF(ROWS($D$116:M139)<=(COUNTIF('TASA POR COLEGIO'!$B:$B,'4'!$C$4)),VLOOKUP('4'!$C$4&ROWS($D$116:M139),'TASA POR COLEGIO'!$C:$O,8,FALSE),"") ->  | J141: =IF(ROWS($D$116:N139)<=(COUNTIF('TASA POR COLEGIO'!$B:$B,'4'!$C$4)),VLOOKUP('4'!$C$4&ROWS($D$116:N139),'TASA POR COLEGIO'!$C:$O,9,FALSE),"") ->  | K141: =IF(ROWS($D$116:N139)<=(COUNTIF('TASA POR COLEGIO'!$B:$B,'4'!$C$4)),VLOOKUP('4'!$C$4&ROWS($D$116:N139),'TASA POR COLEGIO'!$C:$O,10,FALSE),"") ->  | L141: =IF(ROWS($D$116:O139)<=(COUNTIF('TASA POR COLEGIO'!$B:$B,'4'!$C$4)),VLOOKUP('4'!$C$4&ROWS($D$116:O139),'TASA POR COLEGIO'!$C:$O,11,FALSE),"") ->  | M141: =IF(ROWS($D$116:P139)<=(COUNTIF('TASA POR COLEGIO'!$B:$B,'4'!$C$4)),VLOOKUP('4'!$C$4&ROWS($D$116:P139),'TASA POR COLEGIO'!$C:$O,12,FALSE),"") ->  | N141: =IF(ROWS($D$116:Q139)<=(COUNTIF('TASA POR COLEGIO'!$B:$B,'4'!$C$4)),VLOOKUP('4'!$C$4&ROWS($D$116:Q139),'TASA POR COLEGIO'!$C:$P,13,FALSE),"") ->  | O141: =IF(ROWS($D$116:R139)<=(COUNTIF('TASA POR COLEGIO'!$B:$B,'4'!$C$4)),VLOOKUP('4'!$C$4&ROWS($D$116:R139),'TASA POR COLEGIO'!$C:$Q,14,FALSE),"") -> 
A142: =IF(ROWS($D$116:D140)<=(COUNTIF('TASA POR COLEGIO'!$B:$B,'4'!$C$4)),VLOOKUP('4'!$C$4&ROWS($D$116:D140),'TASA POR COLEGIO'!$C:$O,3,FALSE),"") ->  | F142: =IF(ROWS($D$116:I140)<=(COUNTIF('TASA POR COLEGIO'!$B:$B,'4'!$C$4)),VLOOKUP('4'!$C$4&ROWS($D$116:I140),'TASA POR COLEGIO'!$C:$O,5,FALSE),"") ->  | G142: =IF(ROWS($D$116:K140)<=(COUNTIF('TASA POR COLEGIO'!$B:$B,'4'!$C$4)),VLOOKUP('4'!$C$4&ROWS($D$116:K140),'TASA POR COLEGIO'!$C:$O,6,FALSE),"") ->  | H142: =IF(ROWS($D$116:L140)<=(COUNTIF('TASA POR COLEGIO'!$B:$B,'4'!$C$4)),VLOOKUP('4'!$C$4&ROWS($D$116:L140),'TASA POR COLEGIO'!$C:$O,7,FALSE),"") ->  | I142: =IF(ROWS($D$116:M140)<=(COUNTIF('TASA POR COLEGIO'!$B:$B,'4'!$C$4)),VLOOKUP('4'!$C$4&ROWS($D$116:M140),'TASA POR COLEGIO'!$C:$O,8,FALSE),"") ->  | J142: =IF(ROWS($D$116:N140)<=(COUNTIF('TASA POR COLEGIO'!$B:$B,'4'!$C$4)),VLOOKUP('4'!$C$4&ROWS($D$116:N140),'TASA POR COLEGIO'!$C:$O,9,FALSE),"") ->  | K142: =IF(ROWS($D$116:N140)<=(COUNTIF('TASA POR COLEGIO'!$B:$B,'4'!$C$4)),VLOOKUP('4'!$C$4&ROWS($D$116:N140),'TASA POR COLEGIO'!$C:$O,10,FALSE),"") ->  | L142: =IF(ROWS($D$116:O140)<=(COUNTIF('TASA POR COLEGIO'!$B:$B,'4'!$C$4)),VLOOKUP('4'!$C$4&ROWS($D$116:O140),'TASA POR COLEGIO'!$C:$O,11,FALSE),"") ->  | M142: =IF(ROWS($D$116:P140)<=(COUNTIF('TASA POR COLEGIO'!$B:$B,'4'!$C$4)),VLOOKUP('4'!$C$4&ROWS($D$116:P140),'TASA POR COLEGIO'!$C:$O,12,FALSE),"") ->  | N142: =IF(ROWS($D$116:Q140)<=(COUNTIF('TASA POR COLEGIO'!$B:$B,'4'!$C$4)),VLOOKUP('4'!$C$4&ROWS($D$116:Q140),'TASA POR COLEGIO'!$C:$P,13,FALSE),"") ->  | O142: =IF(ROWS($D$116:R140)<=(COUNTIF('TASA POR COLEGIO'!$B:$B,'4'!$C$4)),VLOOKUP('4'!$C$4&ROWS($D$116:R140),'TASA POR COLEGIO'!$C:$Q,14,FALSE),"") -> 
A143: =IF(ROWS($D$116:D141)<=(COUNTIF('TASA POR COLEGIO'!$B:$B,'4'!$C$4)),VLOOKUP('4'!$C$4&ROWS($D$116:D141),'TASA POR COLEGIO'!$C:$O,3,FALSE),"") ->  | F143: =IF(ROWS($D$116:I141)<=(COUNTIF('TASA POR COLEGIO'!$B:$B,'4'!$C$4)),VLOOKUP('4'!$C$4&ROWS($D$116:I141),'TASA POR COLEGIO'!$C:$O,5,FALSE),"") ->  | G143: =IF(ROWS($D$116:K141)<=(COUNTIF('TASA POR COLEGIO'!$B:$B,'4'!$C$4)),VLOOKUP('4'!$C$4&ROWS($D$116:K141),'TASA POR COLEGIO'!$C:$O,6,FALSE),"") ->  | H143: =IF(ROWS($D$116:L141)<=(COUNTIF('TASA POR COLEGIO'!$B:$B,'4'!$C$4)),VLOOKUP('4'!$C$4&ROWS($D$116:L141),'TASA POR COLEGIO'!$C:$O,7,FALSE),"") ->  | I143: =IF(ROWS($D$116:M141)<=(COUNTIF('TASA POR COLEGIO'!$B:$B,'4'!$C$4)),VLOOKUP('4'!$C$4&ROWS($D$116:M141),'TASA POR COLEGIO'!$C:$O,8,FALSE),"") ->  | J143: =IF(ROWS($D$116:N141)<=(COUNTIF('TASA POR COLEGIO'!$B:$B,'4'!$C$4)),VLOOKUP('4'!$C$4&ROWS($D$116:N141),'TASA POR COLEGIO'!$C:$O,9,FALSE),"") ->  | K143: =IF(ROWS($D$116:N141)<=(COUNTIF('TASA POR COLEGIO'!$B:$B,'4'!$C$4)),VLOOKUP('4'!$C$4&ROWS($D$116:N141),'TASA POR COLEGIO'!$C:$O,10,FALSE),"") ->  | L143: =IF(ROWS($D$116:O141)<=(COUNTIF('TASA POR COLEGIO'!$B:$B,'4'!$C$4)),VLOOKUP('4'!$C$4&ROWS($D$116:O141),'TASA POR COLEGIO'!$C:$O,11,FALSE),"") ->  | M143: =IF(ROWS($D$116:P141)<=(COUNTIF('TASA POR COLEGIO'!$B:$B,'4'!$C$4)),VLOOKUP('4'!$C$4&ROWS($D$116:P141),'TASA POR COLEGIO'!$C:$O,12,FALSE),"") ->  | N143: =IF(ROWS($D$116:Q141)<=(COUNTIF('TASA POR COLEGIO'!$B:$B,'4'!$C$4)),VLOOKUP('4'!$C$4&ROWS($D$116:Q141),'TASA POR COLEGIO'!$C:$P,13,FALSE),"") ->  | O143: =IF(ROWS($D$116:R141)<=(COUNTIF('TASA POR COLEGIO'!$B:$B,'4'!$C$4)),VLOOKUP('4'!$C$4&ROWS($D$116:R141),'TASA POR COLEGIO'!$C:$Q,14,FALSE),"") -> 
A144: =IF(ROWS($D$116:D142)<=(COUNTIF('TASA POR COLEGIO'!$B:$B,'4'!$C$4)),VLOOKUP('4'!$C$4&ROWS($D$116:D142),'TASA POR COLEGIO'!$C:$O,3,FALSE),"") ->  | F144: =IF(ROWS($D$116:I142)<=(COUNTIF('TASA POR COLEGIO'!$B:$B,'4'!$C$4)),VLOOKUP('4'!$C$4&ROWS($D$116:I142),'TASA POR COLEGIO'!$C:$O,5,FALSE),"") ->  | G144: =IF(ROWS($D$116:K142)<=(COUNTIF('TASA POR COLEGIO'!$B:$B,'4'!$C$4)),VLOOKUP('4'!$C$4&ROWS($D$116:K142),'TASA POR COLEGIO'!$C:$O,6,FALSE),"") ->  | H144: =IF(ROWS($D$116:L142)<=(COUNTIF('TASA POR COLEGIO'!$B:$B,'4'!$C$4)),VLOOKUP('4'!$C$4&ROWS($D$116:L142),'TASA POR COLEGIO'!$C:$O,7,FALSE),"") ->  | I144: =IF(ROWS($D$116:M142)<=(COUNTIF('TASA POR COLEGIO'!$B:$B,'4'!$C$4)),VLOOKUP('4'!$C$4&ROWS($D$116:M142),'TASA POR COLEGIO'!$C:$O,8,FALSE),"") ->  | J144: =IF(ROWS($D$116:N142)<=(COUNTIF('TASA POR COLEGIO'!$B:$B,'4'!$C$4)),VLOOKUP('4'!$C$4&ROWS($D$116:N142),'TASA POR COLEGIO'!$C:$O,9,FALSE),"") ->  | K144: =IF(ROWS($D$116:N142)<=(COUNTIF('TASA POR COLEGIO'!$B:$B,'4'!$C$4)),VLOOKUP('4'!$C$4&ROWS($D$116:N142),'TASA POR COLEGIO'!$C:$O,10,FALSE),"") ->  | L144: =IF(ROWS($D$116:O142)<=(COUNTIF('TASA POR COLEGIO'!$B:$B,'4'!$C$4)),VLOOKUP('4'!$C$4&ROWS($D$116:O142),'TASA POR COLEGIO'!$C:$O,11,FALSE),"") ->  | M144: =IF(ROWS($D$116:P142)<=(COUNTIF('TASA POR COLEGIO'!$B:$B,'4'!$C$4)),VLOOKUP('4'!$C$4&ROWS($D$116:P142),'TASA POR COLEGIO'!$C:$O,12,FALSE),"") ->  | N144: =IF(ROWS($D$116:Q142)<=(COUNTIF('TASA POR COLEGIO'!$B:$B,'4'!$C$4)),VLOOKUP('4'!$C$4&ROWS($D$116:Q142),'TASA POR COLEGIO'!$C:$P,13,FALSE),"") ->  | O144: =IF(ROWS($D$116:R142)<=(COUNTIF('TASA POR COLEGIO'!$B:$B,'4'!$C$4)),VLOOKUP('4'!$C$4&ROWS($D$116:R142),'TASA POR COLEGIO'!$C:$Q,14,FALSE),"") -> 
A145: =IF(ROWS($D$116:D143)<=(COUNTIF('TASA POR COLEGIO'!$B:$B,'4'!$C$4)),VLOOKUP('4'!$C$4&ROWS($D$116:D143),'TASA POR COLEGIO'!$C:$O,3,FALSE),"") ->  | F145: =IF(ROWS($D$116:I143)<=(COUNTIF('TASA POR COLEGIO'!$B:$B,'4'!$C$4)),VLOOKUP('4'!$C$4&ROWS($D$116:I143),'TASA POR COLEGIO'!$C:$O,5,FALSE),"") ->  | G145: =IF(ROWS($D$116:K143)<=(COUNTIF('TASA POR COLEGIO'!$B:$B,'4'!$C$4)),VLOOKUP('4'!$C$4&ROWS($D$116:K143),'TASA POR COLEGIO'!$C:$O,6,FALSE),"") ->  | H145: =IF(ROWS($D$116:L143)<=(COUNTIF('TASA POR COLEGIO'!$B:$B,'4'!$C$4)),VLOOKUP('4'!$C$4&ROWS($D$116:L143),'TASA POR COLEGIO'!$C:$O,7,FALSE),"") ->  | I145: =IF(ROWS($D$116:M143)<=(COUNTIF('TASA POR COLEGIO'!$B:$B,'4'!$C$4)),VLOOKUP('4'!$C$4&ROWS($D$116:M143),'TASA POR COLEGIO'!$C:$O,8,FALSE),"") ->  | J145: =IF(ROWS($D$116:N143)<=(COUNTIF('TASA POR COLEGIO'!$B:$B,'4'!$C$4)),VLOOKUP('4'!$C$4&ROWS($D$116:N143),'TASA POR COLEGIO'!$C:$O,9,FALSE),"") ->  | K145: =IF(ROWS($D$116:N143)<=(COUNTIF('TASA POR COLEGIO'!$B:$B,'4'!$C$4)),VLOOKUP('4'!$C$4&ROWS($D$116:N143),'TASA POR COLEGIO'!$C:$O,10,FALSE),"") ->  | L145: =IF(ROWS($D$116:O143)<=(COUNTIF('TASA POR COLEGIO'!$B:$B,'4'!$C$4)),VLOOKUP('4'!$C$4&ROWS($D$116:O143),'TASA POR COLEGIO'!$C:$O,11,FALSE),"") ->  | M145: =IF(ROWS($D$116:P143)<=(COUNTIF('TASA POR COLEGIO'!$B:$B,'4'!$C$4)),VLOOKUP('4'!$C$4&ROWS($D$116:P143),'TASA POR COLEGIO'!$C:$O,12,FALSE),"") ->  | N145: =IF(ROWS($D$116:Q143)<=(COUNTIF('TASA POR COLEGIO'!$B:$B,'4'!$C$4)),VLOOKUP('4'!$C$4&ROWS($D$116:Q143),'TASA POR COLEGIO'!$C:$P,13,FALSE),"") ->  | O145: =IF(ROWS($D$116:R143)<=(COUNTIF('TASA POR COLEGIO'!$B:$B,'4'!$C$4)),VLOOKUP('4'!$C$4&ROWS($D$116:R143),'TASA POR COLEGIO'!$C:$Q,14,FALSE),"") -> 
A146: =IF(ROWS($D$116:D144)<=(COUNTIF('TASA POR COLEGIO'!$B:$B,'4'!$C$4)),VLOOKUP('4'!$C$4&ROWS($D$116:D144),'TASA POR COLEGIO'!$C:$O,3,FALSE),"") ->  | F146: =IF(ROWS($D$116:I144)<=(COUNTIF('TASA POR COLEGIO'!$B:$B,'4'!$C$4)),VLOOKUP('4'!$C$4&ROWS($D$116:I144),'TASA POR COLEGIO'!$C:$O,5,FALSE),"") ->  | G146: =IF(ROWS($D$116:K144)<=(COUNTIF('TASA POR COLEGIO'!$B:$B,'4'!$C$4)),VLOOKUP('4'!$C$4&ROWS($D$116:K144),'TASA POR COLEGIO'!$C:$O,6,FALSE),"") ->  | H146: =IF(ROWS($D$116:L144)<=(COUNTIF('TASA POR COLEGIO'!$B:$B,'4'!$C$4)),VLOOKUP('4'!$C$4&ROWS($D$116:L144),'TASA POR COLEGIO'!$C:$O,7,FALSE),"") ->  | I146: =IF(ROWS($D$116:M144)<=(COUNTIF('TASA POR COLEGIO'!$B:$B,'4'!$C$4)),VLOOKUP('4'!$C$4&ROWS($D$116:M144),'TASA POR COLEGIO'!$C:$O,8,FALSE),"") ->  | J146: =IF(ROWS($D$116:N144)<=(COUNTIF('TASA POR COLEGIO'!$B:$B,'4'!$C$4)),VLOOKUP('4'!$C$4&ROWS($D$116:N144),'TASA POR COLEGIO'!$C:$O,9,FALSE),"") ->  | K146: =IF(ROWS($D$116:N144)<=(COUNTIF('TASA POR COLEGIO'!$B:$B,'4'!$C$4)),VLOOKUP('4'!$C$4&ROWS($D$116:N144),'TASA POR COLEGIO'!$C:$O,10,FALSE),"") ->  | L146: =IF(ROWS($D$116:O144)<=(COUNTIF('TASA POR COLEGIO'!$B:$B,'4'!$C$4)),VLOOKUP('4'!$C$4&ROWS($D$116:O144),'TASA POR COLEGIO'!$C:$O,11,FALSE),"") ->  | M146: =IF(ROWS($D$116:P144)<=(COUNTIF('TASA POR COLEGIO'!$B:$B,'4'!$C$4)),VLOOKUP('4'!$C$4&ROWS($D$116:P144),'TASA POR COLEGIO'!$C:$O,12,FALSE),"") ->  | N146: =IF(ROWS($D$116:Q144)<=(COUNTIF('TASA POR COLEGIO'!$B:$B,'4'!$C$4)),VLOOKUP('4'!$C$4&ROWS($D$116:Q144),'TASA POR COLEGIO'!$C:$P,13,FALSE),"") ->  | O146: =IF(ROWS($D$116:R144)<=(COUNTIF('TASA POR COLEGIO'!$B:$B,'4'!$C$4)),VLOOKUP('4'!$C$4&ROWS($D$116:R144),'TASA POR COLEGIO'!$C:$Q,14,FALSE),"") -> 
A147: =IF(ROWS($D$116:D145)<=(COUNTIF('TASA POR COLEGIO'!$B:$B,'4'!$C$4)),VLOOKUP('4'!$C$4&ROWS($D$116:D145),'TASA POR COLEGIO'!$C:$O,3,FALSE),"") ->  | F147: =IF(ROWS($D$116:I145)<=(COUNTIF('TASA POR COLEGIO'!$B:$B,'4'!$C$4)),VLOOKUP('4'!$C$4&ROWS($D$116:I145),'TASA POR COLEGIO'!$C:$O,5,FALSE),"") ->  | G147: =IF(ROWS($D$116:K145)<=(COUNTIF('TASA POR COLEGIO'!$B:$B,'4'!$C$4)),VLOOKUP('4'!$C$4&ROWS($D$116:K145),'TASA POR COLEGIO'!$C:$O,6,FALSE),"") ->  | H147: =IF(ROWS($D$116:L145)<=(COUNTIF('TASA POR COLEGIO'!$B:$B,'4'!$C$4)),VLOOKUP('4'!$C$4&ROWS($D$116:L145),'TASA POR COLEGIO'!$C:$O,7,FALSE),"") ->  | I147: =IF(ROWS($D$116:M145)<=(COUNTIF('TASA POR COLEGIO'!$B:$B,'4'!$C$4)),VLOOKUP('4'!$C$4&ROWS($D$116:M145),'TASA POR COLEGIO'!$C:$O,8,FALSE),"") ->  | J147: =IF(ROWS($D$116:N145)<=(COUNTIF('TASA POR COLEGIO'!$B:$B,'4'!$C$4)),VLOOKUP('4'!$C$4&ROWS($D$116:N145),'TASA POR COLEGIO'!$C:$O,9,FALSE),"") ->  | K147: =IF(ROWS($D$116:N145)<=(COUNTIF('TASA POR COLEGIO'!$B:$B,'4'!$C$4)),VLOOKUP('4'!$C$4&ROWS($D$116:N145),'TASA POR COLEGIO'!$C:$O,10,FALSE),"") ->  | L147: =IF(ROWS($D$116:O145)<=(COUNTIF('TASA POR COLEGIO'!$B:$B,'4'!$C$4)),VLOOKUP('4'!$C$4&ROWS($D$116:O145),'TASA POR COLEGIO'!$C:$O,11,FALSE),"") ->  | M147: =IF(ROWS($D$116:P145)<=(COUNTIF('TASA POR COLEGIO'!$B:$B,'4'!$C$4)),VLOOKUP('4'!$C$4&ROWS($D$116:P145),'TASA POR COLEGIO'!$C:$O,12,FALSE),"") ->  | N147: =IF(ROWS($D$116:Q145)<=(COUNTIF('TASA POR COLEGIO'!$B:$B,'4'!$C$4)),VLOOKUP('4'!$C$4&ROWS($D$116:Q145),'TASA POR COLEGIO'!$C:$P,13,FALSE),"") ->  | O147: =IF(ROWS($D$116:R145)<=(COUNTIF('TASA POR COLEGIO'!$B:$B,'4'!$C$4)),VLOOKUP('4'!$C$4&ROWS($D$116:R145),'TASA POR COLEGIO'!$C:$Q,14,FALSE),"") -> 
A148: =IF(ROWS($D$116:D146)<=(COUNTIF('TASA POR COLEGIO'!$B:$B,'4'!$C$4)),VLOOKUP('4'!$C$4&ROWS($D$116:D146),'TASA POR COLEGIO'!$C:$O,3,FALSE),"") ->  | F148: =IF(ROWS($D$116:I146)<=(COUNTIF('TASA POR COLEGIO'!$B:$B,'4'!$C$4)),VLOOKUP('4'!$C$4&ROWS($D$116:I146),'TASA POR COLEGIO'!$C:$O,5,FALSE),"") ->  | G148: =IF(ROWS($D$116:K146)<=(COUNTIF('TASA POR COLEGIO'!$B:$B,'4'!$C$4)),VLOOKUP('4'!$C$4&ROWS($D$116:K146),'TASA POR COLEGIO'!$C:$O,6,FALSE),"") ->  | H148: =IF(ROWS($D$116:L146)<=(COUNTIF('TASA POR COLEGIO'!$B:$B,'4'!$C$4)),VLOOKUP('4'!$C$4&ROWS($D$116:L146),'TASA POR COLEGIO'!$C:$O,7,FALSE),"") ->  | I148: =IF(ROWS($D$116:M146)<=(COUNTIF('TASA POR COLEGIO'!$B:$B,'4'!$C$4)),VLOOKUP('4'!$C$4&ROWS($D$116:M146),'TASA POR COLEGIO'!$C:$O,8,FALSE),"") ->  | J148: =IF(ROWS($D$116:N146)<=(COUNTIF('TASA POR COLEGIO'!$B:$B,'4'!$C$4)),VLOOKUP('4'!$C$4&ROWS($D$116:N146),'TASA POR COLEGIO'!$C:$O,9,FALSE),"") ->  | K148: =IF(ROWS($D$116:N146)<=(COUNTIF('TASA POR COLEGIO'!$B:$B,'4'!$C$4)),VLOOKUP('4'!$C$4&ROWS($D$116:N146),'TASA POR COLEGIO'!$C:$O,10,FALSE),"") ->  | L148: =IF(ROWS($D$116:O146)<=(COUNTIF('TASA POR COLEGIO'!$B:$B,'4'!$C$4)),VLOOKUP('4'!$C$4&ROWS($D$116:O146),'TASA POR COLEGIO'!$C:$O,11,FALSE),"") ->  | M148: =IF(ROWS($D$116:P146)<=(COUNTIF('TASA POR COLEGIO'!$B:$B,'4'!$C$4)),VLOOKUP('4'!$C$4&ROWS($D$116:P146),'TASA POR COLEGIO'!$C:$O,12,FALSE),"") ->  | N148: =IF(ROWS($D$116:Q146)<=(COUNTIF('TASA POR COLEGIO'!$B:$B,'4'!$C$4)),VLOOKUP('4'!$C$4&ROWS($D$116:Q146),'TASA POR COLEGIO'!$C:$P,13,FALSE),"") ->  | O148: =IF(ROWS($D$116:R146)<=(COUNTIF('TASA POR COLEGIO'!$B:$B,'4'!$C$4)),VLOOKUP('4'!$C$4&ROWS($D$116:R146),'TASA POR COLEGIO'!$C:$Q,14,FALSE),"") -> 
A149: =IF(ROWS($D$116:D147)<=(COUNTIF('TASA POR COLEGIO'!$B:$B,'4'!$C$4)),VLOOKUP('4'!$C$4&ROWS($D$116:D147),'TASA POR COLEGIO'!$C:$O,3,FALSE),"") ->  | F149: =IF(ROWS($D$116:I147)<=(COUNTIF('TASA POR COLEGIO'!$B:$B,'4'!$C$4)),VLOOKUP('4'!$C$4&ROWS($D$116:I147),'TASA POR COLEGIO'!$C:$O,5,FALSE),"") ->  | G149: =IF(ROWS($D$116:K147)<=(COUNTIF('TASA POR COLEGIO'!$B:$B,'4'!$C$4)),VLOOKUP('4'!$C$4&ROWS($D$116:K147),'TASA POR COLEGIO'!$C:$O,6,FALSE),"") ->  | H149: =IF(ROWS($D$116:L147)<=(COUNTIF('TASA POR COLEGIO'!$B:$B,'4'!$C$4)),VLOOKUP('4'!$C$4&ROWS($D$116:L147),'TASA POR COLEGIO'!$C:$O,7,FALSE),"") ->  | I149: =IF(ROWS($D$116:M147)<=(COUNTIF('TASA POR COLEGIO'!$B:$B,'4'!$C$4)),VLOOKUP('4'!$C$4&ROWS($D$116:M147),'TASA POR COLEGIO'!$C:$O,8,FALSE),"") ->  | J149: =IF(ROWS($D$116:N147)<=(COUNTIF('TASA POR COLEGIO'!$B:$B,'4'!$C$4)),VLOOKUP('4'!$C$4&ROWS($D$116:N147),'TASA POR COLEGIO'!$C:$O,9,FALSE),"") ->  | K149: =IF(ROWS($D$116:N147)<=(COUNTIF('TASA POR COLEGIO'!$B:$B,'4'!$C$4)),VLOOKUP('4'!$C$4&ROWS($D$116:N147),'TASA POR COLEGIO'!$C:$O,10,FALSE),"") ->  | L149: =IF(ROWS($D$116:O147)<=(COUNTIF('TASA POR COLEGIO'!$B:$B,'4'!$C$4)),VLOOKUP('4'!$C$4&ROWS($D$116:O147),'TASA POR COLEGIO'!$C:$O,11,FALSE),"") ->  | M149: =IF(ROWS($D$116:P147)<=(COUNTIF('TASA POR COLEGIO'!$B:$B,'4'!$C$4)),VLOOKUP('4'!$C$4&ROWS($D$116:P147),'TASA POR COLEGIO'!$C:$O,12,FALSE),"") ->  | N149: =IF(ROWS($D$116:Q147)<=(COUNTIF('TASA POR COLEGIO'!$B:$B,'4'!$C$4)),VLOOKUP('4'!$C$4&ROWS($D$116:Q147),'TASA POR COLEGIO'!$C:$P,13,FALSE),"") ->  | O149: =IF(ROWS($D$116:R147)<=(COUNTIF('TASA POR COLEGIO'!$B:$B,'4'!$C$4)),VLOOKUP('4'!$C$4&ROWS($D$116:R147),'TASA POR COLEGIO'!$C:$Q,14,FALSE),"") -> 
A150: =IF(ROWS($D$116:D148)<=(COUNTIF('TASA POR COLEGIO'!$B:$B,'4'!$C$4)),VLOOKUP('4'!$C$4&ROWS($D$116:D148),'TASA POR COLEGIO'!$C:$O,3,FALSE),"") ->  | F150: =IF(ROWS($D$116:I148)<=(COUNTIF('TASA POR COLEGIO'!$B:$B,'4'!$C$4)),VLOOKUP('4'!$C$4&ROWS($D$116:I148),'TASA POR COLEGIO'!$C:$O,5,FALSE),"") ->  | G150: =IF(ROWS($D$116:K148)<=(COUNTIF('TASA POR COLEGIO'!$B:$B,'4'!$C$4)),VLOOKUP('4'!$C$4&ROWS($D$116:K148),'TASA POR COLEGIO'!$C:$O,6,FALSE),"") ->  | H150: =IF(ROWS($D$116:L148)<=(COUNTIF('TASA POR COLEGIO'!$B:$B,'4'!$C$4)),VLOOKUP('4'!$C$4&ROWS($D$116:L148),'TASA POR COLEGIO'!$C:$O,7,FALSE),"") ->  | I150: =IF(ROWS($D$116:M148)<=(COUNTIF('TASA POR COLEGIO'!$B:$B,'4'!$C$4)),VLOOKUP('4'!$C$4&ROWS($D$116:M148),'TASA POR COLEGIO'!$C:$O,8,FALSE),"") ->  | J150: =IF(ROWS($D$116:N148)<=(COUNTIF('TASA POR COLEGIO'!$B:$B,'4'!$C$4)),VLOOKUP('4'!$C$4&ROWS($D$116:N148),'TASA POR COLEGIO'!$C:$O,9,FALSE),"") ->  | K150: =IF(ROWS($D$116:N148)<=(COUNTIF('TASA POR COLEGIO'!$B:$B,'4'!$C$4)),VLOOKUP('4'!$C$4&ROWS($D$116:N148),'TASA POR COLEGIO'!$C:$O,10,FALSE),"") ->  | L150: =IF(ROWS($D$116:O148)<=(COUNTIF('TASA POR COLEGIO'!$B:$B,'4'!$C$4)),VLOOKUP('4'!$C$4&ROWS($D$116:O148),'TASA POR COLEGIO'!$C:$O,11,FALSE),"") ->  | M150: =IF(ROWS($D$116:P148)<=(COUNTIF('TASA POR COLEGIO'!$B:$B,'4'!$C$4)),VLOOKUP('4'!$C$4&ROWS($D$116:P148),'TASA POR COLEGIO'!$C:$O,12,FALSE),"") ->  | N150: =IF(ROWS($D$116:Q148)<=(COUNTIF('TASA POR COLEGIO'!$B:$B,'4'!$C$4)),VLOOKUP('4'!$C$4&ROWS($D$116:Q148),'TASA POR COLEGIO'!$C:$P,13,FALSE),"") ->  | O150: =IF(ROWS($D$116:R148)<=(COUNTIF('TASA POR COLEGIO'!$B:$B,'4'!$C$4)),VLOOKUP('4'!$C$4&ROWS($D$116:R148),'TASA POR COLEGIO'!$C:$Q,14,FALSE),"") -> 
A151: =IF(ROWS($D$116:D149)<=(COUNTIF('TASA POR COLEGIO'!$B:$B,'4'!$C$4)),VLOOKUP('4'!$C$4&ROWS($D$116:D149),'TASA POR COLEGIO'!$C:$O,3,FALSE),"") ->  | F151: =IF(ROWS($D$116:I149)<=(COUNTIF('TASA POR COLEGIO'!$B:$B,'4'!$C$4)),VLOOKUP('4'!$C$4&ROWS($D$116:I149),'TASA POR COLEGIO'!$C:$O,5,FALSE),"") ->  | G151: =IF(ROWS($D$116:K149)<=(COUNTIF('TASA POR COLEGIO'!$B:$B,'4'!$C$4)),VLOOKUP('4'!$C$4&ROWS($D$116:K149),'TASA POR COLEGIO'!$C:$O,6,FALSE),"") ->  | H151: =IF(ROWS($D$116:L149)<=(COUNTIF('TASA POR COLEGIO'!$B:$B,'4'!$C$4)),VLOOKUP('4'!$C$4&ROWS($D$116:L149),'TASA POR COLEGIO'!$C:$O,7,FALSE),"") ->  | I151: =IF(ROWS($D$116:M149)<=(COUNTIF('TASA POR COLEGIO'!$B:$B,'4'!$C$4)),VLOOKUP('4'!$C$4&ROWS($D$116:M149),'TASA POR COLEGIO'!$C:$O,8,FALSE),"") ->  | J151: =IF(ROWS($D$116:N149)<=(COUNTIF('TASA POR COLEGIO'!$B:$B,'4'!$C$4)),VLOOKUP('4'!$C$4&ROWS($D$116:N149),'TASA POR COLEGIO'!$C:$O,9,FALSE),"") ->  | K151: =IF(ROWS($D$116:N149)<=(COUNTIF('TASA POR COLEGIO'!$B:$B,'4'!$C$4)),VLOOKUP('4'!$C$4&ROWS($D$116:N149),'TASA POR COLEGIO'!$C:$O,10,FALSE),"") ->  | L151: =IF(ROWS($D$116:O149)<=(COUNTIF('TASA POR COLEGIO'!$B:$B,'4'!$C$4)),VLOOKUP('4'!$C$4&ROWS($D$116:O149),'TASA POR COLEGIO'!$C:$O,11,FALSE),"") ->  | M151: =IF(ROWS($D$116:P149)<=(COUNTIF('TASA POR COLEGIO'!$B:$B,'4'!$C$4)),VLOOKUP('4'!$C$4&ROWS($D$116:P149),'TASA POR COLEGIO'!$C:$O,12,FALSE),"") ->  | N151: =IF(ROWS($D$116:Q149)<=(COUNTIF('TASA POR COLEGIO'!$B:$B,'4'!$C$4)),VLOOKUP('4'!$C$4&ROWS($D$116:Q149),'TASA POR COLEGIO'!$C:$P,13,FALSE),"") ->  | O151: =IF(ROWS($D$116:R149)<=(COUNTIF('TASA POR COLEGIO'!$B:$B,'4'!$C$4)),VLOOKUP('4'!$C$4&ROWS($D$116:R149),'TASA POR COLEGIO'!$C:$Q,14,FALSE),"") -> 
A152: =IF(ROWS($D$116:D150)<=(COUNTIF('TASA POR COLEGIO'!$B:$B,'4'!$C$4)),VLOOKUP('4'!$C$4&ROWS($D$116:D150),'TASA POR COLEGIO'!$C:$O,3,FALSE),"") ->  | F152: =IF(ROWS($D$116:I150)<=(COUNTIF('TASA POR COLEGIO'!$B:$B,'4'!$C$4)),VLOOKUP('4'!$C$4&ROWS($D$116:I150),'TASA POR COLEGIO'!$C:$O,5,FALSE),"") ->  | G152: =IF(ROWS($D$116:K150)<=(COUNTIF('TASA POR COLEGIO'!$B:$B,'4'!$C$4)),VLOOKUP('4'!$C$4&ROWS($D$116:K150),'TASA POR COLEGIO'!$C:$O,6,FALSE),"") ->  | H152: =IF(ROWS($D$116:L150)<=(COUNTIF('TASA POR COLEGIO'!$B:$B,'4'!$C$4)),VLOOKUP('4'!$C$4&ROWS($D$116:L150),'TASA POR COLEGIO'!$C:$O,7,FALSE),"") ->  | I152: =IF(ROWS($D$116:M150)<=(COUNTIF('TASA POR COLEGIO'!$B:$B,'4'!$C$4)),VLOOKUP('4'!$C$4&ROWS($D$116:M150),'TASA POR COLEGIO'!$C:$O,8,FALSE),"") ->  | J152: =IF(ROWS($D$116:N150)<=(COUNTIF('TASA POR COLEGIO'!$B:$B,'4'!$C$4)),VLOOKUP('4'!$C$4&ROWS($D$116:N150),'TASA POR COLEGIO'!$C:$O,9,FALSE),"") ->  | K152: =IF(ROWS($D$116:N150)<=(COUNTIF('TASA POR COLEGIO'!$B:$B,'4'!$C$4)),VLOOKUP('4'!$C$4&ROWS($D$116:N150),'TASA POR COLEGIO'!$C:$O,10,FALSE),"") ->  | L152: =IF(ROWS($D$116:O150)<=(COUNTIF('TASA POR COLEGIO'!$B:$B,'4'!$C$4)),VLOOKUP('4'!$C$4&ROWS($D$116:O150),'TASA POR COLEGIO'!$C:$O,11,FALSE),"") ->  | M152: =IF(ROWS($D$116:P150)<=(COUNTIF('TASA POR COLEGIO'!$B:$B,'4'!$C$4)),VLOOKUP('4'!$C$4&ROWS($D$116:P150),'TASA POR COLEGIO'!$C:$O,12,FALSE),"") ->  | N152: =IF(ROWS($D$116:Q150)<=(COUNTIF('TASA POR COLEGIO'!$B:$B,'4'!$C$4)),VLOOKUP('4'!$C$4&ROWS($D$116:Q150),'TASA POR COLEGIO'!$C:$P,13,FALSE),"") ->  | O152: =IF(ROWS($D$116:R150)<=(COUNTIF('TASA POR COLEGIO'!$B:$B,'4'!$C$4)),VLOOKUP('4'!$C$4&ROWS($D$116:R150),'TASA POR COLEGIO'!$C:$Q,14,FALSE),"") -> 
A153: =IF(ROWS($D$116:D151)<=(COUNTIF('TASA POR COLEGIO'!$B:$B,'4'!$C$4)),VLOOKUP('4'!$C$4&ROWS($D$116:D151),'TASA POR COLEGIO'!$C:$O,3,FALSE),"") ->  | F153: =IF(ROWS($D$116:I151)<=(COUNTIF('TASA POR COLEGIO'!$B:$B,'4'!$C$4)),VLOOKUP('4'!$C$4&ROWS($D$116:I151),'TASA POR COLEGIO'!$C:$O,5,FALSE),"") ->  | G153: =IF(ROWS($D$116:K151)<=(COUNTIF('TASA POR COLEGIO'!$B:$B,'4'!$C$4)),VLOOKUP('4'!$C$4&ROWS($D$116:K151),'TASA POR COLEGIO'!$C:$O,6,FALSE),"") ->  | H153: =IF(ROWS($D$116:L151)<=(COUNTIF('TASA POR COLEGIO'!$B:$B,'4'!$C$4)),VLOOKUP('4'!$C$4&ROWS($D$116:L151),'TASA POR COLEGIO'!$C:$O,7,FALSE),"") ->  | I153: =IF(ROWS($D$116:M151)<=(COUNTIF('TASA POR COLEGIO'!$B:$B,'4'!$C$4)),VLOOKUP('4'!$C$4&ROWS($D$116:M151),'TASA POR COLEGIO'!$C:$O,8,FALSE),"") ->  | J153: =IF(ROWS($D$116:N151)<=(COUNTIF('TASA POR COLEGIO'!$B:$B,'4'!$C$4)),VLOOKUP('4'!$C$4&ROWS($D$116:N151),'TASA POR COLEGIO'!$C:$O,9,FALSE),"") ->  | K153: =IF(ROWS($D$116:N151)<=(COUNTIF('TASA POR COLEGIO'!$B:$B,'4'!$C$4)),VLOOKUP('4'!$C$4&ROWS($D$116:N151),'TASA POR COLEGIO'!$C:$O,10,FALSE),"") ->  | L153: =IF(ROWS($D$116:O151)<=(COUNTIF('TASA POR COLEGIO'!$B:$B,'4'!$C$4)),VLOOKUP('4'!$C$4&ROWS($D$116:O151),'TASA POR COLEGIO'!$C:$O,11,FALSE),"") ->  | M153: =IF(ROWS($D$116:P151)<=(COUNTIF('TASA POR COLEGIO'!$B:$B,'4'!$C$4)),VLOOKUP('4'!$C$4&ROWS($D$116:P151),'TASA POR COLEGIO'!$C:$O,12,FALSE),"") ->  | N153: =IF(ROWS($D$116:Q151)<=(COUNTIF('TASA POR COLEGIO'!$B:$B,'4'!$C$4)),VLOOKUP('4'!$C$4&ROWS($D$116:Q151),'TASA POR COLEGIO'!$C:$P,13,FALSE),"") ->  | O153: =IF(ROWS($D$116:R151)<=(COUNTIF('TASA POR COLEGIO'!$B:$B,'4'!$C$4)),VLOOKUP('4'!$C$4&ROWS($D$116:R151),'TASA POR COLEGIO'!$C:$Q,14,FALSE),"") -> 
A154: =IF(ROWS($D$116:D152)<=(COUNTIF('TASA POR COLEGIO'!$B:$B,'4'!$C$4)),VLOOKUP('4'!$C$4&ROWS($D$116:D152),'TASA POR COLEGIO'!$C:$O,3,FALSE),"") ->  | F154: =IF(ROWS($D$116:I152)<=(COUNTIF('TASA POR COLEGIO'!$B:$B,'4'!$C$4)),VLOOKUP('4'!$C$4&ROWS($D$116:I152),'TASA POR COLEGIO'!$C:$O,5,FALSE),"") ->  | G154: =IF(ROWS($D$116:K152)<=(COUNTIF('TASA POR COLEGIO'!$B:$B,'4'!$C$4)),VLOOKUP('4'!$C$4&ROWS($D$116:K152),'TASA POR COLEGIO'!$C:$O,6,FALSE),"") ->  | H154: =IF(ROWS($D$116:L152)<=(COUNTIF('TASA POR COLEGIO'!$B:$B,'4'!$C$4)),VLOOKUP('4'!$C$4&ROWS($D$116:L152),'TASA POR COLEGIO'!$C:$O,7,FALSE),"") ->  | I154: =IF(ROWS($D$116:M152)<=(COUNTIF('TASA POR COLEGIO'!$B:$B,'4'!$C$4)),VLOOKUP('4'!$C$4&ROWS($D$116:M152),'TASA POR COLEGIO'!$C:$O,8,FALSE),"") ->  | J154: =IF(ROWS($D$116:N152)<=(COUNTIF('TASA POR COLEGIO'!$B:$B,'4'!$C$4)),VLOOKUP('4'!$C$4&ROWS($D$116:N152),'TASA POR COLEGIO'!$C:$O,9,FALSE),"") ->  | K154: =IF(ROWS($D$116:N152)<=(COUNTIF('TASA POR COLEGIO'!$B:$B,'4'!$C$4)),VLOOKUP('4'!$C$4&ROWS($D$116:N152),'TASA POR COLEGIO'!$C:$O,10,FALSE),"") ->  | L154: =IF(ROWS($D$116:O152)<=(COUNTIF('TASA POR COLEGIO'!$B:$B,'4'!$C$4)),VLOOKUP('4'!$C$4&ROWS($D$116:O152),'TASA POR COLEGIO'!$C:$O,11,FALSE),"") ->  | M154: =IF(ROWS($D$116:P152)<=(COUNTIF('TASA POR COLEGIO'!$B:$B,'4'!$C$4)),VLOOKUP('4'!$C$4&ROWS($D$116:P152),'TASA POR COLEGIO'!$C:$O,12,FALSE),"") ->  | N154: =IF(ROWS($D$116:Q152)<=(COUNTIF('TASA POR COLEGIO'!$B:$B,'4'!$C$4)),VLOOKUP('4'!$C$4&ROWS($D$116:Q152),'TASA POR COLEGIO'!$C:$P,13,FALSE),"") ->  | O154: =IF(ROWS($D$116:R152)<=(COUNTIF('TASA POR COLEGIO'!$B:$B,'4'!$C$4)),VLOOKUP('4'!$C$4&ROWS($D$116:R152),'TASA POR COLEGIO'!$C:$Q,14,FALSE),"") -> 
A155: =IF(ROWS($D$116:D153)<=(COUNTIF('TASA POR COLEGIO'!$B:$B,'4'!$C$4)),VLOOKUP('4'!$C$4&ROWS($D$116:D153),'TASA POR COLEGIO'!$C:$O,3,FALSE),"") ->  | F155: =IF(ROWS($D$116:I153)<=(COUNTIF('TASA POR COLEGIO'!$B:$B,'4'!$C$4)),VLOOKUP('4'!$C$4&ROWS($D$116:I153),'TASA POR COLEGIO'!$C:$O,5,FALSE),"") ->  | G155: =IF(ROWS($D$116:K153)<=(COUNTIF('TASA POR COLEGIO'!$B:$B,'4'!$C$4)),VLOOKUP('4'!$C$4&ROWS($D$116:K153),'TASA POR COLEGIO'!$C:$O,6,FALSE),"") ->  | H155: =IF(ROWS($D$116:L153)<=(COUNTIF('TASA POR COLEGIO'!$B:$B,'4'!$C$4)),VLOOKUP('4'!$C$4&ROWS($D$116:L153),'TASA POR COLEGIO'!$C:$O,7,FALSE),"") ->  | I155: =IF(ROWS($D$116:M153)<=(COUNTIF('TASA POR COLEGIO'!$B:$B,'4'!$C$4)),VLOOKUP('4'!$C$4&ROWS($D$116:M153),'TASA POR COLEGIO'!$C:$O,8,FALSE),"") ->  | J155: =IF(ROWS($D$116:N153)<=(COUNTIF('TASA POR COLEGIO'!$B:$B,'4'!$C$4)),VLOOKUP('4'!$C$4&ROWS($D$116:N153),'TASA POR COLEGIO'!$C:$O,9,FALSE),"") ->  | K155: =IF(ROWS($D$116:N153)<=(COUNTIF('TASA POR COLEGIO'!$B:$B,'4'!$C$4)),VLOOKUP('4'!$C$4&ROWS($D$116:N153),'TASA POR COLEGIO'!$C:$O,10,FALSE),"") ->  | L155: =IF(ROWS($D$116:O153)<=(COUNTIF('TASA POR COLEGIO'!$B:$B,'4'!$C$4)),VLOOKUP('4'!$C$4&ROWS($D$116:O153),'TASA POR COLEGIO'!$C:$O,11,FALSE),"") ->  | M155: =IF(ROWS($D$116:P153)<=(COUNTIF('TASA POR COLEGIO'!$B:$B,'4'!$C$4)),VLOOKUP('4'!$C$4&ROWS($D$116:P153),'TASA POR COLEGIO'!$C:$O,12,FALSE),"") ->  | N155: =IF(ROWS($D$116:Q153)<=(COUNTIF('TASA POR COLEGIO'!$B:$B,'4'!$C$4)),VLOOKUP('4'!$C$4&ROWS($D$116:Q153),'TASA POR COLEGIO'!$C:$P,13,FALSE),"") ->  | O155: =IF(ROWS($D$116:R153)<=(COUNTIF('TASA POR COLEGIO'!$B:$B,'4'!$C$4)),VLOOKUP('4'!$C$4&ROWS($D$116:R153),'TASA POR COLEGIO'!$C:$Q,14,FALSE),"") -> 
A156: =IF(ROWS($D$116:D154)<=(COUNTIF('TASA POR COLEGIO'!$B:$B,'4'!$C$4)),VLOOKUP('4'!$C$4&ROWS($D$116:D154),'TASA POR COLEGIO'!$C:$O,3,FALSE),"") ->  | F156: =IF(ROWS($D$116:I154)<=(COUNTIF('TASA POR COLEGIO'!$B:$B,'4'!$C$4)),VLOOKUP('4'!$C$4&ROWS($D$116:I154),'TASA POR COLEGIO'!$C:$O,5,FALSE),"") ->  | G156: =IF(ROWS($D$116:K154)<=(COUNTIF('TASA POR COLEGIO'!$B:$B,'4'!$C$4)),VLOOKUP('4'!$C$4&ROWS($D$116:K154),'TASA POR COLEGIO'!$C:$O,6,FALSE),"") ->  | H156: =IF(ROWS($D$116:L154)<=(COUNTIF('TASA POR COLEGIO'!$B:$B,'4'!$C$4)),VLOOKUP('4'!$C$4&ROWS($D$116:L154),'TASA POR COLEGIO'!$C:$O,7,FALSE),"") ->  | I156: =IF(ROWS($D$116:M154)<=(COUNTIF('TASA POR COLEGIO'!$B:$B,'4'!$C$4)),VLOOKUP('4'!$C$4&ROWS($D$116:M154),'TASA POR COLEGIO'!$C:$O,8,FALSE),"") ->  | J156: =IF(ROWS($D$116:N154)<=(COUNTIF('TASA POR COLEGIO'!$B:$B,'4'!$C$4)),VLOOKUP('4'!$C$4&ROWS($D$116:N154),'TASA POR COLEGIO'!$C:$O,9,FALSE),"") ->  | K156: =IF(ROWS($D$116:N154)<=(COUNTIF('TASA POR COLEGIO'!$B:$B,'4'!$C$4)),VLOOKUP('4'!$C$4&ROWS($D$116:N154),'TASA POR COLEGIO'!$C:$O,10,FALSE),"") ->  | L156: =IF(ROWS($D$116:O154)<=(COUNTIF('TASA POR COLEGIO'!$B:$B,'4'!$C$4)),VLOOKUP('4'!$C$4&ROWS($D$116:O154),'TASA POR COLEGIO'!$C:$O,11,FALSE),"") ->  | M156: =IF(ROWS($D$116:P154)<=(COUNTIF('TASA POR COLEGIO'!$B:$B,'4'!$C$4)),VLOOKUP('4'!$C$4&ROWS($D$116:P154),'TASA POR COLEGIO'!$C:$O,12,FALSE),"") ->  | N156: =IF(ROWS($D$116:Q154)<=(COUNTIF('TASA POR COLEGIO'!$B:$B,'4'!$C$4)),VLOOKUP('4'!$C$4&ROWS($D$116:Q154),'TASA POR COLEGIO'!$C:$P,13,FALSE),"") ->  | O156: =IF(ROWS($D$116:R154)<=(COUNTIF('TASA POR COLEGIO'!$B:$B,'4'!$C$4)),VLOOKUP('4'!$C$4&ROWS($D$116:R154),'TASA POR COLEGIO'!$C:$Q,14,FALSE),"") -> 
A157: =IF(ROWS($D$116:D155)<=(COUNTIF('TASA POR COLEGIO'!$B:$B,'4'!$C$4)),VLOOKUP('4'!$C$4&ROWS($D$116:D155),'TASA POR COLEGIO'!$C:$O,3,FALSE),"") ->  | F157: =IF(ROWS($D$116:I155)<=(COUNTIF('TASA POR COLEGIO'!$B:$B,'4'!$C$4)),VLOOKUP('4'!$C$4&ROWS($D$116:I155),'TASA POR COLEGIO'!$C:$O,5,FALSE),"") ->  | G157: =IF(ROWS($D$116:K155)<=(COUNTIF('TASA POR COLEGIO'!$B:$B,'4'!$C$4)),VLOOKUP('4'!$C$4&ROWS($D$116:K155),'TASA POR COLEGIO'!$C:$O,6,FALSE),"") ->  | H157: =IF(ROWS($D$116:L155)<=(COUNTIF('TASA POR COLEGIO'!$B:$B,'4'!$C$4)),VLOOKUP('4'!$C$4&ROWS($D$116:L155),'TASA POR COLEGIO'!$C:$O,7,FALSE),"") ->  | I157: =IF(ROWS($D$116:M155)<=(COUNTIF('TASA POR COLEGIO'!$B:$B,'4'!$C$4)),VLOOKUP('4'!$C$4&ROWS($D$116:M155),'TASA POR COLEGIO'!$C:$O,8,FALSE),"") ->  | J157: =IF(ROWS($D$116:N155)<=(COUNTIF('TASA POR COLEGIO'!$B:$B,'4'!$C$4)),VLOOKUP('4'!$C$4&ROWS($D$116:N155),'TASA POR COLEGIO'!$C:$O,9,FALSE),"") ->  | K157: =IF(ROWS($D$116:N155)<=(COUNTIF('TASA POR COLEGIO'!$B:$B,'4'!$C$4)),VLOOKUP('4'!$C$4&ROWS($D$116:N155),'TASA POR COLEGIO'!$C:$O,10,FALSE),"") ->  | L157: =IF(ROWS($D$116:O155)<=(COUNTIF('TASA POR COLEGIO'!$B:$B,'4'!$C$4)),VLOOKUP('4'!$C$4&ROWS($D$116:O155),'TASA POR COLEGIO'!$C:$O,11,FALSE),"") ->  | M157: =IF(ROWS($D$116:P155)<=(COUNTIF('TASA POR COLEGIO'!$B:$B,'4'!$C$4)),VLOOKUP('4'!$C$4&ROWS($D$116:P155),'TASA POR COLEGIO'!$C:$O,12,FALSE),"") ->  | N157: =IF(ROWS($D$116:Q155)<=(COUNTIF('TASA POR COLEGIO'!$B:$B,'4'!$C$4)),VLOOKUP('4'!$C$4&ROWS($D$116:Q155),'TASA POR COLEGIO'!$C:$P,13,FALSE),"") ->  | O157: =IF(ROWS($D$116:R155)<=(COUNTIF('TASA POR COLEGIO'!$B:$B,'4'!$C$4)),VLOOKUP('4'!$C$4&ROWS($D$116:R155),'TASA POR COLEGIO'!$C:$Q,14,FALSE),"") -> 
A158: =IF(ROWS($D$116:D156)<=(COUNTIF('TASA POR COLEGIO'!$B:$B,'4'!$C$4)),VLOOKUP('4'!$C$4&ROWS($D$116:D156),'TASA POR COLEGIO'!$C:$O,3,FALSE),"") ->  | F158: =IF(ROWS($D$116:I156)<=(COUNTIF('TASA POR COLEGIO'!$B:$B,'4'!$C$4)),VLOOKUP('4'!$C$4&ROWS($D$116:I156),'TASA POR COLEGIO'!$C:$O,5,FALSE),"") ->  | G158: =IF(ROWS($D$116:K156)<=(COUNTIF('TASA POR COLEGIO'!$B:$B,'4'!$C$4)),VLOOKUP('4'!$C$4&ROWS($D$116:K156),'TASA POR COLEGIO'!$C:$O,6,FALSE),"") ->  | H158: =IF(ROWS($D$116:L156)<=(COUNTIF('TASA POR COLEGIO'!$B:$B,'4'!$C$4)),VLOOKUP('4'!$C$4&ROWS($D$116:L156),'TASA POR COLEGIO'!$C:$O,7,FALSE),"") ->  | I158: =IF(ROWS($D$116:M156)<=(COUNTIF('TASA POR COLEGIO'!$B:$B,'4'!$C$4)),VLOOKUP('4'!$C$4&ROWS($D$116:M156),'TASA POR COLEGIO'!$C:$O,8,FALSE),"") ->  | J158: =IF(ROWS($D$116:N156)<=(COUNTIF('TASA POR COLEGIO'!$B:$B,'4'!$C$4)),VLOOKUP('4'!$C$4&ROWS($D$116:N156),'TASA POR COLEGIO'!$C:$O,9,FALSE),"") ->  | K158: =IF(ROWS($D$116:N156)<=(COUNTIF('TASA POR COLEGIO'!$B:$B,'4'!$C$4)),VLOOKUP('4'!$C$4&ROWS($D$116:N156),'TASA POR COLEGIO'!$C:$O,10,FALSE),"") ->  | L158: =IF(ROWS($D$116:O156)<=(COUNTIF('TASA POR COLEGIO'!$B:$B,'4'!$C$4)),VLOOKUP('4'!$C$4&ROWS($D$116:O156),'TASA POR COLEGIO'!$C:$O,11,FALSE),"") ->  | M158: =IF(ROWS($D$116:P156)<=(COUNTIF('TASA POR COLEGIO'!$B:$B,'4'!$C$4)),VLOOKUP('4'!$C$4&ROWS($D$116:P156),'TASA POR COLEGIO'!$C:$O,12,FALSE),"") ->  | N158: =IF(ROWS($D$116:Q156)<=(COUNTIF('TASA POR COLEGIO'!$B:$B,'4'!$C$4)),VLOOKUP('4'!$C$4&ROWS($D$116:Q156),'TASA POR COLEGIO'!$C:$P,13,FALSE),"") ->  | O158: =IF(ROWS($D$116:R156)<=(COUNTIF('TASA POR COLEGIO'!$B:$B,'4'!$C$4)),VLOOKUP('4'!$C$4&ROWS($D$116:R156),'TASA POR COLEGIO'!$C:$Q,14,FALSE),"") -> 
A159: =IF(ROWS($D$116:D157)<=(COUNTIF('TASA POR COLEGIO'!$B:$B,'4'!$C$4)),VLOOKUP('4'!$C$4&ROWS($D$116:D157),'TASA POR COLEGIO'!$C:$O,3,FALSE),"") ->  | F159: =IF(ROWS($D$116:I157)<=(COUNTIF('TASA POR COLEGIO'!$B:$B,'4'!$C$4)),VLOOKUP('4'!$C$4&ROWS($D$116:I157),'TASA POR COLEGIO'!$C:$O,5,FALSE),"") ->  | G159: =IF(ROWS($D$116:K157)<=(COUNTIF('TASA POR COLEGIO'!$B:$B,'4'!$C$4)),VLOOKUP('4'!$C$4&ROWS($D$116:K157),'TASA POR COLEGIO'!$C:$O,6,FALSE),"") ->  | H159: =IF(ROWS($D$116:L157)<=(COUNTIF('TASA POR COLEGIO'!$B:$B,'4'!$C$4)),VLOOKUP('4'!$C$4&ROWS($D$116:L157),'TASA POR COLEGIO'!$C:$O,7,FALSE),"") ->  | I159: =IF(ROWS($D$116:M157)<=(COUNTIF('TASA POR COLEGIO'!$B:$B,'4'!$C$4)),VLOOKUP('4'!$C$4&ROWS($D$116:M157),'TASA POR COLEGIO'!$C:$O,8,FALSE),"") ->  | J159: =IF(ROWS($D$116:N157)<=(COUNTIF('TASA POR COLEGIO'!$B:$B,'4'!$C$4)),VLOOKUP('4'!$C$4&ROWS($D$116:N157),'TASA POR COLEGIO'!$C:$O,9,FALSE),"") ->  | K159: =IF(ROWS($D$116:N157)<=(COUNTIF('TASA POR COLEGIO'!$B:$B,'4'!$C$4)),VLOOKUP('4'!$C$4&ROWS($D$116:N157),'TASA POR COLEGIO'!$C:$O,10,FALSE),"") ->  | L159: =IF(ROWS($D$116:O157)<=(COUNTIF('TASA POR COLEGIO'!$B:$B,'4'!$C$4)),VLOOKUP('4'!$C$4&ROWS($D$116:O157),'TASA POR COLEGIO'!$C:$O,11,FALSE),"") ->  | M159: =IF(ROWS($D$116:P157)<=(COUNTIF('TASA POR COLEGIO'!$B:$B,'4'!$C$4)),VLOOKUP('4'!$C$4&ROWS($D$116:P157),'TASA POR COLEGIO'!$C:$O,12,FALSE),"") ->  | N159: =IF(ROWS($D$116:Q157)<=(COUNTIF('TASA POR COLEGIO'!$B:$B,'4'!$C$4)),VLOOKUP('4'!$C$4&ROWS($D$116:Q157),'TASA POR COLEGIO'!$C:$P,13,FALSE),"") ->  | O159: =IF(ROWS($D$116:R157)<=(COUNTIF('TASA POR COLEGIO'!$B:$B,'4'!$C$4)),VLOOKUP('4'!$C$4&ROWS($D$116:R157),'TASA POR COLEGIO'!$C:$Q,14,FALSE),"") -> 
